Workbook

Sheet PORTADA

Sheet INDICE
M1: =INDEX('ITCER GLOBAL'!B6:B10062,COUNT('ITCER GLOBAL'!C:C)) -> Julio | N1: =YEAR(TODAY()) -> 2021
M3: 2017
B4: Secretaría Ejecutiva
B5: Consejo Monetario Centroamericano
A10: ÍNDICE DEL TIPO DE CAMBIO EFECTIVO REAL (ITCER)
B11: Periodo de referencia Diciembre 2000=100
B12: Ponderaciones móviles
B15: REPORTE CORRESPONDIENTE AL MES DE | I15: =CONCATENATE( INDEX('ITCER GLOBAL'!B6:B10062,COUNT('ITCER GLOBAL'!C:C)), " 2021") -> Julio 2021
B19: CONTENIDO:
D21: Índices de Precios
D23: Tipos de cambio (moneda nacional por US$)
D25: ITCER (incluye efecto tipo de cambio y efecto precio)
E26: Global
E28: Resto del Mundo
E30: Región CAPARD
E32: Bilateral con USA
D34: Gráficos
E35: ITCER Global, Resto del Mundo, CAPARD y Bilateral
E36: Efecto Precio y Efecto Tipo de Cambio
D38: Metodología
C40: Nota: Las ponderaciones del aporte de los socios comerciales al total del comercio de cada país para 2019, están con base a la última información disponible de 2017, provenientes de la biblioteca electrónica del Fondo Monetario Internacional; por lo tanto, los datos estimados del ITCER de enero de 2019 están sujetos a cambios.
B42: ADVERTENCIA El Consejo Monetario Centroamericano y su Secretaría Ejecutiva autorizan la reproducción total de los gráficos y cifras de esta publicación, siempre que se mencione la fuente. No obstante, no asumen responsabilidad legal alguna o de cualquier otra índole, por la manipulación, interpretación personal y uso de dicha información. Derechos Reservados © 2019

Sheet PRECIOS
A2: Secretaría Ejecutiva
A3: Consejo Monetario Centroamericano
A4: ÍNDICE DE PRECIOS AL CONSUMIDOR (NIVEL)
C5: REGIÓN CAPARD 1/ | J5: RESTO DEL MUNDO
A6: Año | B6: MES | C6: COSTA RICA | D6: EL SALVADOR | E6: GUATEMALA | F6: HONDURAS | G6: NICARAGUA | H6: REPÚBLICA DOMINICANA | I6: PANAMÁ | J6: BRASIL | K6: CANADÁ | L6: CHINA | M6: COLOMBIA | N6: COREA DEL SUR | O6: HAITÍ | P6: JAPÓN | Q6: MÉXICO | R6: ESTADOS UNIDOS | S6: ZONA EURO
B7: periodo base | C7: Junio 2015 | D7: Diciembre 2009 | E7: Diciembre 2010 | F7: Diciembre 1999 | G7: 2006 | H7: Diciembre 2010 | I7: 2013 | J7: Diciembre 1993 | K7: 2002 | L7: Mes anterior =100 (total) | M7: Diciembre 2008 | N7: 2010 | O7: 2004 | P7: 2010 | Q7: 2º Q de diciembre 2010 | R7: 1982-84 | S7: 2015
A8: Año | B8: MES | C8: 2006=100 | D8: 2009=100 | E8: 2010=100 | F8: 1999=100 | G8: 2006=100 | H8: 2010=100 | I8: 2015=100 | K8: 2002=100 | P8: 2005=100 | Q8: 2010=100 | R8: 1982-84=100 | S8: 2015=100
A9: 1995 | B9: Enero | C9: 15.69875 | D9: 56.55 | E9: 34.05054577 | F9: 44.74710931 | G9: 35.13 | H9: 21.86160887 | I9: 62.10854735 | J9: 1033.712222 | K9: 86.6 | L9: 71.37154892 | M9: 26.63043 | N9: 53.601 | O9: 1 | P9: 97.8 | Q9: 20.46862019 | R9: 150.3 | S9: 69.42697674
B10: Febrero | C10: 15.9312 | D10: 57.17 | E10: 33.93804936 | F10: 46.96034617 | G10: 35.42 | H10: 21.94722629 | I10: 62.10854735 | J10: 1044.256087 | K10: 87 | L10: 72.02021203 | M10: 27.56985 | N10: 53.82 | O10: 1 | P10: 97.5 | Q10: 21.33613293 | R10: 150.9 | S10: 69.78632963
B11: Marzo | C11: 15.00356055 | D11: 57.81 | E11: 34.10091764 | F11: 47.62006101 | G11: 35.62 | H11: 22.12669358 | I11: 62.28317307 | J11: 1060.442056 | K11: 87.2 | L11: 72.2219584 | M11: 28.29186 | N11: 54.368 | O11: 1 | P11: 97.4 | Q11: 22.59392133 | R11: 151.4 | S11: 70.00194135
B12: Abril | C12: 15.08861488 | D12: 58.17 | E12: 34.36274865 | F12: 48.84017876 | G12: 35.61 | H12: 22.09588072 | I12: 62.39959021 | J12: 1086.210798 | K12: 87.5 | L12: 73.51830541 | M12: 28.92475 | N12: 54.696 | O12: 1 | P12: 97.7 | Q12: 24.3942825 | R12: 151.9 | S12: 70.14568251
B13: Mayo | C13: 15.22058639 | D13: 58.58 | E13: 34.86963994 | F13: 49.72689225 | G13: 35.86 | H13: 22.1899658 | I13: 62.57421593 | J13: 1115.212627 | K13: 87.7 | L13: 74.12721777 | M13: 29.40409 | N13: 54.806 | O13: 1 | P13: 97.9 | Q13: 25.4138631 | R13: 152.2 | S13: 70.21755308
B14: Junio | C14: 15.44786806 | D14: 59.09 | E14: 35.31005252 | F14: 50.18798326 | G14: 36.52 | H14: 22.33015256 | I14: 62.69063308 | J14: 1140.416432 | K14: 87.7 | L14: 73.51194546 | M14: 29.75967 | N14: 54.643 | O14: 1 | P14: 97.8 | Q14: 26.22043406 | R14: 152.5 | S14: 70.43316481
B15: Julio | C15: 15.70886883 | D15: 60.63 | E15: 35.3844687 | F15: 50.86188551 | G15: 36.96 | H15: 22.47763092 | I15: 62.74884165 | J15: 1167.33026 | K15: 87.9 | L15: 72.89923444 | M15: 29.99151 | N15: 54.806 | O15: 1 | P15: 97.3 | Q15: 26.75496405 | R15: 152.5 | S15: 70.43316481
B16: Agosto | C16: 15.8833675 | D16: 61.05 | E16: 35.59962781 | F16: 51.50031922 | G16: 36.37 | H16: 22.73071979 | I16: 62.8652588 | J16: 1178.886829 | K16: 87.7 | L16: 74.11832969 | M16: 30.18243 | N16: 55.135 | O16: 1 | P16: 97.4 | Q16: 27.19875002 | R16: 152.9 | S16: 70.50503539
B17: Septiembre | C17: 16.17809671 | D17: 61.86 | E17: 35.8000026 | F17: 52.59275023 | G17: 36.75 | H17: 23.08259798 | I17: 62.80705022 | J17: 1190.557809 | K17: 87.8 | L17: 76.09700979 | M17: 30.43686 | N17: 55.628 | O17: 1 | P17: 98 | Q17: 20.85564 | R17: 153.2 | S17: 70.09217
B18: Octubre | C18: 16.66052268 | D18: 62.14 | E18: 36.30143568 | F18: 53.57168192 | G18: 38.16 | H18: 23.24983421 | I18: 62.69063308 | J18: 1207.344674 | K18: 87.7 | L18: 76.14366189 | M18: 30.70715 | N18: 55.355 | O18: 1 | P18: 97.7 | Q18: 21.28476 | R18: 153.7 | S18: 70.09217
B19: Noviembre | C19: 17.05497075 | D19: 62.41 | E19: 36.77819652 | F19: 54.31652125 | G19: 39.25 | H19: 23.46340734 | I19: 62.69063308 | J19: 1225.092641 | K19: 88 | L19: 76.06773003 | M19: 30.95091 | N19: 55.245 | O19: 1 | P19: 97.4 | Q19: 21.80961 | R19: 153.6 | S19: 70.16348
B20: Diciembre | C20: 17.25145689 | D20: 62.48 | E20: 36.96088329 | F20: 55.15357878 | G20: 38.88 | H20: 17.30622925 | I20: 62.92346737 | J20: 1244.204086 | K20: 87.8 | L20: 76.37469936 | M20: 31.23709 | N20: 55.628 | O20: 1 | P20: 97.4 | Q20: 22.52017 | R20: 153.5 | S20: 70.30608
A21: 1996 | B21: Enero | C21: 17.46993984 | D21: 63.45 | E21: 37.37381278 | F21: 55.43023338 | G21: 39.06 | H21: 17.29289959 | I21: 62.92346737 | J21: 1260.876421 | K21: 88 | L21: 77.79498827 | M21: 32.02244 | N21: 56.176 | O21: 1 | P21: 97.3 | Q21: 23.32975 | R21: 154.4 | S21: 70.97
B22: Febrero | C22: 17.64883787 | D22: 63.6 | E22: 37.61346349 | F22: 57.00503653 | G22: 39.46 | H22: 17.31471176 | I22: 62.92346737 | J22: 1273.863448 | K22: 88.1 | L22: 78.71809177 | M22: 33.30729 | N22: 56.397 | O22: 1 | P22: 97.1 | Q22: 23.87426 | R22: 154.9 | S22: 71.29
B23: Marzo | C23: 17.74708094 | D23: 63.91 | E23: 38.0141377 | F23: 57.88465631 | G23: 39.78 | H23: 17.33912062 | I23: 63.09809309 | J23: 1278.32197 | K23: 88.5 | L23: 79.29971029 | M23: 34.00939 | N23: 56.78 | O23: 1 | P23: 97.3 | Q23: 24.39983 | R23: 155.7 | S23: 71.54
B24: Abril | C24: 17.88198536 | D24: 64.15 | E24: 38.46784954 | F24: 59.07639923 | G24: 40.11 | H24: 17.36041346 | I24: 63.21451023 | J24: 1294.428827 | K24: 88.7 | L24: 80.64958161 | M24: 34.68176 | N24: 57.163 | O24: 1 | P24: 97.9 | Q24: 25.09345 | R24: 156.3 | S24: 71.66
B25: Mayo | C25: 18.18111393 | D25: 64.63 | E25: 38.710684 | F25: 60.31070441 | G25: 40.8 | H25: 17.39988311 | I25: 63.09809309 | J25: 1310.220858 | K25: 89 | L25: 80.72453994 | M25: 35.22039 | N25: 57.492 | O25: 1 | P25: 98.1 | Q25: 25.55084 | R25: 156.6 | S25: 71.83
B26: Junio | C26: 18.42892595 | D26: 65.69 | E26: 38.95960347 | F26: 61.82875789 | G26: 40.95 | H26: 17.45960692 | I26: 63.03988451 | J26: 1325.812487 | K26: 89 | L26: 79.83397346 | M26: 35.62416 | N26: 57.492 | O26: 1 | P26: 97.8 | Q26: 25.9669 | R26: 156.7 | S26: 71.84
B27: Julio | C27: 18.64447599 | D27: 65.69 | E27: 39.4891913 | F27: 63.24040576 | G27: 41.06 | H27: 17.50444306 | I27: 63.21451023 | J27: 1340.529005 | K27: 89 | L27: 78.94987052 | M27: 36.16228 | N27: 57.766 | O27: 1 | P27: 97.7 | Q27: 26.33603 | R27: 157 | S27: 71.84
B28: Agosto | C28: 18.82337403 | D28: 67.65465796 | E28: 39.880694 | F28: 65.01383273 | G28: 40.74 | H28: 17.53266039 | I28: 63.33092738 | J28: 1346.427333 | K28: 89 | L28: 80.1219147 | M28: 36.5613 | N28: 58.039 | O28: 1 | P28: 97.6 | Q28: 26.68607 | R28: 157.3 | S28: 71.8
B29: Septiembre | C29: 18.99493045 | D29: 67.25247832 | E29: 40.01359458 | F29: 66.12045116 | G29: 41.16 | H29: 17.6283916 | I29: 63.5055531 | J29: 1348.446974 | K29: 89.1 | L29: 81.72818888 | M29: 36.99661 | N29: 58.15 | O29: 1 | P29: 98 | Q29: 27.11275 | R29: 157.8 | S29: 71.93
B30: Octubre | C30: 19.24127602 | D30: 67.27799448 | E30: 40.16296013 | F30: 67.09228914 | G30: 42.22 | H30: 17.6685537 | I30: 63.79659596 | J30: 1352.492315 | K30: 89.3 | L30: 81.47371854 | M30: 37.42344 | N30: 58.15 | O30: 1 | P30: 98.2 | Q30: 27.45117 | R30: 158.3 | S30: 72
B31: Noviembre | C31: 19.4377715 | D31: 66.89166051 | E31: 40.61907221 | F31: 68.41881251 | G31: 42.82 | H31: 17.78436596 | I31: 63.85480454 | J31: 1356.82029 | K31: 89.7 | L31: 81.31640285 | M31: 37.72398 | N31: 58.15 | O31: 1 | P31: 97.9 | Q31: 27.86708 | R31: 158.6 | S31: 72.01
B32: Diciembre | C32: 19.64745573 | D32: 67.08 | E32: 40.97274387 | F32: 69.17783926 | G32: 43.59 | H32: 17.98967738 | I32: 64.37868169 | J32: 1363.197346 | K32: 89.7 | L32: 81.72092822 | M32: 37.99651 | N32: 58.368 | O32: 1 | P32: 98 | Q32: 28.75934 | R32: 158.6 | S32: 72.19
A33: 1997 | B33: Enero | C33: 20.05215964 | D33: 67.61 | E33: 41.4114269 | F33: 70.58948712 | G33: 43.49 | H33: 18.49464653 | I33: 64.20405597 | J33: 1379.283074 | K33: 89.9 | L33: 82.38489277 | M33: 38.62612 | N33: 58.808 | O33: 1 | P33: 97.9 | Q33: 29.49889 | R33: 159.1 | S33: 72.42
B34: Febrero | C34: 20.17826533 | D34: 68.54 | E34: 42.37597194 | F34: 72.29907072 | G34: 43.48 | H34: 18.47162257 | I34: 64.20405597 | J34: 1386.17949 | K34: 90.1 | L34: 83.12630493 | M34: 39.83103 | N34: 59.136 | O34: 1 | P34: 97.7 | Q34: 29.9946 | R34: 159.6 | S34: 72.59
B35: Marzo | C35: 20.39822407 | D35: 68.67 | E35: 42.38804107 | F35: 72.84528623 | G35: 43.45 | H35: 18.49741633 | I35: 64.1458474 | J35: 1393.249005 | K35: 90.2 | L35: 82.47169863 | M35: 40.45016 | N35: 59.355 | O35: 1 | P35: 97.8 | Q35: 30.36789 | R35: 160 | S35: 72.65
B36: Abril | C36: 20.67095647 | D36: 68.71 | E36: 42.36588355 | F36: 73.2709087 | G36: 43.6 | H36: 18.65737227 | I36: 63.97122168 | J36: 1405.509596 | K36: 90.2 | L36: 83.23036821 | M36: 41.10718 | N36: 59.629 | O36: 1 | P36: 99.8 | Q36: 30.69597 | R36: 160.2 | S36: 72.6
B37: Mayo | C37: 20.77653181 | D37: 68.56 | E37: 42.43266606 | F37: 74.19309073 | G37: 43.93 | H37: 18.69216788 | I37: 64.1458474 | J37: 1411.272186 | K37: 90.3 | L37: 82.98482722 | M37: 41.77435 | N37: 59.684 | O37: 1 | P37: 100 | Q37: 30.97612 | R37: 160.1 | S37: 72.8
B38: Junio | C38: 20.93929885 | D38: 68.82 | E38: 42.45385438 | F38: 75.15074129 | G38: 44.83 | H38: 18.77335765 | I38: 64.20405597 | J38: 1418.893055 | K38: 90.5 | L38: 82.06932427 | M38: 42.27692 | N38: 59.793 | O38: 1 | P38: 100 | Q38: 31.25096 | R38: 160.3 | S38: 72.83
B39: Julio | C39: 21.119654 | D39: 69.36 | E39: 42.64149403 | F39: 76.20061006 | G39: 45.59 | H39: 19.12962316 | I39: 64.32047312 | J39: 1422.01462 | K39: 90.5 | L39: 81.08151736 | M39: 42.6301 | N39: 59.903 | O39: 1 | P39: 99.6 | Q39: 31.52321 | R39: 160.5 | S39: 72.9
B40: Agosto | C40: 21.35426794 | D40: 68.89456006 | E40: 43.09019949 | F40: 77.14407321 | G40: 45.33 | H40: 19.24733966 | I40: 64.32047312 | J40: 1421.730217 | K40: 90.6 | L40: 81.6442308 | M40: 43.1199 | N40: 60.341 | O40: 1 | P40: 99.7 | Q40: 31.8035 | R40: 160.8 | S40: 73.02
B41: Septiembre | C41: 21.26922295 | D41: 68.67253065 | E41: 43.34719806 | F41: 77.38525928 | G41: 44.95 | H41: 19.36886463 | I41: 64.37868169 | J41: 1422.583255 | K41: 90.6 | L41: 83.19929595 | M41: 43.66319 | N41: 60.617 | O41: 1 | P41: 100.4 | Q41: 32.19961 | R41: 161.2 | S41: 73.07
B42: Octubre | C42: 21.3058843 | D42: 68.44795961 | E42: 43.56896964 | F42: 77.17954175 | G42: 45.18 | H42: 19.43135824 | I42: 64.08763883 | J42: 1425.855197 | K42: 90.6 | L42: 82.69582423 | M42: 44.08496 | N42: 60.617 | O42: 1 | P42: 100.7 | Q42: 32.45694 | R42: 161.6 | S42: 73.09
B43: Noviembre | C43: 21.66367103 | D43: 68.37169726 | E43: 43.730078 | F43: 77.77541321 | G43: 46.49 | H43: 19.46217226 | I43: 64.02943025 | J43: 1428.279151 | K43: 90.5 | L43: 82.21088371 | M43: 44.44339 | N43: 60.67 | O43: 1 | P43: 100 | Q43: 32.82004 | R43: 161.5 | S43: 73.18
B44: Diciembre | C44: 21.84842554 | D44: 68.38 | E44: 43.89234306 | F44: 77.9456622 | G44: 46.75 | H44: 19.49471741 | I44: 64.08763883 | J44: 1434.420751 | K44: 90.4 | L44: 82.04781258 | M44: 44.71589 | N44: 62.205 | O44: 1 | P44: 99.8 | Q44: 33.27987 | R44: 161.3 | S44: 73.26
A45: 1998 | B45: Enero | C45: 22.19594708 | D45: 69.22 | E45: 44.42928463 | F45: 78.59118961 | G45: 47.04 | H45: 19.51289422 | I45: 64.32047312 | J45: 1444.605138 | K45: 90.9 | L45: 82.63204742 | M45: 45.51778 | N45: 63.685 | O45: 1 | P45: 99.7 | Q45: 34.00393 | R45: 161.6 | S45: 73.2
B46: Febrero | C46: 22.42029585 | D46: 69.4 | E46: 44.68475321 | F46: 80.54195928 | G46: 47.69 | H46: 19.50112257 | I46: 64.1458474 | J46: 1451.250322 | K46: 91 | L46: 83.04317877 | M46: 47.01282 | N46: 64.782 | O46: 1 | P46: 99.6 | Q46: 34.59924 | R46: 161.9 | S46: 73.4
B47: Marzo | C47: 22.65637624 | D47: 69.7 | E47: 44.97614957 | F47: 81.9039512 | G47: 48.2 | H47: 19.46909676 | I47: 64.26226455 | J47: 1456.184573 | K47: 91.1 | L47: 83.04900057 | M47: 48.23588 | N47: 64.672 | O47: 1 | P47: 100 | Q47: 35.00453 | R47: 162.2 | S47: 73.46
B48: Abril | C48: 22.83820718 | D48: 70.56 | E48: 45.30623324 | F48: 83.32269277 | G48: 49.2 | H48: 19.4460728 | I48: 64.20405597 | J48: 1459.679416 | K48: 91 | L48: 82.98067654 | M48: 49.63681 | N48: 64.891 | O48: 1 | P48: 100.2 | Q48: 35.33204 | R48: 162.5 | S48: 73.61
B49: Mayo | C49: 23.01123006 | D49: 70.93 | E49: 45.53863161 | F49: 84.31581187 | G49: 50.19 | H49: 19.5319366 | I49: 64.32047312 | J49: 1466.977813 | K49: 91.3 | L49: 82.15497936 | M49: 50.41245 | N49: 64.562 | O49: 1 | P49: 100.5 | Q49: 35.61348 | R49: 162.8 | S49: 73.76
B50: Junio | C50: 23.19599391 | D50: 71 | E50: 45.6064452 | F50: 85.79839682 | G50: 51.15 | H50: 19.6344192 | I50: 64.49509884 | J50: 1467.271209 | K50: 91.4 | L50: 81.00242292 | M50: 51.02799 | N50: 64.288 | O50: 1 | P50: 100.1 | Q50: 36.03442 | R50: 163 | S50: 73.8
B51: Julio | C51: 23.59043264 | D51: 71.31 | E51: 45.74203481 | F51: 87.49379301 | G51: 50.69 | H51: 19.75871397 | I51: 64.55330741 | J51: 1465.510483 | K51: 91.4 | L51: 79.94637614 | M51: 51.27197 | N51: 64.288 | O51: 1 | P51: 99.5 | Q51: 36.38188 | R51: 163.2 | S51: 73.83
B52: Agosto | C52: 24.06699279 | D52: 70.43443847 | E52: 45.80792591 | F52: 87.62147975 | G52: 50.43 | H52: 19.80406944 | I52: 64.55330741 | J52: 1458.03638 | K52: 91.4 | L52: 80.50121146 | M52: 51.28861 | N52: 64.507 | O52: 1 | P52: 99.4 | Q52: 36.73163 | R52: 163.4 | S52: 73.85
B53: Septiembre | C53: 23.97314908 | D53: 69.71256897 | E53: 45.72834341 | F53: 87.88394694 | G53: 50.57 | H53: 19.93338447 | I53: 64.90255885 | J53: 1454.8287 | K53: 91.2 | L53: 81.95130695 | M53: 51.43735 | N53: 64.782 | O53: 1 | P53: 100.2 | Q53: 37.32738 | R53: 163.6 | S53: 73.79
B54: Octubre | C54: 24.04792889 | D54: 69.75792056 | E54: 45.73266565 | F54: 88.37341278 | G54: 51.77 | H54: 20.37170531 | I54: 65.01897599 | J54: 1455.119665 | K54: 91.6 | L54: 81.78616978 | M54: 51.62089 | N54: 65 | O54: 1 | P54: 100.9 | Q54: 37.86227 | R54: 164 | S54: 73.77
B55: Noviembre | C55: 24.36466425 | D55: 71.30176999 | E55: 46.94461143 | F55: 89.48712492 | G55: 54.83 | H55: 20.74233916 | I55: 65.01897599 | J55: 1453.373522 | K55: 91.6 | L55: 81.224353 | M55: 51.71247 | N55: 64.782 | O55: 1 | P55: 100.8 | Q55: 38.53279 | R55: 164 | S55: 73.77
B56: Diciembre | C56: 24.5479523 | D56: 71.26 | E56: 47.17430384 | F56: 90.13974605 | G56: 55.38 | H56: 21.01914604 | I56: 64.96076742 | J56: 1458.169654 | K56: 91.3 | L56: 81.2273343 | M56: 52.18481 | N56: 64.672 | O56: 1 | P56: 100.4 | Q56: 39.47297 | R56: 163.9 | S56: 73.81
A57: 1999 | B57: Enero | C57: 24.98931756 | D57: 71.39 | E57: 47.22455595 | F57: 91.68617436 | G57: 55.2 | H57: 20.90800782 | I57: 65.01897599 | J57: 1468.376842 | K57: 91.5 | L57: 81.6404629 | M57: 53.33761 | N57: 64.617 | O57: 1 | P57: 99.9 | Q57: 40.46977 | R57: 164.3 | S57: 73.76
B58: Febrero | C58: 25.1711485 | D58: 71.22 | E58: 46.99353448 | F58: 92.47357594 | G58: 55 | H58: 20.8515562 | I58: 65.01897599 | J58: 1483.794799 | K58: 91.6 | L58: 81.96361738 | M58: 54.24344 | N58: 64.891 | O58: 1 | P58: 99.5 | Q58: 41.01364 | R58: 164.5 | S58: 73.94
B59: Marzo | C59: 25.07730479 | D59: 71.07 | E59: 46.77229687 | F59: 92.75023055 | G59: 53.95 | H59: 20.96027784 | I59: 65.13539314 | J59: 1500.116542 | K59: 92 | L59: 81.55411831 | M59: 54.75222 | N59: 65 | O59: 1 | P59: 99.6 | Q59: 41.39468 | R59: 165 | S59: 74.15
B60: Abril | C60: 25.10809099 | D60: 70.67 | E60: 46.87994152 | F60: 93.0694474 | G60: 54.15 | H60: 21.01463866 | I60: 65.19360171 | J60: 1508.517194 | K60: 92.5 | L60: 81.15510156 | M60: 55.18137 | N60: 65.164 | O60: 1 | P60: 100.1 | Q60: 41.77458 | R60: 166.2 | S60: 74.4
B61: Mayo | C61: 25.31191873 | D61: 70.2 | E61: 47.23655945 | F61: 93.80009931 | G61: 54.88 | H61: 21.00418466 | I61: 65.19360171 | J61: 1513.042746 | K61: 92.7 | L61: 80.3475698 | M61: 55.44543 | N61: 65.055 | O61: 1 | P61: 100.1 | Q61: 42.02588 | R61: 166.2 | S61: 74.45
B62: Junio | C62: 25.66383965 | D62: 70.15 | E62: 47.53216571 | F62: 94.92090516 | G62: 55.31 | H62: 20.88919062 | I62: 65.31001886 | J62: 1515.917527 | K62: 92.9 | L62: 79.3013725 | M62: 55.60033 | N62: 64.672 | O62: 1 | P62: 99.8 | Q62: 42.30201 | R62: 166.2 | S62: 74.45
B63: Julio | C63: 25.72835428 | D63: 70.55 | E63: 48.12826068 | F63: 95.65155707 | G63: 55.76 | H63: 20.8369206 | I63: 65.42643601 | J63: 1532.441028 | K63: 93.1 | L63: 78.82712633 | M63: 55.77382 | N63: 64.452 | O63: 1 | P63: 99.4 | Q63: 42.58158 | R63: 166.7 | S63: 74.58
B64: Agosto | C64: 25.88085614 | D64: 70.53443057 | E64: 48.57224193 | F64: 96.43895864 | G64: 56.66 | H64: 20.89546302 | I64: 65.48464458 | J64: 1541.022698 | K64: 93.3 | L64: 79.45469612 | M64: 56.04996 | N64: 65.111 | O64: 1 | P64: 99.7 | Q64: 42.82125 | R64: 167.1 | S64: 74.67
B65: Septiembre | C65: 26.05094611 | D65: 70.7226062 | E65: 48.83418516 | F65: 97.14123572 | G65: 57.41 | H65: 20.97909505 | I65: 65.48464458 | J65: 1545.799868 | K65: 93.6 | L65: 81.29569637 | M65: 56.23539 | N65: 65.275 | O65: 1 | P65: 100 | Q65: 43.23502 | R65: 167.9 | S65: 74.71
B66: Octubre | C66: 26.43366255 | D66: 71.11788002 | E66: 49.19561452 | F66: 98.02794921 | G66: 58.45 | H66: 21.71505692 | I66: 65.54285315 | J66: 1564.194887 | K66: 93.7 | L66: 81.29545278 | M66: 56.43202 | N66: 65.768 | O66: 1 | P66: 100.2 | Q66: 43.50885 | R66: 168.2 | S66: 74.74
B67: Noviembre | C67: 26.68147458 | D67: 70.80175758 | E67: 49.36198198 | F67: 98.96431865 | G67: 59.06 | H67: 22.02658624 | I67: 65.6592703 | J67: 1579.054738 | K67: 93.6 | L67: 80.49333333 | M67: 56.70225 | N67: 65.658 | O67: 1 | P67: 99.6 | Q67: 43.89577 | R67: 168.3 | S67: 74.84
B68: Diciembre | C68: 27.03046258 | D68: 70.53 | E68: 49.49341809 | F68: 100 | G68: 59.37 | H68: 22.09140107 | I68: 65.95031316 | J68: 1588.529067 | K68: 93.7 | L68: 80.4150611 | M68: 57.00236 | N68: 65.548 | O68: 1 | P68: 99.3 | Q68: 44.33552 | R68: 168.3 | S68: 75.09
A69: 2000 | B69: Enero | C69: 27.51142209 | D69: 71 | E69: 49.71441799 | F69: 100.4965596 | G69: 59.89 | H69: 22.16039749 | I69: 65.94868332 | J69: 1598.377947 | K69: 93.5 | L69: 81.47718135 | M69: 57.73729 | N69: 65.839 | O69: 1 | P69: 99.2 | Q69: 44.93083 | R69: 168.8 | S69: 75.13
B70: Febrero | C70: 27.91026953 | D70: 71.35 | E70: 50.1046949 | F70: 102.014613 | G70: 61.16 | H70: 22.17085149 | I70: 65.89210459 | J70: 1600.455838 | K70: 94.1 | L70: 82.53736263 | M70: 59.06643 | N70: 66.04 | O70: 1 | P70: 98.9 | Q70: 45.32938 | R70: 169.8 | S70: 75.37
B71: Marzo | C71: 28.0994234 | D71: 71.41 | E71: 50.64410719 | F71: 102.9793573 | G71: 61.76 | H71: 22.16039749 | I71: 66.2995646 | J71: 1603.976841 | K71: 94.8 | L71: 81.39101076 | M71: 60.07697 | N71: 66.372 | O71: 1 | P71: 99.1 | Q71: 45.58068 | R71: 171.2 | S71: 75.6
B72: Abril | C72: 28.00118033 | D72: 71.47 | E72: 51.12998922 | F72: 104.3 | G72: 62.13 | H72: 22.1750331 | I72: 66.24135603 | J72: 1610.713544 | K72: 94.5 | L72: 80.91163632 | M72: 60.67541 | N72: 66.106 | O72: 1 | P72: 99.3 | Q72: 45.84002 | R72: 171.3 | S72: 75.67
B73: Mayo | C73: 27.97918352 | D73: 71.9 | E73: 50.71524087 | F73: 105.3 | G73: 62.62 | H73: 22.1917595 | I73: 66.2995646 | J73: 1610.874615 | K73: 94.9 | L73: 80.42791697 | M73: 60.9917 | N73: 65.773 | O73: 1 | P73: 99.4 | Q73: 46.01138 | R73: 171.5 | S73: 75.76
B74: Junio | C74: 28.3575006 | D74: 72.7 | E74: 50.96947327 | F74: 106.3 | G74: 63.03 | H74: 22.40920278 | I74: 66.47419032 | J74: 1614.579627 | K74: 95.5 | L74: 79.69787894 | M74: 60.97989 | N74: 66.106 | O74: 1 | P74: 99.2 | Q74: 46.28392 | R74: 172.4 | S74: 76.04
B75: Julio | C75: 28.73141832 | D75: 72.61 | E75: 51.083868 | F75: 107 | G75: 62.84 | H75: 22.51165202 | I75: 66.59060746 | J75: 1640.574359 | K75: 95.8 | L75: 79.22126244 | M75: 60.9562 | N75: 66.372 | O75: 1 | P75: 98.9 | Q75: 46.46447 | R75: 172.8 | S75: 76.14
B76: Agosto | C76: 28.92057219 | D76: 72.91424266 | E76: 50.86030874 | F76: 107.5 | G76: 62.92 | H76: 22.76882052 | I76: 66.41598175 | J76: 1662.065883 | K76: 95.7 | L76: 79.6930598 | M76: 61.1486 | N76: 66.704 | O76: 1 | P76: 99.2 | Q76: 46.71978 | R76: 172.8 | S76: 76.2
B77: Septiembre | C77: 29.03054689 | D77: 73.06269243 | E77: 50.93062834 | F77: 107.7 | G77: 63.18 | H77: 23.64486605 | I77: 66.70702461 | J77: 1665.888634 | K77: 96.1 | L77: 81.29569637 | M77: 61.40907 | N77: 67.57 | O77: 1 | P77: 99.1 | Q77: 47.06107 | R77: 173.7 | S77: 76.5
B78: Octubre | C78: 29.21384428 | D78: 73.04782249 | E78: 51.0849663 | F78: 108.3 | G78: 63.87 | H78: 23.70759007 | I78: 66.53239889 | J78: 1668.220878 | K78: 96.3 | L78: 81.29545278 | M78: 61.50305 | N78: 67.504 | O78: 1 | P78: 99.1 | Q78: 47.38514 | R78: 174 | S78: 76.52
B79: Noviembre | C79: 29.45579049 | D79: 73.21181741 | E79: 51.42218215 | F79: 109.5 | G79: 64.52 | H79: 23.82049331 | I79: 66.35777317 | J79: 1673.559185 | K79: 96.6 | L79: 81.5397467 | M79: 61.70503 | N79: 67.104 | O79: 1 | P79: 98.8 | Q79: 47.79029 | R79: 174.1 | S79: 76.68
B80: Diciembre | C80: 29.80037913 | D80: 73.56 | E80: 52.00924292 | F80: 110.1 | G80: 65.22 | H80: 24.08393421 | I80: 66.41598175 | J80: 1683.433184 | K80: 96.7 | L80: 81.62128672 | M80: 61.98903 | N80: 67.37 | O80: 1 | P80: 98.9 | Q80: 48.30767 | R80: 174 | S80: 76.96
A81: 2001 | B81: Enero | C81: 30.21445154 | D81: 74.89 | E81: 52.72007955 | F81: 111.1 | G81: 65.69 | H81: 24.68608484 | I81: 66.41598175 | J81: 1693.028754 | K81: 96.3 | L81: 82.45490815 | M81: 62.64044 | N81: 68.103 | O81: 52.03 | P81: 98.9 | Q81: 48.57548 | R81: 175.1 | S81: 76.63
B82: Febrero | C82: 30.56298186 | D82: 74.75 | E82: 53.10710291 | F82: 112.5 | G82: 66.48 | H82: 24.71953765 | I82: 66.41598175 | J82: 1700.816686 | K82: 96.8 | L82: 82.53736263 | M82: 63.82616 | N82: 68.435 | O82: 52.47 | P82: 98.6 | Q82: 48.54333 | R82: 175.8 | S82: 76.86
B83: Marzo | C83: 31.08528229 | D83: 74.9 | E83: 53.38879729 | F83: 113.5 | G83: 66.49 | H83: 24.61499761 | I83: 66.53239889 | J83: 1707.279789 | K83: 97.1 | L83: 82.04213887 | M83: 64.77157 | N83: 69.035 | O83: 52.88 | P83: 98.4 | Q83: 48.85089 | R83: 176.2 | S83: 77.27
B84: Abril | C84: 31.47529364 | D84: 75 | E84: 53.62233419 | F84: 114.2 | G84: 66.95 | H84: 24.76762607 | I84: 66.64881604 | J84: 1717.182012 | K84: 97.8 | L84: 82.20622319 | M84: 65.51484 | N84: 69.301 | O84: 53.17 | P84: 98.6 | Q84: 49.09731 | R84: 176.9 | S84: 77.73
B85: Mayo | C85: 31.69070357 | D85: 75.12 | E85: 53.78291349 | F85: 115.6 | G85: 67.45 | H85: 24.83244089 | I85: 66.70702461 | J85: 1724.222458 | K85: 98.6 | L85: 81.79519139 | M85: 65.78895 | N85: 69.234 | O85: 53.72 | P85: 98.7 | Q85: 49.20997 | R85: 177.7 | S85: 78.1
B86: Junio | C86: 31.77884959 | D86: 75.23 | E86: 54.17879985 | F86: 116.3 | G86: 67.88 | H86: 24.69235724 | I86: 66.24135603 | J86: 1733.188415 | K86: 98.7 | L86: 80.81364975 | M86: 65.81547 | N86: 69.434 | O86: 53.71 | P86: 98.4 | Q86: 49.32636 | R86: 178 | S86: 78.21
B87: Julio | C87: 31.97216931 | D87: 75.2 | E87: 54.64709642 | F87: 116.9 | G87: 67.61 | H87: 24.63381482 | I87: 66.2995646 | J87: 1756.239821 | K87: 98.4 | L87: 80.4095808 | M87: 65.88726 | N87: 69.567 | O87: 53.69 | P87: 98.1 | Q87: 49.1982 | R87: 177.5 | S87: 78.03
B88: Agosto | C88: 32.22640758 | D88: 75.45404212 | E88: 55.33292702 | F88: 117.7 | G88: 67.76 | H88: 24.81571448 | I88: 66.35777317 | J88: 1768.5335 | K88: 98.4 | L88: 80.4899911 | M88: 66.05898 | N88: 69.833 | O88: 54.19 | P88: 98.5 | Q88: 49.48969 | R88: 177.5 | S88: 77.97
B89: Septiembre | C89: 32.42228659 | D89: 75.46278088 | E89: 55.5074128 | F89: 118.6 | G89: 67.79 | H89: 25.04152097 | I89: 66.9398589 | J89: 1773.485393 | K89: 98.6 | L89: 81.21440074 | M89: 66.30408 | N89: 69.767 | O89: 55 | P89: 98.3 | Q89: 49.95038 | R89: 178.3 | S89: 78.18
B90: Octubre | C90: 32.41938171 | D90: 74.45778046 | E90: 55.92242688 | F90: 118.8 | G90: 67.91 | H90: 25.10424499 | I90: 66.9398589 | J90: 1788.205322 | K90: 98.1 | L90: 81.45804402 | M90: 66.42691 | N90: 69.767 | O90: 55.3 | P90: 98.3 | Q90: 50.17614 | R90: 177.7 | S90: 78.24
B91: Noviembre | C91: 32.70765665 | D91: 75.42187227 | E91: 56.31330234 | F91: 119.4 | G91: 68.23 | H91: 25.07915538 | I91: 66.64881604 | J91: 1800.90158 | K91: 97.2 | L91: 81.29512746 | M91: 66.50455 | N91: 69.368 | O91: 55.66 | P91: 97.8 | Q91: 50.36515 | R91: 177.4 | S91: 78.19
B92: Diciembre | C92: 33.06532195 | D92: 74.6 | E92: 56.64326646 | F92: 119.8 | G92: 68.26 | H92: 25.13978861 | I92: 66.41598175 | J92: 1812.60744 | K92: 97.4 | L92: 81.37642308 | M92: 66.72893 | N92: 69.501 | O92: 56.28 | P92: 97.7 | Q92: 50.4349 | R92: 176.7 | S92: 78.54
A93: 2002 | B93: Enero | C93: 33.43545678 | D93: 75.52 | E93: 57.38515909 | F93: 120.2 | G93: 68.43 | H93: 25.28196306 | I93: 66.9398589 | J93: 1822.032999 | K93: 97.6 | L93: 81.62055191 | M93: 67.26002 | N93: 69.9 | O93: 56.55 | P93: 97.5 | Q93: 50.90047 | R93: 177.1 | S93: 78.63
B94: Febrero | C94: 33.58518452 | D94: 75.76 | E94: 57.89199515 | F94: 121.5 | G94: 68.98 | H94: 25.29241706 | I94: 66.88165033 | J94: 1828.592318 | K94: 98.2 | L94: 82.51837825 | M94: 68.1052 | N94: 70.233 | O94: 56.97 | P94: 97 | Q94: 50.86775 | R94: 177.8 | S94: 78.76
B95: Marzo | C95: 33.84766109 | D95: 76.2 | E95: 58.26170817 | F95: 122.2 | G95: 69.18 | H95: 25.58094757 | I95: 67.11448462 | J95: 1839.563872 | K95: 98.9 | L95: 81.44563972 | M95: 68.58761 | N95: 70.632 | O95: 57.66 | P95: 97.2 | Q95: 51.12795 | R95: 178.8 | S95: 79.21
B96: Abril | C96: 33.90666484 | D96: 76.48 | E96: 58.58409042 | F96: 123.1 | G96: 69.57 | H96: 25.75448404 | I96: 67.11448462 | J96: 1854.280383 | K96: 99.5 | L96: 81.2013021 | M96: 69.21518 | N96: 71.032 | O96: 57.85 | P96: 97.5 | Q96: 51.40723 | R96: 179.8 | S96: 79.56
B97: Mayo | C97: 34.11932867 | D97: 76.46 | E97: 58.79141805 | F97: 123.7 | G97: 69.89 | H97: 25.6624888 | I97: 66.99806748 | J97: 1858.174371 | K97: 99.7 | L97: 80.95769847 | M97: 69.62961 | N97: 71.298 | O97: 58.12 | P97: 97.8 | Q97: 51.51143 | R97: 179.8 | S97: 79.71
B98: Junio | C98: 34.33654132 | D98: 76.96 | E98: 59.13015028 | F98: 125.1 | G98: 70.01 | H98: 25.69176001 | I98: 67.05627605 | J98: 1865.978704 | K98: 99.9 | L98: 80.22907906 | M98: 69.9282 | N98: 71.231 | O98: 58.62 | P98: 97.7 | Q98: 51.76258 | R98: 179.9 | S98: 79.67
B99: Julio | C99: 34.84010477 | D99: 77.09 | E99: 59.61879647 | F99: 126.1 | G99: 70.12 | H99: 25.79420925 | I99: 67.17269319 | J99: 1888.18385 | K99: 100.5 | L99: 79.66747592 | M99: 69.944 | N99: 71.032 | O99: 59.21 | P99: 97.3 | Q99: 51.91118 | R99: 180.1 | S99: 79.59
B100: Agosto | C100: 35.25300027 | D100: 76.79393632 | E100: 59.60810947 | F100: 126.9 | G100: 70.2 | H100: 26.02419734 | I100: 67.40552749 | J100: 1900.457045 | K100: 100.9 | L100: 79.90647811 | M100: 70.01001 | N100: 71.498 | O100: 60.07 | P100: 97.6 | Q100: 52.10856 | R100: 180.7 | S100: 79.64
B101: Septiembre | C101: 35.39304195 | D101: 76.53282031 | E101: 59.44956766 | F101: 127.1 | G101: 70.53 | H101: 26.39008747 | I101: 67.34731891 | J101: 1914.140336 | K101: 100.9 | L101: 80.70554261 | M101: 70.2622 | N101: 71.898 | O101: 60.8 | P101: 97.6 | Q101: 52.42198 | R101: 181 | S101: 79.84
B102: Octubre | C102: 35.6259279 | D102: 76.62771577 | E102: 59.61487764 | F102: 127.8 | G102: 70.58 | H102: 27.15741136 | I102: 67.52194463 | J102: 1939.215575 | K102: 101.2 | L102: 80.86695395 | M102: 70.65505 | N102: 71.697 | O102: 62.15 | P102: 97.4 | Q102: 52.65303 | R102: 181.3 | S102: 80.03
B103: Noviembre | C103: 35.9939331 | D103: 76.48189858 | E103: 59.88619103 | F103: 128.6 | G103: 70.44 | H103: 27.28704101 | I103: 67.58946658 | J103: 1997.779885 | K103: 101.5 | L103: 80.78608724 | M103: 71.20492 | N103: 71.764 | O103: 63.1 | P103: 97.4 | Q103: 53.07888 | R103: 181.3 | S103: 79.97
B104: Diciembre | C104: 36.26702044 | D104: 76.69 | E104: 60.2267033 | F104: 129.5 | G104: 70.9 | H104: 27.78256079 | I104: 67.45442269 | J104: 2039.733262 | K104: 101.1 | L104: 81.02844542 | M104: 71.39513 | N104: 72.096 | O104: 64.83 | P104: 97.4 | Q104: 53.30993 | R104: 180.9 | S104: 80.36
A105: 2003 | B105: Enero | C105: 36.5019613 | D105: 77.6 | E105: 60.94247727 | F105: 130.6 | G105: 71.57 | H105: 28.69624074 | I105: 67.58946658 | J105: 2085.627261 | K105: 102 | L105: 81.91975803 | M105: 72.23341 | N105: 72.564 | O105: 69.26 | P105: 97.1 | Q105: 53.52544 | R105: 181.7 | S105: 80.3
B106: Febrero | C106: 36.79867068 | D106: 77.79 | E106: 61.366243 | F106: 132.3 | G106: 72.62 | H106: 29.83781796 | I106: 67.58946658 | J106: 2118.371609 | K106: 102.8 | L106: 82.65703569 | M106: 73.03558 | N106: 72.962 | O106: 71.75 | P106: 96.8 | Q106: 53.67412 | R106: 183.1 | S106: 80.62
B107: Marzo | C107: 37.03689939 | D107: 78.02 | E107: 61.62646093 | F107: 132.8 | G107: 72.77 | H107: 30.36679056 | I107: 67.65698852 | J107: 2144.42758 | K107: 103.1 | L107: 82.16109412 | M107: 73.80035 | N107: 73.828 | O107: 74.07 | P107: 97.1 | Q107: 54.01293 | R107: 184.2 | S107: 81.08
B108: Abril | C108: 37.39346251 | D108: 77.99 | E108: 61.90753092 | F108: 133.5 | G108: 72.62 | H108: 30.45460419 | I108: 67.65698852 | J108: 2165.228527 | K108: 102.4 | L108: 81.99677187 | M108: 74.64728 | N108: 73.695 | O108: 75.67 | P108: 97.4 | Q108: 54.10514 | R108: 183.8 | S108: 81.21
B109: Mayo | C109: 37.5897058 | D109: 77.89 | E109: 62.06280888 | F109: 133.7 | G109: 73.17 | H109: 30.81840353 | I109: 67.52194463 | J109: 2178.436421 | K109: 102.5 | L109: 81.42279437 | M109: 75.01296 | N109: 73.562 | O109: 76.71 | P109: 97.6 | Q109: 53.93056 | R109: 183.5 | S109: 81.15
B110: Junio | C110: 37.84156225 | D110: 78.15 | E110: 62.2299453 | F110: 134.1 | G110: 73.98 | H110: 32.40113972 | I110: 67.58946658 | J110: 2175.168767 | K110: 102.5 | L110: 80.44572064 | M110: 74.97195 | N110: 73.362 | O110: 77.9 | P110: 97.3 | Q110: 53.97511 | R110: 183.7 | S110: 81.25
B111: Julio | C111: 38.1451649 | D111: 77.86 | E111: 62.39067527 | F111: 134.6 | G111: 73.92 | H111: 33.58662377 | I111: 67.65698852 | J111: 2179.519104 | K111: 102.6 | L111: 80.04349195 | M111: 74.86465 | N111: 73.296 | O111: 78.7 | P111: 97.1 | Q111: 54.05334 | R111: 183.9 | S111: 81.13
B112: Agosto | C112: 38.30342984 | D112: 78.10383289 | E112: 62.56745108 | F112: 135.8 | G112: 73.87 | H112: 34.61529775 | I112: 67.72451047 | J112: 2186.929469 | K112: 102.9 | L112: 80.60379623 | M112: 75.09591 | N112: 73.628 | O112: 81.37 | P112: 97.3 | Q112: 54.21549 | R112: 184.6 | S112: 81.25
B113: Septiembre | C113: 38.35348542 | D113: 78.16288038 | E113: 62.82484274 | F113: 136.4 | G113: 74.03 | H113: 35.13590715 | I113: 67.58946658 | J113: 2203.987519 | K113: 103.1 | L113: 81.57104232 | M113: 75.26122 | N113: 74.294 | O113: 84.15 | P113: 97.4 | Q113: 54.53824 | R113: 185.2 | S113: 81.54
B114: Octubre | C114: 38.80101539 | D114: 78.40766272 | E114: 63.09410238 | F114: 137 | G114: 74.32 | H114: 36.04749629 | I114: 67.38690074 | J114: 2210.379083 | K114: 102.8 | L114: 82.30518168 | M114: 75.30658 | N114: 74.36 | O114: 85.44 | P114: 97.4 | Q114: 54.73821 | R114: 185 | S114: 81.66
B115: Noviembre | C115: 39.35207513 | D115: 78.46194773 | E115: 63.38106905 | F115: 137.9 | G115: 74.93 | H115: 38.2156567 | I115: 67.45442269 | J115: 2217.894372 | K115: 103.1 | L115: 83.12823339 | M115: 75.56889 | N115: 74.227 | O115: 86.72 | P115: 96.9 | Q115: 55.19254 | R115: 184.5 | S115: 81.7
B116: Diciembre | C116: 39.84580307 | D116: 78.62 | E116: 63.75292997 | F116: 138.3 | G116: 75.5 | H116: 39.63321963 | I116: 67.3193788 | J116: 2229.427422 | K116: 103.2 | L116: 83.62700251 | M116: 76.02913 | N116: 74.561 | O116: 88.05 | P116: 97 | Q116: 55.42981 | R116: 184.3 | S116: 81.95
A117: 2004 | B117: Enero | C117: 40.5241454 | D117: 79.49 | E117: 64.72862879 | F117: 139.6 | G117: 76.69 | H117: 43.292121 | I117: 67.58946658 | J117: 2246.371071 | K117: 103.3 | L117: 84.54689973 | M117: 76.70288 | N117: 75.027 | O117: 89.24 | P117: 96.8 | Q117: 55.77432 | R117: 185.2 | S117: 81.75
B118: Febrero | C118: 41.04794031 | D118: 79.84 | E118: 65.2097597 | F118: 141.2 | G118: 77.65 | H118: 48.16368682 | I118: 67.58946658 | J118: 2260.073934 | K118: 103.5 | L118: 84.3778061 | M118: 77.62288 | N118: 75.359 | O118: 90.63 | P118: 96.8 | Q118: 56.10794 | R118: 186.2 | S118: 81.94
B119: Marzo | C119: 41.23743978 | D119: 80.35 | E119: 65.67248512 | F119: 141.7 | G119: 78.02 | H119: 49.29271924 | I119: 67.45442269 | J119: 2270.696282 | K119: 103.9 | L119: 84.63093955 | M119: 78.38691 | N119: 76.091 | O119: 93.29 | P119: 97 | Q119: 56.29807 | R119: 187.4 | S119: 82.46
B120: Abril | C120: 41.61420634 | D120: 81.03 | E120: 66.02672478 | F120: 143.2 | G120: 78.67 | H120: 49.63561057 | I120: 67.45442269 | J120: 2279.097858 | K120: 104.1 | L120: 85.05409404 | M120: 78.74445 | N120: 76.091 | O120: 97.44 | P120: 97 | Q120: 56.38303 | R120: 188 | S120: 82.88
B121: Mayo | C121: 41.8932529 | D121: 81.6 | E121: 66.57202327 | F121: 144.3 | G121: 79.37 | H121: 50.94027026 | I121: 67.65698852 | J121: 2290.721257 | K121: 105 | L121: 84.96904022 | M121: 79.04433 | N121: 76.025 | O121: 98.81 | P121: 97.1 | Q121: 56.2416 | R121: 189.1 | S121: 83.14
B122: Junio | C122: 42.33991421 | D122: 81.73 | E122: 66.83802984 | F122: 145.2 | G122: 79.62 | H122: 51.95430864 | I122: 67.9270763 | J122: 2306.985378 | K122: 105.1 | L122: 84.3742567 | M122: 79.52133 | N122: 76.025 | O122: 99.34 | P122: 97.3 | Q122: 56.33175 | R122: 189.7 | S122: 83.18
B123: Julio | C123: 42.88893773 | D123: 81.99 | E123: 67.1543544 | F123: 147.1 | G123: 80.11 | H123: 52.27420116 | I123: 67.99459824 | J123: 2327.978945 | K123: 105 | L123: 84.20550781 | M123: 79.49675 | N123: 76.491 | O123: 99.57 | P123: 97 | Q123: 56.47939 | R123: 189.4 | S123: 83
B124: Agosto | C124: 43.30342111 | D124: 82.16351233 | E124: 67.35752776 | F124: 147.6 | G124: 80.29 | H124: 52.55855006 | I124: 68.19716408 | J124: 2344.042 | K124: 104.8 | L124: 84.79494699 | M124: 79.52074 | N124: 77.156 | O124: 100 | P124: 97.1 | Q124: 56.82804 | R124: 189.5 | S124: 83.17
B125: Septiembre | C125: 43.63967805 | D125: 82.34303442 | E125: 67.87995426 | F125: 147.8 | G125: 80.77 | H125: 51.96267184 | I125: 68.06212019 | J125: 2351.777338 | K125: 105 | L125: 85.72769119 | M125: 79.7563 | N125: 77.156 | O125: 102.4 | P125: 97.4 | Q125: 57.29792 | R125: 189.9 | S125: 83.26
B126: Octubre | C126: 43.96722967 | D126: 82.68753513 | E126: 68.54436774 | F126: 149.1 | G126: 81.87 | H126: 52.6630901 | I126: 68.12964213 | J126: 2362.125159 | K126: 105.2 | L126: 85.72769119 | M126: 79.74837 | N126: 77.156 | O126: 103 | P126: 97.9 | Q126: 57.69475 | R126: 190.9 | S126: 83.59
B127: Noviembre | C127: 44.58240241 | D127: 82.71205324 | E127: 69.22666859 | F127: 150.4 | G127: 82.57 | H127: 51.79331698 | I127: 68.12964213 | J127: 2378.423822 | K127: 105.6 | L127: 85.47050821 | M127: 79.96987 | N127: 76.691 | O127: 103.6 | P127: 97.7 | Q127: 58.1869 | R127: 191 | S127: 83.53
B128: Diciembre | C128: 45.07713911 | D128: 82.84 | E128: 69.63517534 | F128: 151 | G128: 82.48 | H128: 51.02390229 | I128: 68.39972991 | J128: 2398.878267 | K128: 105.4 | L128: 85.5559788 | M128: 80.20885 | N128: 76.824 | O128: 104.9 | P128: 97.2 | Q128: 58.30709 | R128: 190.3 | S128: 83.85
A129: 2005 | B129: Enero | C129: 45.96091576 | D129: 84.03 | E129: 70.57948106 | F129: 152.2 | G129: 82.97 | H129: 51.42533604 | I129: 68.66981769 | J129: 2412.791761 | K129: 105.3 | L129: 86.06931456 | M129: 56.44590316 | N129: 77.58 | O129: 107 | P129: 97 | Q129: 58.30916 | R129: 190.7 | S129: 83.32
B130: Febrero | C130: 46.4635078 | D130: 84.11 | E130: 71.10245851 | F130: 154 | G130: 83.99 | H130: 51.44624405 | I130: 69.00742741 | J130: 2427.027232 | K130: 105.7 | L130: 87.61856195 | M130: 57.02304259 | N130: 77.895 | O130: 108.1 | P130: 96.7 | Q130: 58.50343 | R130: 191.8 | S130: 83.62
B131: Marzo | C131: 46.85105327 | D131: 84.17 | E131: 71.42948868 | F131: 155.2 | G131: 84.81 | H131: 51.40860963 | I131: 69.48008103 | J131: 2441.832098 | K131: 106.3 | L131: 86.82999514 | M131: 57.46412186 | N131: 78.365 | O131: 109.2 | P131: 97 | Q131: 58.76712 | R131: 193.3 | S131: 84.25
B132: Abril | C132: 47.29998431 | D132: 84.59 | E132: 71.88825443 | F132: 156.6 | G132: 86.24 | H132: 51.56960129 | I132: 69.68264686 | J132: 2463.076038 | K132: 106.6 | L132: 86.56950473 | M132: 57.71621243 | N132: 78.444 | O132: 110.32 | P132: 97.1 | Q132: 58.97641 | R132: 194.6 | S132: 84.6
B133: Mayo | C133: 47.94873603 | D133: 85.2 | E133: 72.24624807 | F133: 157.2 | G133: 86.96 | H133: 51.41488204 | I133: 69.48008103 | J133: 2475.14511 | K133: 106.7 | L133: 86.39636562 | M133: 57.95160896 | N133: 78.365 | O133: 112.31 | P133: 97.2 | Q133: 58.82825 | R133: 194.4 | S133: 84.78
B134: Junio | C134: 48.16774204 | D134: 85.23 | E134: 72.72035898 | F134: 158.3 | G134: 87.59 | H134: 51.44415325 | I134: 69.54760297 | J134: 2474.650081 | K134: 106.9 | L134: 85.70519544 | M134: 58.18398386 | N134: 78.129 | O134: 113.71 | P134: 96.8 | Q134: 58.77178 | R134: 194.5 | S134: 84.87
B135: Julio | C135: 48.78547407 | D135: 85.37 | E135: 73.40018261 | F135: 159.7 | G135: 88.32 | H135: 51.75150096 | I135: 69.81769075 | J135: 2480.836706 | K135: 107.1 | L135: 85.70519544 | M135: 58.21230026 | N135: 78.444 | O135: 114.79 | P135: 96.7 | Q135: 59.0018 | R135: 195.4 | S135: 84.78
B136: Agosto | C136: 49.39504252 | D136: 85.59324152 | E136: 73.67148334 | F136: 161 | G136: 88.9 | H136: 52.44355602 | I136: 69.81769075 | J136: 2485.054129 | K136: 107.5 | L136: 85.87660516 | M136: 58.21319579 | N136: 78.679 | O136: 116 | P136: 96.8 | Q136: 59.07225 | R136: 196.4 | S136: 84.98
B137: Septiembre | C137: 49.47979795 | D137: 85.95316746 | E137: 74.29245683 | F137: 161.6 | G137: 89.5 | H137: 54.15383106 | I137: 70.42538825 | J137: 2493.751818 | K137: 108.4 | L137: 86.47774136 | M137: 58.4622382 | N137: 79.071 | O137: 117.6 | P137: 97.1 | Q137: 59.30901 | R137: 198.8 | S137: 85.42
B138: Octubre | C138: 50.09426081 | D138: 87.58738907 | E138: 75.59758318 | F138: 161.7 | G138: 90.33 | H138: 54.75598169 | I138: 70.83051992 | J138: 2512.454957 | K138: 107.9 | L138: 86.82365299 | M138: 58.59674881 | N138: 78.914 | O138: 118.7 | P138: 97.1 | Q138: 59.45458 | R138: 199.2 | S138: 85.64
B139: Noviembre | C139: 50.90793722 | D139: 86.47214658 | E139: 75.62874424 | F139: 162 | G139: 90.07 | H139: 54.29600551 | I139: 70.42538825 | J139: 2526.273459 | K139: 107.7 | L139: 86.563182 | M139: 58.66373155 | N139: 78.6 | O139: 120.1 | P139: 96.7 | Q139: 59.88249 | R139: 197.6 | S139: 85.45
B140: Diciembre | C140: 51.42172849 | D140: 86.37 | E140: 75.6006355 | F140: 162.7 | G140: 90.39 | H140: 54.81870571 | I140: 70.69547603 | J140: 2535.368044 | K140: 107.6 | L140: 86.90943433 | M140: 58.70371221 | N140: 78.836 | O140: 121 | P140: 96.8 | Q140: 60.25031 | R140: 196.8 | S140: 85.74
A141: 2006 | B141: Enero | C141: 52.02563661 | D141: 86.83 | E141: 76.28471212 | F141: 163.3 | G141: 91.49 | H141: 55.66757083 | I141: 70.76299797 | J141: 2550.36 | K141: 108.2 | L141: 88.0392571 | M141: 59.02160031 | N141: 79.306 | O141: 122.5 | P141: 96.9 | Q141: 60.60363 | R141: 198.3 | S141: 85.35
B142: Febrero | C142: 52.48631797 | D142: 87.26 | E142: 76.26702155 | F142: 164.4431 | G142: 92.8 | H142: 55.6006652 | I142: 70.62795409 | J142: 2560.82 | K142: 108 | L142: 88.47945294 | M142: 59.40979082 | N142: 79.464 | O142: 124.6 | P142: 96.6 | Q142: 60.69636 | R142: 198.7 | S142: 85.59
B143: Marzo | C143: 52.57466014 | D143: 87.57 | E143: 76.63003391 | F143: 164.8 | G143: 93.41 | H143: 55.65293522 | I143: 70.89804186 | J143: 2571.83 | K143: 108.6 | L143: 87.6831383 | M143: 59.82705089 | N143: 79.934 | O143: 125.9 | P143: 96.8 | Q143: 60.77251 | R143: 199.8 | S143: 86.09
B144: Abril | C144: 52.80051271 | D144: 88.16 | E144: 77.26609085 | F144: 165.7 | G144: 94.73 | H144: 55.98328175 | I144: 71.7083052 | J144: 2577.23 | K144: 109.2 | L144: 87.85850449 | M144: 60.09493786 | N144: 80.013 | O144: 127 | P144: 97 | Q144: 60.86162 | R144: 201.5 | S144: 86.66
B145: Mayo | C145: 53.63738152 | D145: 88.27 | E145: 77.74884186 | F145: 166.8 | G145: 95.58 | H145: 56.30317427 | I145: 71.64078325 | J145: 2579.81 | K145: 109.7 | L145: 87.77064579 | M145: 60.29194307 | N145: 80.169 | O145: 128.3 | P145: 97.3 | Q145: 60.59068 | R145: 202.5 | S145: 86.89
B146: Junio | C146: 54.15010797 | D146: 89 | E146: 78.21261324 | F146: 167.3 | G146: 95.91 | H146: 56.72969762 | I146: 71.77582714 | J146: 2574.39 | K146: 109.5 | L146: 87.33179251 | M146: 60.4754134 | N146: 80.013 | O146: 128.5 | P146: 97.3 | Q146: 60.643 | R146: 202.9 | S146: 86.96
B147: Julio | C147: 54.6524198 | D147: 90.11 | E147: 78.56430202 | F147: 168.2 | G147: 96.42 | H147: 57.23776221 | I147: 71.77582714 | J147: 2579.28 | K147: 109.6 | L147: 87.06979769 | M147: 60.72524315 | N147: 80.326 | O147: 129.3 | P147: 97 | Q147: 60.80929 | R147: 203.5 | S147: 86.85
B148: Agosto | C148: 55.13181516 | D148: 89.62292334 | E148: 78.82562665 | F148: 168.8 | G148: 96.59 | H148: 57.34648386 | I148: 71.84334909 | J148: 2580.57 | K148: 109.8 | L148: 87.33100672 | M148: 60.96350008 | N148: 80.797 | O148: 130.2 | P148: 97.7 | Q148: 61.11961 | R148: 203.9 | S148: 86.93
B149: Septiembre | C149: 55.04115394 | D149: 89.5933016 | E149: 78.52585269 | F149: 168.8 | G149: 96.2 | H149: 56.71506202 | I149: 71.57326131 | J149: 2585.99 | K149: 109.2 | L149: 87.76766205 | M149: 61.1379725 | N149: 81.032 | O149: 132.2 | P149: 97.7 | Q149: 61.73661 | R149: 202.9 | S149: 86.93
B150: Octubre | C150: 55.14646656 | D150: 89.23733989 | E150: 78.50878417 | F150: 169 | G150: 96.63 | H150: 56.77360444 | I150: 71.77582714 | J150: 2594.52 | K150: 109 | L150: 87.85542931 | M150: 61.04956679 | N150: 80.64 | O150: 132.7 | P150: 97.5 | Q150: 62.00652 | R150: 201.8 | S150: 87
B151: Noviembre | C151: 55.70589656 | D151: 89.80222925 | E151: 78.9571995 | F151: 169.9 | G151: 97.36 | H151: 57.13740378 | I151: 71.84334909 | J151: 2602.56 | K151: 109.2 | L151: 88.11899571 | M151: 61.19424445 | N151: 80.248 | O151: 133 | P151: 97 | Q151: 62.33186 | R151: 201.5 | S151: 87.03
B152: Diciembre | C152: 56.27270813 | D152: 90.59 | E152: 79.97981376 | F152: 171.3 | G152: 98.93 | H152: 57.55974554 | I152: 72.24848076 | J152: 2615.05 | K152: 109.4 | L152: 89.35266165 | M152: 61.33241187 | N152: 80.483 | O152: 133.5 | P152: 97.1 | Q152: 62.69242 | R152: 201.8 | S152: 87.37
A153: 2007 | B153: Enero | C153: 56.80853947 | D153: 91.64 | E153: 81.03300379 | F153: 172.4 | G153: 99.8 | H153: 58.09708134 | I153: 72.38352465 | J153: 2626.56 | K153: 109.4 | L153: 89.97813061 | M153: 61.80255231 | N153: 80.64 | O153: 134.2 | P153: 96.9 | Q153: 63.01621 | R153: 202.416 | S153: 86.92
B154: Febrero | C154: 57.00926294 | D154: 91.44 | E154: 81.31716325 | F154: 173.9807998 | G154: 100.98 | H154: 58.2747994 | I154: 72.58609048 | J154: 2638.12 | K154: 110.2 | L154: 90.87791131 | M154: 62.52688499 | N154: 81.189 | O154: 135.3 | P154: 96.4 | Q154: 63.19235 | R154: 203.499 | S154: 87.17
B155: Marzo | C155: 57.42126377 | D155: 92 | E155: 82.01259822 | F155: 175.2 | G155: 102.11 | H155: 58.73477557 | I155: 73.19378798 | J155: 2647.88 | K155: 111.1 | L155: 90.60527798 | M155: 63.28533025 | N155: 81.66 | O155: 136 | P155: 96.7 | Q155: 63.32911 | R155: 205.352 | S155: 87.75
B156: Abril | C156: 57.95214204 | D156: 92.07 | E156: 82.21224408 | F156: 176.2 | G156: 103.14 | H156: 59.21147815 | I156: 73.66644159 | J156: 2654.5 | K156: 111.6 | L156: 90.51467266 | M156: 63.85467932 | N156: 81.973 | O156: 137.2 | P156: 97 | Q156: 63.29129 | R156: 206.686 | S156: 88.31
B157: Mayo | C157: 58.55551875 | D157: 91.69 | E157: 81.99800929 | F157: 176.9 | G157: 103.93 | H157: 59.84080919 | I157: 74.07157326 | J157: 2661.93 | K157: 112.1 | L157: 90.78621672 | M157: 64.04598119 | N157: 82.052 | O157: 139 | P157: 97.3 | Q157: 62.98253 | R157: 207.949 | S157: 88.52
B158: Junio | C158: 58.88865298 | D158: 92.3 | E158: 82.36821093 | F158: 177.6 | G158: 104.98 | H158: 60.08125128 | I158: 74.40918298 | J158: 2669.38 | K158: 111.9 | L158: 91.1493615 | M158: 64.12438946 | N158: 82.052 | O158: 140.2 | P158: 97.1 | Q158: 63.05817 | R158: 208.352 | S158: 88.61
B159: Julio | C159: 59.43582481 | D159: 92.96 | E159: 82.95354349 | F159: 178.8 | G159: 105.83 | H159: 60.23597054 | I159: 74.74679271 | J159: 2675.79 | K159: 112 | L159: 91.96970543 | M159: 64.23016766 | N159: 82.366 | O159: 139.5 | P159: 97 | Q159: 63.326 | R159: 208.299 | S159: 88.39
B160: Agosto | C160: 59.85259586 | D160: 92.81267147 | E160: 83.71972237 | F160: 180.1 | G160: 106.12 | H160: 59.84917239 | I160: 74.8818366 | J160: 2688.37 | K160: 111.7 | L160: 93.07334224 | M160: 64.14442761 | N160: 82.444 | O160: 140.1 | P160: 97.5 | Q160: 63.584 | R160: 207.917 | S160: 88.45
B161: Septiembre | C161: 60.23158113 | D161: 93.45344385 | E161: 84.28306304 | F161: 180.8 | G161: 107.32 | H161: 60.57886186 | I161: 75.28696826 | J161: 2693.21 | K161: 111.9 | L161: 93.35256211 | M161: 64.1979292 | N161: 82.915 | O161: 142.6 | P161: 97.5 | Q161: 64.07771 | R161: 208.49 | S161: 88.78
B162: Octubre | C162: 60.57507508 | D162: 94.10719472 | E162: 84.56752381 | F162: 183 | G162: 109.53 | H162: 60.86739237 | I162: 75.69209993 | J162: 2701.29 | K162: 111.6 | L162: 93.63262038 | M162: 64.20173957 | N162: 83.072 | O162: 143.5 | P162: 97.8 | Q162: 64.32741 | R162: 208.936 | S162: 89.21
B163: Noviembre | C163: 61.3269868 | D163: 95.39236801 | E163: 86.16538541 | F163: 186.2 | G163: 114.24 | H163: 61.96297198 | I163: 76.50236327 | J163: 2711.55 | K163: 111.9 | L163: 94.28804807 | M163: 64.50612279 | N163: 83.072 | O163: 145.3 | P163: 97.6 | Q163: 64.78122 | R163: 210.177 | S163: 89.69
B164: Diciembre | C164: 62.35326928 | D164: 94.99 | E164: 86.97505693 | F164: 186.5 | G164: 115.62 | H164: 62.66966265 | I164: 76.83997299 | J164: 2731.62 | K164: 112 | L164: 95.23092903 | M164: 64.82471797 | N164: 83.386 | O164: 146.8 | P164: 97.8 | Q164: 65.04906 | R164: 210.036 | S164: 90.05
A165: 2008 | B165: Enero | C165: 62.80904507 | D165: 95.99 | E165: 87.83039394 | F165: 187.7 | G165: 117.05 | H165: 63.3533545 | I165: 77.92032411 | J165: 2746.37 | K165: 111.8 | L165: 96.37369993 | M165: 65.50887943 | N165: 83.777 | O165: 149 | P165: 97.6 | Q165: 65.35056 | R165: 211.08 | S165: 89.7
B166: Febrero | C166: 63.50787369 | D166: 96.76 | E166: 88.44249192 | F166: 189.7 | G166: 119.51 | H166: 63.33244649 | I166: 78.6630655 | J166: 2759.83 | K166: 112.2 | L166: 98.87941653 | M166: 66.49859745 | N166: 84.092 | O166: 151.4 | P166: 97.4 | Q166: 65.54484 | R166: 211.693 | S166: 90.02
B167: Marzo | C167: 63.75800552 | D167: 97.51 | E167: 89.47538062 | F167: 191.4 | G167: 121.42 | H167: 64.4154813 | I167: 79.60837272 | J167: 2773.08 | K167: 112.6 | L167: 98.18725985 | M167: 67.0355887 | N167: 84.876 | O167: 158.2 | P167: 97.9 | Q167: 66.01989 | R167: 213.528 | S167: 90.9
B168: Abril | C168: 64.29571591 | D168: 98.32 | E168: 90.73668693 | F168: 193.3 | G168: 123.1 | H168: 65.62605495 | I168: 79.94598244 | J168: 2788.33 | K168: 113.5 | L168: 98.28544711 | M168: 67.51227567 | N168: 85.347 | O168: 159.9 | P168: 97.8 | Q168: 66.17013 | R168: 214.823 | S168: 91.19
B169: Mayo | C169: 65.52113936 | D169: 99.39 | E169: 92.03582217 | F169: 196.8 | G169: 126.53 | H169: 65.84558904 | I169: 80.62120189 | J169: 2810.36 | K169: 114.6 | L169: 97.89230558 | M169: 68.14128617 | N169: 86.052 | O169: 160.7 | P169: 98.6 | Q169: 66.09863 | R169: 216.632 | S169: 91.76
B170: Junio | C170: 66.43698135 | D170: 100.63 | E170: 93.53475439 | F170: 199.2 | G170: 129.22 | H170: 67.41368962 | I170: 81.56650912 | J170: 2831.16 | K170: 115.4 | L170: 97.696521 | M170: 68.72877901 | N170: 86.601 | O170: 162.3 | P170: 99 | Q170: 66.37217 | R170: 218.815 | S170: 92.11
B171: Julio | C171: 67.85776388 | D171: 101.92 | E171: 94.69632458 | F171: 203.4 | G171: 130.84 | H171: 68.50508763 | I171: 81.90411884 | J171: 2846.16 | K171: 115.8 | L171: 97.79421785 | M171: 69.06001284 | N171: 87.229 | O171: 165 | P171: 99.2 | Q171: 66.74206 | R171: 219.964 | S171: 91.97
B172: Agosto | C172: 69.07147771 | D172: 101.9919467 | E172: 95.17741935 | F172: 205.3 | G172: 131.5 | H172: 68.56781165 | I172: 82.24172856 | J172: 2854.13 | K172: 115.6 | L172: 97.69642308 | M172: 69.19212373 | N172: 87.072 | O172: 166.5 | P172: 99.5 | Q172: 67.12749 | R172: 219.086 | S172: 91.84
B173: Septiembre | C173: 69.72818663 | D173: 101.5637427 | E173: 95.02777538 | F173: 205.6 | G173: 131.78 | H173: 69.41040437 | I173: 82.84942606 | J173: 2861.55 | K173: 115.7 | L173: 97.69642308 | M173: 69.0600994 | N173: 87.151 | O173: 170.9 | P173: 99.5 | Q173: 67.58494 | R173: 218.783 | S173: 92.01
B174: Octubre | C174: 70.45113174 | D174: 101.076987 | E174: 95.49925833 | F174: 206.9 | G174: 131.75 | H174: 68.6848965 | I174: 82.84942606 | J174: 2874.43 | K174: 114.5 | L174: 97.40333414 | M174: 69.29915204 | N174: 87.072 | O174: 169.4 | P174: 99.4 | Q174: 68.04549 | R174: 216.573 | S174: 92.04
B175: Noviembre | C175: 71.32173591 | D175: 100.4424934 | E175: 95.51106368 | F175: 206.5 | G175: 131.86 | H175: 66.43310405 | I175: 82.37677245 | J175: 2884.78 | K175: 114.1 | L175: 96.62410779 | M175: 69.49250673 | N175: 86.837 | O175: 165.4 | P175: 98.6 | Q175: 68.81894 | R175: 212.425 | S175: 91.59
B176: Diciembre | C176: 71.02182818 | D176: 100.19 | E176: 95.15090992 | F176: 206.7 | G176: 131.55 | H176: 65.50060691 | I176: 82.03916273 | J176: 2892.86 | K176: 113.3 | L176: 96.43085943 | M176: 69.79985854 | N176: 86.837 | O176: 161.7 | P176: 98.2 | Q176: 69.29556 | R176: 210.228 | S176: 91.47
A177: 2009 | B177: Enero | C177: 71.28887512 | D177: 99.65 | E177: 94.75260227 | F177: 206.6 | G177: 131.63 | H177: 65.68459737 | I177: 81.76907495 | J177: 2906.74 | K177: 113 | L177: 97.29873675 | M177: 70.21120865 | N177: 86.916 | O177: 161 | P177: 97.6 | Q177: 69.45615 | R177: 211.143 | S177: 90.71
B178: Febrero | C178: 71.6041143 | D178: 99.53 | E178: 94.18956358 | F178: 208.2 | G178: 132.39 | H178: 65.88531425 | I178: 82.03916273 | J178: 2922.73 | K178: 113.8 | L178: 97.29873675 | M178: 70.79889344 | N178: 87.543 | O178: 160.3 | P178: 97.3 | Q178: 69.6095 | R178: 212.193 | S178: 91.08
B179: Marzo | C179: 71.61421568 | D179: 100 | E179: 93.94784951 | F179: 208.2 | G179: 131.69 | H179: 65.98776349 | I179: 82.57933828 | J179: 2928.57 | K179: 114 | L179: 97.00684066 | M179: 71.15210725 | N179: 88.17 | O179: 159.8 | P179: 97.6 | Q179: 70.00995 | R179: 212.709 | S179: 91.42
B180: Abril | C180: 71.85093217 | D180: 100.08 | E180: 94.02372041 | F180: 208.9 | G180: 131.57 | H180: 66.08184952 | I180: 82.91694801 | J180: 2942.63 | K180: 113.9 | L180: 96.81282674 | M180: 71.38063897 | N180: 88.405 | O180: 160 | P180: 97.7 | Q180: 70.25499 | R180: 213.24 | S180: 91.75
B181: Mayo | C181: 71.76119521 | D181: 100.36 | E181: 94.14740353 | F181: 208.9 | G181: 131.71 | H181: 66.15711835 | I181: 82.64686023 | J181: 2956.46 | K181: 114.7 | L181: 96.52238893 | M181: 71.39068736 | N181: 88.405 | O181: 160.1 | P181: 97.5 | Q181: 70.05036 | R181: 213.856 | S181: 91.8
B182: Junio | C182: 71.8822034 | D182: 100.4 | E182: 94.11206521 | F182: 210 | G182: 131.75 | H182: 67.58722609 | I182: 83.0519919 | J182: 2967.1 | K182: 115.1 | L182: 96.03977664 | M182: 71.35068715 | N182: 88.327 | O182: 160.6 | P182: 97.3 | Q182: 70.17935 | R182: 215.693 | S182: 91.98
B183: Julio | C183: 72.54179319 | D183: 99.99 | E183: 94.41029581 | F183: 211.5 | G183: 130.94 | H183: 67.66876732 | I183: 83.45712357 | J183: 2974.22 | K183: 114.7 | L183: 96.03977664 | M183: 71.32294171 | N183: 88.641 | O183: 160.9 | P183: 97 | Q183: 70.37051 | R183: 215.351 | S183: 91.38
B184: Agosto | C184: 73.01660344 | D184: 99.79212037 | E184: 94.4804918 | F184: 211.7 | G184: 131.34 | H184: 68.24582833 | I184: 83.72721134 | J184: 2978.68 | K184: 114.7 | L184: 96.51997556 | M184: 71.35439213 | N184: 88.955 | O184: 161.9 | P184: 97.3 | Q184: 70.53889 | R184: 215.834 | S184: 91.69
B185: Septiembre | C185: 73.09872577 | D185: 99.73367528 | E185: 95.05897977 | F185: 211.9 | G185: 131.79 | H185: 68.32109716 | I185: 83.25455773 | J185: 2985.83 | K185: 114.7 | L185: 96.90604516 | M185: 71.27620861 | N185: 89.034 | O185: 162.9 | P185: 97.3 | Q185: 70.89272 | R185: 215.969 | S185: 91.71
B186: Octubre | C186: 73.26928025 | D186: 99.02704806 | E186: 94.87518214 | F186: 212.4 | G186: 132.31 | H186: 68.47790722 | I186: 83.45712357 | J186: 2994.19 | K186: 114.6 | L186: 96.81152383 | M186: 71.18519378 | N186: 88.798 | O186: 163.5 | P186: 96.9 | Q186: 71.10719 | R186: 216.177 | S186: 91.92
B187: Noviembre | C187: 73.15224292 | D187: 100.4124926 | E187: 94.92858401 | F187: 212.9 | G187: 132.47 | H187: 69.20968749 | I187: 83.52464551 | J187: 3006.47 | K187: 115.2 | L187: 97.10285668 | M187: 71.13845021 | N187: 88.955 | O187: 164.1 | P187: 96.7 | Q187: 71.47604 | R187: 216.33 | S187: 92.03
B188: Diciembre | C188: 73.89611091 | D188: 100 | E188: 94.88566278 | F188: 212.8 | G188: 132.778411 | H188: 69.27659312 | I188: 83.59216745 | J188: 3017.59 | K188: 114.8 | L188: 98.07396617 | M188: 71.19711769 | N188: 89.269 | O188: 165 | P188: 96.5 | Q188: 71.77186 | R188: 215.949 | S188: 92.32
A189: 2010 | B189: Enero | C189: 75.09787604 | D189: 100.44 | E189: 96.11 | F189: 214 | G189: 134.065768 | H189: 70.18609146 | I189: 84.2673869 | J189: 3040.22 | K189: 115.1 | L189: 98.65663187 | M189: 71.68538026 | N189: 89.974 | O189: 170.8 | P189: 96.6 | Q189: 72.55205 | R189: 216.687 | S189: 91.57
B190: Febrero | C190: 75.61355053 | D190: 100.57 | E190: 96.53 | F190: 215.5 | G190: 136.020941 | H190: 70.2843591 | I190: 84.46995273 | J190: 3063.93 | K190: 115.6 | L190: 99.846241 | M190: 72.27925282 | N190: 90.156 | O190: 168.6 | P190: 96.6 | Q190: 72.97167 | R190: 216.741 | S190: 91.85
B191: Marzo | C191: 75.79764849 | D191: 100.89 | E191: 97.64 | F191: 216.5 | G191: 137.51637 | H191: 70.88860052 | I191: 84.80756246 | J191: 3079.86 | K191: 115.6 | L191: 99.14218661 | M191: 72.46095581 | N191: 90.338 | O191: 169.5 | P191: 96.8 | Q191: 73.48972 | R191: 217.631 | S191: 92.87
B192: Abril | C192: 75.84299415 | D192: 100.71 | E192: 97.55 | F192: 217.6 | G192: 137.94896 | H192: 71.14158742 | I192: 85.07765024 | J192: 3097.42 | K192: 116 | L192: 99.34450109 | M192: 72.7945761 | N192: 90.702 | O192: 170.1 | P192: 96.9 | Q192: 73.25556 | R192: 218.009 | S192: 93.25
B193: Mayo | C193: 76.23405989 | D193: 100.5 | E193: 97.45 | F193: 218 | G193: 137.86852 | H193: 71.38412031 | I193: 85.28021607 | J193: 3110.74 | K193: 116.3 | L193: 99.24739014 | M193: 72.86975753 | N193: 90.793 | O193: 170.4 | P193: 96.8 | Q193: 72.79398 | R193: 218.178 | S193: 93.35
B194: Junio | C194: 76.41933924 | D194: 100.96 | E194: 97.94 | F194: 218.9 | G194: 137.853416 | H194: 71.26285386 | I194: 85.34773801 | J194: 3110.74 | K194: 116.2 | L194: 98.64853929 | M194: 72.95260577 | N194: 90.702 | O194: 170.8 | P194: 96.6 | Q194: 72.77119 | R194: 217.965 | S194: 93.35
B195: Julio | C195: 76.6636712 | D195: 100.98 | E195: 98.3 | F195: 220.3 | G195: 139.055419 | H195: 71.50747755 | I195: 86.29304524 | J195: 3111.05 | K195: 116.8 | L195: 99.04507567 | M195: 72.92186172 | N195: 90.884 | O195: 170.6 | P195: 96.1 | Q195: 72.92919 | R195: 218.011 | S195: 92.95
B196: Agosto | C196: 76.81802522 | D196: 100.81 | E196: 98.35 | F196: 221.3 | G196: 138.354437 | H196: 71.66428761 | I196: 86.76569885 | J196: 3112.29 | K196: 116.7 | L196: 99.63583394 | M196: 73.00370345 | N196: 91.34 | O196: 170.6 | P196: 96.2 | Q196: 73.13175 | R196: 218.312 | S196: 93.14
B197: Septiembre | C197: 76.75419741 | D197: 101.11 | E197: 98.63 | F197: 222.6 | G197: 138.941018 | H197: 72.21625902 | I197: 86.76569885 | J197: 3126.29 | K197: 116.9 | L197: 100.2346848 | M197: 72.90461209 | N197: 92.068 | O197: 170.5 | P197: 96.4 | Q197: 73.51511 | R197: 218.439 | S197: 93.43
B198: Octubre | C198: 77.11804729 | D198: 101.78 | E198: 99.15 | F198: 224.7 | G198: 141.915796 | H198: 72.7034156 | I198: 86.90074274 | J198: 3149.74 | K198: 117.4 | L198: 100.9387392 | M198: 72.84030199 | N198: 92.068 | O198: 171 | P198: 96.7 | Q198: 73.96893 | R198: 218.711 | S198: 93.71
B199: Noviembre | C199: 77.62394066 | D199: 102.24 | E199: 99.92 | F199: 226.6 | G199: 144.114007 | H199: 72.92922209 | I199: 87.10330858 | J199: 3175.88 | K199: 117.5 | L199: 102.0474225 | M199: 72.98163483 | N199: 91.613 | O199: 172.5 | P199: 96.4 | Q199: 74.56158 | R199: 218.803 | S199: 93.79
B200: Diciembre | C200: 78.20005375 | D200: 102.13 | E200: 100 | F200: 226.6 | G200: 145.034368 | H200: 73.59827834 | I200: 87.71100608 | J200: 3195.89 | K200: 117.5 | L200: 102.557255 | M200: 73.45493651 | N200: 91.977 | O200: 175.2 | P200: 96.2 | Q200: 74.93095 | R200: 219.179 | S200: 94.36
A201: 2011 | B201: Enero | C201: 78.72906211 | D201: 102.77 | E201: 100.82 | F201: 227.6 | G201: 144.817066 | H201: 74.51362012 | I201: 88.31870358 | J201: 3222.42 | K201: 117.8 | L201: 90.18423 | M201: 74.12223432 | N201: 93.07 | O201: 177.2 | P201: 96.1 | Q201: 75.29599 | R201: 220.223 | S201: 93.68
... 135 more rows

Sheet TIPO CAMBIO
A2: Secretaría Ejecutiva
A3: Consejo Monetario Centroamericano
A4: TIPO DE CAMBIO PROMEDIO de COMPRA (moneda nacional por US$)
C5: REGIÓN CAPARD 1/ | J5: RESTO DEL MUNDO
A6: Año | B6: MES | C6: COSTA RICA | D6: EL SALVADOR | E6: GUATEMALA | F6: HONDURAS | G6: NICARAGUA | H6: REPÚBLICA DOMINICANA | I6: PANAMÁ | J6: BRASIL | K6: CANADÁ | L6: CHINA | M6: COLOMBIA | N6: COREA DEL SUR | O6: HAITÍ | P6: JAPÓN | Q6: MÉXICO | R6: ESTADOS UNIDOS | S6: ZONA EURO
B7: moneda | C7: Colón | D7: Colón | E7: Quetzal | F7: Lempira | G7: Córdoba | H7: Peso dominicano | I7: Balboa | J7: Euro | K7: Dólar canadiense | L7: Reminbi | M7: Peso Colombiano | N7: Won surcoreano | O7: Gourde | P7: Yen japonés | Q7: Peso mexicano | R7: Dólar estadounidense | S7: Euro
A9: 1995 | B9: Enero | C9: 165.5670968 | D9: 8.72 | E9: 5.72614 | F9: 9.21 | G9: 7.147106452 | H9: 12.87 | I9: 1 | J9: 0.841 | K9: 1.4132 | L9: 8.4608 | M9: 846.63 | N9: 793.075 | O9: 14.0569 | P9: 99.766 | Q9: 5.6405 | R9: 1 | S9: 0.805921914
B10: Febrero | C10: 167.7107143 | D10: 8.72 | E10: 5.70749 | F10: 9.08 | G10: 7.212860714 | H10: 12.87 | I10: 1 | J10: 0.8505 | K10: 1.4005 | L10: 8.4553 | M10: 850.9 | N10: 793.1947 | O10: 14.0815 | P10: 98.2368 | Q10: 5.6779 | R10: 1 | S10: 0.794474273
B11: Marzo | C11: 170.2619355 | D11: 8.72 | E11: 5.68631 | F11: 9.13 | G11: 7.279235484 | H11: 12.87 | I11: 1 | J11: 0.895 | K11: 1.4077 | L11: 8.4483 | M11: 865.83 | N11: 781.813 | O11: 14.2885 | P11: 90.5196 | Q11: 6.777 | R11: 1 | S11: 0.759265122
B12: Abril | C12: 172.853 | D12: 8.72 | E12: 5.72022 | F12: 9.12 | G12: 7.348496667 | H12: 12.87 | I12: 1 | J12: 0.912 | K12: 1.3762 | L12: 8.4421 | M12: 873.39 | N12: 770.61 | O12: 14.322 | P12: 83.6895 | Q12: 6.2285 | R12: 1 | S12: 0.745472003
B13: Mayo | C13: 175.2487097 | D13: 8.72 | E13: 5.72867 | F13: 9.15 | G13: 7.418419355 | H13: 12.87 | I13: 1 | J13: 0.905 | K13: 1.3609 | L13: 8.337 | M13: 876.95 | N13: 764.4318 | O13: 14.4087 | P13: 85.1127 | Q13: 5.9741 | R13: 1 | S13: 0.756633978
B14: Junio | C14: 177.866 | D14: 8.72 | E14: 5.74684 | F14: 9.28 | G14: 7.489003333 | H14: 12.87 | I14: 1 | J14: 0.921 | K14: 1.3775 | L14: 8.3206 | M14: 874.86 | N14: 763.8818 | O14: 14.9452 | P14: 84.6355 | Q14: 6.233 | R14: 1 | S14: 0.75106595
B15: Julio | C15: 180.2796774 | D15: 8.72 | E15: 5.75962 | F15: 9.41 | G15: 7.560258065 | H15: 12.87 | I15: 1 | J15: 0.935 | K15: 1.3612 | L15: 8.3207 | M15: 893.22 | N15: 760.045 | O15: 14.9523 | P15: 87.397 | Q15: 6.122 | R15: 1 | S15: 0.743596703
B16: Agosto | C16: 182.6629032 | D16: 8.72 | E16: 5.80171 | F16: 9.55 | G16: 7.633380645 | H16: 12.87 | I16: 1 | J16: 0.95 | K16: 1.3552 | L16: 8.3253 | M16: 935.1 | N16: 767.4217 | O16: 15.2639 | P16: 94.7383 | Q16: 6.2047 | R16: 1 | S16: 0.766629536
B17: Septiembre | C17: 185.2703333 | D17: 8.72 | E17: 5.87913 | F17: 9.67 | G17: 7.706013333 | H17: 12.87 | I17: 1 | J17: 0.953 | K17: 1.3509 | L17: 8.3374 | M17: 964.17 | N17: 772.04 | O17: 15.4309 | P17: 100.5455 | Q17: 6.3167 | R17: 1 | S17: 0.775914376
B18: Octubre | C18: 187.8916129 | D18: 8.72 | E18: 5.94587 | F18: 9.81 | G18: 7.77933871 | H18: 12.87 | I18: 1 | J18: 0.9614 | K18: 1.3458 | L18: 8.3353 | M18: 984.96 | N18: 767.1952 | O18: 15.8088 | P18: 100.839 | Q18: 6.7452 | R18: 1 | S18: 0.756331249
B19: Noviembre | C19: 190.654 | D19: 8.72 | E19: 5.98728 | F19: 10.04 | G19: 7.853353333 | H19: 12.87 | I19: 1 | J19: 0.9661 | K19: 1.3534 | L19: 8.3334 | M19: 1000.58 | N19: 769.781 | O19: 17.4361 | P19: 101.94 | Q19: 7.6936 | R19: 1 | S19: 0.755398265
B20: Diciembre | C20: 193.3877419 | D20: 8.72 | E20: 5.92452 | F20: 10.25 | G20: 7.928080645 | H20: 12.87 | I20: 1 | J20: 0.972 | K20: 1.3693 | L20: 8.335 | M20: 988.15 | N20: 771.305 | O20: 16.0465 | P20: 101.8495 | Q20: 7.687 | R20: 1 | S20: 0.766692428
A21: 1996 | B21: Enero | C21: 195.7090323 | D21: 8.72 | E21: 6.0907 | F21: 10.45 | G21: 8.004754839 | H21: 12.87 | I21: 1 | J21: 0.9781 | K21: 1.3669 | L21: 8.3384 | M21: 1011.19 | N21: 787.1333 | O21: 16.4419 | P21: 105.7514 | Q21: 7.4806 | R21: 1 | S21: 0.774090869
B22: Febrero | C22: 198.0155172 | D22: 8.72 | E22: 6.15872 | F22: 10.67 | G22: 8.079662069 | H22: 12.87 | I22: 1 | J22: 0.9837 | K22: 1.3752 | L22: 8.3338 | M22: 1029.64 | N22: 780.115 | O22: 16.5528 | P22: 105.788 | Q22: 7.5183 | R22: 1 | S22: 0.776034201
B23: Marzo | C23: 200.1377419 | D23: 8.72 | E23: 6.17398 | F23: 10.9 | G23: 8.155277419 | H23: 12.87 | I23: 1 | J23: 0.9876 | K23: 1.3656 | L23: 8.3495 | M23: 1044.98 | N23: 781.3143 | O23: 16.7016 | P23: 105.94 | Q23: 7.5682 | R23: 1 | S23: 0.780434811
B24: Abril | C24: 201.996 | D24: 8.72 | E24: 6.12782 | F24: 11.05 | G24: 8.232873333 | H24: 12.87 | I24: 1 | J24: 0.9921 | K24: 1.3592 | L24: 8.3515 | M24: 1050.93 | N24: 780.4182 | O24: 16.4571 | P24: 107.1995 | Q24: 7.4694 | R24: 1 | S24: 0.791198706
B25: Mayo | C25: 204.0116129 | D25: 8.72 | E25: 6.08057 | F25: 11.18 | G25: 8.311274194 | H25: 12.87 | I25: 1 | J25: 0.998 | K25: 1.3693 | L25: 8.3479 | M25: 1066.24 | N25: 780.8591 | O25: 15.9461 | P25: 106.3423 | Q25: 7.4368 | R25: 1 | S25: 0.802130458
B26: Junio | C26: 206.2313333 | D26: 8.72 | E26: 6.12286 | F26: 11.46 | G26: 8.390286667 | H26: 12.87 | I26: 1 | J26: 1.004 | K26: 1.3658 | L26: 8.3424 | M26: 1071.96 | N26: 798.45 | O26: 15.6307 | P26: 108.96 | Q26: 7.5648 | R26: 1 | S26: 0.798134281
B27: Julio | C27: 208.3454839 | D27: 8.72 | E27: 6.08948 | F27: 12 | G27: 8.470125806 | H27: 12.87 | I27: 1 | J27: 1.0108 | K27: 1.3697 | L27: 8.3409 | M27: 1064.1 | N27: 813.0318 | O27: 15.1665 | P27: 109.1909 | Q27: 7.6179 | R27: 1 | S27: 0.787006213
B28: Agosto | C28: 210.3451613 | D28: 8.72 | E28: 6.06868 | F28: 12.27 | G28: 8.552041935 | H28: 12.87 | I28: 1 | J28: 1.0165 | K28: 1.3722 | L28: 8.3379 | M28: 1044.84 | N28: 817.5227 | O28: 14.9141 | P28: 107.8659 | Q28: 7.5143 | R28: 1 | S28: 0.779271989
B29: Septiembre | C29: 212.4936667 | D29: 8.72 | E29: 6.04309 | F29: 12.42 | G29: 8.633416667 | H29: 12.87 | I29: 1 | J29: 1.0211 | K29: 1.3694 | L29: 8.3341 | M29: 1040.84 | N29: 822.4 | O29: 15.0548 | P29: 109.931 | Q29: 7.5441 | R29: 1 | S29: 0.78797984
B30: Octubre | C30: 214.6712903 | D30: 8.72 | E30: 6.05052 | F30: 12.56 | G30: 8.715551613 | H30: 12.87 | I30: 1 | J30: 1.0272 | K30: 1.3508 | L30: 8.3299 | M30: 1015.78 | N30: 828.2364 | O30: 15.1583 | P30: 112.4123 | Q30: 7.7345 | R30: 1 | S30: 0.794652939
B31: Noviembre | C31: 216.8486667 | D31: 8.72 | E31: 6.00662 | F31: 12.61 | G31: 8.79849 | H31: 12.87 | I31: 1 | J31: 1.0328 | K31: 1.3381 | L31: 8.3294 | M31: 998.18 | N31: 830.5632 | O31: 15.27 | P31: 112.2958 | Q31: 7.9119 | R31: 1 | S31: 0.783146683
B32: Diciembre | C32: 219.0122581 | D32: 8.72 | E32: 5.9947 | F32: 12.78 | G32: 8.8822 | H32: 13.19 | I32: 1 | J32: 1.039 | K32: 1.3622 | L32: 8.329 | M32: 1000.79 | N32: 841.919 | O32: 15.0453 | P32: 113.981 | Q32: 7.8769 | R32: 1 | S32: 0.799838753
A33: 1997 | B33: Enero | C33: 220.8754839 | D33: 8.72 | E33: 6.05304 | F33: 12.93 | G33: 8.968112903 | H33: 13.91 | I33: 1 | J33: 1.0457 | K33: 1.3494 | L33: 8.326 | M33: 1027.06 | N33: 854.0714 | O33: 15.641 | P33: 117.9124 | Q33: 7.8289 | R33: 1 | S33: 0.822229129
B34: Febrero | C34: 223.0125 | D34: 8.72 | E34: 6.09068 | F34: 12.73 | G34: 9.050621429 | H34: 13.96 | I34: 1 | J34: 1.0511 | K34: 1.3556 | L34: 8.3227 | M34: 1074.24 | N34: 868.3947 | O34: 16.0887 | P34: 122.9621 | Q34: 7.8023 | R34: 1 | S34: 0.857808762
B35: Marzo | C35: 225.1687097 | D35: 8.72 | E35: 5.99539 | F35: 12.79 | G35: 9.133906452 | H35: 14.02 | I35: 1 | J35: 1.0589 | K35: 1.3725 | L35: 8.3258 | M35: 1062.16 | N35: 882.619 | O35: 16.519 | P35: 122.7738 | Q35: 7.9562 | R35: 1 | S35: 0.869749756
B36: Abril | C36: 227.1756667 | D36: 8.72 | E36: 5.99677 | F36: 12.76 | G36: 9.22082 | H36: 14.02 | I36: 1 | J36: 1.0634 | K36: 1.3942 | L36: 8.3257 | M36: 1060.65 | N36: 895.5682 | O36: 16.7499 | P36: 125.6377 | Q36: 7.9059 | R36: 1 | S36: 0.873351004
B37: Mayo | C37: 229.2754839 | D37: 8.72 | E37: 5.97565 | F37: 13.05 | G37: 9.308564516 | H37: 14.02 | I37: 1 | J37: 1.0713 | K37: 1.3804 | L37: 8.3229 | M37: 1075.18 | N37: 894.6667 | O37: 16.7757 | P37: 119.1924 | Q37: 7.9037 | R37: 1 | S37: 0.870063802
B38: Junio | C38: 231.525 | D38: 8.72 | E38: 5.92258 | F38: 13.07 | G38: 9.39712 | H38: 14.02 | I38: 1 | J38: 1.0765 | K38: 1.3843 | L38: 8.3224 | M38: 1082.37 | N38: 891.4048 | O38: 16.8329 | P38: 114.2857 | Q38: 7.9498 | R38: 1 | S38: 0.879796098
B39: Julio | C39: 233.6948387 | D39: 8.72 | E39: 5.95351 | F39: 13.08 | G39: 9.486535484 | H39: 14.02 | I39: 1 | J39: 1.083 | K39: 1.3775 | L39: 8.3162 | M39: 1102.4 | N39: 893.0909 | O39: 16.6062 | P39: 115.3759 | Q39: 7.8679 | R39: 1 | S39: 0.905048633
B40: Agosto | C40: 235.5841935 | D40: 8.72 | E40: 6.07217 | F40: 13.08 | G40: 9.578293548 | H40: 14.02 | I40: 1 | J40: 1.0912 | K40: 1.3905 | L40: 8.3187 | M40: 1132.7 | N40: 898.7095 | O40: 16.7091 | P40: 117.9295 | Q40: 7.7818 | R40: 1 | S40: 0.932198413
B41: Septiembre | C41: 237.4746667 | D41: 8.72 | E41: 6.10458 | F41: 13.09 | G41: 9.669423333 | H41: 14.02 | I41: 1 | J41: 1.096 | K41: 1.3872 | L41: 8.3171 | M41: 1222.49 | N41: 912.5048 | O41: 16.6976 | P41: 120.89 | Q41: 7.7809 | R41: 1 | S41: 0.909161162
B42: Octubre | C42: 239.3864516 | D42: 8.72 | E42: 6.1468 | F42: 13.09 | G42: 9.761432258 | H42: 14.02 | I42: 1 | J42: 1.1027 | K42: 1.3869 | L42: 8.3135 | M42: 1262.89 | N42: 929.4182 | O42: 17.2022 | P42: 121.0605 | Q42: 7.8708 | R42: 1 | S42: 0.892603707
B43: Noviembre | C43: 241.3403333 | D43: 8.72 | E43: 6.21059 | F43: 13.09 | G43: 9.8543 | H43: 14.02 | I43: 1 | J43: 1.1094 | K43: 1.4128 | L43: 8.3109 | M43: 1294.56 | N43: 1035.2235 | O43: 17.1843 | P43: 125.3817 | Q43: 8.2716 | R43: 1 | S43: 0.877679556
B44: Diciembre | C44: 243.2551613 | D44: 8.72 | E44: 6.18186 | F44: 13.1 | G44: 9.948080645 | H44: 14.02 | I44: 1 | J44: 1.116 | K44: 1.4271 | L44: 8.3099 | M44: 1296.7 | N44: 1496.9 | O44: 16.8441 | P44: 129.7341 | Q44: 8.1271 | R44: 1 | S44: 0.899619551
A45: 1998 | B45: Enero | C45: 244.8922581 | D45: 8.72 | E45: 6.25174 | F45: 13.11 | G45: 10.0442871 | H45: 14.02 | I45: 1 | J45: 1.1233 | K45: 1.4409 | L45: 8.3094 | M45: 1323.16 | N45: 1707.3 | O45: 17.3089 | P45: 129.5475 | Q45: 8.2272 | R45: 1 | S45: 0.919350865
B46: Febrero | C46: 246.8389286 | D46: 8.72 | E46: 6.21013 | F46: 13.16 | G46: 10.13669643 | H46: 14.02 | I46: 1 | J46: 1.13 | K46: 1.4334 | L46: 8.3072 | M46: 1346.12 | N46: 1628.4211 | O46: 17.4239 | P46: 125.8516 | Q46: 8.5021 | R46: 1 | S46: 0.918741031
B47: Marzo | C47: 248.8829032 | D47: 8.72 | E47: 6.26765 | F47: 13.21 | G47: 10.22998065 | H47: 14.02 | I47: 1 | J47: 1.137 | K47: 1.4166 | L47: 8.3076 | M47: 1357.1 | N47: 1489.3571 | O47: 17.4209 | P47: 129.0823 | Q47: 8.5681 | R47: 1 | S47: 0.922228473
B48: Abril | C48: 250.932 | D48: 8.72 | E48: 6.28013 | F48: 13.21 | G48: 10.32733333 | H48: 14.02 | I48: 1 | J48: 1.1439 | K48: 1.4298 | L48: 8.3058 | M48: 1360.65 | N48: 1391.5455 | O48: 17.1673 | P48: 131.7536 | Q48: 8.5017 | R48: 1 | S48: 0.916539039
B49: Mayo | C49: 252.9432258 | D49: 8.72 | E49: 6.27564 | F49: 13.27 | G49: 10.42558065 | H49: 14.02 | I49: 1 | J49: 1.1501 | K49: 1.4452 | L49: 8.3084 | M49: 1386.28 | N49: 1399.05 | O49: 16.7847 | P49: 134.896 | Q49: 8.5848 | R49: 1 | S49: 0.901676668
B50: Junio | C50: 255.277 | D50: 8.72 | E50: 6.30639 | F50: 13.32 | G50: 10.52477667 | H50: 14.02 | I50: 1 | J50: 1.1565 | K50: 1.4655 | L50: 8.31 | M50: 1386.61 | N50: 1397.7727 | O50: 16.4381 | P50: 140.3305 | Q50: 8.92 | R50: 1 | S50: 0.907930409
B51: Julio | C51: 257.6841935 | D51: 8.72 | E51: 6.34077 | F51: 13.37 | G51: 10.62492581 | H51: 15.22 | I51: 1 | J51: 1.163 | K51: 1.4869 | L51: 8.31 | M51: 1371.54 | N51: 1295.7609 | O51: 16.0629 | P51: 140.7874 | Q51: 8.899 | R51: 1 | S51: 0.911161731
B52: Agosto | C52: 260.1232258 | D52: 8.72 | E52: 6.3964 | F52: 13.42 | G52: 10.72768065 | H52: 15.33 | I52: 1 | J52: 1.1765 | K52: 1.5346 | L52: 8.31 | M52: 1390.46 | N52: 1314.2857 | O52: 16.4145 | P52: 144.68 | Q52: 9.3712 | R52: 1 | S52: 0.907798534
B53: Septiembre | C53: 262.495 | D53: 8.72 | E53: 6.48178 | F53: 13.51 | G53: 10.82976 | H53: 15.36 | I53: 1 | J53: 1.1852 | K53: 1.5218 | L53: 8.3055 | M53: 1520.52 | N53: 1375.5381 | O53: 16.7801 | P53: 134.4805 | Q53: 10.2192 | R53: 1 | S53: 0.866457273
B54: Octubre | C54: 264.9251613 | D54: 8.72 | E54: 6.56218 | F54: 13.57 | G54: 10.9328 | H54: 15.44 | I54: 1 | J54: 1.1928 | K54: 1.5452 | L54: 8.2778 | M54: 1587.38 | N54: 1344.1429 | O54: 16.6143 | P54: 121.0486 | Q54: 10.1594 | R54: 1 | S54: 0.837692826
B55: Noviembre | C55: 267.5306667 | D55: 8.72 | E55: 6.55906 | F55: 13.67 | G55: 11.03682 | H55: 15.49 | I55: 1 | J55: 1.2008 | K55: 1.5404 | L55: 8.2778 | M55: 1562.71 | N55: 1294.0105 | O55: 16.6488 | P55: 120.2895 | Q55: 9.9685 | R55: 1 | S55: 0.858794442
B56: Diciembre | C56: 270.0809677 | D56: 8.72 | E56: 6.71953 | F56: 13.75 | G56: 11.14184194 | H56: 15.48 | I56: 1 | J56: 1.2083 | K56: 1.5433 | L56: 8.278 | M56: 1524.56 | N56: 1213.2182 | O56: 16.4006 | P56: 117.0709 | Q56: 9.9067 | R56: 1 | S56: 0.853153511
A57: 1999 | B57: Enero | C57: 272.2612903 | D57: 8.72 | E57: 6.97126 | F57: 13.84 | G57: 11.24959032 | H57: 15.49 | I57: 1 | J57: 1.9828 | K57: 1.5194 | L57: 8.2789 | M57: 1570.01 | N57: 1175.1053 | O57: 16.742 | P57: 113.29 | Q57: 10.1279 | R57: 1 | S57: 0.861489688
B58: Febrero | C58: 274.7885714 | D58: 8.72 | E58: 6.87337 | F58: 13.9 | G58: 11.35310357 | H58: 15.75 | I58: 1 | J58: 2.0644 | K58: 1.4977 | L58: 8.2781 | M58: 1567.07 | N58: 1188.8368 | O58: 16.8081 | P58: 116.6684 | Q58: 10.0057 | R58: 1 | S58: 0.892247706
B59: Marzo | C59: 277.3080645 | D59: 8.72 | E59: 6.96803 | F59: 13.96 | G59: 11.45758065 | H59: 15.88 | I59: 1 | J59: 1.7216 | K59: 1.5176 | L59: 8.2792 | M59: 1550.15 | N59: 1229.7217 | O59: 16.7885 | P59: 119.473 | Q59: 9.7324 | R59: 1 | S59: 0.918867661
B60: Abril | C60: 279.7366667 | D60: 8.72 | E60: 7.0647 | F60: 14.03 | G60: 11.56658 | H60: 15.88 | I60: 1 | J60: 1.6603 | K60: 1.4881 | L60: 8.2792 | M60: 1574.67 | N60: 1209.9636 | O60: 16.6984 | P60: 119.7723 | Q60: 9.4304 | R60: 1 | S60: 0.934194411
B61: Mayo | C61: 282.3070968 | D61: 8.72 | E61: 7.2619 | F61: 14.09 | G61: 11.67665484 | H61: 15.88 | I61: 1 | J61: 1.7236 | K61: 1.4611 | L61: 8.2785 | M61: 1641.33 | N61: 1197.92 | O61: 16.6891 | P61: 121.9995 | Q61: 9.3955 | R61: 1 | S61: 0.940901949
B62: Junio | C62: 284.9086667 | D62: 8.72 | E62: 7.35194 | F62: 14.17 | G62: 11.78772767 | H62: 15.85 | I62: 1 | J62: 1.7691 | K62: 1.4695 | L62: 8.278 | M62: 1693.99 | N62: 1168.9136 | O62: 16.694 | P62: 120.7245 | Q62: 9.5146 | R62: 1 | S62: 0.96361858
B63: Julio | C63: 287.3267742 | D63: 8.72 | E63: 7.38059 | F63: 14.22 | G63: 11.8933 | H63: 15.85 | I63: 1 | J63: 1.7888 | K63: 1.489 | L63: 8.2776 | M63: 1818.63 | N63: 1189.0952 | O63: 16.7887 | P63: 119.3305 | Q63: 9.3699 | R63: 1 | S63: 0.965933459
B64: Agosto | C64: 289.3332258 | D64: 8.72 | E64: 7.66137 | F64: 14.27 | G64: 11.98196452 | H64: 15.85 | I64: 1 | J64: 1.9155 | K64: 1.4932 | L64: 8.2772 | M64: 1876.93 | N64: 1198.3091 | O64: 16.747 | P64: 113.2268 | Q64: 9.3979 | R64: 1 | S64: 0.943080383
B65: Septiembre | C65: 291.233 | D65: 8.72 | E65: 7.77441 | F65: 14.35 | G65: 12.06856 | H65: 15.85 | I65: 1 | J65: 1.9219 | K65: 1.4771 | L65: 8.2774 | M65: 1975.64 | N65: 1201 | O65: 16.9016 | P65: 106.8752 | Q65: 9.3413 | R65: 1 | S65: 0.952311116
B66: Octubre | C66: 293.1183871 | D66: 8.72 | E66: 7.79699 | F66: 14.39 | G66: 12.15577742 | H66: 15.89 | I66: 1 | J66: 1.9526 | K66: 1.4776 | L66: 8.2775 | M66: 1978.71 | N66: 1205.285 | O66: 17.1158 | P66: 105.965 | Q66: 9.5752 | R66: 1 | S66: 0.934026879
B67: Noviembre | C67: 295.0493333 | D67: 8.72 | E67: 7.75743 | F67: 14.44 | G67: 12.22911333 | H67: 15.93 | I67: 1 | J67: 1.9223 | K67: 1.4674 | L67: 8.2782 | M67: 1944.64 | N67: 1176.975 | O67: 17.544 | P67: 104.6485 | Q67: 9.4161 | R67: 1 | S67: 0.967283568
B68: Diciembre | C68: 297.0222581 | D68: 8.72 | E68: 7.66364 | F68: 14.49 | G68: 12.28880645 | H68: 15.92 | I68: 1 | J68: 1.7886 | K68: 1.4722 | L68: 8.2794 | M68: 1888.46 | N68: 1136.8043 | O68: 17.9375 | P68: 102.5843 | Q68: 9.4271 | R68: 1 | S68: 0.989105987
A69: 2000 | B69: Enero | C69: 298.7364516 | D69: 8.72 | E69: 7.87332 | F69: 14.54 | G69: 12.34977097 | H69: 15.98 | I69: 1 | J69: 1.802 | K69: 1.4486 | L69: 8.2792 | M69: 1923.57 | N69: 1130.99 | O69: 18.5376 | P69: 105.296 | Q69: 9.4935 | R69: 1 | S69: 0.986490019
B70: Febrero | C70: 300.4144828 | D70: 8.72 | E70: 7.78135 | F70: 14.61 | G70: 12.40880345 | H70: 16.05 | I70: 1 | J70: 1.7681 | K70: 1.4512 | L70: 8.2781 | M70: 1950.64 | N70: 1129.7455 | O70: 18.9944 | P70: 109.3885 | Q70: 9.4265 | R70: 1 | S70: 1.016855395
B71: Marzo | C71: 302.1435484 | D71: 8.72 | E71: 7.71708 | F71: 14.65 | G71: 12.46821517 | H71: 16.05 | I71: 1 | J71: 1.7469 | K71: 1.4608 | L71: 8.2786 | M71: 1956.25 | N71: 1116.3904 | O71: 19.9225 | P71: 106.3074 | Q71: 9.2886 | R71: 1 | S71: 1.036975433
B72: Abril | C72: 303.7516667 | D72: 8.72 | E72: 7.70609 | F72: 14.7 | G72: 12.52891333 | H72: 16.05 | I72: 1 | J72: 1.8063 | K72: 1.4689 | L72: 8.2793 | M72: 1986.77 | N72: 1110.32 | O72: 19.5216 | P72: 105.627 | Q72: 9.3937 | R72: 1 | S72: 1.056021965
B73: Mayo | C73: 305.2680645 | D73: 8.72 | E73: 7.69516 | F73: 14.76 | G73: 12.58989355 | H73: 16.05 | I73: 1 | J73: 1.8262 | K73: 1.4957 | L73: 8.2781 | M73: 2055.69 | N73: 1119.4864 | O73: 19.9427 | P73: 108.3205 | Q73: 9.5059 | R73: 1 | S73: 1.103791745
B74: Junio | C74: 307.0143333 | D74: 8.72 | E74: 7.724 | F74: 14.8 | G74: 12.65117333 | H74: 16.05 | I74: 1 | J74: 1.7996 | K74: 1.477 | L74: 8.2772 | M74: 2120.17 | N74: 1117.935 | O74: 19.824 | P74: 106.1255 | Q74: 9.8343 | R74: 1 | S74: 1.053544281
B75: Julio | C75: 308.7287097 | D75: 8.71 | E75: 7.74189 | F75: 14.8499 | G75: 12.71274839 | H75: 16.05 | I75: 1 | J75: 1.7744 | K75: 1.4778 | L75: 8.2794 | M75: 2161.34 | N75: 1115.075 | O75: 20.2654 | P75: 108.2115 | Q75: 9.4192 | R75: 1 | S75: 1.064218114
B76: Agosto | C76: 310.3445161 | D76: 8.71 | E76: 7.74016 | F76: 14.9107 | G76: 12.77564839 | H76: 16.05 | I76: 1 | J76: 1.823 | K76: 1.4828 | L76: 8.2796 | M76: 2187.38 | N76: 1114.467 | O76: 21.5975 | P76: 108.0804 | Q76: 9.2724 | R76: 1 | S76: 1.106124946
B77: Septiembre | C77: 311.9903333 | D77: 8.71 | E77: 7.79254 | F77: 14.9791 | G77: 12.83783333 | H77: 16.38 | I77: 1 | J77: 1.8433 | K77: 1.4864 | L77: 8.2785 | M77: 2213.76 | N77: 1117.57 | O77: 24.2546 | P77: 106.8375 | Q77: 9.3615 | R77: 1 | S77: 1.146639086
B78: Octubre | C78: 313.6677419 | D78: 8.71 | E78: 7.81044 | F78: 15.0326 | G78: 12.90032258 | H78: 16.45 | I78: 1 | J78: 1.9086 | K78: 1.5125 | L78: 8.2785 | M78: 2176.61 | N78: 1131.099 | O78: 24.4349 | P78: 108.4429 | Q78: 9.537 | R78: 1 | S78: 1.169373181
B79: Noviembre | C79: 315.3476667 | D79: 8.71 | E79: 7.7614 | F79: 15.09 | G79: 12.96312 | H79: 16.49 | I79: 1 | J79: 1.9592 | K79: 1.5426 | L79: 8.2774 | M79: 2136.63 | N79: 1156.5429 | O79: 23.874 | P79: 109.0095 | Q79: 9.5081 | R79: 1 | S79: 1.167697744
B80: Diciembre | C80: 317.0809677 | D80: 8.71 | E80: 7.72292 | F80: 15.1301 | G80: 13.02621935 | H80: 16.53 | I80: 1 | J80: 1.955 | K80: 1.5219 | L80: 8.2771 | M80: 2186.21 | N80: 1216.935 | O80: 22.8792 | P80: 112.209 | Q80: 9.4673 | R80: 1 | S80: 1.114434603
A81: 2001 | B81: Enero | C81: 318.6270968 | D81: 8.75 | E81: 7.79306 | F81: 15.1461 | G81: 13.09075161 | H81: 16.62 | I81: 1 | J81: 1.9707 | K81: 1.5032 | L81: 8.2776 | M81: 2241.4 | N81: 1272.6343 | O81: 23.4207 | P81: 116.6719 | Q81: 9.7688 | R81: 1 | S81: 1.065777666
B82: Febrero | C82: 320.2896429 | D82: 8.75 | E82: 7.72851 | F82: 15.1992 | G82: 13.15255 | H82: 16.66 | I82: 1 | J82: 2.0448 | K82: 1.5216 | L82: 8.2771 | M82: 2243.42 | N82: 1252.8526 | O82: 23.4455 | P82: 116.2337 | Q82: 9.7108 | R82: 1 | S82: 1.084945834
B83: Marzo | C83: 321.983871 | D83: 8.75 | E83: 7.69248 | F83: 15.2479 | G83: 13.21463548 | H83: 16.66 | I83: 1 | J83: 2.1612 | K83: 1.5587 | L83: 8.2775 | M83: 2278.78 | N83: 1291.405 | O83: 23.6632 | P83: 121.505 | Q83: 9.599 | R83: 1 | S83: 1.099477418
B84: Abril | C84: 323.5533333 | D84: 8.75 | E84: 7.73824 | F84: 15.31 | G84: 13.27913667 | H84: 16.66 | I84: 1 | J84: 2.1843 | K84: 1.5578 | L84: 8.2771 | M84: 2323.1 | N84: 1327.7571 | O84: 23.3955 | P84: 123.771 | Q84: 9.3276 | R84: 1 | S84: 1.121076233
B85: Mayo | C85: 325.1493548 | D85: 8.75 | E85: 7.76021 | F85: 15.37 | G85: 13.34395161 | H85: 16.66 | I85: 1 | J85: 2.3596 | K85: 1.5411 | L85: 8.277 | M85: 2346.93 | N85: 1298.8955 | O85: 23.3644 | P85: 121.7682 | Q85: 9.1475 | R85: 1 | S85: 1.143950105
B86: Junio | C86: 326.88 | D86: 8.75 | E86: 7.7891 | F86: 15.43 | G86: 13.40908833 | H86: 16.66 | I86: 1 | J86: 2.3045 | K86: 1.5245 | L86: 8.277 | M86: 2305.66 | N86: 1295.0476 | O86: 23.8204 | P86: 122.351 | Q86: 9.0881 | R86: 1 | S86: 1.172103469
B87: Julio | C87: 328.8070968 | D87: 8.75 | E87: 7.79042 | F87: 15.49 | G87: 13.47453226 | H87: 16.66 | I87: 1 | J87: 2.4309 | K87: 1.5308 | L87: 8.2769 | M87: 2304.28 | N87: 1305.2381 | O87: 24.0899 | P87: 124.4981 | Q87: 9.1682 | R87: 1 | S87: 1.161893608
B88: Agosto | C88: 330.7993548 | D88: 8.75 | E88: 7.8394 | F88: 15.52 | G88: 13.54137742 | H88: 16.66 | I88: 1 | J88: 2.5513 | K88: 1.5399 | L88: 8.277 | M88: 2288.9 | N88: 1285.6522 | O88: 24.5618 | P88: 121.367 | Q88: 9.1332 | R88: 1 | S88: 1.110515135
B89: Septiembre | C89: 332.9223333 | D89: 8.75 | E89: 7.94337 | F89: 15.59 | G89: 13.60747 | H89: 16.66 | I89: 1 | J89: 2.6709 | K89: 1.5679 | L89: 8.2768 | M89: 2328.23 | N89: 1293.8333 | O89: 24.9993 | P89: 118.6117 | Q89: 9.4253 | R89: 1 | S89: 1.097580384
B90: Octubre | C90: 335.1687097 | D90: 8.75 | E90: 8.09895 | F90: 15.68 | G90: 13.67389355 | H90: 16.66 | I90: 1 | J90: 2.7067 | K90: 1.5717 | L90: 8.2768 | M90: 2320.65 | N90: 1302.3636 | O90: 25.6969 | P90: 121.4536 | Q90: 9.3391 | R90: 1 | S90: 1.10391725
B91: Noviembre | C91: 337.7323333 | D91: 8.75 | E91: 8.07323 | F91: 15.8 | G91: 13.74063333 | H91: 16.76 | I91: 1 | J91: 2.5283 | K91: 1.5922 | L91: 8.2769 | M91: 2310.47 | N91: 1282.1 | O91: 26.5209 | P91: 122.4055 | Q91: 9.225 | R91: 1 | S91: 1.125734401
B92: Diciembre | C92: 340.3132258 | D92: 8.75 | E92: 7.94645 | F92: 15.88 | G92: 13.80771613 | H92: 16.97 | I92: 1 | J92: 2.32 | K92: 1.5788 | L92: 8.2764 | M92: 2306.9 | N92: 1292.285 | O92: 26.1705 | P92: 127.5945 | Q92: 9.1574 | R92: 1 | S92: 1.120608894
A93: 2002 | B93: Enero | C93: 342.6709677 | D93: 8.75 | E93: 8.00503 | F93: 15.97 | G93: 13.8621 | H93: 17.05 | I93: 1 | J93: 2.4179 | K93: 1.5997 | L93: 8.2771 | M93: 2274.96 | N93: 1316.3381 | O93: 26.6329 | P93: 132.6833 | Q93: 9.1636 | R93: 1 | S93: 1.132136137
B94: Febrero | C94: 345.5242857 | D94: 8.75 | E94: 7.92902 | F94: 16.07 | G94: 13.9149 | H94: 17.15 | I94: 1 | J94: 2.3478 | K94: 1.5964 | L94: 8.2767 | M94: 2286.7 | N94: 1320.5526 | O94: 26.7524 | P94: 133.6426 | Q94: 9.105 | R94: 1 | S94: 1.149379048
B95: Marzo | C95: 348.5267742 | D95: 8.75 | E95: 7.90187 | F95: 16.15 | G95: 13.983 | H95: 17.15 | I95: 1 | J95: 2.3232 | K95: 1.5877 | L95: 8.2773 | M95: 2282.33 | N95: 1322.9048 | O95: 26.9262 | P95: 131.061 | Q95: 9.064 | R95: 1 | S95: 1.141813199
B96: Abril | C96: 351.335 | D96: 8.75 | E96: 7.81547 | F96: 16.23 | G96: 14.0527 | H96: 17.56 | I96: 1 | J96: 2.3621 | K96: 1.5815 | L96: 8.2772 | M96: 2263.11 | N96: 1318.0909 | O96: 26.663 | P96: 130.7718 | Q96: 9.1649 | R96: 1 | S96: 1.128868208
B97: Mayo | C97: 354.3854839 | D97: 8.75 | E97: 7.85872 | F97: 16.31 | G97: 14.1466 | H97: 17.56 | I97: 1 | J97: 2.5216 | K97: 1.5502 | L97: 8.277 | M97: 2310.24 | N97: 1262.2 | O97: 26.8032 | P97: 126.375 | Q97: 9.5099 | R97: 1 | S97: 1.090512541
B98: Junio | C98: 357.641 | D98: 8.75 | E98: 7.88929 | F98: 16.39 | G98: 14.2436 | H98: 17.56 | I98: 1 | J98: 2.844 | K98: 1.5318 | L98: 8.2767 | M98: 2364.25 | N98: 1219.695 | O98: 27.0976 | P98: 123.2905 | Q98: 9.7671 | R98: 1 | S98: 1.046638198
B99: Julio | C99: 360.86 | D99: 8.75 | E99: 7.84418 | F99: 16.47 | G99: 14.2648 | H99: 17.56 | I99: 1 | J99: 3.4281 | K99: 1.5456 | L99: 8.2768 | M99: 2506.72 | N99: 1179.9868 | O99: 27.9664 | P99: 117.8991 | Q99: 9.7792 | R99: 1 | S99: 1.007878587
B100: Agosto | C100: 363.8735484 | D100: 8.75 | E100: 7.75982 | F100: 16.55 | G100: 14.3295 | H100: 17.56 | I100: 1 | J100: 3.0219 | K100: 1.5694 | L100: 8.2767 | M100: 2647.22 | N100: 1197.5091 | O100: 28.6704 | P100: 118.9927 | Q100: 9.8389 | R100: 1 | S100: 1.022746914
B101: Septiembre | C101: 367.0563333 | D101: 8.75 | E101: 7.77145 | F101: 16.64 | G101: 14.4255 | H101: 17.56 | I101: 1 | J101: 3.8945 | K101: 1.5761 | L101: 8.277 | M101: 2751.23 | N101: 1211.605 | O101: 29.0614 | P101: 121.078 | Q101: 10.0708 | R101: 1 | S101: 1.019581054
B102: Octubre | C102: 370.2774194 | D102: 8.75 | E102: 7.71726 | F102: 16.73 | G102: 14.4897 | H102: 17.56 | I102: 1 | J102: 3.6446 | K102: 1.578 | L102: 8.2772 | M102: 2827.86 | N102: 1240.1909 | O102: 31.0806 | P102: 123.9077 | Q102: 10.0941 | R102: 1 | S102: 1.01924
B103: Noviembre | C103: 373.5763333 | D103: 8.75 | E103: 7.60066 | F103: 16.8 | G103: 14.551 | H103: 17.56 | I103: 1 | J103: 3.6361 | K103: 1.5715 | L103: 8.2772 | M103: 2726.66 | N103: 1210.2 | O103: 36.1445 | P103: 121.6079 | Q103: 10.1952 | R103: 1 | S103: 0.998204
B104: Diciembre | C104: 376.9258065 | D104: 8.75 | E104: 7.6367 | F104: 16.88 | G104: 14.6049 | H104: 17.56 | I104: 1 | J104: 3.5329 | K104: 1.5592 | L104: 8.2777 | M104: 2814.89 | N104: 1206.6143 | O104: 37.2054 | P104: 121.8929 | Q104: 10.2251 | R104: 1 | S104: 0.981194
A105: 2003 | B105: Enero | C105: 379.8832258 | D105: 8.75 | E105: 7.78465 | F105: 16.96 | G105: 14.6928 | H105: 17.56 | I105: 1 | J105: 3.4375 | K105: 1.5414 | L105: 8.2775 | M105: 2913 | N105: 1176.4524 | O105: 39.4296 | P105: 118.8133 | Q105: 10.6223 | R105: 1 | S105: 0.9416
B106: Febrero | C106: 383.2114286 | D106: 8.75 | E106: 7.81442 | F106: 17.04 | G106: 14.7624 | H106: 18.17 | I106: 1 | J106: 3.5955 | K106: 1.5121 | L106: 8.278 | M106: 2951.86 | N106: 1190.3684 | O106: 45.2528 | P106: 119.3379 | Q106: 10.9447 | R106: 1 | S106: 0.927264
B107: Marzo | C107: 386.5945161 | D107: 8.75 | E107: 7.89245 | F107: 17.11 | G107: 14.8422 | H107: 22.72 | I107: 1 | J107: 3.4567 | K107: 1.4761 | L107: 8.2773 | M107: 2959.01 | N107: 1237.2 | O107: 43.9104 | P107: 118.6871 | Q107: 10.9053 | R107: 1 | S107: 0.926369
B108: Abril | C108: 389.8286667 | D108: 8.75 | E108: 7.89457 | F108: 17.18 | G108: 14.9195 | H108: 23.78 | I108: 1 | J108: 3.109 | K108: 1.4582 | L108: 8.2772 | M108: 2926.62 | N108: 1231.1045 | O108: 42.8068 | P108: 119.895 | Q108: 10.5887 | R108: 1 | S108: 0.920756
B109: Mayo | C109: 392.9264516 | D109: 8.75 | E109: 7.89054 | F109: 17.23 | G109: 14.9912 | H109: 25.6 | I109: 1 | J109: 2.9517 | K109: 1.384 | L109: 8.2769 | M109: 2858.94 | N109: 1201.2333 | O109: 41.4992 | P109: 117.3681 | Q109: 10.2528 | R109: 1 | S109: 0.865632
B110: Junio | C110: 396.3583333 | D110: 8.75 | E110: 7.90827 | F110: 17.3 | G110: 15.0721 | H110: 28.89 | I110: 1 | J110: 2.8887 | K110: 1.3525 | L110: 8.2771 | M110: 2826.95 | N110: 1194.1429 | O110: 41.5904 | P110: 118.329 | Q110: 10.5028 | R110: 1 | S110: 0.856689
B111: Julio | C111: 399.8593548 | D111: 8.75 | E111: 7.90744 | F111: 17.38 | G111: 15.1853 | H111: 34.45 | I111: 1 | J111: 2.8833 | K111: 1.3821 | L111: 8.2773 | M111: 2858.82 | N111: 1181.1636 | O111: 43.1851 | P111: 118.6959 | Q111: 10.4581 | R111: 1 | S111: 0.879984
B112: Agosto | C112: 403.0351613 | D112: 8.75 | E112: 7.91057 | F112: 17.45 | G112: 15.1651 | H112: 33.72 | I112: 1 | J112: 3.0053 | K112: 1.3963 | L112: 8.277 | M112: 2867.29 | N112: 1178.6 | O112: 41.5286 | P112: 118.6624 | Q112: 10.783 | R112: 1 | S112: 0.896693
B113: Septiembre | C113: 406.2573333 | D113: 8.75 | E113: 7.97079 | F113: 17.53 | G113: 15.3093 | H113: 31.7 | I113: 1 | J113: 2.9204 | K113: 1.3634 | L113: 8.2772 | M113: 2840.08 | N113: 1165.4048 | O113: 41.598 | P113: 114.8 | Q113: 10.9229 | R113: 1 | S113: 0.887894
B114: Octubre | C114: 409.6496774 | D114: 8.75 | E114: 8.0822 | F114: 17.6 | G114: 15.4447 | H114: 34.91 | I114: 1 | J114: 2.8628 | K114: 1.3221 | L114: 8.2768 | M114: 2876.2 | N114: 1169.3409 | O114: 41.8573 | P114: 109.4955 | Q114: 11.1796 | R114: 1 | S114: 0.854156
B115: Noviembre | C115: 413.166 | D115: 8.75 | E115: 8.0664 | F115: 17.67 | G115: 15.4718 | H115: 39.74 | I115: 1 | J115: 2.915 | K115: 1.313 | L115: 8.2769 | M115: 2844.55 | N115: 1186.3889 | O115: 42.5846 | P115: 109.1778 | Q115: 11.1494 | R115: 1 | S115: 0.855
B116: Diciembre | C116: 416.6296774 | D116: 8.75 | E116: 8.01746 | F116: 17.73 | G116: 15.5284 | H116: 37.44 | I116: 1 | J116: 2.9255 | K116: 1.3128 | L116: 8.277 | M116: 2807.2 | N116: 1192.3364 | O116: 42.9347 | P116: 107.7377 | Q116: 11.2515 | R116: 1 | S116: 0.813343
A117: 2004 | B117: Enero | C117: 419.3096774 | D117: 8.75 | E117: 8.09869 | F117: 17.78 | G117: 15.6318 | H117: 46.09 | I117: 1 | J117: 2.8533 | K117: 1.2958 | L117: 8.277 | M117: 2749.14 | N117: 1183.345 | O117: 43.4428 | P117: 106.2685 | Q117: 10.9203 | R117: 1 | S117: 0.791328
B118: Febrero | C118: 422.45 | D118: 8.75 | E118: 8.09348 | F118: 17.86 | G118: 15.6826 | H118: 49.23 | I118: 1 | J118: 2.9342 | K118: 1.3299 | L118: 8.2771 | M118: 2717.94 | N118: 1167.5316 | O118: 43.9299 | P118: 106.7079 | Q118: 11.0319 | R118: 1 | S118: 0.791199
B119: Marzo | C119: 425.6667742 | D119: 8.75 | E119: 8.08826 | F119: 17.94 | G119: 15.7525 | H119: 46.52 | I119: 1 | J119: 2.9067 | K119: 1.3286 | L119: 8.2771 | M119: 2670.8 | N119: 1166.287 | O119: 40.6702 | P119: 108.5157 | Q119: 11.019 | R119: 1 | S119: 0.815652
B120: Abril | C120: 428.7176667 | D120: 8.75 | E120: 8.03469 | F120: 18.0243 | G120: 15.8154 | H120: 44.35 | I120: 1 | J120: 2.9079 | K120: 1.342 | L120: 8.2769 | M120: 2639.6 | N120: 1152.8636 | O120: 38.1618 | P120: 107.6564 | Q120: 11.2701 | R120: 1 | S120: 0.834161
B121: Mayo | C121: 431.8922581 | D121: 8.75 | E121: 7.97367 | F121: 18.0993 | G121: 15.89065072 | H121: 46.92 | I121: 1 | J121: 3.1023 | K121: 1.3789 | L121: 8.2771 | M121: 2719.43 | N121: 1177.875 | O121: 37.3971 | P121: 112.196 | Q121: 11.5199 | R121: 1 | S121: 0.833433
B122: Junio | C122: 435.101 | D122: 8.75 | E122: 7.9268 | F122: 18.1691 | G122: 15.9534 | H122: 48.12 | I122: 1 | J122: 3.1293 | K122: 1.3578 | L122: 8.2767 | M122: 2716.56 | N122: 1159.0227 | O122: 36.3213 | P122: 109.4336 | Q122: 11.3926 | R122: 1 | S122: 0.823351
B123: Julio | C123: 438.3590323 | D123: 8.75 | E123: 7.88227 | F123: 18.241 | G123: 15.98695896 | H123: 44.84 | I123: 1 | J123: 3.0384 | K123: 1.3225 | L123: 8.2767 | M123: 2653.32 | N123: 1158.7 | O123: 36.0411 | P123: 109.4871 | Q123: 11.4678 | R123: 1 | S123: 0.815356
B124: Agosto | C124: 441.6951613 | D124: 8.75 | E124: 7.89726 | F124: 18.33 | G124: 16.03618052 | H124: 41.25 | I124: 1 | J124: 3.0018 | K124: 1.3127 | L124: 8.2768 | M124: 2598.59 | N124: 1158.0318 | O124: 36.2618 | P124: 110.2336 | Q124: 11.3953 | R124: 1 | S124: 0.820331
B125: Septiembre | C125: 445.2136667 | D125: 8.75 | E125: 7.88727 | F125: 18.411 | G125: 16.05154237 | H125: 36.95 | I125: 1 | J125: 2.8914 | K125: 1.2881 | L125: 8.2767 | M125: 2552.78 | N125: 1148.719 | O125: 36.6082 | P125: 110.0914 | Q125: 11.487 | R125: 1 | S125: 0.8181
B126: Octubre | C126: 448.8583871 | D126: 8.75 | E126: 7.81805 | F126: 18.4867 | G126: 16.08446956 | H126: 32.27 | I126: 1 | J126: 2.852 | K126: 1.2469 | L126: 8.2765 | M126: 2580.7 | N126: 1141.57 | O126: 36.7766 | P126: 108.7835 | Q126: 11.4037 | R126: 1 | S126: 0.799695
B127: Noviembre | C127: 452.4416667 | D127: 8.75 | E127: 7.75895 | F127: 18.54 | G127: 16.10736806 | H127: 29.56 | I127: 1 | J127: 2.7877 | K127: 1.1968 | L127: 8.2765 | M127: 2530.19 | N127: 1086.435 | O127: 37.1746 | P127: 104.699 | Q127: 11.371 | R127: 1 | S127: 0.769676
B128: Diciembre | C128: 456.0416129 | D128: 8.75 | E128: 7.76585 | F128: 18.59 | G128: 16.13547747 | H128: 28.86 | I128: 1 | J128: 2.715 | K128: 1.2189 | L128: 8.2765 | M128: 2411.37 | N128: 1050.3739 | O128: 37.4835 | P128: 103.8104 | Q128: 11.2012 | R128: 1 | S128: 0.745974
A129: 2005 | B129: Enero | C129: 459.5196774 | D129: 8.75 | E129: 7.75159 | F129: 18.66 | G129: 16.2872 | H129: 29.8356 | I129: 1 | J129: 2.6895 | K129: 1.2248 | L129: 8.2765 | M129: 2362.96 | N129: 1037.9825 | O129: 37.6008 | P129: 103.341 | Q129: 11.2627 | R129: 1 | S129: 0.762113
B130: Febrero | C130: 462.8046429 | D130: 8.75 | E130: 7.70642 | F130: 18.73 | G130: 16.4573 | H130: 28.8475 | I130: 1 | J130: 2.5971 | K130: 1.2401 | L130: 8.2765 | M130: 2340.49 | N130: 1023.1105 | O130: 37.7423 | P130: 104.9442 | Q130: 11.1373 | R130: 1 | S130: 0.768564
B131: Marzo | C131: 465.9141935 | D131: 8.75 | E131: 7.60374 | F131: 18.77 | G131: 16.5247 | H131: 28.2981 | I131: 1 | J131: 2.7061 | K131: 1.216 | L131: 8.2765 | M131: 2353.71 | N131: 1007.7761 | O131: 38.079 | P131: 105.2543 | Q131: 11.1552 | R131: 1 | S131: 0.7585
B132: Abril | C132: 468.8153333 | D132: 8.75 | E132: 7.59479 | F132: 18.81 | G132: 16.5694 | H132: 28.2471 | I132: 1 | J132: 2.576 | K132: 1.2359 | L132: 8.2765 | M132: 2350.01 | N132: 1010.0667 | O132: 38.6212 | P132: 107.1938 | Q132: 11.1121 | R132: 1 | S132: 0.772678
B133: Mayo | C133: 471.983871 | D133: 8.75 | E133: 7.58225 | F133: 18.85 | G133: 16.6574 | H133: 28.699 | I133: 1 | J133: 2.4554 | K133: 1.2555 | L133: 8.2765 | M133: 2339.22 | N133: 1001.8386 | O133: 38.6551 | P133: 106.5952 | Q133: 10.9764 | R133: 1 | S133: 0.788075
B134: Junio | C134: 475.28 | D134: 8.75 | E134: 7.60466 | F134: 18.86 | G134: 16.6816 | H134: 28.8986 | I134: 1 | J134: 2.4148 | K134: 1.2402 | L134: 8.2765 | M134: 2331.79 | N134: 1012.46 | O134: 39.1768 | P134: 108.7473 | Q134: 10.8197 | R134: 1 | S134: 0.822727
B135: Julio | C135: 478.4996774 | D135: 8.75 | E135: 7.58016 | F135: 18.87 | G135: 16.8089 | H135: 28.927 | I135: 1 | J135: 2.3702 | K135: 1.2229 | L135: 8.2264 | M135: 2323.38 | N135: 1036.56 | O135: 41.5448 | P135: 111.9535 | Q135: 10.6724 | R135: 1 | S135: 0.830835
B136: Agosto | C136: 481.4567742 | D136: 8.75 | E136: 7.5793 | F136: 18.87 | G136: 16.8875 | H136: 29.001 | I136: 1 | J136: 2.3609 | K136: 1.2043 | L136: 8.1017 | M136: 2306.19 | N136: 1021.6804 | O136: 42.5957 | P136: 110.6065 | Q136: 10.6862 | R136: 1 | S136: 0.813361
B137: Septiembre | C137: 484.562 | D137: 8.75 | E137: 7.61243 | F137: 18.88 | G137: 16.9521 | H137: 30.4228 | I137: 1 | J137: 2.2949 | K137: 1.1777 | L137: 8.0919 | M137: 2294.52 | N137: 1029.8433 | O137: 42.3862 | P137: 111.239 | Q137: 10.7858 | R137: 1 | S137: 0.816512
B138: Octubre | C138: 487.7196774 | D138: 8.75 | E138: 7.66584 | F138: 18.89 | G138: 17.0094 | H138: 32.4065 | I138: 1 | J138: 2.2536 | K138: 1.1774 | L138: 8.0895 | M138: 2292.55 | N138: 1045.8775 | O138: 42.9885 | P138: 114.8695 | Q138: 10.8354 | R138: 1 | S138: 0.831505
B139: Noviembre | C139: 490.9143333 | D139: 8.75 | E139: 7.60081 | F139: 18.9 | G139: 17.0805 | H139: 33.2516 | I139: 1 | J139: 2.2109 | K139: 1.1815 | L139: 8.084 | M139: 2279.85 | N139: 1040.76 | O139: 43.0084 | P139: 118.454 | Q139: 10.6715 | R139: 1 | S139: 0.848452
B140: Diciembre | C140: 494.1467742 | D140: 8.75 | E140: 7.60234 | F140: 18.9 | G140: 17.1058 | H140: 33.1227 | I140: 1 | J140: 2.2809 | K140: 1.1615 | L140: 8.0755 | M140: 2278.91 | N140: 1022.381 | O140: 42.9838 | P140: 118.4624 | Q140: 10.6266 | R140: 1 | S140: 0.843167
A141: 2006 | B141: Enero | C141: 497.2870968 | D141: 8.75 | E141: 7.61146 | F141: 18.9 | G141: 17.2182 | H141: 34.5649 | I141: 1 | J141: 2.2666 | K141: 1.1572 | L141: 8.0654 | M141: 2273.66 | N141: 981.435 | O141: 43.3674 | P141: 115.4765 | Q141: 10.5422 | R141: 1 | S141: 0.82627
B142: Febrero | C142: 500.2321429 | D142: 8.75 | E142: 7.59895 | F142: 18.9 | G142: 17.309 | H142: 34.1737 | I142: 1 | J142: 2.1587 | K142: 1.1489 | L142: 8.0512 | M142: 2256.24 | N142: 969.8447 | O142: 43.0526 | P142: 117.8605 | Q142: 10.4842 | R142: 1 | S142: 0.837593
B143: Marzo | C143: 502.9870968 | D143: 8.75 | E143: 7.60908 | F143: 18.9 | G143: 17.36209876 | H143: 32.5611 | I143: 1 | J143: 2.1528 | K143: 1.1573 | L143: 8.035 | M143: 2262.36 | N143: 974.7109 | O143: 42.689 | P143: 117.2778 | Q143: 10.7493 | R143: 1 | S143: 0.83141
B144: Abril | C144: 505.5616667 | D144: 8.75 | E144: 7.58411 | F144: 18.9 | G144: 17.4192 | H144: 32.1063 | I144: 1 | J144: 2.1281 | K144: 1.1441 | L144: 8.0143 | M144: 2334.29 | N144: 952.595 | O144: 42.1459 | P144: 117.0695 | Q144: 11.0489 | R144: 1 | S144: 0.814902
B145: Mayo | C145: 507.6303226 | D145: 8.75 | E145: 7.5749 | F145: 18.9 | G145: 17.4924 | H145: 32.4925 | I145: 1 | J145: 2.1697 | K145: 1.11 | L145: 8.0131 | M145: 2417.99 | N145: 940.8168 | O145: 39.4874 | P145: 111.7305 | Q145: 11.0908 | R145: 1 | S145: 0.783345
B146: Junio | C146: 510.3943333 | D146: 8.75 | E146: 7.60124 | F146: 18.9 | G146: 17.59090004 | H146: 32.7652 | I146: 1 | J146: 2.2493 | K146: 1.1137 | L146: 8.0042 | M146: 2542.24 | N146: 954.45 | O146: 39.5805 | P146: 114.625 | Q146: 11.3934 | R146: 1 | S146: 0.789929
B147: Julio | C147: 513.2693548 | D147: 8.75 | E147: 7.57412 | F147: 18.9 | G147: 17.62906868 | H147: 32.7544 | I147: 1 | J147: 2.1883 | K147: 1.1294 | L147: 7.9897 | M147: 2511.74 | N147: 950.81 | O147: 39.901 | P147: 115.767 | Q147: 10.983 | R147: 1 | S147: 0.788641
B148: Agosto | C148: 515.8822581 | D148: 8.75 | E148: 7.57383 | F148: 18.9 | G148: 17.7196 | H148: 32.6344 | I148: 1 | J148: 2.1553 | K148: 1.1182 | L148: 7.9722 | M148: 2389.65 | N148: 960.9522 | O148: 39.103 | P148: 115.9243 | Q148: 10.8735 | R148: 1 | S148: 0.780622
B149: Septiembre | C149: 518.4986667 | D149: 8.75 | E149: 7.59764 | F149: 18.9 | G149: 17.74859545 | H149: 32.9495 | I149: 1 | J149: 2.1679 | K149: 1.1161 | L149: 7.9334 | M149: 2398.88 | N149: 952.29 | O149: 39.0757 | P149: 117.2145 | Q149: 10.9888 | R149: 1 | S149: 0.785722
B150: Octubre | C150: 518.0187097 | D150: 8.75 | E150: 7.60496 | F150: 18.9 | G150: 17.8292 | H150: 33.4737 | I150: 1 | J150: 2.1458 | K150: 1.1285 | L150: 7.9018 | M150: 2364.29 | N150: 952.6429 | O150: 39.1024 | P150: 118.609 | Q150: 10.8854 | R150: 1 | S150: 0.792652
B151: Noviembre | C151: 514.7626667 | D151: 8.75 | E151: 7.59913 | F151: 18.9 | G151: 17.91546185 | H151: 33.559 | I151: 1 | J151: 2.1555 | K151: 1.1359 | L151: 7.8622 | M151: 2290.46 | N151: 935.4143 | O151: 39.0829 | P151: 117.3205 | Q151: 10.9133 | R151: 1 | S151: 0.775936
B152: Diciembre | C152: 515.1909677 | D152: 8.75 | E152: 7.59505 | F152: 18.9 | G152: 17.9846 | H152: 33.0856 | I152: 1 | J152: 2.1476 | K152: 1.1532 | L152: 7.8219 | M152: 2261.335263 | N152: 924.98 | O152: 38.3144 | P152: 117.322 | Q152: 10.8546 | R152: 1 | S152: 0.757527
A153: 2007 | B153: Enero | C153: 516.1519355 | D153: 8.75 | E153: 7.66913 | F153: 18.9 | G153: 18.06 | H153: 33.7012 | I153: 1 | J153: 2.1376 | K153: 1.1763 | L153: 7.7876 | M153: 2236.829312 | N153: 936.7619 | O153: 38.3987 | P153: 120.4471 | Q153: 10.9559 | R153: 1 | S153: 0.769334
B154: Febrero | C154: 517.1875 | D154: 8.75 | E154: 7.6863 | F154: 18.9 | G154: 18.1479 | H154: 33.3618 | I154: 1 | J154: 2.0939 | K154: 1.171 | L154: 7.7502 | M154: 2226.745692 | N154: 936.9 | O154: 38.4593 | P154: 120.5047 | Q154: 10.9951 | R154: 1 | S154: 0.764384
B155: Marzo | C155: 516.9158065 | D155: 8.75 | E155: 7.68327 | F155: 18.9 | G155: 18.1942535 | H155: 32.7913 | I155: 1 | J155: 2.0883 | K155: 1.1682 | L155: 7.7369 | M155: 2200.36 | N155: 942.8841 | O155: 37.9979 | P155: 117.26 | Q155: 11.1144 | R155: 1 | S155: 0.754985
B156: Abril | C156: 516.734 | D156: 8.75 | E156: 7.65258 | F156: 18.9 | G156: 18.21900657 | H156: 32.2281 | I156: 1 | J156: 2.0302 | K156: 1.135 | L156: 7.7247 | M156: 2141.93 | N156: 930.6905 | O156: 36.9313 | P156: 118.9324 | Q156: 10.9802 | R156: 1 | S156: 0.740076
B157: Mayo | C157: 516.7677419 | D157: 8.75 | E157: 7.63443 | F157: 18.9 | G157: 18.25888113 | H157: 32.1398 | I157: 1 | J157: 1.9836 | K157: 1.0951 | L157: 7.6773 | M157: 2004.673 | N157: 927.5636 | O157: 36.8584 | P157: 120.7732 | Q157: 10.8221 | R157: 1 | S157: 0.739935
B158: Junio | C158: 516.6763333 | D158: 8.75 | E158: 7.66962 | F158: 18.9 | G158: 18.2928 | H158: 32.4154 | I158: 1 | J158: 1.9323 | K158: 1.0651 | L158: 7.6333 | M158: 1920.918 | N158: 927.8667 | O158: 36.2805 | P158: 122.6886 | Q158: 10.833 | R158: 1 | S158: 0.745139
B159: Julio | C159: 516.5954839 | D159: 8.75 | E159: 7.67015 | F159: 18.9 | G159: 18.3649 | H159: 32.9927 | I159: 1 | J159: 1.8812 | K159: 1.0502 | L159: 7.5757 | M159: 1952.1725 | N159: 918.119 | O159: 35.6152 | P159: 121.4148 | Q159: 10.8146 | R159: 1 | S159: 0.728812
B160: Agosto | C160: 516.5754839 | D160: 8.75 | E160: 7.65421 | F160: 18.9 | G160: 18.5101 | H160: 32.9035 | I160: 1 | J160: 1.962 | K160: 1.0579 | L160: 7.5734 | M160: 2061.568 | N160: 934.4848 | O160: 35.6897 | P160: 116.7335 | Q160: 11.0438 | R160: 1 | S160: 0.733945
B161: Septiembre | C161: 516.3666667 | D161: 8.75 | E161: 7.690245151 | F161: 18.9 | G161: 18.5948 | H161: 33.3062 | I161: 1 | J161: 1.9023 | K161: 1.0267 | L161: 7.521 | M161: 2109.29281 | N161: 928.595 | O161: 36.0888 | P161: 115.0435 | Q161: 11.0319 | R161: 1 | S161: 0.719036
B162: Octubre | C162: 516.5822581 | D162: 8.75 | E162: 7.71088 | F162: 18.9 | G162: 18.7143 | H162: 33.4551 | I162: 1 | J162: 1.7987 | K162: 0.9754 | L162: 7.5019 | M162: 1998.37865 | N162: 914.9435 | O162: 36.216 | P162: 115.8661 | Q162: 10.8214 | R162: 1 | S162: 0.702626
B163: Noviembre | C163: 511.2913333 | D163: 8.75 | E163: 7.629872428 | F163: 18.9 | G163: 18.793 | H163: 33.4079 | I163: 1 | J163: 1.7669 | K163: 0.9672 | L163: 7.421 | M163: 2044.93333 | N163: 918.8095 | O163: 36.7643 | P163: 111.0729 | Q163: 10.8811 | R163: 1 | S163: 0.681164
B164: Diciembre | C164: 495.7548387 | D164: 8.75 | E164: 7.614519314 | F164: 18.9 | G164: 18.8406 | H164: 33.5189 | I164: 1 | J164: 1.7852 | K164: 1.0021 | L164: 7.3682 | M164: 2015.04303 | N164: 931.095 | O164: 37.0585 | P164: 112.449 | Q164: 10.8463 | R164: 1 | S164: 0.687273
A165: 2008 | B165: Enero | C165: 494.6080645 | D165: 8.75 | E165: 7.695000353 | F165: 18.8951 | G165: 18.9028871 | H165: 33.757 | I165: 1 | J165: 1.771 | K165: 1.0099 | L165: 7.2405 | M165: 1984.306271 | N165: 942.0571 | O165: 37.1911 | P165: 107.8181 | Q165: 10.9057 | R165: 1 | S165: 0.67947
B166: Febrero | C166: 493.5082759 | D166: 8.75 | E166: 7.713841629 | F166: 18.8951 | G166: 18.99551702 | H166: 33.8344 | I166: 1 | J166: 1.729 | K166: 0.9986 | L166: 7.1644 | M166: 1905.305172 | N166: 944.005 | O166: 37.6004 | P166: 107.03 | Q166: 10.7679 | R166: 1 | S166: 0.677845
B167: Marzo | C167: 492.3593548 | D167: 8.75 | E167: 7.628418063 | F167: 18.897 | G167: 19.06378869 | H167: 33.9169 | I167: 1 | J167: 1.709 | K167: 1.0029 | L167: 7.0722 | M167: 1842.826575 | N167: 981.7348 | O167: 38.2881 | P167: 100.7562 | Q167: 10.7328 | R167: 1 | S167: 0.64443
B168: Abril | C168: 491.277 | D168: 8.75 | E168: 7.530417114 | F168: 18.9036 | G168: 19.12489106 | H168: 34.0258 | I168: 1 | J168: 1.6863 | K168: 1.0137 | L168: 6.9997 | M168: 1793.286364 | N168: 986.8636 | O168: 38.6261 | P168: 102.6777 | Q168: 10.5146 | R168: 1 | S168: 0.634813
B169: Mayo | C169: 507.5548387 | D169: 8.75 | E169: 7.42408705 | F169: 18.91190952 | G169: 19.21389597 | H169: 34.0114 | I169: 1 | J169: 1.6585 | K169: 0.9993 | L169: 6.9725 | M169: 1775.645076 | N169: 1034.1333 | O169: 38.6801 | P169: 104.3595 | Q169: 10.4381 | R169: 1 | S169: 0.642524
B170: Junio | C170: 516.4616667 | D170: 8.75 | E170: 7.482083383 | F170: 18.89890952 | G170: 19.30172157 | H170: 34.1572 | I170: 1 | J170: 1.6179 | K170: 1.0166 | L170: 6.8993 | M170: 1731.661556 | N170: 1031.4857 | O170: 39.2399 | P170: 106.9152 | Q170: 10.3269 | R170: 1 | S170: 0.642637
B171: Julio | C171: 532.2603226 | D171: 8.75 | E171: 7.431765251 | F171: 18.89541304 | G171: 19.3756 | H171: 34.2736 | I171: 1 | J171: 1.59 | K171: 1.013 | L171: 6.8355 | M171: 1770.139071 | N171: 1015.0545 | O171: 39.6695 | P171: 106.8518 | Q171: 10.2094 | R171: 1 | S171: 0.634692
B172: Agosto | C172: 547.1509677 | D172: 8.75 | E172: 7.397198527 | F172: 18.8952 | G172: 19.47558358 | H172: 34.6753 | I172: 1 | J172: 1.6127 | K172: 1.0535 | L172: 6.8462 | M172: 1848.142324 | N172: 1046.1143 | O172: 39.8556 | P172: 109.3624 | Q172: 10.1154 | R172: 1 | S172: 0.668898
B173: Septiembre | C173: 548.974 | D173: 8.75 | E173: 7.450371104 | F173: 18.89512381 | G173: 19.43296112 | H173: 34.8317 | I173: 1 | J173: 1.8031 | K173: 1.0582 | L173: 6.8307 | M173: 2072.656352 | N173: 1134.8667 | O173: 40.0095 | P173: 106.5748 | Q173: 10.6633 | R173: 1 | S173: 0.696734
B174: Octubre | C174: 550.2519355 | D174: 8.75 | E174: 7.51294666 | F174: 18.89511905 | G174: 19.6469793 | H174: 34.99 | I174: 1 | J174: 2.181 | K174: 1.1847 | L174: 6.8358 | M174: 2286.977252 | N174: 1329.1877 | O174: 39.8173 | P174: 99.9659 | Q174: 12.6593 | R174: 1 | S174: 0.753716
B175: Noviembre | C175: 548.6533333 | D175: 8.75 | E175: 7.620865861 | F175: 18.895115 | G175: 19.73158772 | H175: 35.1941 | I175: 1 | J175: 2.2704 | K175: 1.2171 | L175: 6.8281 | M175: 2329.922068 | N175: 1398.7044 | O175: 40.1076 | P175: 96.9656 | Q175: 13.1186 | R175: 1 | S175: 0.78448
B176: Diciembre | C176: 544.4825806 | D176: 8.75 | E176: 7.689267775 | F176: 18.8951 | G176: 19.79588242 | H176: 35.2569 | I176: 1 | J176: 2.3954 | K176: 1.2337 | L176: 6.8539 | M176: 2243.669072 | N176: 1361.5727 | O176: 40.2059 | P176: 91.275 | Q176: 13.4167 | R176: 1 | S176: 0.740453
A177: 2009 | B177: Enero | C177: 551.3083871 | D177: 8.75 | E177: 7.845511406 | F177: 18.8951 | G177: 19.91604225 | H177: 35.3693 | I177: 1 | J177: 2.3079 | K177: 1.2248 | L177: 6.836 | M177: 2265.820814 | N177: 1354.3975 | O177: 40.1949 | P177: 90.1205 | Q177: 13.8839 | R177: 1 | S177: 0.755724
B178: Febrero | C178: 557.7839286 | D178: 8.75 | E178: 7.932446275 | F178: 18.8951 | G178: 19.99792655 | H178: 35.558 | I178: 1 | J178: 2.323 | K178: 1.2452 | L178: 6.8363 | M178: 2511.68 | N178: 1439.5842 | O178: 40.4555 | P178: 92.9158 | Q178: 14.6066 | R178: 1 | S178: 0.782243
B179: Marzo | C179: 560.7116129 | D179: 8.75 | E179: 8.063584331 | F179: 18.8951 | G179: 20.0287 | H179: 35.6669 | I179: 1 | J179: 2.3161 | K179: 1.2645 | L179: 6.836 | M179: 2471.706805 | N179: 1449.6159 | O179: 40.5829 | P179: 97.855 | Q179: 14.6466 | R179: 1 | S179: 0.766963
B180: Abril | C180: 565.0963333 | D180: 8.75 | E180: 8.079561435 | F180: 18.8951 | G180: 20.00655499 | H180: 35.8256 | I180: 1 | J180: 2.2027 | K180: 1.2242 | L180: 6.8306 | M180: 2375.038058 | N180: 1332.125 | O180: 40.7511 | P180: 98.92 | Q180: 13.4035 | R180: 1 | S180: 0.757793
B181: Mayo | C181: 569.7370968 | D181: 8.75 | E181: 8.08862782 | F181: 18.8951 | G181: 20.16488068 | H181: 35.9483 | I181: 1 | J181: 2.0689 | K181: 1.1528 | L181: 6.8235 | M181: 2227.246872 | N181: 1254.345 | O181: 40.8097 | P181: 96.6445 | Q181: 13.1895 | R181: 1 | S181: 0.733808
B182: Junio | C182: 571.894 | D182: 8.75 | E182: 8.119083535 | F182: 18.8951 | G182: 20.27352226 | H182: 35.9232 | I182: 1 | J182: 1.9586 | K182: 1.1264 | L182: 6.8334 | M182: 2090.041057 | N182: 1259.2932 | O182: 40.9695 | P182: 96.6145 | Q182: 13.3414 | R182: 1 | S182: 0.713503
B183: Julio | C183: 577.1987097 | D183: 8.75 | E183: 8.165131655 | F183: 18.8951 | G183: 20.37069852 | H183: 35.9799 | I183: 1 | J183: 1.9328 | K183: 1.1229 | L183: 6.8317 | M183: 2049.352106 | N183: 1259.6739 | O183: 41.2803 | P183: 94.367 | Q183: 13.3623 | R183: 1 | S183: 0.709885
B184: Agosto | C184: 582.2083871 | D184: 8.75 | E184: 8.249371139 | F184: 18.8951 | G184: 20.49532671 | H184: 36.0269 | I184: 1 | J184: 1.8453 | K184: 1.0872 | L184: 6.8323 | M184: 2016.95569 | N184: 1238.9952 | O184: 41.4541 | P184: 94.8971 | Q184: 13.0063 | R184: 1 | S184: 0.7009
B185: Septiembre | C185: 582.1556667 | D185: 8.75 | E185: 8.303127853 | F185: 18.89511 | G185: 20.57807166 | H185: 36.0559 | I185: 1 | J185: 1.8187 | K185: 1.0816 | L185: 6.8277 | M185: 1973.81 | N185: 1211.8643 | O185: 41.5617 | P185: 91.2748 | Q185: 13.406 | R185: 1 | S185: 0.686827
B186: Octubre | C186: 577.4912903 | D186: 8.75 | E186: 8.335664967 | F186: 18.89511 | G186: 20.65787076 | H186: 36.0949 | I186: 1 | J186: 1.7378 | K186: 1.0547 | L186: 6.8267 | M186: 1902.123363 | N186: 1173.7405 | O186: 41.8817 | P186: 90.3671 | Q186: 13.2275 | R186: 1 | S186: 0.674987
B187: Noviembre | C187: 562.3836667 | D187: 8.75 | E187: 8.292607554 | F187: 18.89511 | G187: 20.72508312 | H187: 36.0931 | I187: 1 | J187: 1.7268 | K187: 1.0593 | L187: 6.8271 | M187: 1974.952872 | N187: 1162.8368 | O187: 42.1744 | P187: 89.2674 | Q187: 13.1115 | R187: 1 | S187: 0.670522
B188: Diciembre | C188: 562.636129 | D188: 8.75 | E188: 8.314132134 | F188: 18.89511 | G188: 20.78146346 | H188: 36.0895 | I188: 1 | J188: 1.7508 | K188: 1.0537 | L188: 6.8275 | M188: 2020.074189 | N188: 1163.3109 | O188: 42.2555 | P188: 89.9509 | Q188: 12.8622 | R188: 1 | S188: 0.68454
A189: 2010 | B189: Enero | C189: 559.0506452 | D189: 8.75 | E189: 8.356340509 | F189: 18.89511 | G189: 20.9182347 | H189: 36.11 | I189: 1 | J189: 1.7817 | K189: 1.0438 | L189: 6.8269 | M189: 1982.18751 | N189: 1138.1947 | O189: 40.5771 | P189: 91.1011 | Q189: 12.8096 | R189: 1 | S189: 0.70078
B190: Febrero | C190: 548.6385714 | D190: 8.75 | E190: 8.136126219 | F190: 18.8951 | G190: 21.03876956 | H190: 36.192 | I190: 1 | J190: 1.842 | K190: 1.0572 | L190: 6.8285 | M190: 1951.677306 | N190: 1155.6553 | O190: 38.5728 | P190: 90.1395 | Q190: 12.9396 | R190: 1 | S190: 0.730765
B191: Marzo | C191: 532.6467742 | D191: 8.75 | E191: 8.01032769 | F191: 18.89510361 | G191: 21.12179636 | H191: 36.2973 | I191: 1 | J191: 1.7855 | K191: 1.0229 | L191: 6.8262 | M191: 1910.294664 | N191: 1136.0822 | O191: 39.4833 | P191: 90.7161 | Q191: 12.5673 | R191: 1 | S191: 0.73706
B192: Abril | C192: 511.2883333 | D192: 8.75 | E192: 7.992844968 | F192: 18.89510361 | G192: 21.18448476 | H192: 36.4216 | I192: 1 | J192: 1.7568 | K192: 1.0052 | L192: 6.8256 | M192: 1936.521278 | N192: 1115.4591 | O192: 39.6312 | P192: 93.4527 | Q192: 12.2396 | R192: 1 | S192: 0.745791
B193: Mayo | C193: 522.3954839 | D193: 8.75 | E193: 7.987906195 | F193: 18.8951 | G193: 21.26230473 | H193: 36.6982 | I193: 1 | J193: 1.8142 | K193: 1.0403 | L193: 6.8275 | M193: 1985.691771 | N193: 1164.841 | O193: 39.7598 | P193: 91.973 | Q193: 12.7262 | R193: 1 | S193: 0.796253
B194: Junio | C194: 529.9133333 | D194: 8.75 | E194: 7.998232545 | F194: 18.8951 | G194: 21.33895573 | H194: 36.7269 | I194: 1 | J194: 1.8042 | K194: 1.0376 | L194: 6.8184 | M194: 1926.178542 | N194: 1214.1114 | O194: 39.8171 | P194: 90.8059 | Q194: 12.7102 | R194: 1 | S194: 0.819193
B195: Julio | C195: 518.7045161 | D195: 8.75 | E195: 7.99287 | F195: 18.8951 | G195: 21.42315135 | H195: 36.7962 | I195: 1 | J195: 1.7689 | K195: 1.0422 | L195: 6.7762 | M195: 1872.964996 | N195: 1203.8095 | O195: 39.8263 | P195: 87.5005 | Q195: 12.8038 | R195: 1 | S195: 0.783286
B196: Agosto | C196: 506.8458065 | D196: 8.75 | E196: 8 | F196: 18.89509971 | G196: 21.53039115 | H196: 36.8931 | I196: 1 | J196: 1.7589 | K196: 1.0404 | L196: 6.7873 | M196: 1821.423907 | N196: 1179.5159 | O196: 39.833 | P196: 85.3727 | Q196: 12.766 | R196: 1 | S196: 0.775236
B197: Septiembre | C197: 505.0586667 | D197: 8.75 | E197: 8.06628 | F197: 18.8951 | G197: 21.61925608 | H197: 36.9847 | I197: 1 | J197: 1.718 | K197: 1.033 | L197: 6.7396 | M197: 1806.701629 | N197: 1159.931 | O197: 39.8995 | P197: 84.3571 | Q197: 12.7977 | R197: 1 | S197: 0.765702
B198: Octubre | C198: 505.0580645 | D198: 8.75 | E198: 8.04459 | F198: 18.8951 | G198: 21.72013716 | H198: 37.1886 | I198: 1 | J198: 1.6837 | K198: 1.0179 | L198: 6.6678 | M198: 1807.896822 | N198: 1121.94 | O198: 39.9661 | P198: 81.7285 | Q198: 12.4393 | R198: 1 | S198: 0.719578
B199: Noviembre | C199: 507.397 | D199: 8.75 | E199: 7.99179 | F199: 18.8951 | G199: 21.74105588 | H199: 37.2157 | I199: 1 | J199: 1.7131 | K199: 1.0129 | L199: 6.6538 | M199: 1866.059614 | N199: 1129.623 | O199: 40.1379 | P199: 82.518 | Q199: 12.3376 | R199: 1 | S199: 0.732405
B200: Diciembre | C200: 501.1212903 | D200: 8.75 | E200: 7.96 | F200: 18.8951 | G200: 21.7999789 | H200: 37.3097 | I200: 1 | J200: 1.6955 | K200: 1.0081 | L200: 6.6497 | M200: 1918.793154 | N200: 1145.4833 | O200: 40.0611 | P200: 83.3376 | Q200: 12.3902 | R200: 1 | S200: 0.756462
A201: 2011 | B201: Enero | C201: 501.8674194 | D201: 8.75 | E201: 7.94 | F201: 18.8951 | G201: 21.95954562 | H201: 37.4465 | I201: 1 | J201: 1.6745 | K201: 0.9939 | L201: 6.5964 | M201: 1867.732238 | N201: 1118.8675 | O201: 40.2057 | P201: 82.625 | Q201: 12.128 | R201: 1 | S201: 0.748475
B202: Febrero | C202: 497.1978571 | D202: 8.75 | E202: 7.79368 | F202: 18.8951 | G202: 22.06417578 | H202: 37.6276 | I202: 1 | J202: 1.6664 | K202: 0.9876 | L202: 6.5761 | M202: 1882.658221 | N202: 1117.4368 | O202: 40.4101 | P202: 82.5368 | Q202: 12.0649 | R202: 1 | S202: 0.732902
... 134 more rows

Sheet ITCER GLOBAL
A2: Secretaría Ejecutiva
A3: Consejo Monetario Centroamericano
C4: ITCER GLOBAL Periodo de referencia Diciembre 2000=100 | K4: VARIACION INTERANUAL | S4: EFECTO TIPO DE CAMBIO | AA4: EFECTO PRECIO
A5: Año | B5: MES | C5: COSTA RICA | D5: EL SALVADOR | E5: GUATEMALA | F5: HONDURAS | G5: NICARAGUA | H5: REPÚBLICA DOMINICANA | I5: PANAMÁ | K5: COSTA RICA | L5: EL SALVADOR | M5: GUATEMALA | N5: HONDURAS | O5: NICARAGUA | P5: REPÚBLICA DOMINICANA | Q5: PANAMÁ | S5: COSTA RICA | T5: EL SALVADOR | U5: GUATEMALA | V5: HONDURAS | W5: NICARAGUA | X5: REPÚBLICA DOMINICANA | Y5: PANAMÁ | AA5: COSTA RICA | AB5: EL SALVADOR | AC5: GUATEMALA | AD5: HONDURAS | AE5: NICARAGUA | AF5: REPÚBLICA DOMINICANA | AG5: PANAMÁ
A6: 1995 | B6: Enero | C6: 93.94478608 | D6: 119.6193322 | E6: 102.490885 | F6: 140.3813789 | G6: 94.30776207 | H6: 81.16084577 | I6: 101.9827503 | S6: 60.89276294 | T6: 120.5016922 | U6: 87.17777415 | V6: 70.50629405 | W6: 66.87703955 | X6: 90.35953941 | Y6: 118.5980572 | AA6: 64.81760775 | AB6: 100.73764 | AC6: 85.05905097 | AD6: 50.22481942 | AE6: 70.91361101 | AF6: 111.3339056 | AG6: 116.2922718
B7: Febrero | C7: 94.65045325 | D7: 119.3680444 | E7: 103.6203167 | F7: 132.8890481 | G7: 95.39396994 | H7: 81.64390231 | I7: 102.9278763 | S7: 61.86418511 | T7: 120.7498976 | U7: 87.02057694 | V7: 69.66676314 | W7: 67.65312745 | X7: 90.59820863 | Y7: 118.8920858 | AA7: 65.36068554 | AB7: 101.1576408 | AC7: 83.98022676 | AD7: 52.42475895 | AE7: 70.91971064 | AF7: 110.9675139 | AG7: 115.5100931
B8: Marzo | C8: 103.1199872 | D8: 118.3859365 | E8: 102.7587717 | F8: 132.8999319 | G8: 95.93153355 | H8: 81.47365662 | I8: 103.5152036 | S8: 63.10202512 | T8: 120.7081235 | U8: 86.25838594 | V8: 70.44537067 | W8: 68.43568378 | X8: 90.47562933 | Y8: 119.5778624 | AA8: 61.19281708 | AB8: 101.9615396 | AC8: 83.94260125 | AD8: 53.00632564 | AE8: 71.33804834 | AF8: 111.0489367 | AG8: 115.5171977
B9: Abril | C9: 105.7167617 | D9: 119.5434877 | E9: 104.6718561 | F9: 131.0977162 | G9: 98.66379024 | H9: 83.65460462 | I9: 105.2700863 | S9: 64.61631249 | T9: 121.6430245 | U9: 87.67140846 | V9: 70.87203808 | W9: 69.78367045 | X9: 91.84667475 | Y9: 120.9457837 | AA9: 61.12210725 | AB9: 101.7562954 | AC9: 83.75833939 | AD9: 54.06046738 | AE9: 70.72875497 | AF9: 109.7927307 | AG9: 114.8909325
B10: Mayo | C10: 106.5817839 | D10: 119.3333066 | E10: 103.9762226 | F10: 129.4103167 | G10: 99.29989955 | H10: 83.85614032 | I10: 105.2614967 | S10: 65.39245375 | T10: 121.4630856 | U10: 87.79170811 | V10: 70.90451278 | W10: 70.26637362 | X10: 91.92184813 | Y10: 120.6733311 | AA10: 61.35424962 | AB10: 101.7847314 | AC10: 84.43440808 | AD10: 54.79046386 | AE10: 70.76177714 | AF10: 109.6185059 | AG10: 114.6414737
B11: Junio | C11: 106.9659985 | D11: 118.6834273 | E11: 103.2624303 | F11: 130.569141 | G11: 98.71894372 | H11: 83.47218114 | I11: 105.3771103 | S11: 66.31830681 | T11: 121.1093913 | U11: 87.76467556 | V11: 71.85490489 | W11: 70.71629201 | X11: 91.70607452 | Y11: 120.5317587 | AA11: 61.99942759 | AB11: 102.044063 | AC11: 84.99187488 | AD11: 55.03207294 | AE11: 71.6339634 | AF11: 109.8642365 | AG11: 114.3813474
B12: Julio | C12: 106.8645941 | D12: 115.849768 | E12: 103.8034966 | F12: 130.9432543 | G12: 98.73657016 | H12: 83.08405135 | I12: 105.2740757 | S12: 67.2214956 | T12: 120.9615953 | U12: 87.91218145 | V12: 72.81779691 | W12: 71.24638742 | X12: 91.73034067 | Y12: 120.2739326 | AA12: 62.90343043 | AB12: 104.4124622 | AC12: 84.69096355 | AD12: 55.61019335 | AE12: 72.1580538 | AF12: 110.4066775 | AG12: 114.2483862
B13: Agosto | C13: 106.2204706 | D13: 114.3100042 | E13: 103.3732661 | F13: 130.2447016 | G13: 100.4775918 | H13: 81.46065236 | I13: 103.9820453 | S13: 67.35009647 | T13: 119.7013965 | U13: 87.68441439 | V13: 73.12096547 | W13: 70.99863311 | X13: 90.57011621 | Y13: 118.5511862 | AA13: 63.40594808 | AB13: 104.7164659 | AC13: 84.82310536 | AD13: 56.14122078 | AE13: 70.66116123 | AF13: 111.1826552 | AG13: 114.0112083
B14: Septiembre | C14: 104.4879658 | D14: 110.9562216 | E14: 102.0948185 | F14: 127.8343746 | G14: 98.75848811 | H14: 78.23955511 | I14: 102.532846 | S14: 67.85301729 | T14: 118.7260874 | U14: 88.25547559 | V14: 73.53037895 | W14: 70.9778226 | X14: 89.82646537 | Y14: 117.4223254 | AA14: 64.93859533 | AB14: 107.0026409 | AC14: 86.44461773 | AD14: 57.52003652 | AE14: 71.87009842 | AF14: 114.8095298 | AG14: 114.5216678
B15: Octubre | C15: 103.4769214 | D15: 110.9138652 | E15: 102.145703 | F15: 128.1155972 | G15: 96.45238911 | H15: 77.82641684 | I15: 103.1577884 | S15: 68.89953337 | T15: 118.3474668 | U15: 88.98001613 | V15: 74.65329713 | W15: 71.46950923 | X15: 89.68573873 | Y15: 117.3770946 | AA15: 66.58444454 | AB15: 106.7021391 | AC15: 87.11087548 | AD15: 58.27026434 | AE15: 74.09822596 | AF15: 115.2381702 | AG15: 113.7840356
B16: Noviembre | C16: 102.2593843 | D16: 109.9807428 | E16: 100.8282979 | F16: 129.1145981 | G16: 94.26237297 | H16: 76.40699891 | I16: 102.7038296 | S16: 69.53318067 | T16: 117.2741677 | U16: 88.61256998 | V16: 76.04603402 | W16: 71.46260487 | X16: 88.68614654 | Y16: 116.5689082 | AA16: 67.99687009 | AB16: 106.6315471 | AC16: 87.8846235 | AD16: 58.8980914 | AE16: 75.81243991 | AF16: 116.0707105 | AG16: 113.50006
B17: Diciembre | C17: 102.3702964 | D17: 109.9261012 | E17: 99.18219463 | F17: 129.6456542 | G17: 96.05291425 | H17: 103.7019594 | I17: 102.242834 | S17: 70.32878165 | T17: 117.0535155 | U17: 87.39261881 | V17: 77.44314917 | W17: 71.88541461 | X17: 88.492368 | Y17: 116.2544295 | AA17: 68.70037901 | AB17: 106.4838234 | AC17: 88.11321341 | AD17: 59.73447368 | AE17: 74.83938949 | AF17: 85.33336159 | AG17: 113.7042323
A18: 1996 | B18: Enero | C18: 102.8832882 | D18: 109.3908983 | E18: 101.1945398 | F18: 131.7286601 | G18: 97.74627419 | H18: 100.9052314 | I18: 105.5660101 | K18: =(C18/C6-1)*100 -> 9.514633587 | L18: =(D18/D6-1)*100 -> -8.550820096 | M18: -1.264839591 | N18: -6.163722648 | O18: 3.6460542 | P18: 24.32747642 | Q18: 3.513593966 | S18: 71.42274148 | T18: 117.3563743 | U18: 89.70130143 | V18: 78.7653499 | W18: 71.64864666 | X18: 85.20155185 | Y18: 120.242559 | AA18: 69.42113019 | AB18: 107.2816625 | AC18: 88.64243234 | AD18: 59.79363175 | AE18: 73.30064215 | AF18: 84.43719981 | AG18: 113.902722
B19: Febrero | C19: 103.3943388 | D19: 109.3910334 | E19: 102.0847208 | F19: 131.1080788 | G19: 97.88515078 | H19: 101.1774991 | I19: 106.0020944 | K19: =(C19/C7-1)*100 -> 9.23808101 | L19: =(D19/D7-1)*100 -> -8.358192614 | M19: =(E19/E7-1)*100 -> -1.481944804 | N19: =(F19/F7-1)*100 -> -1.340192714 | O19: =(G19/G7-1)*100 -> 2.611465743 | P19: =(H19/H7-1)*100 -> 23.92535902 | Q19: =(I19/I7-1)*100 -> 2.986769166 | S19: 72.10379822 | T19: 116.9121519 | U19: 90.48678249 | V19: 80.24363116 | W19: 72.07250422 | X19: 85.11575878 | Y19: 119.9934143 | AA19: 69.73669841 | AB19: 106.8754434 | AC19: 88.63890871 | AD19: 61.20418506 | AE19: 73.62966053 | AF19: 84.12518551 | AG19: 113.1990976
B20: Marzo | C20: 104.303772 | D20: 109.2647333 | E20: 101.6426388 | F20: 132.3811828 | G20: 98.29453365 | H20: 101.5243689 | I20: 106.0599461 | K20: 1.147968344 | L20: -7.704634096 | M20: -1.086167999 | N20: -0.3903305654 | O20: 2.463215177 | P20: 24.61005566 | Q20: 2.458327268 | S20: 72.70346227 | T20: 116.5561801 | U20: 90.45704512 | V20: 81.80264138 | W20: 72.51800756 | X20: 85.00415799 | Y20: 119.6553635 | AA20: 69.70357917 | AB20: 106.6731932 | AC20: 88.99517587 | AD20: 61.79325463 | AE20: 73.77623644 | AF20: 83.72783691 | AG20: 112.8186162
B21: Abril | C21: 104.7914365 | D21: 109.3929111 | E21: 100.1526571 | F21: 131.8573725 | G21: 98.71837088 | H21: 101.8945855 | I21: 106.1414851 | K21: -0.8752871622 | L21: -8.491116349 | M21: -4.317491969 | N21: 0.5794581143 | O21: 0.05531982985 | P21: 21.80391734 | Q21: 0.8277744515 | S21: 73.16941077 | T21: 116.3211651 | U21: 89.57835679 | V21: 82.71772869 | W21: 72.98062554 | X21: 84.93449661 | Y21: 119.2387787 | AA21: 69.82384556 | AB21: 106.3333666 | AC21: 89.4418175 | AD21: 62.73272939 | AE21: 73.92810972 | AF21: 83.35525997 | AG21: 112.339467
B22: Mayo | C22: 104.2145433 | D22: 108.9674986 | E22: 99.07261513 | F22: 130.950669 | G22: 98.21906247 | H22: 101.9067988 | I22: 106.5033598 | K22: -2.221055567 | L22: -8.686433245 | M22: -4.716085436 | N22: 1.190285599 | O22: -1.088457373 | P22: 21.52574444 | Q22: 1.179788511 | S22: 73.69004534 | T22: 116.1329855 | U22: 88.67845876 | V22: 83.5168968 | W22: 73.48605734 | X22: 84.84748478 | Y22: 118.8747216 | AA22: 70.70994415 | AB22: 106.5758019 | AC22: 89.50854749 | AD22: 63.77737313 | AE22: 74.81852859 | AF22: 83.25988629 | AG22: 111.6159357
B23: Junio | C23: 103.9984999 | D23: 107.1642265 | E23: 99.24206075 | F23: 131.0361417 | G23: 98.86076709 | H23: 101.5357231 | I23: 106.4324355 | K23: -2.774244824 | L23: -9.70582076 | M23: -3.893351672 | N23: 0.3576654843 | O23: 0.1436637802 | P23: 21.64019398 | Q23: 1.001474788 | S23: 74.36793279 | T23: 115.685644 | U23: 88.98998446 | V23: 85.4414322 | W23: 73.93097656 | X23: 84.68095428 | Y23: 118.4207611 | AA23: 71.50865915 | AB23: 107.951737 | AC23: 89.66962575 | AD23: 65.20447801 | AE23: 74.7829283 | AF23: 83.4001588 | AG23: 111.2637895
B24: Julio | C24: 104.3210226 | D24: 107.66919 | E24: 97.56720828 | F24: 134.7867338 | G24: 99.93664475 | H24: 101.6320191 | I24: 106.5134213 | K24: -2.380181653 | L24: -7.061367621 | M24: -6.007782493 | N24: 2.93522529 | O24: 1.215430701 | P24: 22.32434195 | Q24: 1.17725621 | S24: 75.25729195 | T24: 115.6647673 | U24: 88.37667385 | V24: 89.62305985 | W24: 74.63173341 | X24: 84.74236611 | Y24: 118.4680421 | AA24: 72.14010182 | AB24: 107.4260587 | AC24: 90.58030399 | AD24: 66.49249321 | AE24: 74.67904651 | AF24: 83.38156309 | AG24: 111.2235816
B25: Agosto | C25: 104.9963477 | D25: 105.1436883 | E25: 97.05475695 | F25: 134.8758783 | G25: 102.4825576 | H25: 101.9886421 | I25: 106.9684672 | K25: -1.152436035 | L25: -8.018822087 | M25: -6.112324167 | N25: 3.555750581 | O25: 1.995435838 | P25: 25.19988383 | Q25: 2.872055387 | S25: 76.18599269 | T25: 115.8381517 | U25: 88.18765059 | V25: 91.84564746 | W25: 75.47654053 | X25: 84.95804329 | Y25: 118.7798384 | AA25: 72.56061224 | AB25: 110.1712842 | AC25: 90.86381066 | AD25: 68.09642215 | AE25: 73.64818197 | AF25: 83.30147506 | AG25: 111.0419187
B26: Septiembre | C26: 105.192146 | D26: 105.9391969 | E26: 96.41430343 | F26: 134.2715417 | G26: 102.4241062 | H26: 101.6057813 | I26: 106.6946889 | K26: 0.6739342444 | L26: -4.521625416 | M26: -5.563960217 | N26: 5.035552536 | O26: 3.711699272 | P26: 29.86497836 | Q26: 4.059033763 | S26: 76.7194277 | T26: 115.4751995 | U26: 87.51116088 | V26: 92.68006434 | W26: 75.89496915 | X26: 84.76403193 | Y26: 118.2926384 | AA26: 72.93265763 | AB26: 109.0013921 | AC26: 90.76574508 | AD26: 69.02435407 | AE26: 74.09873708 | AF26: 83.42441821 | AG26: 110.870222
B27: Octubre | C27: 104.9529911 | D27: 105.938157 | E27: 96.16555046 | F27: 133.8658054 | G27: 100.7699497 | H27: 101.4181879 | I27: 106.2259539 | K27: 1.42647233 | L27: -4.486101184 | M27: -5.854531664 | N27: 4.488296754 | O27: 4.476364617 | P27: 30.31332039 | Q27: 2.974245182 | S27: 77.25958243 | T27: 114.9775724 | U27: 87.22503856 | V27: 93.39468435 | W27: 76.27175961 | X27: 84.49962397 | Y27: 117.8719682 | AA27: 73.61351175 | AB27: 108.5327286 | AC27: 90.7029993 | AD27: 69.76739437 | AE27: 75.68899242 | AF27: 83.3180179 | AG27: 110.9634358
B28: Noviembre | C28: 105.4874327 | D28: 107.1861306 | E28: 94.62607389 | F28: 132.395096 | G28: 100.7810347 | H28: 101.0497304 | I28: 106.6241677 | K28: 3.156725886 | L28: -2.541001471 | M28: -6.15127313 | N28: 2.540764522 | O28: 6.915444125 | P28: 32.2519296 | Q28: 3.81712941 | S28: 78.24293901 | T28: 115.1308569 | U28: 86.55102553 | V28: 93.94321555 | W28: 77.11027273 | X28: 84.525827 | Y28: 118.1286316 | AA28: 74.17275878 | AB28: 107.4120843 | AC28: 91.46636014 | AD28: 70.95671845 | AE28: 76.51268213 | AF28: 83.64775111 | AG28: 110.7897338
B29: Diciembre | C29: 105.1862236 | D29: 106.8776443 | E29: 93.65004539 | F29: 132.4917667 | G29: 99.83006348 | H29: 102.3612575 | I29: 105.402419 | K29: 2.750726787 | L29: -2.773187509 | M29: -5.577764492 | N29: 2.195301122 | O29: 3.932362976 | P29: -1.292841458 | Q29: 3.090275232 | S29: 78.59666903 | T29: 114.5997981 | U29: 85.99567934 | V29: 94.75703147 | W29: 77.40320465 | X29: 86.35246706 | Y29: 117.3662721 | AA29: 74.72144767 | AB29: 107.2252282 | AC29: 91.82662858 | AD29: 71.51918482 | AE29: 77.53496487 | AF29: 84.36049847 | AG29: 111.3506438
A30: 1997 | B30: Enero | C30: 102.9960891 | D30: 106.4077856 | E30: 93.2833896 | F30: 130.1918147 | G30: 100.4012423 | H30: 105.1285405 | I30: 108.021267 | K30: 0.1096395824 | L30: -2.727020935 | M30: -7.817763849 | N30: -1.166674987 | O30: 2.716183454 | P30: 4.185421317 | Q30: 2.325802515 | S30: 78.5332784 | T30: 115.4269074 | U30: 86.25670533 | V30: 95.05133789 | W30: 76.82614536 | X30: 91.53308717 | Y30: 120.1244742 | AA30: 76.24879656 | AB30: 108.4759981 | AC30: 92.46737892 | AD30: 73.00868959 | AE30: 76.51911827 | AF30: 87.06778081 | AG30: 111.204467
B31: Febrero | C31: 102.7977346 | D31: 104.7696563 | E31: 91.66891598 | F31: 124.6220833 | G31: 101.0125855 | H31: 105.286603 | I31: 106.9751566 | K31: -0.5770182125 | L31: -4.224639748 | M31: -10.20309871 | N31: -4.947060133 | O31: 3.195004292 | P31: 4.061282394 | Q31: 0.9179651161 | S31: 78.43261599 | T31: 114.3442105 | U31: 86.20502934 | V31: 92.67447827 | W31: 76.78932429 | X31: 91.14105879 | Y31: 118.2795846 | AA31: 76.29800041 | AB31: 109.138671 | AC31: 94.03954265 | AD31: 74.36441106 | AE31: 76.0195612 | AF31: 86.56472541 | AG31: 110.5673395
B32: Marzo | C32: 102.5838965 | D32: 104.6540045 | E32: 90.11270397 | F32: 124.3160646 | G32: 102.0145193 | H32: 105.4815186 | I32: 106.8657619 | K32: -1.648910096 | L32: -4.219777675 | M32: -11.34360042 | N32: -6.092344844 | O32: 3.784529552 | P32: 3.897733895 | Q32: 0.7597739474 | S32: 78.93142711 | T32: 114.1195596 | U32: 84.49159789 | V32: 92.90291725 | W32: 77.28498419 | X32: 91.14626073 | Y32: 117.6832493 | AA32: 76.94329205 | AB32: 109.0446182 | AC32: 93.76213804 | AD32: 74.73122441 | AE32: 75.75880836 | AF32: 86.40969711 | AG32: 110.1225006
B33: Abril | C33: 102.2071209 | D33: 104.6787019 | E33: 90.34501332 | F33: 123.359045 | G33: 102.6910514 | H33: 104.6926353 | I33: 107.1274835 | K33: -2.466151526 | L33: -4.309428419 | M33: -9.79269454 | N33: -6.445090927 | O33: 4.024256561 | P33: 2.746024079 | Q33: 0.9289472136 | S33: 79.49598608 | T33: 113.8650101 | U33: 84.37492787 | V33: 92.48605603 | W33: 77.82796233 | X33: 90.98406021 | Y33: 117.1659632 | AA33: 77.77930285 | AB33: 108.7757185 | AC33: 93.39190374 | AD33: 74.97306424 | AE33: 75.78845602 | AF33: 86.905884 | AG33: 109.3705923
B34: Mayo | C34: 102.9638449 | D34: 105.2913828 | E34: 90.12132736 | F34: 125.024503 | G34: 103.2897663 | H34: 104.9024428 | I34: 107.3193228 | K34: -1.200118795 | L34: -3.373589252 | M34: -9.035077711 | N34: -4.525495061 | O34: 5.162647354 | P34: 2.939591938 | Q34: 0.7661383489 | S34: 80.36856135 | T34: 114.024275 | U34: 84.15374361 | V34: 94.81463244 | W34: 78.73523644 | X34: 91.22476643 | Y34: 117.463334 | AA34: 78.05512837 | AB34: 108.2940236 | AC34: 93.37827801 | AD34: 75.83684013 | AE34: 76.22752888 | AF34: 86.96152728 | AG34: 109.4521759
B35: Junio | C35: 103.2491385 | D35: 105.1907337 | E35: 89.43854569 | F35: 123.8873826 | G35: 102.4047936 | H35: 104.6261144 | I35: 107.4408987 | K35: -0.7205501804 | L35: -1.841559338 | M35: -9.878387232 | N35: -5.455562843 | O35: 3.584866503 | P35: 3.043649313 | Q35: 0.9475148522 | S35: 81.05632268 | T35: 114.0342118 | U35: 83.31732744 | V35: 94.94152399 | W35: 79.48096297 | X35: 91.20015471 | Y35: 117.4126652 | AA35: 78.50556806 | AB35: 108.4070885 | AC35: 93.1559506 | AD35: 76.63534572 | AE35: 77.61449457 | AF35: 87.1676782 | AG35: 109.2811645
B36: Julio | C36: 102.9067471 | D36: 104.0982985 | E36: 89.47354219 | F36: 121.9223495 | G36: 101.3651306 | H36: 102.5647634 | I36: 106.6763634 | K36: -1.355695634 | L36: -3.31653974 | M36: -8.295477791 | N36: -9.544251102 | O36: 1.429391444 | P36: 0.9177661647 | Q36: 0.1529779384 | S36: 81.30806391 | T36: 113.3729131 | U36: 83.45846795 | V36: 94.48544188 | W36: 79.78377448 | X36: 90.93926129 | Y36: 116.5168613 | AA36: 79.01140228 | AB36: 108.9094775 | AC36: 93.2772593 | AD36: 77.49640837 | AE36: 78.70928988 | AF36: 88.6652085 | AG36: 109.2246282
B37: Agosto | C37: 102.0382812 | D37: 104.328424 | E37: 90.12856798 | F37: 119.809419 | G37: 102.462713 | H37: 101.7616358 | I37: 105.9626287 | K37: -2.817304156 | L37: -0.7753811579 | M37: -7.136372479 | N37: -11.17061067 | O37: -0.01936386115 | P37: -0.222580057 | Q37: -0.9403131389 | S37: 81.31543838 | T37: 112.3833006 | U37: 84.74880199 | V37: 93.77833474 | W37: 79.9380736 | X37: 90.53953465 | Y37: 115.3523345 | AA37: 79.69110948 | AB37: 107.7206924 | AC37: 94.03100914 | AD37: 78.27292335 | AE37: 78.01674504 | AF37: 88.97216911 | AG37: 108.8613372
B38: Septiembre | C38: 103.7705041 | D38: 105.0344009 | E38: 90.39568349 | F38: 119.9351234 | G38: 104.673033 | H38: 101.5455915 | I38: 105.9133488 | K38: -1.351471546 | L38: -0.8540710257 | M38: -6.24245545 | N38: -10.67718305 | O38: 2.195700735 | P38: -0.05923852471 | Q38: -0.7323139424 | S38: 82.11862501 | T38: 112.4416974 | U38: 85.2715073 | V38: 93.96467839 | W38: 80.7898903 | X38: 90.60448715 | Y38: 115.0499648 | AA38: 79.13484254 | AB38: 107.0522576 | AC38: 94.33139283 | AD38: 78.34625565 | AE38: 77.18309859 | AF38: 89.2254265 | AG38: 108.6265009
B39: Octubre | C39: 104.7896416 | D39: 105.6073623 | E39: 90.72055617 | F39: 120.6544856 | G39: 105.3661502 | H39: 101.4555973 | I39: 106.4624644 | K39: -0.1556406479 | L39: -0.3122526336 | M39: -5.662104839 | N39: -9.869077227 | O39: 4.561082424 | P39: 0.03688623127 | Q39: 0.2226484568 | S39: 82.91312208 | T39: 112.4343656 | U39: 85.88049525 | V39: 94.05951968 | W39: 81.64585047 | X39: 90.58890767 | Y39: 114.8975541 | AA39: 79.12339505 | AB39: 106.4645145 | AC39: 94.66486855 | AD39: 77.95774784 | AE39: 77.48774186 | AF39: 89.28921628 | AG39: 107.9230646
B40: Noviembre | C40: 103.7984133 | D40: 105.4974167 | E40: 91.00515944 | F40: 119.6551998 | G40: 103.2487133 | H40: 100.629555 | I40: 105.1749615 | K40: -1.601156995 | L40: -1.575496647 | M40: -3.826550442 | N40: -9.622634552 | O40: 2.448554555 | P40: -0.4158105649 | Q40: -1.359172345 | S40: 83.41608023 | T40: 111.8735628 | U40: 86.31240053 | V40: 93.84666396 | W40: 82.19262897 | X40: 89.93829544 | Y40: 113.1999177 | AA40: 80.3635408 | AB40: 106.0438885 | AC40: 94.84341444 | AD40: 78.43091159 | AE40: 79.60644383 | AF40: 89.37562674 | AG40: 107.6301014
B41: Diciembre | C41: 103.1305676 | D41: 104.8966527 | E41: 89.82038966 | F41: 118.9693332 | G41: 103.2084347 | H41: 99.52529167 | I41: 100.3603893 | K41: -1.95430153 | L41: -1.853513572 | M41: -4.089326078 | N41: -10.20624435 | O41: 3.384122103 | P41: -2.770546093 | Q41: -4.78359962 | S41: 83.52111152 | T41: 111.0413771 | U41: 85.38454547 | V41: 93.44782332 | W41: 82.52285409 | X41: 88.99246421 | Y41: 107.7009358 | AA41: 80.98579639 | AB41: 105.8578842 | AC41: 95.06142847 | AD41: 78.54782472 | AE41: 79.95747083 | AF41: 89.41693384 | AG41: 107.314187
A42: 1998 | B42: Enero | C42: 101.3929363 | D42: 103.2172315 | E42: 89.35335452 | F42: 117.4095959 | G42: 102.8459119 | H42: 98.36973149 | I42: 97.68717758 | K42: -1.556518105 | L42: -2.99842168 | M42: -4.213006301 | N42: -9.817989622 | O42: 2.434899762 | P42: -6.429090455 | Q42: -9.566717463 | S42: 83.39877536 | T42: 110.7651756 | U42: 85.62989092 | V42: 92.66837353 | W42: 83.02926126 | X42: 86.66180025 | Y42: 104.5852524 | AA42: 82.25304288 | AB42: 107.3126783 | AC42: 95.83287766 | AD42: 78.92742739 | AE42: 80.73170795 | AF42: 88.09803476 | AG42: 107.0613923
B43: Febrero | C43: 101.5397167 | D43: 103.4648367 | E43: 88.52938069 | F43: 115.4046685 | G43: 102.7864003 | H43: 98.6719401 | I43: 98.86275324 | K43: -1.223779798 | L43: -1.245417456 | M43: -3.424863554 | N43: -7.396293264 | O43: 1.756033436 | P43: -6.28253047 | Q43: -7.583446153 | S43: 83.99475274 | T43: 110.6890574 | U43: 84.89251982 | V43: 93.01197711 | W43: 83.74750402 | X43: 86.6208953 | Y43: 104.9664563 | AA43: 82.7210824 | AB43: 106.9822956 | AC43: 95.89191651 | AD43: 80.59637301 | AE43: 81.47722243 | AF43: 87.78675601 | AG43: 106.1739157
B44: Marzo | C44: 101.4211556 | D44: 103.1479153 | E44: 89.02016004 | F44: 113.9393786 | G44: 102.7258562 | H44: 99.02797538 | I44: 99.39566141 | K44: -1.133453711 | L44: -1.439112811 | M44: -1.212419434 | N44: -8.347019427 | O44: 0.6972898407 | P44: -6.118174361 | Q44: -6.990171939 | S44: 84.47924084 | T44: 110.3014061 | U44: 85.57400279 | V44: 93.0739337 | W44: 84.23146985 | X44: 86.57923285 | Y44: 105.3524549 | AA44: 83.29548246 | AB44: 106.9351773 | AC44: 96.12879011 | AD44: 81.68724006 | AE44: 81.9963668 | AF44: 87.42906488 | AG44: 105.9930116
B45: Abril | C45: 101.9033241 | D45: 102.3980675 | E45: 89.04159417 | F45: 112.3985037 | G45: 101.9807682 | H45: 99.44691386 | I45: 100.3589667 | K45: -0.2972364238 | L45: -2.178699457 | M45: -1.44271288 | N45: -8.88507308 | O45: -0.6916700438 | P45: -5.010592619 | Q45: -6.318188894 | S45: 85.21603227 | T45: 110.3038328 | U45: 85.82427905 | V45: 93.026755 | W45: 84.97385551 | X45: 86.64043142 | Y45: 105.830201 | AA45: 83.62438913 | AB45: 107.7206196 | AC45: 96.38672785 | AD45: 82.76511871 | AE45: 83.32341189 | AF45: 87.12229275 | AG45: 105.4516646
B46: Mayo | C46: 102.3388313 | D46: 102.2686749 | E46: 88.75254731 | F46: 111.9910508 | G46: 101.2415994 | H46: 99.19164703 | I46: 100.3069558 | K46: -0.6070224456 | L46: -2.870802704 | M46: -1.518819232 | N46: -10.42471825 | O46: -1.982933069 | P46: -5.443911157 | Q46: -6.534114161 | S46: 85.95040861 | T46: 110.2863314 | U46: 85.68454635 | V46: 93.47064078 | W46: 85.74464752 | X46: 86.61967711 | Y46: 105.6815917 | AA46: 83.98611507 | AB46: 107.839797 | AC46: 96.54319673 | AD46: 83.46259824 | AE46: 84.69309854 | AF46: 87.32557599 | AG46: 105.3581887
B47: Junio | C47: 102.0733394 | D47: 101.8458782 | E47: 88.73049153 | F47: 110.1345197 | G47: 99.95775221 | H47: 98.47386397 | I47: 99.55393733 | K47: -1.138797978 | L47: -3.179800539 | M47: -0.7916655502 | N47: -11.10110059 | O47: -2.389577 | P47: -5.880224517 | Q47: -7.340744015 | S47: 86.23367346 | T47: 109.5725845 | U47: 85.5494128 | V47: 93.33599858 | W47: 86.04216807 | X47: 86.3249266 | Y47: 105.0167228 | AA47: 84.48207337 | AB47: 107.5866657 | AC47: 96.41489788 | AD47: 84.74726984 | AE47: 86.07853435 | AF47: 87.66277986 | AG47: 105.4872621
B48: Julio | C48: 101.3087672 | D48: 101.4900021 | E48: 89.14886694 | F48: 108.3476315 | G48: 101.9477623 | H48: 106.395766 | I48: 100.0412765 | K48: -1.55284268 | L48: -2.505609066 | M48: -0.3628729062 | N48: -11.13390455 | O48: 0.5747850971 | P48: 3.735203528 | Q48: -6.219828492 | S48: 86.935288 | T48: 109.3379171 | U48: 85.97623586 | V48: 93.48345251 | W48: 86.6668326 | X48: 93.74700613 | Y48: 105.4749027 | AA48: 85.81220599 | AB48: 107.7326976 | AC48: 96.44119865 | AD48: 86.28103007 | AE48: 85.01102003 | AF48: 88.11159469 | AG48: 105.4313843
B49: Agosto | C49: 99.80101177 | D49: 102.3473705 | E49: 89.30191515 | F49: 108.2236555 | G49: 103.1160079 | H49: 106.6885283 | I49: 99.56486168 | K49: -2.19257851 | L49: -1.89886263 | M49: -0.9171929053 | N49: -9.670160846 | O49: 0.6375927991 | P49: 4.841601156 | Q49: -6.037757903 | S49: 87.30222783 | T49: 108.6426044 | U49: 86.14004589 | V49: 93.43148068 | W49: 87.04273265 | X49: 94.07313119 | Y49: 104.7814808 | AA49: 87.47629536 | AB49: 106.1508506 | AC49: 96.45934888 | AD49: 86.33184699 | AE49: 84.4124345 | AF49: 88.17548869 | AG49: 105.2394178
B50: Septiembre | C50: 101.6528537 | D50: 103.57633 | E50: 90.62857603 | F50: 109.1791532 | G50: 104.2431813 | H50: 106.4190233 | I50: 99.30687069 | K50: -2.04070552 | L50: -1.3881842 | M50: 0.257636791 | N50: -8.968156994 | O50: -0.4106614253 | P50: 4.799254879 | Q50: -6.237625536 | S50: 88.4039966 | T50: 108.6198344 | U50: 87.10577055 | V50: 94.46378032 | W50: 88.1478987 | X50: 94.23633931 | Y50: 104.8602037 | AA50: 86.9665665 | AB50: 104.86936 | AC50: 96.11291975 | AD50: 86.52181073 | AE50: 84.55987012 | AF50: 88.5521558 | AG50: 105.5920934
B51: Octubre | C51: 103.4891092 | D51: 104.429668 | E51: 92.70440462 | F51: 110.2393924 | G51: 103.8472657 | H51: 105.4886503 | I51: 100.6415484 | K51: -1.241088688 | L51: -1.115163089 | M51: 2.186768389 | N51: -8.632164124 | O51: -1.441529795 | P51: 3.975190293 | Q51: -5.467575769 | S51: 89.9997489 | T51: 109.2142595 | U51: 88.78104535 | V51: 95.60384654 | W51: 89.64852191 | X51: 95.19225265 | Y51: 106.1129802 | AA51: 86.96543008 | AB51: 104.5816401 | AC51: 95.76788257 | AD51: 86.7238511 | AE51: 86.32728196 | AF51: 90.2393313 | AG51: 105.4365536
B52: Noviembre | C52: 103.2678964 | D52: 102.6730254 | E52: 90.64191527 | F52: 109.9978778 | G52: 99.22894677 | H52: 104.006347 | I52: 101.0229878 | K52: -0.5111030987 | L52: -2.677213676 | M52: -0.3991467814 | N52: -8.070958894 | O52: -3.893284888 | P52: 3.355666254 | Q52: -3.947682618 | S52: 90.5952205 | T52: 108.8733705 | U52: 88.64103269 | V52: 96.01390884 | W52: 90.21642993 | X52: 95.4835028 | Y52: 106.1598161 | AA52: 87.72834894 | AB52: 106.0389232 | AC52: 97.79254158 | AD52: 87.28705568 | AE52: 90.91745188 | AF52: 91.80545762 | AG52: 105.0848113
B53: Diciembre | C53: 103.8690702 | D53: 102.8566711 | E53: 92.86624092 | F53: 110.0191335 | G53: 99.38425362 | H53: 102.8435743 | I53: 102.0558768 | K53: 0.7160850878 | L53: -1.94475376 | M53: 3.391046586 | N53: -7.523114983 | O53: -3.70529901 | P53: 3.334109946 | Q53: 1.689399164 | S53: 91.64257574 | T53: 108.6673508 | U53: 91.03135533 | V53: 96.58789668 | W53: 91.08218943 | X53: 95.6148695 | Y53: 106.9920779 | AA53: 88.22893622 | AB53: 105.6492978 | AC53: 98.02416295 | AD53: 87.79190821 | AE53: 91.64649944 | AF53: 92.97116532 | AG53: 104.8367631
A54: 1999 | B54: Enero | C54: 102.0081749 | D54: 101.4364512 | E54: 95.92102549 | F54: 108.230509 | G54: 100.5085227 | H54: 103.4997627 | I54: 99.95979782 | K54: 0.6067864474 | L54: -1.725274194 | M54: 7.350223174 | N54: -7.818003963 | O54: -2.272709916 | P54: 5.215050576 | Q54: 2.326426346 | S54: 91.30971836 | T54: 107.1153522 | U54: 93.41599649 | V54: 96.44797897 | W54: 91.83568386 | X54: 95.26271297 | Y54: 104.5749538 | AA54: 89.51215769 | AB54: 105.5984815 | AC54: 97.38844639 | AD54: 89.11348551 | AE54: 91.37104138 | AF54: 92.04147956 | AG54: 104.6170121
B55: Febrero | C55: 101.6666648 | D55: 101.4730769 | E55: 94.82587455 | F55: 107.2286909 | G55: 101.4953526 | H55: 105.4449791 | I55: 99.55903584 | K55: 0.1250230873 | L55: -1.925059646 | M55: 7.112321143 | N55: -7.084616015 | O55: -1.256049166 | P55: 6.86419968 | Q55: 0.7042921417 | S55: 91.48751611 | T55: 106.6949544 | U55: 91.65654516 | V55: 96.2628214 | W55: 92.19711639 | X55: 96.62105334 | Y55: 103.9056216 | AA55: 89.98772241 | AB55: 105.146072 | AC55: 96.65773777 | AD55: 89.77338117 | AE55: 90.83875668 | AF55: 91.63172507 | AG55: 104.3658375
B56: Marzo | C56: 102.8197329 | D56: 101.2611585 | E56: 96.69581272 | F56: 107.0271053 | G56: 104.0240441 | H56: 106.0082312 | I56: 99.27839814 | K56: 1.378979922 | L56: -1.829175861 | M56: 8.622375745 | N56: -6.066623639 | O56: 1.263740132 | P56: 7.048771657 | Q56: -0.1179762459 | S56: 91.97346116 | T56: 106.1436672 | U56: 92.80268099 | V56: 96.25346466 | W56: 92.53090086 | X56: 97.34905863 | Y56: 103.534676 | AA56: 89.45117687 | AB56: 104.8216994 | AC56: 95.97383628 | AD56: 89.93372696 | AE56: 88.9514551 | AF56: 91.83160354 | AG56: 104.2872145
B57: Abril | C57: 103.9497692 | D57: 102.0126092 | E57: 98.4476563 | F57: 107.5209597 | G57: 104.7919672 | H57: 106.4722472 | I57: 99.70560508 | K57: 2.008222131 | L57: -0.376431244 | M57: 10.5636722 | N57: -4.339509736 | O57: 2.756597197 | P57: 7.064405555 | Q57: -0.6510246918 | S57: 92.61908518 | T57: 105.8161366 | U57: 94.23879425 | V57: 96.5092768 | W57: 93.15630015 | X57: 97.38613386 | Y57: 103.490201 | AA57: 89.09984687 | AB57: 103.7284875 | AC57: 95.72477171 | AD57: 89.75857089 | AE57: 88.89641322 | AF57: 91.46621438 | AG57: 103.7957705
B58: Mayo | C58: 103.6817386 | D58: 102.2602367 | E58: 100.3085449 | F58: 106.824216 | G58: 104.0430136 | H58: 106.4327885 | I58: 99.35829547 | K58: 1.31221681 | L58: -0.008251018413 | M58: 13.02046866 | N58: -4.613614016 | O58: 2.767058437 | P58: 7.300152496 | Q58: -0.9457572452 | S58: 93.03006311 | T58: 105.0623165 | U58: 96.69980488 | V58: 96.50284428 | W58: 93.58209833 | X58: 97.28860416 | Y58: 103.0336484 | AA58: 89.72656548 | AB58: 102.740146 | AC58: 96.4023603 | AD58: 90.33798508 | AE58: 89.94558606 | AF58: 91.40848935 | AG58: 103.6990901
B59: Junio | C59: 102.5911244 | D59: 101.9050111 | E59: 100.6305485 | F59: 105.7351895 | G59: 103.8745534 | H59: 106.6265737 | I59: 98.87862217 | K59: 0.5072676086 | L59: 0.05806115697 | M59: 13.41146294 | N59: -3.99450614 | O59: 3.91845662 | P59: 8.279059421 | Q59: -0.6783409805 | S59: 93.25626627 | T59: 104.3249488 | U59: 97.53519325 | V59: 96.54767123 | W59: 93.92040058 | X59: 96.93460833 | Y59: 102.6495414 | AA59: 90.90091063 | AB59: 102.3746994 | AC59: 96.92404015 | AD59: 91.3108225 | AE59: 90.41714023 | AF59: 90.91036594 | AG59: 103.8136851
B60: Julio | C60: 103.3821236 | D60: 101.6278859 | E60: 100.0149721 | F60: 105.5899594 | G60: 104.1630392 | H60: 107.1602536 | I60: 98.76802487 | K60: 2.04657155 | L60: 0.1358594951 | M60: 12.18871926 | N60: -2.545207519 | O60: 2.172953019 | P60: 0.718531965 | Q60: -1.272726319 | S60: 93.91006955 | T60: 104.1653794 | U60: 97.8706829 | V60: 96.8149414 | W60: 94.60663691 | X60: 96.91319672 | Y60: 102.4732254 | AA60: 90.83782212 | AB60: 102.4968476 | AC60: 97.85603184 | AD60: 91.68953367 | AE60: 90.82553428 | AF60: 90.43763285 | AG60: 103.751417
B61: Agosto | C61: 104.1793336 | D61: 101.8389005 | E61: 103.4545182 | F61: 105.7573272 | G61: 103.7506538 | H61: 107.3200349 | I61: 99.41466605 | K61: 4.387051591 | L61: -0.496808053 | M61: 15.84803977 | N61: -2.278917932 | O61: 0.615467835 | P61: 0.5919161791 | Q61: -0.1508520463 | S61: 94.88765337 | T61: 103.8725132 | U61: 101.8365118 | V61: 97.426204 | W61: 95.43621569 | X61: 97.0711832 | Y61: 102.8863852 | AA61: 91.0810715 | AB61: 101.9968918 | AC61: 98.43602149 | AD61: 92.12241511 | AE61: 91.98613426 | AF61: 90.45019716 | AG61: 103.49216
B62: Septiembre | C62: 104.614934 | D62: 101.8323974 | E62: 105.0385595 | F62: 106.0884544 | G62: 103.4720011 | H62: 107.4766464 | I62: 100.1435141 | K62: 2.913917515 | L62: -1.683717288 | M62: 15.90004398 | N62: -2.830850683 | O62: -0.7397895812 | P62: 0.9938289515 | Q62: 0.8424829347 | S62: 95.48059672 | T62: 103.5999578 | U62: 103.4255738 | V62: 97.98238705 | W62: 96.02065606 | X62: 97.12694458 | Y62: 103.13171 | AA62: 91.26861059 | AB62: 101.7357545 | AC62: 98.4643871 | AD62: 92.35914273 | AE62: 92.79868472 | AF62: 90.37027845 | AG62: 102.9839135
B63: Octubre | C63: 104.2857094 | D63: 101.7227282 | E63: 104.8859258 | F63: 105.9505805 | G63: 102.8640926 | H63: 104.3366433 | I63: 100.4465743 | K63: 0.7697430382 | L63: -2.592117595 | M63: 13.14017517 | N63: -3.890453193 | O63: -0.946749143 | P63: -1.092067297 | Q63: -0.1937312459 | S63: 96.28841249 | T63: 103.5828234 | U63: 103.6653581 | V63: 98.38795239 | W63: 96.78115257 | X63: 97.40327492 | Y63: 103.2042795 | AA63: 92.33135876 | AB63: 101.8285935 | AC63: 98.83629036 | AD63: 92.86211738 | AE63: 94.08643004 | AF63: 93.35480984 | AG63: 102.7454448
B64: Noviembre | C64: 103.7087573 | D64: 102.197388 | E64: 104.0308017 | F64: 105.0844727 | G64: 102.2866682 | H64: 103.1014438 | I64: 100.3133651 | K64: 0.4269099498 | L64: -0.4632544817 | M64: 14.77118659 | N64: -4.466818071 | O64: 3.081481265 | P64: -0.8700461257 | Q64: -0.7024369118 | S64: 96.52832317 | T64: 103.3192676 | U64: 103.039999 | V64: 98.37083921 | W64: 97.04272842 | X64: 97.56850559 | Y64: 103.1476746 | AA64: 93.07634732 | AB64: 101.0977576 | AC64: 99.04758712 | AD64: 93.61120313 | AE64: 94.87329107 | AF64: 94.63350076 | AG64: 102.8254555
B65: Diciembre | C65: 103.1049962 | D65: 102.8963561 | E65: 102.6744411 | F65: 104.3548759 | G65: 102.364547 | H65: 102.7896797 | I65: 100.1997971 | K65: -0.7356126623 | L65: 0.03858281959 | M65: 10.56164225 | N65: -5.148429595 | O65: 2.998758177 | P65: -0.05240446041 | Q65: -1.818689733 | S65: 97.05620245 | T65: 103.3007618 | U65: 101.7910879 | V65: 98.57687863 | W65: 97.35222244 | X65: 97.50261831 | Y65: 103.3222734 | AA65: 94.13336503 | AB65: 100.3930224 | AC65: 99.1396562 | AD65: 94.46312674 | AE65: 95.10345647 | AF65: 94.85642781 | AG65: 103.1162501
A66: 2000 | B66: Enero | C66: 101.8328729 | D66: 101.6859303 | E66: 105.4552126 | F66: 103.9580575 | G66: 101.8757532 | H66: 103.2685272 | I66: 100.4408458 | K66: -0.1718508832 | L66: 0.2459462017 | M66: 9.939621728 | N66: -3.947548168 | O66: 1.360313002 | P66: -0.2234165127 | Q66: 0.4812414088 | S66: 97.2715771 | T66: 102.3649413 | U66: 104.417729 | V66: 98.13708029 | W66: 97.28962368 | X66: 97.91846977 | Y66: 103.1156995 | AA66: 95.52080217 | AB66: 100.6677531 | AC66: 99.01618563 | AD66: 94.40064832 | AE66: 95.49831106 | AF66: 94.81927596 | AG66: 102.6631135
B67: Febrero | C67: 100.8497047 | D67: 101.6498832 | E67: 103.6494791 | F67: 103.0766388 | G67: 100.3854116 | H67: 104.0014862 | I67: 100.4489776 | K67: -0.8035673125 | L67: 0.1742395941 | M67: 9.305060076 | N67: -3.872146611 | O67: -1.093588033 | P67: -1.368953698 | Q67: 0.8938835047 | S67: 97.15006795 | T67: 102.0754301 | U67: 102.7926748 | V67: 98.15119017 | W67: 97.25598823 | X67: 98.09802721 | Y67: 102.4096875 | AA67: 96.33153435 | AB67: 100.4186399 | AC67: 99.17336362 | AD67: 95.22156653 | AE67: 96.88259151 | AF67: 94.32367828 | AG67: 101.9519461
B68: Marzo | C68: 101.2945999 | D68: 102.4054924 | E68: 102.3468658 | F68: 103.0656321 | G68: 100.5089595 | H68: 104.7802058 | I68: 100.5939982 | K68: -1.483307755 | L68: 1.130081747 | M68: 5.84415487 | N68: -3.701373804 | O68: -3.379107753 | P68: -1.158424648 | Q68: 1.325162479 | S68: 97.62362161 | T68: 102.1747932 | U68: 102.0075708 | V68: 98.39597891 | W68: 97.68441049 | X68: 98.07797977 | Y68: 102.5538936 | AA68: 96.37593884 | AB68: 99.77471985 | AC68: 99.66848519 | AD68: 95.46924318 | AE68: 97.18975397 | AF68: 93.60353806 | AG68: 101.9483223
B69: Abril | C69: 101.9002505 | D69: 102.3132058 | E69: 100.9882457 | F69: 101.9706248 | G69: 100.2610906 | H69: 104.6227843 | I69: 100.4831483 | K69: -1.971643334 | L69: 0.2946661367 | M69: 2.580649917 | N69: -5.162095724 | O69: -4.323686938 | P69: -1.737037516 | Q69: 0.7798390023 | S69: 97.6779202 | T69: 101.8447709 | U69: 101.5403107 | V69: 98.48749644 | W69: 97.85658231 | X69: 97.93049743 | Y69: 102.2337254 | AA69: 95.85640832 | AB69: 99.54215592 | AC69: 100.5466627 | AD69: 96.58418455 | AE69: 97.60175334 | AF69: 93.60341353 | AG69: 101.7421599
B70: Mayo | C70: 101.45058 | D70: 100.9872204 | E70: 101.0343781 | F70: 100.8753111 | G70: 99.29609698 | H70: 104.2090662 | I70: 99.48486495 | K70: -2.151930215 | L70: -1.244879073 | M70: 0.7236005286 | N70: -5.568872914 | O70: -4.562455893 | P70: -2.089320766 | Q70: 0.1273869352 | S70: 97.03611016 | T70: 101.0975079 | U70: 100.6197688 | V70: 98.21974052 | W70: 97.55643884 | X70: 97.51590894 | Y70: 101.2163498 | AA70: 95.64864999 | AB70: 100.1092093 | AC70: 99.58963541 | AD70: 97.36747219 | AE70: 98.24800954 | AF70: 93.57718337 | AG70: 101.7404506
B71: Junio | C71: 101.8298206 | D71: 100.5750783 | E71: 101.6625424 | F71: 101.1051902 | G71: 100.0669669 | H71: 103.9379694 | I71: 100.0974356 | K71: -0.7420756384 | L71: -1.305071008 | M71: 1.025527418 | N71: -4.378863267 | O71: -3.665562277 | P71: -2.521514304 | Q71: 1.232635934 | S71: 98.27277228 | T71: 101.274925 | U71: 101.227526 | V71: 98.88456828 | W71: 98.36176717 | X71: 97.75673605 | Y71: 101.662886 | AA71: 96.50686968 | AB71: 100.695845 | AC71: 99.57209771 | AD71: 97.80365195 | AE71: 98.29594139 | AF71: 94.05295932 | AG71: 101.5639266
B72: Julio | C72: 101.1824704 | D72: 100.8701167 | E72: 102.0895167 | F72: 100.8770275 | G72: 101.0389167 | H72: 103.6869002 | I72: 100.0257202 | K72: -2.127692001 | L72: -0.7456312539 | M72: 2.074234098 | N72: -4.46342809 | O72: -2.999262123 | P72: -3.241270282 | Q72: 1.273383048 | S72: 98.76030711 | T72: 101.1671446 | U72: 101.6556539 | V72: 99.13474672 | W72: 98.71533477 | X72: 97.75474881 | Y72: 101.5456317 | AA72: 97.60614332 | AB72: 100.2944658 | AC72: 99.57501731 | AD72: 98.27286664 | AE72: 97.70030998 | AF72: 94.27878416 | AG72: 101.5195207
B73: Agosto | C73: 100.4535251 | D73: 100.1458575 | E73: 102.3895766 | F73: 100.5187681 | G73: 101.0993439 | H73: 102.3102045 | I73: 100.0053319 | K73: -3.576341357 | L73: -1.662471862 | M73: -1.029381407 | N73: -4.953377005 | O73: -2.555463303 | P73: -4.668122228 | Q73: 0.5941435234 | S73: 98.59254256 | T73: 100.7835014 | U73: 101.3151538 | V73: 99.15505548 | W73: 98.76453619 | X73: 97.50699261 | Y73: 101.0971139 | AA73: 98.14741943 | AB73: 100.6367153 | AC73: 98.95065213 | AD73: 98.64332538 | AE73: 97.69058075 | AF73: 95.30524648 | AG73: 101.0917238
B74: Septiembre | C74: 100.3017619 | D74: 99.77231222 | E74: 103.030302 | F74: 100.8751436 | G74: 101.044798 | H74: 100.7798032 | I74: 99.59735864 | K74: -4.122902888 | L74: -2.0230155 | M74: -1.911924034 | N74: -4.914117061 | O74: -2.345758331 | P74: -6.230975183 | Q74: -0.5453728012 | S74: 98.35637642 | T74: 100.1717412 | U74: 101.5201184 | V74: 99.20429009 | W74: 98.71754939 | X74: 99.21504837 | Y74: 100.6090361 | AA74: 98.06046734 | AB74: 100.4003406 | AC74: 98.53423358 | AD74: 98.34364201 | AE74: 97.69681502 | AF74: 98.44735277 | AG74: 101.0157674
B75: Octubre | C75: 99.74668115 | D75: 99.53355818 | E75: 102.5832408 | F75: 100.4847802 | G75: 100.1787801 | H75: 100.8482837 | I75: 99.48379394 | K75: -4.352493054 | L75: -2.152095256 | M75: -2.195418448 | N75: -5.158820468 | O75: -2.610544139 | P75: -3.343369589 | Q75: -0.9584999692 | S75: 98.24522677 | T75: 99.63957358 | U75: 101.1891433 | V75: 99.16460452 | W75: 98.73341968 | X75: 99.38422063 | Y75: 100.0432751 | AA75: 98.49473249 | AB75: 100.1065122 | AC75: 98.64100849 | AD75: 98.68619337 | AE75: 98.55721898 | AF75: 98.5482519 | AG75: 100.5623842
B76: Noviembre | C76: 99.64637021 | D76: 99.67310419 | E76: 101.2770281 | F76: 99.85791721 | G76: 99.89398726 | H76: 100.6537546 | I76: 99.7963227 | K76: -3.917110983 | L76: -2.470008152 | M76: -2.647075297 | N76: -4.973670584 | O76: -2.339191366 | P76: -2.374059091 | Q76: -0.5154272117 | S76: 98.75112459 | T76: 99.64711897 | U76: 100.3801594 | V76: 99.47902625 | W76: 99.17919056 | X76: 99.58360675 | Y76: 99.93531589 | AA76: 99.10157729 | AB76: 99.97392956 | AC76: 99.11444021 | AD76: 99.62056994 | AE76: 99.28444472 | AF76: 98.93680286 | AG76: 100.1392769
B77: Diciembre | C77: 100 | D77: 100 | E77: 100 | F77: 100 | G77: 100 | H77: 100 | I77: 100 | K77: -3.011489574 | L77: -2.814828628 | M77: -2.604777813 | N77: -4.173140755 | O77: -2.309927721 | P77: -2.713968663 | Q77: -0.1993986912 | S77: 100 | T77: 100 | U77: 100 | V77: 100 | W77: 100 | X77: 100 | Y77: 100 | AA77: 100 | AB77: 100 | AC77: 100 | AD77: 100 | AE77: 100 | AF77: 100 | AG77: 100
A78: 2001 | B78: Enero | C78: 99.88509622 | D78: 99.16860407 | E78: 99.95156024 | F78: 99.69871559 | G78: 100.3445763 | H78: 101.6136292 | I78: 100.266636 | K78: -1.912718998 | L78: -2.475589553 | M78: -5.218947652 | N78: -4.097173459 | O78: -1.502984566 | P78: -1.602519173 | Q78: -0.1734451494 | S78: 100.774736 | T78: 100.2815728 | U78: 100.6633899 | V78: 99.93026444 | W78: 100.3729688 | X78: 100.5578764 | Y78: 99.69443504 | AA78: 100.8906631 | AB78: 101.1222995 | AC78: 100.7121746 | AD78: 100.2322486 | AE78: 100.0282949 | AF78: 98.96101254 | AG78: 99.4293207
B79: Febrero | C79: 99.33731272 | D79: 99.8010366 | E79: 98.59515153 | F79: 99.10295616 | G79: 99.86161808 | H79: 101.9932165 | I79: 100.5322136 | K79: -1.499649411 | L79: -1.818837862 | M79: -4.876365661 | N79: -3.855075846 | O79: -0.5217824787 | P79: -1.931000957 | Q79: 0.08286387672 | S79: 100.9974291 | T79: 100.2302385 | U79: 99.67976261 | V79: 100.2265086 | W79: 100.6873121 | X79: 100.6951189 | Y79: 99.52933631 | AA79: 101.6711912 | AB79: 100.4300575 | AC79: 101.1000653 | AD79: 101.1337224 | AE79: 100.8268382 | AF79: 98.72727069 | AG79: 99.00243195
B80: Marzo | C80: 98.03848196 | D80: 99.76618563 | E80: 97.55101098 | F80: 98.51731829 | G80: 100.3575191 | H80: 102.4160714 | I80: 100.0192212 | K80: -3.214502947 | L80: -2.577309773 | M80: -4.685883399 | N80: -4.413026618 | O80: -0.1506735647 | P80: -2.2562796 | Q80: -0.5713830598 | S80: 101.0614735 | T80: 99.99264792 | U80: 98.78483982 | V80: 100.2309237 | W80: 100.7362281 | X80: 100.4203914 | Y80: 98.80109281 | AA80: 103.0834744 | AB80: 100.226993 | AC80: 101.2648037 | AD80: 101.7393951 | AE80: 100.3773598 | AF80: 98.05139961 | AG80: 98.78210574
B81: Abril | C81: 97.41671785 | D81: 99.88848998 | E81: 98.00844589 | F81: 98.52248859 | G81: 100.3921561 | H81: 102.0600668 | I81: 99.89028296 | K81: -4.399923087 | L81: -2.369895307 | M81: -2.950640199 | N81: -3.381499547 | O81: 0.1307242722 | P81: -2.449483156 | Q81: -0.5900146726 | S81: 101.2269515 | T81: 99.77110894 | U81: 99.23430997 | V81: 100.4390035 | W81: 100.9692725 | X81: 100.2763413 | Y81: 98.35826062 | AA81: 103.9112729 | AB81: 99.88248793 | AC81: 101.2507739 | AD81: 101.9452563 | AE81: 100.574862 | AF81: 98.25227868 | AG81: 98.46629492
B82: Mayo | C82: 97.33586742 | D82: 100.0472463 | E82: 98.39615311 | F82: 98.04824656 | G82: 100.4960205 | H82: 102.1523685 | I82: 100.1053342 | K82: -4.055878794 | L82: -0.9307851952 | M82: -2.611215124 | N82: -2.802533695 | O82: 1.208429717 | P82: -1.973626446 | Q82: 0.6236820827 | S82: 101.415837 | T82: 99.63852346 | U82: 99.53763553 | V82: 100.7932259 | W82: 101.3977476 | X82: 100.2121276 | Y82: 98.2774392 | AA82: 104.1916404 | AB82: 99.59147014 | AC82: 101.1600885 | AD82: 102.7996211 | AE82: 100.8972764 | AF82: 98.10064036 | AG82: 98.17402835
B83: Junio | C83: 97.40129824 | D83: 99.91867569 | E83: 98.02757024 | F83: 97.85247042 | G83: 100.1991319 | H83: 102.7288502 | I83: 100.7464716 | K83: =(C83/C71-1)*100 -> -4.3489445 | L83: =(D83/D71-1)*100 -> -0.6526494047 | M83: =(E83/E71-1)*100 -> -3.575527484 | N83: =(F83/F71-1)*100 -> -3.217163957 | O83: =(G83/G71-1)*100 -> 0.1320765168 | P83: =(H83/H71-1)*100 -> -1.163308415 | Q83: =(I83/I71-1)*100 -> 0.6484042458 | S83: 101.6134366 | T83: 99.41161782 | U83: 99.76640397 | V83: 101.0526702 | W83: 101.5825139 | X83: 100.0819835 | Y83: 98.10148145 | AA83: 104.3245197 | AB83: 99.49252944 | AC83: 101.7738211 | AD83: 103.2704333 | AE83: 101.3806327 | AF83: 97.42344361 | AG83: 97.37460764
B84: Julio | C84: 97.14469964 | D84: 99.80710828 | E84: 96.86301278 | F84: 97.45697297 | G84: 100.9065396 | H84: 102.6464095 | I84: 100.295919 | K84: -3.990583318 | L84: -1.053838745 | M84: -5.119530485 | N84: -3.390320504 | O84: -0.1310159107 | P84: -1.003492922 | Q84: 0.2701293716 | S84: 102.129733 | T84: 99.2666679 | U84: 99.5905744 | V84: 101.3269077 | W84: 101.9166367 | X84: 100.0113472 | Y84: 97.8869964 | AA84: 105.1315546 | AB84: 99.45851514 | AC84: 102.8158959 | AD84: 103.9709162 | AE84: 101.0010225 | AF84: 97.43287442 | AG84: 97.59818482
B85: Agosto | C85: 97.8383738 | D85: 100.0360973 | E85: 96.90641894 | F85: 97.42995023 | G85: 101.9906238 | H85: 102.2879007 | I85: 101.0971235 | K85: -2.60334443 | L85: -0.1096002706 | M85: -5.355191263 | N85: -3.072876761 | O85: 0.8815881928 | P85: -0.02180017768 | Q85: 1.091733465 | S85: 103.5264634 | T85: 99.51807763 | U85: 100.7064159 | V85: 101.8342574 | W85: 102.9338543 | X85: 100.3473366 | Y85: 98.57215592 | AA85: 105.8137614 | AB85: 99.48216722 | AC85: 103.9213057 | AD85: 104.520486 | AE85: 100.9248208 | AF85: 98.10284095 | AG85: 97.50243378
B86: Septiembre | C86: 98.15850177 | D86: 100.1217193 | E86: 98.01471028 | F86: 97.41616356 | G86: 102.7053528 | H86: 101.7696312 | I86: 100.4802066 | K86: -2.136811996 | L86: 0.3502045072 | M86: -4.868074376 | N86: -3.428971608 | O86: 1.643384789 | P86: 0.9821690508 | Q86: 0.8864169913 | S86: 104.0664857 | T86: 99.17017189 | U86: 101.7508855 | V86: 102.191009 | W86: 103.2638408 | X86: 100.2984919 | Y86: 98.44275601 | AA86: 106.0188204 | AB86: 99.04960935 | AC86: 103.8118515 | AD86: 104.901492 | AE86: 100.5437769 | AF86: 98.5544417 | AG86: 97.97228667
B87: Octubre | C87: 98.46143717 | D87: 101.0340075 | E87: 98.84245027 | F87: 97.35454366 | G87: 102.4641266 | H87: 101.1613946 | I87: 100.0532287 | K87: -1.288508013 | L87: 1.50748083 | M87: -3.646590337 | N87: -3.115135006 | O87: 2.281268055 | P87: 0.3104772081 | Q87: 0.5723894506 | S87: 104.5026845 | T87: 98.74905338 | U87: 103.6008656 | V87: 102.5394573 | W87: 103.3656142 | X87: 100.1864598 | Y87: 98.12678282 | AA87: 106.1356482 | AB87: 97.73843069 | AC87: 104.8141414 | AD87: 105.3258055 | AE87: 100.879808 | AF87: 99.03625807 | AG87: 98.07457901
B88: Noviembre | C88: 98.12829784 | D88: 99.73298079 | E88: 97.84225297 | F88: 97.56300357 | G88: 102.3514629 | H88: 101.6512976 | I88: 100.3188104 | K88: -1.523459777 | L88: 0.06007298066 | M88: -3.39146513 | N88: -2.298178957 | O88: 2.460083635 | P88: 0.9910638606 | Q88: 0.523554062 | S88: 105.0971243 | T88: 98.66043558 | U88: 103.210317 | V88: 103.2746443 | W88: 103.5705127 | X88: 100.7189052 | Y88: 98.00421412 | AA88: 107.1017501 | AB88: 98.92458321 | AC88: 105.4864477 | AD88: 105.8543101 | AE88: 101.1910429 | AF88: 99.0827541 | AG88: 97.69275944
B89: Diciembre | C89: 97.84864204 | D89: 100.9990768 | E89: 95.58611575 | F89: 97.49343248 | G89: 102.6399073 | H89: 102.4350243 | I89: 100.4751073 | K89: -2.151357959 | L89: 0.9990767946 | M89: -4.413884247 | N89: -2.506567516 | O89: 2.639907259 | P89: 2.435024254 | Q89: 0.4751072735 | S89: 106.0639004 | T89: 98.82950727 | U89: 101.5841616 | V89: 103.7940884 | W89: 103.9415305 | X89: 102.0103339 | Y89: 97.8579108 | AA89: 108.3958838 | AB89: 97.85189172 | AC89: 106.2750179 | AD89: 106.4626465 | AE89: 101.2681454 | AF89: 99.5854051 | AG89: 97.39517922
A90: 2002 | B90: Enero | C90: 97.44049555 | D90: 99.78904734 | E90: 95.08910466 | F90: 97.98012447 | G90: 102.9017426 | H90: 101.952125 | I90: 99.83891949 | K90: -2.447412843 | L90: 0.625644853 | M90: -4.864812086 | N90: -1.723784617 | O90: 2.548385153 | P90: 0.3331204789 | Q90: -0.4265790773 | S90: 106.4590303 | T90: 98.89401105 | U90: 101.6432525 | V90: 103.7735508 | W90: 103.9007897 | X90: 102.1646539 | Y90: 97.48437071 | AA90: 109.2554279 | AB90: 99.10307162 | AC90: 106.8926381 | AD90: 105.9128587 | AE90: 100.9708748 | AF90: 100.2084595 | AG90: 97.64165238
B91: Febrero | C91: 98.00346759 | D91: 99.90112056 | E91: 93.55081783 | F91: 97.86584575 | G91: 102.643779 | H91: 102.7747968 | I91: 100.1209894 | K91: -1.34274332 | L91: 0.1002834874 | M91: -5.116208681 | N91: -1.248308288 | O91: 2.786016242 | P91: 0.7663062217 | Q91: -0.4090471751 | S91: 107.1655333 | T91: 98.88118257 | U91: 100.5242679 | V91: 104.3884966 | W91: 104.1145122 | X91: 102.6620359 | Y91: 97.28442191 | AA91: 109.3487159 | AB91: 98.97905251 | AC91: 107.454184 | AD91: 106.6648899 | AE91: 101.4328518 | AF91: 99.89028346 | AG91: 97.16686033
B92: Marzo | C92: 98.79586845 | D92: 99.93511992 | E92: 93.22333566 | F92: 98.46606223 | G92: 103.5750617 | H92: 102.261944 | I92: 100.4751724 | K92: 0.7725400018 | L92: 0.1693302069 | M92: -4.436320317 | N92: -0.05202745935 | O92: 3.206080214 | P92: -0.150491331 | Q92: 0.45586366 | S92: 108.3182319 | T92: 98.95220953 | U92: 100.3030682 | V92: 105.0752825 | W92: 104.7905369 | X92: 102.7828839 | Y92: 97.47687227 | AA92: 109.6384227 | AB92: 99.01645149 | AC92: 107.5943781 | AD92: 106.7121809 | AE92: 101.1735211 | AF92: 100.5094171 | AG92: 97.01587954
B93: Abril | C93: 100.0500826 | D93: 100.156318 | E93: 92.05962852 | F93: 98.81617019 | G93: 104.0187088 | H93: 104.6008626 | I93: 101.0793732 | K93: 2.703195946 | L93: 0.2681269895 | M93: -6.069698705 | N93: 0.2980858616 | O93: 3.612386505 | P93: 2.489510208 | Q93: 1.190396316 | S93: 109.3264142 | T93: 99.01661625 | U93: 99.12326534 | V93: 105.7113056 | W93: 105.3512722 | X93: 105.3002271 | Y93: 97.56582134 | AA93: 109.2716881 | AB93: 98.86207705 | AC93: 107.672893 | AD93: 106.97774 | AE93: 101.2810805 | AF93: 100.668603 | AG93: 96.5239675
B94: Mayo | C94: 100.6668694 | D94: 100.241935 | E94: 92.36751726 | F94: 99.02805354 | G94: 104.5638787 | H94: 105.2464435 | I94: 101.6308096 | K94: 3.422173188 | L94: 0.1945967531 | M94: -6.12690198 | N94: 0.9993110705 | O94: 4.047780349 | P94: 3.028882312 | Q94: 1.523870238 | S94: 110.5907866 | T94: 98.95827676 | U94: 99.68291182 | V94: 106.3566309 | W94: 106.2191616 | X94: 105.5285831 | Y94: 97.78245499 | AA94: 109.858176 | AB94: 98.71943985 | AC94: 107.9198779 | AD94: 107.4005063 | AE94: 101.5830351 | AF94: 100.2680752 | AG94: 96.21339764
B95: Junio | C95: 101.3904806 | D95: 99.7474096 | E95: 92.42527195 | F95: 98.68413657 | G95: 105.6163145 | H95: 105.401805 | I95: 101.8338817 | K95: 4.095615179 | L95: -0.1714054786 | M95: -5.715023102 | N95: 0.8499183982 | O95: 5.406416687 | P95: 2.601951455 | Q95: 1.079353043 | S95: 111.9639622 | T95: 98.92610462 | U95: 100.0931307 | V95: 107.0013915 | W95: 107.1951335 | X95: 105.7463798 | Y95: 97.94392769 | AA95: 110.4284757 | AB95: 99.17661522 | AC95: 108.2962793 | AD95: 108.428158 | AE95: 101.4948628 | AF95: 100.3269154 | AG95: 96.18009843
B96: Julio | C96: 101.2912654 | D96: 99.97258445 | E96: 91.4780508 | F96: 98.83593369 | G96: 106.4895597 | H96: 105.3061799 | I96: 101.8777612 | K96: 4.268442661 | L96: 0.1657959771 | M96: -5.559358339 | N96: 1.414943106 | O96: 5.532862548 | P96: 2.591196812 | Q96: 1.57717501 | S96: 113.352931 | T96: 99.06339349 | U96: 99.68397841 | V96: 107.8064301 | W96: 107.9234473 | X96: 105.9720304 | Y96: 98.0110281 | AA96: 111.9079029 | AB96: 99.09055971 | AC96: 108.9703787 | AD96: 109.0761488 | AE96: 101.3465053 | AF96: 100.6322995 | AG96: 96.20453666
B97: Agosto | C97: 101.0072618 | D97: 100.6637134 | E97: 90.50866863 | F97: 98.87205065 | G97: 106.8184178 | H97: 104.5810816 | I97: 101.3132556 | K97: 3.238900892 | L97: 0.6273896339 | M97: -6.601988175 | N97: 1.480140776 | O97: 4.733566555 | P97: 2.241888688 | Q97: 0.213786586 | S97: 114.0721089 | T97: 99.04455093 | U97: 98.31451214 | V97: 108.2574675 | W97: 108.0435275 | X97: 105.8318372 | Y97: 97.48233074 | AA97: 112.9345623 | AB97: 98.39151324 | AC97: 108.6244154 | AD97: 109.4924873 | AE97: 101.1469086 | AF97: 101.1959673 | AG97: 96.21873283
B98: Septiembre | C98: 101.0507917 | D98: 100.7615594 | E98: 90.40455479 | F98: 98.91993583 | G98: 106.7422541 | H98: 102.9655476 | I98: 100.7603227 | K98: 2.946550571 | L98: 0.6390621914 | M98: -7.76429933 | N98: 1.543657861 | O98: 3.930565567 | P98: 1.175121037 | Q98: 0.2787774325 | S98: 114.3433183 | T98: 98.64106261 | U98: 97.7418348 | V98: 108.348231 | W98: 108.3170667 | X98: 105.436983 | Y98: 96.63050014 | AA98: 113.1543023 | AB98: 97.89552999 | AC98: 108.1160513 | AD98: 109.5312386 | AE98: 101.4753414 | AF98: 102.4002547 | AG98: 95.90134048
B99: Octubre | C99: 101.4745088 | D99: 100.8509928 | E99: 89.55943866 | F99: 99.06081721 | G99: 107.1749075 | H99: 100.145072 | I99: 100.3841861 | K99: 3.060153997 | L99: -0.1811417207 | M99: -9.391725501 | N99: 1.752638837 | O99: 4.59749283 | P99: -1.004654588 | Q99: 0.3307813824 | S99: 115.3077306 | T99: 98.61998217 | U99: 96.85607926 | V99: 108.8727981 | W99: 108.5547112 | X99: 105.3231947 | Y99: 96.28586759 | AA99: 113.6322136 | AB99: 97.78781495 | AC99: 108.1472603 | AD99: 109.905007 | AE99: 101.2874316 | AF99: 105.1706215 | AG99: 95.91736637
B100: Noviembre | C100: 101.9146968 | D100: 101.4570637 | E100: 88.13516225 | F100: 99.32033101 | G100: 108.3903629 | H100: 99.87180248 | I100: 101.0750762 | K100: 3.858620853 | L100: 1.728698904 | M100: -9.921164346 | N100: 1.801223184 | O100: 5.900159952 | P100: -1.750587679 | Q100: 0.7538624454 | S100: 116.8621282 | T100: 98.85853873 | U100: 95.56680514 | V100: 109.7054539 | W100: 109.3291405 | X100: 105.4616557 | Y100: 96.85113621 | AA100: 114.6666102 | AB100: 97.43879341 | AC100: 108.4320976 | AD100: 110.4561904 | AE100: 100.866108 | AF100: 105.5970285 | AG100: 95.82098755
B101: Diciembre | C101: 102.3439782 | D101: 101.218893 | E101: 88.21837717 | F101: 99.18153589 | G101: 108.266967 | H101: 98.12082145 | I101: 101.2981575 | K101: 4.594173226 | L101: 0.2176417718 | M101: -7.707958973 | N101: 1.731504746 | O101: 5.482331287 | P101: -4.211648153 | Q101: 0.8191583772 | S101: 118.1437707 | T101: 98.83174471 | U101: 96.0591024 | V101: 110.2558447 | W101: 109.7318704 | X101: 105.5666296 | Y101: 96.76860183 | AA101: 115.4379309 | AB101: 97.64159813 | AC101: 108.8878593 | AD101: 111.165696 | AE101: 101.3530474 | AF101: 107.5884078 | AG101: 95.52849152
A102: 2003 | B102: Enero | C102: 103.0800471 | D102: 100.0918752 | E102: 89.56348694 | F102: 99.64517461 | G102: 108.4721645 | H102: 95.85956288 | I102: 101.592385 | K102: 5.78768765 | L102: 0.3034679983 | M102: -5.810989322 | N102: 1.699375412 | O102: 5.413340635 | P102: -5.975905022 | Q102: 1.756294578 | S102: 119.0677956 | T102: 98.34450699 | U102: 98.32706826 | V102: 110.8923218 | W102: 110.1734555 | X102: 105.3778696 | Y102: 96.61091568 | AA102: 115.5100322 | AB102: 98.25423575 | AC102: 109.7847701 | AD102: 111.287197 | AE102: 101.5684125 | AF102: 109.9294285 | AG102: 95.09661149
B103: Febrero | C103: 103.7252541 | D103: 100.3552303 | E103: 89.58517453 | F103: 99.31665296 | G103: 107.794617 | H103: 95.90990077 | I103: 102.0278178 | K103: 5.838351073 | L103: 0.4545592118 | M103: -4.2390258 | N103: 1.482444875 | O103: 5.018168696 | P103: -6.679552057 | Q103: 1.904524159 | S103: 119.9616682 | T103: 98.11355496 | U103: 98.39088578 | V103: 111.2633259 | W103: 110.4314735 | X103: 108.8465483 | Y103: 96.34129295 | AA103: 115.6532894 | AB103: 97.76625958 | AC103: 109.8294291 | AD103: 112.0288719 | AE103: 102.4461857 | AF103: 113.4883338 | AG103: 94.42649565
B104: Marzo | C104: 104.3726332 | D104: 100.4347652 | E104: 90.38935811 | F104: 99.78297229 | G104: 108.5673141 | H104: 118.6157094 | I104: 102.3396625 | K104: 5.644734753 | L104: 0.4999696278 | M104: -3.039987285 | N104: 1.337425329 | O104: 4.819936738 | P104: 15.99203444 | Q104: 1.855672383 | S104: 120.8395014 | T104: 97.94971965 | U104: 99.17050593 | V104: 111.6240843 | W104: 110.8851889 | X104: 136.1932075 | Y104: 96.17086643 | AA104: 115.776998 | AB104: 97.52571182 | AC104: 109.7148027 | AD104: 111.8668664 | AE104: 102.1349656 | AF104: 114.8188619 | AG104: 93.97223336
B105: Abril | C105: 104.6391539 | D105: 100.6527127 | E105: 90.29462783 | F105: 99.92511531 | G105: 109.6427527 | H105: 124.0023424 | I105: 102.7444342 | K105: 4.586774101 | L105: 0.4956199685 | M105: -1.917236384 | N105: 1.122230414 | O105: 5.406761868 | P105: 18.54810685 | Q105: 1.647280733 | S105: 122.3329765 | T105: 98.12981171 | U105: 99.51643471 | V105: 112.3668458 | W105: 111.6365858 | X105: 142.9315384 | Y105: 96.47449878 | AA105: 116.9093708 | AB105: 97.49345953 | AC105: 110.2130183 | AD105: 112.4510544 | AE105: 101.8184814 | AF105: 115.2651923 | AG105: 93.89754247
B106: Mayo | C106: 106.2346234 | D106: 101.2458767 | E106: 90.82337763 | F106: 100.9377716 | G106: 110.3676695 | H106: 132.8216249 | I106: 104.0980101 | K106: 5.530870317 | L106: 1.001518609 | M106: -1.671734473 | N106: 1.928461648 | O106: 5.550473932 | P106: 26.20058267 | Q106: 2.427610751 | S106: 124.9399356 | T106: 98.62547851 | U106: 100.4289677 | V106: 113.7408212 | W106: 113.2463042 | X106: 155.1177216 | Y106: 97.5737393 | AA106: 117.6075479 | AB106: 97.41184704 | AC106: 110.5761207 | AD106: 112.6841018 | AE106: 102.6082227 | AF106: 116.7864959 | AG106: 93.73256916
B107: Junio | C107: 106.5327572 | D107: 100.9206663 | E107: 90.74042512 | F107: 101.1276398 | G107: 109.6862173 | H107: 142.71543 | I107: 104.0424012 | K107: 5.071754883 | L107: 1.176227696 | M107: -1.822928724 | N107: 2.476085124 | O107: 3.853479331 | P107: 35.40131493 | Q107: 2.168747235 | S107: 125.9698315 | T107: 98.47605079 | U107: 100.4749017 | V107: 114.1281066 | W107: 113.5828736 | X107: 175.1002959 | Y107: 97.52230327 | AA107: 118.2451621 | AB107: 97.57768595 | AC107: 110.7278278 | AD107: 112.855503 | AE107: 103.5525487 | AF107: 122.6919163 | AG107: 93.73323003
B108: Julio | C108: 106.0505863 | D108: 101.2025092 | E108: 90.24825986 | F108: 100.9191776 | G108: 110.2516652 | H108: 163.8893274 | I108: 103.5079743 | K108: 4.698648807 | L108: 1.230261984 | M108: -1.344356301 | N108: 2.107779879 | O108: 3.532839706 | P108: 55.63125308 | Q108: 1.600165808 | S108: 126.327086 | T108: 98.24876349 | U108: 100.1251901 | V108: 114.2324079 | W108: 113.9387625 | X108: 208.2774503 | Y108: 97.03669556 | AA108: 119.1196489 | AB108: 97.08135135 | AC108: 110.944178 | AD108: 113.1919726 | AE108: 103.3442554 | AF108: 127.0842059 | AG108: 93.74803848
B109: Agosto | C109: 106.2617135 | D109: 100.9434102 | E109: 89.93185863 | F109: 100.347436 | G109: 109.9745074 | H109: 155.8209243 | I109: 103.3093982 | K109: 5.202053454 | L109: 0.2778526432 | M109: -0.6372980628 | N109: 1.492216795 | O109: 2.954630495 | P109: 48.99532679 | Q109: 1.970267915 | S109: 126.6606275 | T109: 97.94535971 | U109: 99.68078319 | V109: 114.2223359 | W109: 113.178646 | X109: 203.3138795 | Y109: 96.59589153 | AA109: 119.1968615 | AB109: 97.02996906 | AC109: 110.8403459 | AD109: 113.8268605 | AE109: 102.9135285 | AF109: 130.4791898 | AG109: 93.50155284
B110: Septiembre | C110: 107.6706683 | D110: 101.1765415 | E110: 90.71272267 | F110: 100.8139643 | G110: 111.1923635 | H110: 145.1521028 | I110: 104.239861 | K110: 6.551038883 | L110: 0.4118456141 | M110: 0.3408764926 | N110: 1.914708597 | O110: 4.169023269 | P110: 40.97152514 | Q110: 3.453282228 | S110: 128.0417646 | T110: 97.90773227 | U110: 100.6041193 | V110: 114.9010109 | W110: 114.3355001 | X110: 191.5274639 | Y110: 96.91990316 | AA110: 118.9198197 | AB110: 96.76920248 | AC110: 110.9040897 | AD110: 113.9733089 | AE110: 102.8267559 | AF110: 131.9494931 | AG110: 92.97777474
B111: Octubre | C111: 107.9096945 | D111: 100.8897231 | E111: 91.88276871 | F111: 101.1571809 | G111: 112.2336447 | H111: 156.3872801 | I111: 105.0460532 | K111: 6.341677095 | L111: 0.03840354043 | M111: 2.594176653 | N111: 2.116239 | O111: 4.720076083 | P111: 56.16073457 | Q111: 4.644025365 | S111: 129.7248 | T111: 97.85345634 | U111: 102.1920837 | V111: 115.6874531 | W111: 115.6099416 | X111: 211.7432388 | Y111: 97.25745838 | AA111: 120.2160758 | AB111: 96.99050937 | AC111: 111.2200743 | AD111: 114.3640542 | AE111: 103.0082752 | AF111: 135.3967143 | AG111: 92.58554264
B112: Noviembre | C112: 107.233813 | D112: 100.7996213 | E112: 91.2587381 | F112: 100.8935465 | G112: 111.6546775 | H112: 167.6387126 | I112: 104.946782 | K112: 5.219184687 | L112: -0.6480006889 | M112: 3.544074542 | N112: 1.583981286 | O112: 3.011628067 | P112: 67.85389715 | Q112: 3.830524712 | S112: 130.6777295 | T112: 97.78659764 | U112: 101.8354539 | V112: 116.0931391 | W112: 115.7293581 | X112: 240.9610557 | Y112: 97.18033285 | AA112: 121.8624292 | AB112: 97.01087803 | AC112: 111.5898116 | AD112: 115.06498 | AE112: 103.6493595 | AF112: 143.738312 | AG112: 92.59963097
B113: Diciembre | C113: 107.8150844 | D113: 100.9619011 | E113: 90.6024163 | F113: 101.6156545 | G113: 111.9711131 | H113: 152.8923864 | I113: 105.9986035 | K113: 5.345801848 | L113: -0.2538970965 | M113: 2.702429142 | N113: 2.454205377 | O113: 3.421307697 | P113: 55.82053246 | Q113: 4.64020872 | S113: 132.8430099 | T113: 98.01345383 | U113: 101.5076721 | V113: 117.0877294 | W113: 116.6367003 | X113: 227.8930581 | Y113: 97.75491006 | AA113: 123.2137513 | AB113: 97.07964363 | AC113: 112.0363851 | AD113: 115.2260742 | AE113: 104.1667776 | AF113: 149.0545497 | AG113: 92.22282829
A114: 2004 | B114: Enero | C114: 107.6263737 | D114: 100.4725699 | E114: 90.86599563 | F114: 102.0108607 | G114: 111.6511682 | H114: 176.3607498 | I114: 106.4346519 | K114: 4.410481714 | L114: 0.3803452804 | M114: 1.454285368 | N114: 2.374110038 | O114: 2.930709257 | P114: 83.97825374 | Q114: 4.766367979 | S114: 134.4272544 | T114: 97.94832791 | U114: 103.2209182 | V114: 117.726629 | W114: 116.8654244 | X114: 279.2569015 | Y114: 97.95840233 | AA114: 124.9017781 | AB114: 97.48763073 | AC114: 113.5968604 | AD114: 115.4059756 | AE114: 104.6701313 | AF114: 158.3441337 | AG114: 92.03619362
B115: Febrero | C115: 107.4697584 | D115: 100.5011845 | E115: 90.53873352 | F115: 101.6852956 | G115: 110.970898 | H115: 170.022954 | I115: 106.910802 | K115: 3.610021786 | L115: 0.145437555 | M115: 1.064416062 | N115: 2.384940078 | O115: 2.946604481 | P115: 77.27362101 | Q115: 4.785934203 | S115: 135.2120532 | T115: 97.79983834 | U115: 103.0182833 | V115: 118.0575278 | W115: 116.9059912 | X115: 297.9888081 | Y115: 97.79900664 | AA115: 125.8140478 | AB115: 97.31212505 | AC115: 113.7836584 | AD115: 116.1008847 | AE115: 105.3483331 | AF115: 175.2638695 | AG115: 91.47719854
B116: Marzo | C116: 107.9951368 | D116: 100.2904998 | E116: 90.16792717 | F116: 102.009085 | G116: 111.125859 | H116: 157.7944226 | I116: 107.475205 | K116: 3.47074085 | L116: -0.143640842 | M116: -0.2449745647 | N116: 2.230954455 | O116: 2.356643848 | P116: 33.02995316 | Q116: 5.018135068 | S116: 135.7012108 | T116: 97.64466249 | U116: 102.7344272 | V116: 118.1743769 | W116: 116.9817645 | X116: 281.2538272 | Y116: 97.52982802 | AA116: 125.6549275 | AB116: 97.36182655 | AC116: 113.9367738 | AD116: 115.8469139 | AE116: 105.2696155 | AF116: 178.2406644 | AG116: 90.7463522
B117: Abril | C117: 107.8356581 | D117: 99.70414008 | E117: 89.23479949 | F117: 101.5242925 | G117: 110.75444 | H117: 149.790163 | I117: 107.6964965 | K117: 3.054787934 | L117: -0.9424213069 | M117: -1.173744619 | N117: 1.600375656 | O117: 1.013917665 | P117: 20.79623674 | Q117: 4.819786364 | S117: 136.2286612 | T117: 97.50912186 | U117: 101.8194845 | V117: 118.3827635 | W117: 117.0165381 | X117: 267.8332976 | Y117: 97.35829958 | AA117: 126.3298834 | AB117: 97.79846833 | AC117: 114.1028893 | AD117: 116.6053568 | AE117: 105.654038 | AF117: 178.8056653 | AG117: 90.40061911
B118: Mayo | C118: 107.8848663 | D118: 99.26261254 | E118: 87.74979323 | F118: 101.2574449 | G118: 110.2017873 | H118: 154.6268236 | I118: 106.983449 | K118: 1.553394573 | L118: -1.958859151 | M118: -3.384133563 | N118: 0.3167033898 | O118: -0.1502996177 | P118: 16.41690403 | Q118: 2.771848245 | S118: 136.5469002 | T118: 97.21968853 | U118: 100.4833989 | V118: 118.3739694 | W118: 116.8877353 | X118: 282.3102119 | Y118: 96.54932587 | AA118: 126.5672424 | AB118: 97.94189981 | AC118: 114.5112658 | AD118: 116.9039664 | AE118: 106.067005 | AF118: 182.5751867 | AG118: 90.24697447
B119: Junio | C119: 108.1561634 | D119: 99.5969681 | E119: 87.34211688 | F119: 101.6119293 | G119: 110.9838082 | H119: 156.3042648 | I119: 107.2263899 | K119: 1.523856292 | L119: -1.311622497 | M119: -3.745087423 | N119: 0.4788894043 | O119: 1.183002648 | P119: 9.521629751 | Q119: 3.060279885 | S119: 137.998706 | T119: 97.37196135 | U119: 100.1340062 | V119: 119.1747964 | W119: 117.6965587 | X119: 290.2304584 | Y119: 96.84724519 | AA119: 127.592087 | AB119: 97.76598948 | AC119: 114.6457285 | AD119: 117.2842571 | AE119: 106.0484053 | AF119: 185.6830066 | AG119: 90.32034491
B120: Julio | C120: 107.8672041 | D120: 99.47152072 | E120: 86.59813712 | F120: 100.9437804 | G120: 110.8654917 | H120: 144.8678035 | I120: 107.4757813 | K120: 1.712972945 | L120: -1.710420472 | M120: -4.044535313 | N120: 0.02437874252 | O120: 0.5567503754 | P120: -11.60632255 | Q120: 3.833334674 | S120: 139.4497597 | T120: 97.48236913 | U120: 99.65808378 | V120: 119.8844502 | W120: 118.062183 | X120: 270.9176076 | Y120: 97.13043763 | AA120: 129.2791084 | AB120: 98.0002803 | AC120: 115.0810942 | AD120: 118.7635827 | AE120: 106.4913718 | AF120: 187.0102267 | AG120: 90.37425586
B121: Agosto | C121: 107.8824692 | D121: 99.42357441 | E121: 86.73500467 | F121: 101.2704078 | G121: 111.1955423 | H121: 132.7382363 | I121: 107.4757076 | K121: 1.52524897 | L121: -1.505631531 | M121: -3.55475136 | N121: 0.9197761479 | O121: 1.110289091 | P121: -14.81359975 | Q121: 4.03284647 | S121: 140.5614953 | T121: 97.46028073 | U121: 99.87160774 | V121: 120.4334013 | W121: 118.3308226 | X121: 249.2581844 | Y121: 97.20276346 | AA121: 130.291322 | AB121: 98.02532378 | AC121: 115.1456763 | AD121: 118.9225994 | AE121: 106.4168762 | AF121: 187.7817511 | AG121: 90.44161293
B122: Septiembre | C122: 108.4390204 | D122: 99.57752184 | E122: 86.27383538 | F122: 101.9969328 | G122: 111.0710283 | H122: 120.7210171 | I122: 108.2904774 | K122: 0.7136131546 | L122: -1.580425266 | M122: -4.893345893 | N122: 1.173417304 | O122: -0.109121872 | P122: -16.83136876 | Q122: 3.885861309 | S122: 141.9958638 | T122: 97.51477482 | U122: 99.84171693 | V122: 121.0855757 | W122: 118.4488036 | X122: 223.5046091 | Y122: 97.43758947 | AA122: 130.9453583 | AB122: 97.92850135 | AC122: 115.7265311 | AD122: 118.7149185 | AE122: 106.642394 | AF122: 185.1414232 | AG122: 89.97798493
B123: Octubre | C123: 109.6831656 | D123: 100.0164121 | E123: 85.36795922 | F123: 102.5080592 | G123: 110.8690871 | H123: 104.7989432 | I123: 109.1401262 | K123: 1.643477166 | L123: -0.8656094606 | M123: -7.090349557 | N123: 1.335425074 | O123: -1.215818633 | P123: -32.98755302 | Q123: 3.897407724 | S123: 143.973337 | T123: 97.77410824 | U123: 99.27663365 | V123: 122.1095109 | W123: 119.1770138 | X123: 195.6823509 | Y123: 97.81330971 | AA123: 131.26293 | AB123: 97.75806408 | AC123: 116.2926168 | AD123: 119.121864 | AE123: 107.4934564 | AF123: 186.7216835 | AG123: 89.6217671
B124: Noviembre | C124: 110.2138085 | D124: 100.6659652 | E124: 84.60150132 | F124: 102.8803957 | G124: 111.2116019 | H124: 98.22237883 | I124: 110.3799204 | K124: 2.778969959 | L124: -0.1325957701 | M124: -7.294903386 | N124: 1.969253064 | O124: -0.3968267675 | P124: -41.40829568 | Q124: 5.177041466 | S124: 146.5234848 | T124: 98.17387023 | U124: 99.22790589 | V124: 123.3531501 | W124: 120.157135 | X124: 180.2141312 | Y124: 98.74675465 | AA124: 132.9447615 | AB124: 97.52439168 | AC124: 117.2885875 | AD124: 119.8995681 | AE124: 108.043705 | AF124: 183.4756329 | AG124: 89.46079528
B125: Diciembre | C125: 110.5672542 | D125: 100.6781404 | E125: 84.56973354 | F125: 103.2392505 | G125: 112.0585504 | H125: 97.57185937 | I125: 110.728378 | K125: 2.55267594 | L125: -0.2810572954 | M125: -6.658412661 | N125: 1.597781431 | O125: 0.07808921406 | P125: -36.18265654 | Q125: 4.462110201 | S125: 148.7619086 | T125: 98.41756422 | U125: 99.83859361 | V125: 124.2980887 | W125: 120.8155852 | X125: 176.7140374 | Y125: 99.50391956 | AA125: 134.5442733 | AB125: 97.75465048 | AC125: 118.0547572 | AD125: 120.3980928 | AE125: 107.8146957 | AF125: 181.1116838 | AG125: 89.86306978
A126: 2005 | B126: Enero | C126: 107.6122486 | D126: 99.39406844 | E126: 82.98548555 | F126: 103.3449205 | G126: 112.3474867 | H126: 98.99989304 | I126: 108.7865831 | K126: -0.01312421284 | L126: -1.07342875 | M126: -8.672672354 | N126: 1.30776247 | O126: 0.6236553402 | P126: -43.86512127 | Q126: 2.209741982 | S126: 148.718208 | T126: 98.31762746 | U126: 99.31132193 | V126: 125.3339984 | W126: 120.9021274 | X126: 182.2125084 | Y126: 99.24507427 | AA126: 138.1982162 | AB126: 98.91699677 | AC126: 119.6731227 | AD126: 121.2773669 | AE126: 107.6144478 | AF126: 184.0532376 | AG126: 91.22914924
B127: Febrero | C127: 107.8481329 | D127: 99.98943111 | E127: 82.41279471 | F127: 103.0649346 | G127: 112.8473571 | H127: 96.28576895 | I127: 108.9444825 | K127: 0.3520753394 | L127: -0.5092013468 | M127: -8.975096613 | N127: 1.356773353 | O127: 1.690947047 | P127: -43.3689589 | Q127: 1.902221645 | S127: 149.7922318 | T127: 98.37834537 | U127: 98.78702498 | V127: 125.7808753 | W127: 122.1941868 | X127: 176.2564462 | Y127: 99.29428419 | AA127: 138.8918174 | AB127: 98.38874396 | AC127: 119.8685536 | AD127: 122.0404163 | AE127: 108.2827192 | AF127: 183.0555524 | AG127: 91.14209545
B128: Marzo | C128: 108.4738191 | D128: 100.7133807 | E128: 81.48883788 | F128: 103.3124168 | G128: 112.8840953 | H128: 95.20153343 | I128: 108.8649254 | K128: 0.4432443339 | L128: 0.4216559351 | M128: -9.625472788 | N128: 1.277662559 | O128: 1.582202663 | P128: -39.66736475 | Q128: 1.293061411 | S128: 150.9795421 | T128: 98.47815018 | U128: 97.53896586 | V128: 126.2676484 | W128: 122.7726979 | X128: 172.9187012 | Y128: 99.2801625 | AA128: 139.1852369 | AB128: 97.78060226 | AC128: 119.6961061 | AD128: 122.2192378 | AE128: 108.7599609 | AF128: 181.6343655 | AG128: 91.19572918
B129: Abril | C129: 108.510702 | D129: 100.8156083 | E129: 81.21283729 | F129: 102.9874576 | G129: 111.741155 | H129: 95.21526999 | I129: 108.9826496 | K129: 0.6259931985 | L129: 1.114766417 | M129: -8.989724017 | N129: 1.441197021 | O129: 0.8909034061 | P129: -36.43423035 | Q129: 1.194238594 | S129: 151.6368957 | T129: 98.43122243 | U129: 97.29356938 | V129: 126.2644869 | W129: 122.9039971 | X129: 172.4551653 | Y129: 99.12682914 | AA129: 139.7437238 | AB129: 97.63490401 | AC129: 119.8007269 | AD129: 122.6018098 | AE129: 109.9899111 | AF129: 181.121332 | AG129: 90.95652335
B130: Mayo | C130: 107.7040596 | D130: 100.1895738 | E130: 80.74593607 | F130: 102.8253688 | G130: 111.6688157 | H130: 97.02041433 | I130: 109.4819957 | K130: -0.1675922474 | L130: 0.9338472903 | M130: -7.981622402 | N130: 1.548452968 | O130: 1.331220149 | P130: -37.25512039 | Q130: 2.335451694 | S130: 152.5397765 | T130: 98.45554789 | U130: 97.14591936 | V130: 126.3830157 | W130: 123.566108 | X130: 175.2295405 | Y130: 99.17810979 | AA130: 141.628623 | AB130: 98.26925517 | AC130: 120.310599 | AD130: 122.9103451 | AE130: 110.6540866 | AF130: 180.611 | AG130: 90.58851104
B131: Junio | C131: 107.4350906 | D131: 100.1083355 | E131: 80.27342088 | F131: 101.7163912 | G131: 110.7389282 | H131: 97.41985468 | I131: 108.903207 | K131: -0.6666959625 | L131: 0.513436755 | M131: -8.093112752 | N131: 0.1028047451 | O131: -0.220644808 | P131: -37.67293888 | Q131: 1.563810116 | S131: 152.7889252 | T131: 98.26669967 | U131: 97.17445024 | V131: 125.7693136 | W131: 123.3140535 | X131: 175.9655772 | Y131: 98.7077565 | AA131: 142.2151034 | AB131: 98.16035712 | AC131: 121.054328 | AD131: 123.6470466 | AE131: 111.3556502 | AF131: 180.6259903 | AG131: 90.63806218
B132: Julio | C132: 107.055525 | D132: 100.4457274 | E132: 79.48856336 | F132: 101.1857379 | G132: 111.1256534 | H132: 97.22076143 | I132: 108.6779934 | K132: -0.752480035 | L132: 0.9793825562 | M132: -8.209846076 | N132: 0.2396952979 | O132: 0.2346642517 | P132: -32.89001482 | Q132: 1.118588821 | S132: 153.6652989 | T132: 98.26020772 | U132: 96.73136859 | V132: 125.7124445 | W132: 124.2088156 | X132: 175.9705276 | Y132: 98.5046763 | AA132: 143.5379434 | AB132: 97.82417851 | AC132: 121.6921837 | AD132: 124.2392921 | AE132: 111.773305 | AF132: 181.0009766 | AG132: 90.63902746
B133: Agosto | C133: 107.2722215 | D133: 100.7957254 | E133: 79.74894083 | F133: 101.1261053 | G133: 111.7516272 | H133: 96.84019056 | I133: 109.5761758 | K133: -0.5656597392 | L133: 1.380106277 | M133: -8.054491795 | N133: -0.1424922492 | O133: 0.5000963134 | P133: -27.04423888 | Q133: 1.954365498 | S133: 155.2835547 | T133: 98.39420192 | U133: 96.99045313 | V133: 126.1378174 | W133: 125.1612017 | X133: 176.8446997 | Y133: 98.89025423 | AA133: 144.7565386 | AB133: 97.61743519 | AC133: 121.6197383 | AD133: 124.7331904 | AE133: 111.9994445 | AF133: 182.6149852 | AG133: 90.24795176
B134: Septiembre | C134: 108.709238 | D134: 101.2519974 | E134: 80.01464036 | F134: 101.5678989 | G134: 112.0857401 | H134: 99.43024917 | I134: 109.4631972 | K134: 0.249188588 | L134: 1.681579821 | M134: -7.25503276 | N134: -0.4206341887 | O134: 0.9135701554 | P134: -17.6363391 | Q134: 1.082938931 | S134: 156.1769137 | T134: 98.29569186 | U134: 97.28934842 | V134: 126.063007 | W134: 125.4640504 | X134: 185.5582747 | Y134: 98.80685357 | AA134: 143.6648039 | AB134: 97.0802497 | AC134: 121.5894341 | AD134: 124.1169783 | AE134: 111.9357827 | AF134: 186.6215526 | AG134: 90.2649074
B135: Octubre | C135: 107.9942682 | D135: 99.52365242 | E135: 79.23026954 | F135: 101.6543822 | G135: 111.601769 | H135: 104.7829337 | I135: 108.7062455 | K135: -1.539796428 | L135: -0.4926788364 | M135: -7.189687724 | N135: -0.8327901693 | O135: 0.6608532275 | P135: -0.01527636566 | Q135: -0.397544657 | S135: 156.5519662 | T135: 98.03806464 | U135: 97.64177538 | V135: 125.5984977 | W135: 125.3291649 | X135: 197.2521215 | Y135: 98.33044407 | AA135: 144.9632178 | AB135: 98.50730179 | AC135: 123.2379695 | AD135: 123.5544352 | AE135: 112.3003389 | AF135: 188.2483287 | AG135: 90.45519295
B136: Noviembre | C136: 106.1708721 | D136: 100.3815476 | E136: 78.08502464 | F136: 100.8853798 | G136: 112.0389316 | H136: 107.7015825 | I136: 108.6850088 | K136: -3.668266634 | L136: -0.2825359931 | M136: -7.702554421 | N136: -1.939160401 | O136: 0.7439239493 | P136: 9.650757579 | Q136: -1.535525309 | S136: 157.2074658 | T136: 98.04864088 | U136: 96.72583372 | V136: 125.4225583 | W136: 125.7083645 | X136: 202.2105101 | Y136: 98.08307178 | AA136: 148.0702406 | AB136: 97.67596055 | AC136: 123.8724508 | AD136: 124.3218379 | AE136: 112.2006098 | AF136: 187.7507326 | AG136: 90.24526276
B137: Diciembre | C137: 105.7732335 | D137: 100.3750341 | E137: 78.19394021 | F137: 100.4491989 | G137: 111.9217692 | H137: 106.0737395 | I137: 108.2435275 | K137: -4.335841247 | L137: -0.3010646521 | M137: -7.539095915 | N137: -2.702510583 | O137: -0.1220622695 | P137: 8.713455091 | Q137: -2.244095418 | S137: 158.3418359 | T137: 98.04450034 | U137: 96.85477882 | V137: 125.4828647 | W137: 125.8944544 | X137: 201.4947313 | Y137: 98.07846632 | AA137: 149.6993432 | AB137: 97.67817391 | AC137: 123.8648143 | AD137: 124.9217177 | AE137: 112.4843319 | AF137: 189.9572243 | AG137: 90.60908174
A138: 2006 | B138: Enero | C138: 106.268433 | D138: 101.2723794 | E138: 78.34817567 | F138: 101.1150907 | G138: 112.4693698 | H138: 109.8955176 | I138: 109.882842 | K138: -1.248757071 | L138: 1.889761627 | M138: -5.588097539 | N138: -2.157657834 | O138: 0.1084876338 | P138: 11.00569325 | Q138: 1.007715136 | S138: 159.9777845 | T138: 97.87215619 | U138: 97.22819134 | V138: 125.4096487 | W138: 127.0144917 | X138: 210.6309667 | Y138: 98.68688142 | AA138: 150.5412096 | AB138: 96.64249696 | AC138: 124.0975817 | AD138: 124.0266392 | AE138: 112.9325183 | AF138: 191.6647478 | AG138: 89.81100202
B139: Febrero | C139: 106.1778792 | D139: 101.1001329 | E139: 78.48297162 | F139: 100.5907093 | G139: 111.7896785 | H139: 109.0856516 | I139: 110.4017038 | K139: -1.548708954 | L139: 1.110819195 | M139: -4.768462355 | N139: -2.400647065 | O139: -0.9372648002 | P139: 13.29363914 | Q139: 1.33758155 | S139: 160.8570866 | T139: 97.93194971 | U139: 97.09867871 | V139: 125.3044059 | W139: 127.676508 | X139: 208.3265336 | Y139: 98.69245154 | AA139: 151.4977393 | AB139: 96.86629176 | AC139: 123.7194218 | AD139: 124.5685678 | AE139: 114.2113562 | AF139: 190.9751929 | AG139: 89.39395697
B140: Marzo | C140: 107.0358584 | D140: 101.063082 | E140: 78.41433978 | F140: 100.7702615 | G140: 111.538375 | H140: 104.3171864 | I140: 110.3870949 | K140: -1.325629296 | L140: 0.3472242619 | M140: -3.772907033 | N140: -2.460648435 | O140: -1.192125767 | P140: 9.575111514 | Q140: 1.39821848 | S140: 161.7922281 | T140: 97.82171281 | U140: 97.08922281 | V140: 125.2412671 | W140: 127.8130717 | X140: 198.4360293 | Y140: 98.65508096 | AA140: 151.1570333 | AB140: 96.79272679 | AC140: 123.8156479 | AD140: 124.2839557 | AE140: 114.5911188 | AF140: 190.2237169 | AG140: 89.37193345
B141: Abril | C141: 108.0509123 | D141: 101.1373001 | E141: 78.04862789 | F141: 101.0906877 | G141: 110.9820695 | H141: 103.0257216 | I141: 109.8831262 | K141: -0.4237275663 | L141: 0.3190892029 | M141: -3.896193634 | N141: -1.841748499 | O141: -0.6793249462 | P141: 8.202940159 | Q141: 0.8262568238 | S141: 162.9136767 | T141: 97.84043109 | U141: 96.78986598 | V141: 125.4149151 | W141: 128.2164624 | X141: 195.7061902 | Y141: 98.71273653 | AA141: 150.7749201 | AB141: 96.74020467 | AC141: 124.0122582 | AD141: 124.0617885 | AE141: 115.5289886 | AF141: 189.9585726 | AG141: 89.83429937
B142: Mayo | C142: 107.8036828 | D142: 101.6854757 | E142: 78.00220719 | F142: 101.3541951 | G142: 111.4437564 | H142: 104.4515235 | I142: 110.9645235 | K142: 0.09249714597 | L142: 1.493071435 | M142: -3.397977678 | N142: -1.430749787 | O142: -0.2015417604 | P142: 7.659325363 | Q142: 1.354129283 | S142: 164.5486701 | T142: 98.05255232 | U142: 96.98452577 | V142: 126.0585197 | W142: 129.3653014 | X142: 198.7351012 | Y142: 99.16749188 | AA142: 152.6373366 | AB142: 96.42729375 | AC142: 124.3356172 | AD142: 124.3742498 | AE142: 116.0812463 | AF142: 190.2653925 | AG142: 89.36864573
B143: Junio | C143: 106.8673063 | D143: 100.6176289 | E143: 77.57093908 | F143: 100.8083152 | G143: 111.2496166 | H143: 104.158167 | I143: 110.0314107 | K143: -0.5284905054 | L143: 0.5087422326 | M143: -3.366596025 | N143: -0.8927529134 | O143: 0.4611643427 | P143: 6.916775172 | Q143: 1.035969198 | S143: 164.4582862 | T143: 97.60902932 | U143: 96.82228388 | V143: 125.4329942 | W143: 129.2301464 | X143: 199.373475 | Y143: 98.33283178 | AA143: 153.8901763 | AB143: 97.00986832 | AC143: 124.8177282 | AD143: 124.42723 | AE143: 116.1623297 | AF143: 191.4141548 | AG143: 89.36796424
B144: Julio | C144: 106.9828991 | D144: 99.95887908 | E144: 77.42254479 | F144: 100.8348089 | G144: 111.6986147 | H144: 103.6681303 | I144: 110.6351798 | K144: -0.06783944998 | L144: -0.4846879747 | M144: -2.599139405 | N144: -0.3468166761 | O144: 0.5155976756 | P144: 6.631679017 | Q144: 1.800904014 | S144: 165.8299623 | T144: 97.89321095 | U144: 96.74948926 | V144: 125.7428217 | W144: 129.9682197 | X144: 199.7334121 | Y144: 98.61381101 | AA144: 155.0060465 | AB144: 97.9334821 | AC144: 124.9629414 | AD144: 124.7018 | AE144: 116.3561607 | AF144: 192.6661662 | AG144: 89.13422586
B145: Agosto | C145: 107.1860774 | D145: 100.9288491 | E145: 77.45744971 | F145: 100.9093079 | G145: 112.608495 | H145: 103.6966672 | I145: 111.2823345 | K145: -0.08030419265 | L145: 0.1320727621 | M145: -2.873381256 | N145: -0.2143832026 | O145: 0.7667609689 | P145: 7.080197376 | Q145: 1.557052658 | S145: 167.2343138 | T145: 98.04930483 | U145: 96.90792219 | V145: 126.0340645 | W145: 130.9089775 | X145: 199.7018286 | Y145: 98.99626791 | AA145: 156.0224217 | AB145: 97.1469562 | AC145: 125.1111708 | AD145: 124.8983539 | AE145: 116.2514226 | AF145: 192.5826876 | AG145: 88.95955351
B146: Septiembre | C146: 107.5101374 | D146: 100.5411677 | E146: 77.77139383 | F146: 100.4651752 | G146: 112.8580329 | H146: 105.4502563 | I146: 111.2678962 | K146: -1.103034699 | L146: -0.7020401134 | M146: -2.803545102 | N146: -1.085701021 | O146: 0.6890196949 | P146: 6.054502706 | Q146: 1.648681099 | S146: 167.7863609 | T146: 97.88958617 | U146: 97.09743621 | V146: 125.770121 | W146: 130.7872472 | X146: 201.3929484 | Y146: 98.77381316 | AA146: 156.0656185 | AB146: 97.36269072 | AC146: 124.8498084 | AD146: 125.1877785 | AE146: 115.8865203 | AF146: 190.9838397 | AG146: 88.77116987
B147: Octubre | C147: 106.8844883 | D147: 100.7100798 | E147: 77.67435409 | F147: 100.0461636 | G147: 112.703905 | H147: 106.6475477 | I147: 110.6832914 | K147: =(C147/C135-1)*100 -> -1.027628538 | L147: =(D147/D135-1)*100 -> 1.192105964 | M147: =(E147/E135-1)*100 -> -1.963789166 | N147: =(F147/F135-1)*100 -> -1.582045461 | O147: =(G147/G135-1)*100 -> 0.9875613294 | P147: =(H147/H135-1)*100 -> 1.779501642 | Q147: =(I147/I135-1)*100 -> 1.818705068 | S147: 167.5247853 | T147: 97.88883937 | U147: 97.19845979 | V147: 125.6793972 | W147: 131.3740343 | X147: 204.6327795 | Y147: 98.76415611 | AA147: 156.7344224 | AB147: 97.19865136 | AC147: 125.1358456 | AD147: 125.6214058 | AE147: 116.5656455 | AF147: 191.8776229 | AG147: 89.2313147
B148: Noviembre | C148: 105.617916 | D148: 100.3638348 | E148: 77.45938501 | F148: 99.97863916 | G148: 113.0228453 | H148: 106.5141726 | I148: 111.2339365 | K148: -0.5208171873 | L148: -0.01764547536 | M148: -0.8012287089 | N148: -0.898783018 | O148: 0.8781890678 | P148: -1.102499907 | Q148: 2.345243071 | S148: 167.1656519 | T148: 98.0603679 | U148: 97.39550221 | V148: 126.1056169 | W148: 132.4165368 | X148: 205.8086176 | Y148: 99.28356381 | AA148: 158.2739541 | AB148: 97.70488349 | AC148: 125.7375103 | AD148: 126.1325599 | AE148: 117.1590898 | AF148: 193.221815 | AG148: 89.25654075
B149: Diciembre | C149: 105.524549 | D149: 100.167109 | E149: 76.9530662 | F149: 99.98566917 | G149: 112.6199628 | H149: 104.8121504 | I149: 111.5104757 | K149: -0.23511099 | L149: -0.2071481666 | M149: -1.586918384 | N149: -0.4614568398 | O149: 0.6238228242 | P149: -1.189351027 | Q149: 3.018146479 | S149: 168.0120391 | T149: 98.25202207 | U149: 97.59302727 | V149: 126.5480673 | W149: 133.2954878 | X149: 203.4974664 | Y149: 99.68896722 | AA149: 159.2160692 | AB149: 98.08810799 | AC149: 126.8214927 | AD149: 126.5662053 | AE149: 118.358668 | AF149: 194.1544617 | AG149: 89.39874623
A150: 2007 | B150: Enero | C150: 105.1867865 | D150: 99.72694614 | E150: 76.95150234 | F150: 98.86126582 | G150: 112.0901561 | H150: 109.2928645 | I150: 111.8036178 | K150: -1.017843717 | L150: -1.526016538 | M150: -1.78264946 | N150: -2.228969826 | O150: -0.3371706919 | P150: -0.5483872819 | Q150: 1.748021588 | S150: 168.8088211 | T150: 97.79054404 | U150: 98.18423831 | V150: 124.5884128 | W150: 133.13782 | X150: 206.4099312 | Y150: 99.75517009 | AA150: 160.4848164 | AB150: 98.058296 | AC150: 127.5923605 | AD150: 126.0234853 | AE150: 118.7774419 | AF150: 188.8594759 | AG150: 89.22356188
B151: Febrero | C151: 105.7465962 | D151: 100.5467395 | E151: 77.27769463 | F151: 98.44336832 | G151: 111.8492869 | H151: 108.5540639 | I151: 112.2014857 | K151: -0.4061890758 | L151: -0.5473715537 | M151: -1.535717828 | N151: -2.134730915 | O151: 0.05332189928 | P151: -0.4873122612 | Q151: 1.630212091 | S151: 169.4578367 | T151: 97.85936086 | U151: 98.48837952 | V151: 124.6788245 | W151: 133.8947805 | X151: 204.571108 | Y151: 99.92226599 | AA151: 160.2489752 | AB151: 97.32723439 | AC151: 127.4473572 | AD151: 126.6503032 | AE151: 119.7099992 | AF151: 188.4508978 | AG151: 89.05609885
B152: Marzo | C152: 105.9376825 | D152: 100.7516956 | E152: 77.18432716 | F152: 98.65666053 | G152: 111.7225218 | H152: 106.8994847 | I152: 112.4030043 | K152: -1.025988734 | L152: -0.308110899 | M152: -1.568606741 | N152: -2.097445127 | O152: 0.1650972886 | P152: 2.475429343 | Q152: 1.826218413 | S152: 169.8547217 | T152: 97.94084592 | U152: 98.52477787 | V152: 124.8826192 | W152: 134.4060491 | X152: 201.4812114 | Y152: 100.2380495 | AA152: 160.3345643 | AB152: 97.21012172 | AC152: 127.648684 | AD152: 126.5830594 | AE152: 120.3034509 | AF152: 188.4772523 | AG152: 89.17737576
B153: Abril | C153: 105.9765294 | D153: 101.5808313 | E153: 77.37824841 | F153: 98.99260454 | G153: 111.7461577 | H153: 105.2970041 | I153: 112.8879891 | K153: -1.919819882 | L153: 0.4385436472 | M153: -0.8589253984 | N153: -2.075446479 | O153: 0.6884789391 | P153: 2.204578119 | Q153: 2.73459908 | S153: 170.6431889 | T153: 98.31668432 | U153: 98.52765422 | V153: 125.3761168 | W153: 135.2179231 | X153: 198.9285518 | Y153: 100.7828634 | AA153: 161.0197936 | AB153: 96.78665068 | AC153: 127.3324949 | AD153: 126.6520033 | AE153: 121.0045392 | AF153: 188.9213786 | AG153: 89.27687005
B154: Mayo | C154: 105.6228248 | D154: 102.6799757 | E154: 77.92995096 | F154: 99.15806084 | G154: 111.8173788 | H154: 104.8574348 | I154: 113.2711207 | K154: -2.022990225 | L154: 0.9780158021 | M154: -0.09263357019 | N154: -2.166791657 | O154: 0.3352564511 | P154: 0.3886120739 | Q154: 2.078679888 | S154: 171.1729401 | T154: 98.59103443 | U154: 98.60761643 | V154: 125.6429145 | W154: 135.9719561 | X154: 199.2218349 | Y154: 101.2566993 | AA154: 162.0605588 | AB154: 96.01778123 | AC154: 126.5336565 | AD154: 126.7097334 | AE154: 121.6018096 | AF154: 189.9930466 | AG154: 89.39321751
B155: Junio | C155: 105.2901745 | D155: 102.3125921 | E155: 78.20885627 | F155: 99.01849934 | G155: 111.2365869 | H155: 105.7715454 | I155: 113.1782804 | K155: -1.475785189 | L155: 1.684558882 | M155: 0.8223662095 | N155: -1.775464492 | O155: -0.01171214039 | P155: 1.548969682 | Q155: 2.859973927 | S155: 171.2188839 | T155: 98.62097568 | U155: 99.15113253 | V155: 125.60082 | W155: 136.2496699 | X155: 201.3684983 | Y155: 101.4202376 | AA155: 162.6162031 | AB155: 96.39182591 | AC155: 126.7773718 | AD155: 126.8458125 | AE155: 122.4863812 | AF155: 190.3805957 | AG155: 89.61104306
B156: Julio | C156: 104.9837926 | D156: 102.1303392 | E156: 78.08183537 | F156: 98.89545421 | G156: 111.6079913 | H156: 107.7596137 | I156: 113.3452166 | K156: -1.868622489 | L156: 2.172353433 | M156: 0.8515485841 | N156: -1.923298843 | O156: -0.08113204036 | P156: 3.946712896 | Q156: 2.449525383 | S156: 172.0341701 | T156: 98.89496222 | U156: 99.46379668 | V156: 126.0083641 | W156: 137.3412679 | X156: 205.5762941 | Y156: 101.8522318 | AA156: 163.8673608 | AB156: 96.83210981 | AC156: 127.3840404 | AD156: 127.4157292 | AE156: 123.0568405 | AF156: 190.7730429 | AG156: 89.86019424
B157: Agosto | C157: 104.0897934 | D157: 102.1991197 | E157: 76.98651617 | F157: 98.05703015 | G157: 112.1479089 | H157: 107.739164 | I157: 112.8029921 | K157: -2.888699781 | L157: 1.258580274 | M157: -0.6079899886 | N157: -2.82657549 | O157: -0.4090154242 | P157: 3.898386452 | Q157: 1.366486026 | S157: 171.5245673 | T157: 98.59101462 | U157: 98.88601776 | V157: 125.6997446 | W157: 138.0113732 | X157: 204.2314353 | Y157: 101.4080106 | AA157: 164.7851933 | AB157: 96.4695341 | AC157: 128.4458924 | AD157: 128.1904463 | AE157: 123.0619229 | AF157: 189.5609987 | AG157: 89.89833405
B158: Septiembre | C158: 104.250846 | D158: 102.1531885 | E158: 77.38084322 | F158: 98.36990282 | G158: 112.3466796 | H158: 108.3535769 | I158: 113.0377275 | K158: -3.031613094 | L158: 1.603344039 | M158: -0.5021777166 | N158: -2.085570779 | O158: -0.4530942489 | P158: 2.753260832 | Q158: 1.590603751 | S158: 172.262459 | T158: 98.82007505 | U158: 99.65855643 | V158: 126.052107 | W158: 139.1998024 | X158: 207.2131848 | Y158: 101.8095891 | AA158: 165.2384278 | AB158: 96.73714199 | AC158: 128.7897008 | AD158: 128.1409287 | AE158: 123.9020173 | AF158: 191.2379737 | AG158: 90.06691067
B159: Octubre | C159: 104.8077116 | D159: 102.3566295 | E159: 78.10228719 | F159: 98.04400719 | G159: 111.9897442 | H159: 109.3323699 | I159: 113.7719488 | K159: -1.943010338 | L159: 1.634940286 | M159: 0.5509322926 | N159: -2.001232602 | O159: -0.6336610606 | P159: 2.517471991 | Q159: 2.790536261 | S159: 173.5635025 | T159: 99.30125285 | U159: 100.541207 | V159: 126.674564 | W159: 141.0512007 | X159: 209.5404695 | Y159: 102.7000426 | AA159: 165.6018434 | AB159: 97.01496948 | AC159: 128.7301699 | AD159: 129.2017408 | AE159: 125.9501053 | AF159: 191.6545573 | AG159: 90.26833389
B160: Noviembre | C160: 103.9673506 | D160: 102.419109 | E160: 76.71023037 | F160: 97.79923144 | G160: 109.4845943 | H160: 108.2269858 | I160: 114.0895335 | K160: -1.562770254 | L160: 2.047823443 | M160: -0.9671579999 | N160: -2.17987336 | O160: -3.130562634 | P160: 1.608061307 | Q160: 2.567199479 | S160: 173.0437127 | T160: 99.76343466 | U160: 99.83894703 | V160: 127.4106332 | W160: 142.6071655 | X160: 209.9040107 | Y160: 103.4075489 | AA160: 166.440437 | AB160: 97.40705191 | AC160: 130.150759 | AD160: 130.2777449 | AE160: 130.2531798 | AF160: 193.9479411 | AG160: 90.63719146
B161: Diciembre | C161: 99.26764709 | D161: 103.2348097 | E161: 75.9868595 | F161: 97.95074779 | G161: 109.0494714 | H161: 107.4350127 | I161: 114.0364445 | K161: -5.929333046 | L161: 3.062582833 | M161: -1.255579214 | N161: -2.035213039 | O161: -3.170389423 | P161: 2.502441022 | Q161: 2.265229978 | S161: 167.546516 | T161: 99.79774037 | U161: 99.62015983 | V161: 127.454402 | W161: 143.2093686 | X161: 210.4441166 | Y161: 103.4733075 | AA161: 168.7826003 | AB161: 96.67062946 | AC161: 131.1018254 | AD161: 130.1209076 | AE161: 131.3251378 | AF161: 195.8803852 | AG161: 90.73705167
A162: 2008 | B162: Enero | C162: 99.01412866 | D162: 102.7152723 | E162: 76.75682376 | F162: 97.87633427 | G162: 108.6000489 | H162: 113.6421967 | I162: 113.4407236 | K162: -5.868282511 | L162: 2.996508211 | M162: -0.2529886692 | N162: -0.9962764894 | O162: -3.113660773 | P162: 3.979520715 | Q162: 1.464269064 | S162: 167.3317244 | T162: 99.72443185 | U162: 100.7379062 | V162: 127.4347742 | W162: 143.8039279 | X162: 213.2984186 | Y162: 104.4601181 | AA162: 168.9978255 | AB162: 97.08822227 | AC162: 131.2429323 | AD162: 130.1997823 | AE162: 132.4160803 | AF162: 187.6929739 | AG162: 92.08343775
B163: Febrero | C163: 98.73298955 | D163: 102.8003223 | E163: 77.13872374 | F163: 97.59964577 | G163: 108.0174376 | H163: 114.9719145 | I163: 113.5768289 | K163: -6.632465666 | L163: 2.241328567 | M163: -0.1798331247 | N163: -0.8570638842 | O163: -3.425904139 | P163: 5.91212381 | Q163: 1.225779895 | S163: 167.5715796 | T163: 99.96950566 | U163: 101.319203 | V163: 127.6957904 | W163: 145.0793213 | X163: 214.5562338 | Y163: 104.9478085 | AA163: 169.7219748 | AB163: 97.24629592 | AC163: 131.3467454 | AD163: 130.8363257 | AE163: 134.3110192 | AF163: 186.6162138 | AG163: 92.40248166
B164: Marzo | C164: 99.92319699 | D164: 103.5163905 | E164: 76.37125408 | F164: 98.37835845 | G164: 108.3005823 | H164: 115.1380147 | I164: 114.2168313 | K164: -5.677380707 | L164: 2.744067901 | M164: -1.053417337 | N164: -0.282091528 | O164: -3.062891338 | P164: 7.706800488 | Q164: 1.613681972 | S164: 169.0817239 | T164: 100.6302263 | U164: 100.7345938 | V164: 128.7926538 | W164: 146.7845985 | X164: 216.6907174 | Y164: 106.0744343 | AA164: 169.2116836 | AB164: 97.21187711 | AC164: 131.9011911 | AD164: 130.9156362 | AE164: 135.5344499 | AF164: 188.2008458 | AG164: 92.87110586
B165: Abril | C165: 99.82782573 | D165: 103.8197906 | E165: 75.01566949 | F165: 98.48333948 | G165: 108.3738296 | H165: 114.3731093 | I165: 114.793543 | K165: -5.801948493 | L165: 2.204115983 | M165: -3.053285602 | N165: -0.514447581 | O165: -3.017847004 | P165: 8.619528397 | Q165: 1.688004102 | S165: 169.4559979 | T165: 101.083438 | U165: 99.77641021 | V165: 129.3708391 | W165: 148.0353115 | X165: 218.1173923 | Y165: 106.4930382 | AA165: 169.7482607 | AB165: 97.36432463 | AC165: 133.0074248 | AD165: 131.3631725 | AE165: 136.5969183 | AF165: 190.7068835 | AG165: 92.76918843
B166: Mayo | C166: 101.7826138 | D166: 103.6598262 | E166: 73.30134384 | F166: 97.52958326 | G166: 106.5419773 | H166: 114.655878 | I166: 114.1924588 | K166: -3.635777591 | L166: 0.9542761303 | M166: -5.939445698 | N166: -1.642304783 | O166: -4.717872623 | P166: 9.344538353 | Q166: 0.8133918838 | S166: 174.8517227 | T166: 101.0970026 | U166: 98.10583187 | V166: 129.2650582 | W166: 148.3767669 | X166: 217.8248046 | Y166: 105.9937666 | AA166: 171.7893815 | AB166: 97.52765977 | AC166: 133.8390631 | AD166: 132.5393321 | AE166: 139.2660158 | AF166: 189.9813673 | AG166: 92.82028577
B167: Junio | C167: 103.0733098 | D167: 103.3957699 | E167: 73.39728233 | F167: 97.15998016 | G167: 105.6628838 | H167: 113.5259307 | I167: 113.8033155 | K167: -2.105480998 | L167: 1.058694488 | M167: -6.152211109 | N167: -1.876941373 | O167: -5.01067436 | P167: 7.331258391 | Q167: 0.5522571228 | S167: 178.1601983 | T167: 101.1086765 | U167: 98.97133761 | V167: 129.0736862 | W167: 148.9917067 | X167: 219.0048742 | Y167: 106.011986 | AA167: 172.8480424 | AB167: 97.7880203 | AC167: 134.8433273 | AD167: 132.8465547 | AE167: 141.0066633 | AF167: 192.9117628 | AG167: 93.15368849
B168: Julio | C168: 104.8857251 | D168: 103.0523552 | E168: 72.6286357 | F168: 95.91412857 | G168: 105.7398267 | H168: 112.8094971 | I168: 114.0964571 | K168: -0.09341203945 | L168: 0.9027836585 | M168: -6.983954263 | N168: -3.014623536 | O168: -5.257835574 | P168: 4.686248629 | Q168: 0.6627897636 | S168: 184.3122393 | T168: 101.3320644 | U168: 98.49901642 | V168: 129.2546429 | W168: 149.7908876 | X168: 220.0664476 | Y168: 106.1157636 | AA168: 175.7267151 | AB168: 98.33066326 | AC168: 135.6200835 | AD168: 134.7607957 | AE168: 141.6598573 | AF168: 195.0779439 | AG168: 93.00530996
B169: Agosto | C169: 104.7699431 | D169: 102.5080404 | E169: 71.40522109 | F169: 94.31919026 | G169: 105.1378195 | H169: 112.8823934 | I169: 112.1834409 | K169: 0.6534258845 | L169: 0.302273385 | M169: -7.249704708 | N169: -3.811904039 | O169: -6.25075356 | P169: 4.773778811 | Q169: -0.5492329546 | S169: 187.6081578 | T169: 100.8056601 | U169: 97.3284809 | V169: 128.2779663 | W169: 149.3668512 | X169: 220.7741676 | Y169: 104.7656628 | AA169: 179.0667745 | AB169: 98.33927143 | AC169: 136.3044318 | AD169: 136.0041005 | AE169: 142.0676707 | AF169: 195.5789215 | AG169: 93.38781376
B170: Septiembre | C170: 102.7982184 | D170: 101.8309664 | E170: 71.08386221 | F170: 93.20304218 | G170: 103.2935468 | H170: 110.5608879 | I170: 109.4746651 | K170: -1.393396482 | L170: -0.3154303157 | M170: -8.13764847 | N170: -5.252481187 | O170: -8.058211317 | P170: 2.037137218 | Q170: -3.152100208 | S170: 185.7789222 | T170: 99.65831549 | U170: 96.67795381 | V170: 126.9036031 | W170: 146.8632455 | X170: 218.7616433 | Y170: 102.9305832 | AA170: 180.7219279 | AB170: 97.86641431 | AC170: 136.0054882 | AD170: 136.1582198 | AE170: 142.1804653 | AF170: 197.8653097 | AG170: 94.0222864
B171: Octubre | C171: 98.81088908 | D171: 99.41246412 | E171: 68.78380511 | F171: 90.1516557 | G171: 100.430079 | H171: 108.7467872 | I171: 105.735306 | K171: -5.721737868 | L171: -2.876379747 | M171: -11.93112573 | N171: -8.049805098 | O171: -10.32207482 | P171: -0.5355985793 | Q171: -7.063817481 | S171: 181.2468247 | T171: 97.11824856 | U171: 94.38347223 | V171: 123.9896613 | W171: 142.9322495 | X171: 214.2473877 | Y171: 99.76930216 | AA171: 183.4279869 | AB171: 97.69222544 | AC171: 137.2175792 | AD171: 137.5345359 | AE171: 142.3201604 | AF171: 197.0149125 | AG171: 94.35760477
B172: Noviembre | C172: 95.42797873 | D172: 98.35030544 | E172: 68.54038635 | F172: 88.77549803 | G172: 99.2660698 | H172: 110.7882467 | I172: 104.4456125 | K172: -8.21351302 | L172: -3.972699613 | M172: -10.65026656 | N172: -9.22679379 | O172: -9.333298954 | P172: 2.36656393 | Q172: -8.452941066 | S172: 179.1354468 | T172: 96.33448972 | U172: 94.92864835 | V172: 122.999516 | W172: 142.1117991 | X172: 213.9064336 | Y172: 98.88930306 | AA172: 187.7179515 | AB172: 97.95037167 | AC172: 138.5003111 | AD172: 138.551198 | AE172: 143.162512 | AF172: 193.0768291 | AG172: 94.68018879
B173: Diciembre | C173: 95.35691985 | D173: 98.19072825 | E173: 69.32742143 | F173: 88.61917573 | G173: 99.71119325 | H173: 112.4247222 | I173: 105.3722303 | K173: -3.93957886 | L173: -4.886027753 | M173: -8.763933802 | N173: -9.526800228 | O173: -8.56334104 | P173: 4.644398012 | Q173: -7.597758899 | S173: 179.2105834 | T173: 96.4426772 | U173: 96.12558477 | V173: 123.5959945 | W173: 142.9124887 | X173: 215.5492066 | Y173: 99.87538278 | AA173: 187.9366319 | AB173: 98.21973919 | AC173: 138.6544931 | AD173: 139.4686799 | AE173: 143.3264251 | AF173: 191.7275865 | AG173: 94.78340019
A174: 2009 | B174: Enero | C174: 95.35158773 | D174: 98.39776488 | E174: 70.81019669 | F174: 87.76687904 | G174: 100.0988286 | H174: 116.3061808 | I174: 105.318337 | K174: -3.699008396 | L174: -4.203374338 | M174: -7.747359493 | N174: -10.32880452 | O174: -7.828007752 | P174: 2.344185636 | Q174: -7.160027084 | S174: 179.0247835 | T174: 95.6073979 | U174: 97.199936 | V174: 122.6097276 | W174: 143.5065416 | X174: 216.0745304 | Y174: 99.62702226 | AA174: 187.7522837 | AB174: 97.16419679 | AC174: 137.2682757 | AD174: 139.6993136 | AE174: 143.364856 | AF174: 185.7807804 | AG174: 94.59608371
B175: Febrero | C175: 95.19997564 | D175: 97.82510345 | E175: 71.42757547 | F175: 86.44438271 | G175: 98.84265978 | H175: 115.5720802 | I175: 103.7124709 | K175: -3.578352006 | L175: -4.839691915 | M175: -7.403737046 | N175: -11.42961428 | O175: -8.493793226 | P175: 0.5220107218 | Q175: -8.685185312 | S175: 178.9140653 | T175: 94.62702108 | U175: 97.09377818 | V175: 121.3510934 | W175: 142.1333791 | X175: 214.5272998 | Y175: 98.06715288 | AA175: 187.9349906 | AB175: 96.73081627 | AC175: 135.9331848 | AD175: 140.3805425 | AE175: 143.7976067 | AF175: 185.6220805 | AG175: 94.55676069
B176: Marzo | C176: 95.83857735 | D176: 97.33218742 | E176: 72.93885895 | F176: 86.51156527 | G176: 99.46513453 | H176: 116.0995847 | I176: 103.0932429 | K176: -4.087759159 | L176: -5.97412939 | M176: -4.494354802 | N176: -12.0624021 | O176: -8.158264367 | P176: 0.8351455986 | Q176: -9.739009798 | S176: 179.7719823 | T176: 94.44984412 | U176: 98.63828792 | V176: 121.1874429 | W176: 141.9770468 | X176: 215.3566492 | Y176: 97.90497004 | AA176: 187.5778911 | AB176: 97.03865353 | AC176: 135.2342076 | AD176: 140.0823607 | AE176: 142.7405165 | AF176: 185.4930401 | AG176: 94.96739772
B177: Abril | C177: 97.39592512 | D177: 98.41959235 | E177: 74.14575183 | F177: 87.1062553 | G177: 101.0449946 | H177: 117.7909739 | I177: 104.0022208 | K177: -2.436094937 | L177: -5.201511412 | M177: -1.159647925 | N177: -11.55229324 | O177: -6.762550504 | P177: 2.988346339 | Q177: -9.400635201 | S177: 182.930482 | T177: 95.36942666 | U177: 100.1258765 | V177: 122.1662116 | W177: 143.7984479 | X177: 218.3062962 | Y177: 98.95595958 | AA177: 187.8214943 | AB177: 96.90085519 | AC177: 135.0392626 | AD177: 140.2496424 | AE177: 142.3113024 | AF177: 185.3336371 | AG177: 95.14792935
B178: Mayo | C178: 99.41154305 | D178: 98.88078786 | E178: 74.83235618 | F178: 87.78407223 | G178: 102.6807957 | H178: 119.4319221 | I178: 105.716219 | K178: -2.329543974 | L178: -4.610309026 | M178: 2.088655206 | N178: -9.992364068 | O178: -3.62409422 | P178: 4.165546693 | Q178: -7.422766677 | S178: 186.2987977 | T178: 95.97474703 | U178: 101.0765473 | V178: 122.9488677 | W178: 146.1759898 | X178: 221.2698598 | Y178: 100.1560302 | AA178: 187.4015753 | AB178: 97.06106626 | AC178: 135.0706466 | AD178: 140.0582868 | AE178: 142.3596193 | AF178: 185.2686081 | AG178: 94.74045805
B179: Junio | C179: 100.541908 | D179: 99.51898145 | E179: 75.67283059 | F179: 87.94785414 | G179: 103.7211256 | H179: 118.1579116 | I179: 106.2318102 | K179: -2.455923747 | L179: -3.749465238 | M179: 3.100316784 | N179: -9.481399655 | O179: -1.837691795 | P179: 4.080108255 | Q179: -6.653149989 | S179: 187.9527005 | T179: 96.1954902 | U179: 101.7189292 | V179: 123.281986 | W179: 147.2429155 | X179: 222.4944491 | Y179: 100.7352632 | AA179: 186.9396596 | AB179: 96.66044487 | AC179: 134.4193529 | AD179: 140.1762297 | AE179: 141.960391 | AF179: 188.3026249 | AG179: 94.82589352
B180: Julio | C180: 100.6253383 | D180: 99.949966 | E180: 75.89465663 | F180: 87.27367867 | G180: 104.9214038 | H180: 118.2684057 | I180: 105.8794042 | K180: -4.061931905 | L180: -3.010498135 | M180: 4.496877702 | N180: -9.008526717 | O180: -0.7739968373 | P180: 4.839050475 | Q180: -7.201847539 | S180: 190.0706826 | T180: 96.19980654 | U180: 102.388525 | V180: 123.3078671 | W180: 147.9621699 | X180: 223.2485462 | Y180: 100.9500194 | AA180: 188.8894843 | AB180: 96.24796325 | AC180: 134.90874 | AD180: 141.2887241 | AE180: 141.0219122 | AF180: 188.7643153 | AG180: 95.34434029
B181: Agosto | C181: 101.5393965 | D181: 100.6805594 | E181: 77.16621364 | F181: 87.6055052 | G181: 105.9726275 | H181: 118.2643705 | I181: 106.2683402 | K181: -3.083466992 | L181: -1.782768483 | M181: 8.068027055 | N181: -7.118047807 | O181: 0.7940130814 | P181: 4.767773715 | Q181: -5.272703925 | S181: 192.5371605 | T181: 96.47678612 | U181: 103.9408647 | V181: 123.6142906 | W181: 149.5380404 | X181: 224.5456658 | Y181: 101.3572112 | AA181: 189.6181848 | AB181: 95.82464252 | AC181: 134.6973757 | AD181: 141.1033363 | AE181: 141.110062 | AF181: 189.8675526 | AG181: 95.37855868
B182: Septiembre | C182: 101.8968891 | D182: 100.8793094 | E182: 77.32029514 | F182: 87.70155535 | G182: 106.194037 | H182: 118.7179017 | I182: 107.5515407 | K182: -0.8767946788 | L182: -0.9345458239 | M182: 8.773345638 | N182: -5.902690199 | O182: 2.808007238 | P182: 7.377847514 | Q182: -1.756684423 | S182: 193.1955029 | T182: 96.44202526 | U182: 104.6783514 | V182: 123.7073478 | W182: 150.1075295 | X182: 225.3962854 | Y182: 101.8809905 | AA182: 189.5990198 | AB182: 95.60139326 | AC182: 135.3827623 | AD182: 141.0549075 | AE182: 141.3521264 | AF182: 189.8587173 | AG182: 94.72759745
B183: Octubre | C183: 101.4792957 | D183: 102.108767 | E183: 78.23402797 | F183: 87.87610055 | G183: 106.85234 | H183: 119.3638115 | I183: 108.1588641 | K183: 2.700518771 | L183: 2.712238255 | M183: 13.73902308 | N183: -2.524141269 | O183: 6.394758432 | P183: 9.763069318 | Q183: 2.292099216 | S183: 192.7378082 | T183: 96.833204 | U183: 105.6650977 | V183: 124.2072802 | W183: 151.6094363 | X183: 226.936116 | Y183: 102.6610859 | AA183: 189.9282084 | AB183: 94.83338878 | AC183: 135.062837 | AD183: 141.3436411 | AE183: 141.8868659 | AF183: 190.121372 | AG183: 94.91694158
B184: Noviembre | C184: 99.29120807 | D184: 101.0977078 | E184: 78.1641537 | F184: 88.09341354 | G184: 107.8846856 | H184: 118.2641321 | I184: 108.5105519 | K184: 4.048319358 | L184: 2.793486337 | M184: 14.04101707 | N184: -0.7683251627 | O184: 8.682338148 | P184: 6.747904848 | Q184: 3.891919795 | S184: 187.9575916 | T184: 97.08123013 | U184: 105.357163 | V184: 124.5493289 | W184: 152.8553974 | X184: 226.9501894 | Y184: 102.9507268 | AA184: 189.29933 | AB184: 96.02713282 | AC184: 134.7896164 | AD184: 141.3832475 | AE184: 141.684055 | AF184: 191.9011161 | AG184: 94.87623554
B185: Diciembre | C185: 98.17274514 | D185: 101.493302 | E185: 78.42709297 | F185: 88.02676424 | G185: 108.0949601 | H185: 117.8982086 | I185: 108.2489046 | K185: 2.952932312 | L185: 3.363427268 | M185: 13.12564545 | N185: -0.6684913085 | O185: 8.408049835 | P185: 4.868578951 | Q185: 2.730011771 | S185: 187.5392211 | T185: 96.98939193 | U185: 105.5982053 | V185: 124.355344 | W185: 153.2667926 | X185: 226.3230313 | Y185: 102.6402362 | AA185: 191.0298228 | AB185: 95.56235736 | AC185: 134.6450586 | AD185: 141.2699252 | AE185: 141.7890274 | AF185: 191.9647754 | AG185: 94.8187296
A186: 2010 | B186: Enero | C186: 95.78662271 | D186: 101.8457675 | E186: 77.97546072 | F186: 88.0461152 | G186: 109.1584185 | H186: 120.862081 | I186: 107.2819049 | K186: 0.4562430359 | L186: 3.504147254 | M186: 10.11897209 | N186: 0.3181566502 | O186: 9.050645213 | P186: 3.917160854 | Q186: 1.864412125 | S186: 184.9396228 | T186: 96.42582246 | U186: 105.4479757 | V186: 123.8184648 | W186: 155.0251066 | X186: 225.016714 | Y186: 101.1026405 | AA186: 193.0745835 | AB186: 94.67828156 | AC186: 135.2322573 | AD186: 140.6291061 | AE186: 142.0184615 | AF186: 186.1764353 | AG186: 94.24016157
B187: Febrero | C187: 93.19416379 | D187: 102.0354154 | E187: 75.55197587 | F187: 87.57267318 | G187: 108.4737309 | H187: 120.9522079 | I187: 107.0791258 | K187: -2.106945761 | L187: 4.303917666 | M187: 5.774241072 | N187: 1.305221264 | O187: 9.743840531 | P187: 4.655214004 | Q187: 3.246142823 | S187: 180.5714244 | T187: 96.38291419 | U187: 102.294849 | V187: 123.6590026 | W187: 155.7149329 | X187: 225.0318915 | Y187: 100.8309551 | AA187: 193.7582968 | AB187: 94.46025564 | AC187: 135.3966562 | AD187: 141.2072946 | AE187: 143.5508225 | AF187: 186.0502552 | AG187: 94.16490311
B188: Marzo | C188: 90.84760931 | D188: 102.8036874 | E188: 74.21376848 | F188: 88.05904289 | G188: 109.0118813 | H188: 120.9866176 | I188: 107.6843779 | K188: -5.207681689 | L188: 5.621470265 | M188: 1.747915367 | N188: 1.788752308 | O188: 9.598083586 | P188: 4.209345698 | Q188: 4.453381093 | S188: 175.7235503 | T188: 96.90585083 | U188: 101.2222533 | V188: 124.2799953 | W188: 157.5558942 | X188: 226.1517776 | Y188: 101.4191943 | AA188: 193.4267194 | AB188: 94.26301068 | AC188: 136.3928222 | AD188: 141.1325756 | AE188: 144.5309377 | AF188: 186.9229689 | AG188: 94.18190107
B189: Abril | C189: 87.25778437 | D189: 103.4399978 | E189: 74.4867392 | F189: 87.94067037 | G189: 109.7886768 | H189: 121.2216405 | I189: 107.8208815 | K189: -10.40920422 | L189: 5.101022345 | M189: 0.4598879391 | N189: 0.9579278324 | O189: 8.653256061 | P189: 2.912503763 | Q189: 3.671710753 | S189: 168.551139 | T189: 97.16339712 | U189: 101.3472843 | V189: 124.5814576 | W189: 158.9832513 | X189: 226.9319733 | Y189: 101.6844497 | AA189: 193.1645872 | AB189: 93.93213383 | AC189: 136.0608417 | AD189: 141.6653491 | AE189: 144.8084229 | AF189: 187.2041761 | AG189: 94.30867959
B190: Mayo | C190: 87.68299389 | D190: 102.7423085 | E190: 73.68495207 | F190: 86.8619014 | G190: 108.8353387 | H190: 120.4587384 | I190: 106.2142957 | K190: -11.79797517 | L190: 3.905228439 | M190: -1.533299447 | N190: -1.050499027 | O190: 5.993859924 | P190: 0.8597502547 | Q190: 0.4711450237 | S190: 170.2109343 | T190: 96.27500225 | U190: 100.1474054 | V190: 123.2573386 | W190: 157.4792491 | X190: 226.1604603 | Y190: 100.3505877 | AA190: 194.1208059 | AB190: 93.70531346 | AC190: 135.912968 | AD190: 141.9003459 | AE190: 144.6949593 | AF190: 187.7493185 | AG190: 94.4793608
B191: Junio | C191: 88.41633816 | D191: 102.0732661 | E191: 73.23531161 | F191: 86.27683007 | G191: 108.8350315 | H191: 120.4801372 | I191: 105.72975 | K191: -12.06021453 | L191: 2.566630657 | M191: -3.221128319 | N191: -1.900016874 | O191: 4.930438095 | P191: 1.965357648 | Q191: -0.4726081983 | S191: 172.2036183 | T191: 96.06313695 | U191: 100.0505727 | V191: 122.9008129 | W191: 157.4025238 | X191: 226.0208439 | Y191: 100.041291 | AA191: 194.7644766 | AB191: 94.11194585 | AC191: 136.6152072 | AD191: 142.4493839 | AE191: 144.6248709 | AF191: 187.6000885 | AG191: 94.61981232
B192: Julio | C192: 87.05436765 | D192: 102.7305019 | E192: 73.38813414 | F192: 86.35560951 | G192: 109.2734972 | H192: 121.21597 | I192: 105.6726105 | K192: -13.4866336 | L192: 2.781927791 | M192: -3.302633678 | N192: -1.051942782 | O192: 4.14795575 | P192: 2.492266873 | Q192: -0.195310544 | S192: 169.9397484 | T192: 96.51921146 | U192: 100.4946151 | V192: 123.6462452 | W192: 159.2038351 | X192: 228.1084406 | Y192: 101.0501462 | AA192: 195.2110538 | AB192: 93.95380115 | AC192: 136.9357816 | AD192: 143.1826443 | AE192: 145.692999 | AF192: 188.1834883 | AG192: 95.62567408
B193: Agosto | C193: 85.32389145 | D193: 103.3168053 | E193: 73.79105422 | F193: 86.33769624 | G193: 111.1149074 | H193: 121.8828703 | I193: 105.9599819 | K193: -15.96966851 | L193: 2.618425976 | M193: -4.373882382 | N193: -1.447179563 | O193: 4.852460522 | P193: 3.059670298 | Q193: -0.2901694297 | S193: 166.561805 | T193: 96.73426419 | U193: 100.9179691 | V193: 124.0082276 | W193: 160.7705947 | X193: 229.4412474 | Y193: 101.6807489 | AA193: 195.2112148 | AB193: 93.62877985 | AC193: 136.7617933 | AD193: 143.6316151 | AE193: 144.6885917 | AF193: 188.2473286 | AG193: 95.96146302
B194: Septiembre | C194: 85.56415558 | D194: 103.3473161 | E194: 74.5306145 | F194: 86.10661876 | G194: 111.6677396 | H194: 121.8016878 | I194: 106.5917058 | K194: -16.0286871 | L194: 2.446494462 | M194: -3.607953942 | N194: -1.818595559 | O194: 5.154434933 | P194: 2.597574649 | Q194: -0.8924417771 | S194: 166.4980359 | T194: 96.82518616 | U194: 101.9832175 | V194: 124.1670753 | W194: 161.8429013 | X194: 230.68542 | Y194: 102.0807421 | AA194: 194.5885339 | AB194: 93.68911533 | AC194: 136.8339953 | AD194: 144.2015459 | AE194: 144.9325489 | AF194: 189.3942721 | AG194: 95.76799746
B195: Octubre | C195: 86.52823042 | D195: 103.9249132 | E195: 74.91828722 | F195: 86.39172636 | G195: 111.5237396 | H195: 123.1583693 | I195: 108.0243918 | K195: -14.73311887 | L195: 1.778638851 | M195: -4.238233459 | N195: -1.689167119 | O195: 4.371827208 | P195: 3.178985129 | Q195: -0.12432854 | S195: 168.5792306 | T195: 97.59790892 | U195: 102.6598706 | V195: 125.3018765 | W195: 164.4106062 | X195: 234.231383 | Y195: 103.3090461 | AA195: 194.8256999 | AB195: 93.91194653 | AC195: 137.0291212 | AD195: 145.0392089 | AE195: 147.4220707 | AF195: 190.1871423 | AG195: 95.634925
B196: Noviembre | C196: 86.38795574 | D196: 103.7921463 | E196: 73.97293771 | F196: 85.82033766 | G196: 110.2170686 | H196: 122.7726411 | I196: 107.6351823 | K196: -12.99536241 | L196: 2.665182588 | M196: -5.362069177 | N196: -2.580301739 | O196: 2.161922175 | P196: 3.812237012 | Q196: -0.8067138334 | S196: 168.9041345 | T196: 97.52272179 | U196: 101.8226281 | V196: 125.1222711 | W196: 164.3460213 | X196: 233.6270965 | Y196: 102.9187708 | AA196: 195.5181519 | AB196: 93.95963498 | AC196: 137.648485 | AD196: 145.795594 | AE196: 149.1112252 | AF196: 190.2924742 | AG196: 95.61815073
B197: Diciembre | C197: 84.53297052 | D197: 104.0040797 | E197: 73.61257468 | F197: 85.82520949 | G197: 109.9237622 | H197: 121.8798513 | I197: 106.7828699 | K197: -13.89364697 | L197: 2.47383583 | M197: -6.138845789 | N197: -2.501006109 | O197: 1.691847743 | P197: 3.377186744 | Q197: -1.354318296 | S197: 165.9873467 | T197: 97.34303995 | U197: 101.1202306 | V197: 124.7740708 | W197: 164.4839406 | X197: 233.2266448 | Y197: 102.4841235 | AA197: 196.3581141 | AB197: 93.59540537 | AC197: 137.3681481 | AD197: 145.3816094 | AE197: 149.6345624 | AF197: 191.3578351 | AG197: 95.97431083
A198: 2011 | B198: Enero | C198: 83.37750702 | D198: 103.0179762 | E198: 72.86093692 | F198: 85.78987185 | G198: 110.6836584 | H198: 127.5769498 | I198: 106.6095098 | K198: -12.9549569 | L198: 1.15096457 | M198: -6.559145351 | N198: -2.562570021 | O198: 1.397271959 | P198: 5.555811051 | Q198: -0.6267553396 | S198: 166.4645034 | T198: 97.01165889 | U198: 101.3071617 | V198: 126.2970399 | W198: 167.7003477 | X198: 232.6668819 | Y198: 103.3719909 | AA198: 199.6515719 | AB198: 94.16964157 | AC198: 139.0418049 | AD198: 147.2167253 | AE198: 151.5131954 | AF198: 182.3737613 | AG198: 96.96319873
B199: Febrero | C199: 83.01422149 | D199: 103.8660193 | E199: 71.51565026 | F199: 86.04397735 | G199: 111.5735542 | H199: 127.7477658 | I199: 107.1892494 | K199: -10.92336889 | L199: 1.794086829 | M199: -5.342448781 | N199: -1.745631113 | O199: 2.857671839 | P199: 5.618382652 | Q199: 0.1028431714 | S199: 165.5178839 | T199: 97.42603864 | U199: 99.67555556 | V199: 126.8863556 | W199: 169.3426945 | X199: 234.3687699 | Y199: 103.7602406 | AA199: 199.384974 | AB199: 93.79972323 | AC199: 139.3758642 | AD199: 147.4668646 | AE199: 151.7767322 | AF199: 183.4621283 | AG199: 96.80097702
B200: Marzo | C200: 83.47677041 | D200: 104.4226246 | E200: 70.63492112 | F200: 86.52926988 | G200: 112.4723251 | H200: 128.2503458 | I200: 107.4258738 | K200: -8.113409869 | L200: 1.574785141 | M200: -4.822349592 | N200: -1.737212852 | O200: 3.1743731 | P200: 6.003745151 | Q200: -0.240057245 | S200: 165.5704309 | T200: 97.81030658 | U200: 98.64545219 | V200: 127.4871129 | W200: 170.6522658 | X200: 236.090425 | Y200: 104.215534 | AA200: 198.34312 | AB200: 93.66773433 | AC200: 139.6553583 | AD200: 147.3340906 | AE200: 151.7282279 | AF200: 184.085605 | AG200: 97.01157674
B201: Abril | C201: 84.37735687 | D201: 102.6507964 | E201: 70.38714104 | F201: 86.83137871 | G201: 113.571128 | H201: 129.026902 | I201: 107.8236849 | K201: -3.301055049 | L201: -0.7629556703 | M201: -5.503795993 | N201: -1.26140914 | O201: 3.445210674 | P201: 6.438835097 | Q201: 0.00260003424 | S201: 166.6486343 | T201: 98.42931117 | U201: 98.21236996 | V201: 128.4947071 | W201: 172.2741082 | X201: 238.2810048 | Y201: 105.2043385 | AA201: 197.5039755 | AB201: 95.88752801 | AC201: 139.5316936 | AD201: 147.9818805 | AE201: 151.6882955 | AF201: 184.6754445 | AG201: 97.57071329
... 133 more rows

Sheet ITCER RESTOM
A2: Secretaría Ejecutiva
A3: Consejo Monetario Centroamericano
C4: ITCER RESTO DEL MUNDO Periodo de referencia Diciembre 2000=100 | K4: VARIACION INTERANUAL | S4: EFECTO TIPO DE CAMBIO | AA4: EFECTO PRECIO
A5: Año | B5: MES | C5: COSTA RICA | D5: EL SALVADOR | E5: GUATEMALA | F5: HONDURAS | G5: NICARAGUA | H5: REPÚBLICA DOMINICANA | I5: PANAMÁ | K5: COSTA RICA | L5: EL SALVADOR | M5: GUATEMALA | N5: HONDURAS | O5: NICARAGUA | P5: REPÚBLICA DOMINICANA | Q5: PANAMÁ | S5: COSTA RICA | T5: EL SALVADOR | U5: GUATEMALA | V5: HONDURAS | W5: NICARAGUA | X5: REPÚBLICA DOMINICANA | Y5: PANAMÁ | AA5: COSTA RICA | AB5: EL SALVADOR | AC5: GUATEMALA | AD5: HONDURAS | AE5: NICARAGUA | AF5: REPÚBLICA DOMINICANA | AG5: PANAMÁ
A6: 1995 | B6: Enero | C6: 95.2600247 | D6: 121.0376272 | E6: 104.9681703 | F6: 141.9802669 | G6: 96.9315097 | H6: 81.21380306 | I6: 102.4151299 | S6: 60.06098287 | T6: 111.9239122 | U6: 84.70159798 | V6: 67.88501657 | W6: 62.33991551 | X6: 90.17574613 | Y6: 114.9155294 | AA6: 63.04951427 | AB6: 92.47034559 | AC6: 80.69264971 | AD6: 47.81299406 | AE6: 64.31336487 | AF6: 111.0349999 | AG6: 112.205618
B7: Febrero | C7: 95.98573013 | D7: 120.8174321 | E7: 106.0232232 | F7: 134.535921 | G7: 98.09237294 | H7: 81.70773171 | I7: 103.3782502 | S7: 61.03838488 | T7: 112.2246847 | U7: 84.62190828 | V7: 67.15043784 | W7: 63.19338063 | X7: 90.4219288 | Y7: 115.2910797 | AA7: 63.59110338 | AB7: 92.88782485 | AC7: 79.81450267 | AD7: 49.91264588 | AE7: 64.4223182 | AF7: 110.6650826 | AG7: 111.5235356
B8: Marzo | C8: 104.6466305 | D8: 120.3210536 | E8: 105.4477352 | F8: 135.0751198 | G8: 99.66193712 | H8: 81.56825963 | I8: 104.4485447 | S8: 62.31206664 | T8: 112.2646169 | U8: 83.87045523 | V8: 68.03059551 | W8: 64.14374086 | X8: 90.30233389 | Y8: 116.1220089 | AA8: 59.54522028 | AB8: 93.30421693 | AC8: 79.53746478 | AD8: 50.36500847 | AE8: 64.36132261 | AF8: 110.7076874 | AG8: 111.1762823
B9: Abril | C9: 107.4740944 | D9: 122.1077114 | E9: 107.9362081 | F9: 133.646717 | G9: 103.3556918 | H9: 83.79138054 | I9: 106.4478908 | S9: 63.91851455 | T9: 113.707649 | U9: 85.60593899 | V9: 68.64698693 | W9: 65.94110604 | X9: 91.70602037 | Y9: 117.7068312 | AA9: 59.47341536 | AB9: 93.12077648 | AC9: 79.31160494 | AD9: 51.36451421 | AE9: 63.80016898 | AF9: 109.4456492 | AG9: 110.5769502
B10: Mayo | C10: 108.2898261 | D10: 121.7823102 | E10: 107.288846 | F10: 131.8269792 | G10: 103.9659317 | H10: 83.99708444 | I10: 106.4426399 | S10: 64.69188689 | T10: 113.6638562 | U10: 85.82658161 | V10: 68.70517068 | W10: 66.48222232 | X10: 91.78934066 | Y10: 117.5134941 | AA10: 59.7395796 | AB10: 93.33363438 | AC10: 79.9958102 | AD10: 52.1176857 | AE10: 63.94616122 | AF10: 109.2768175 | AG10: 110.40077
B11: Junio | C11: 108.6387102 | D11: 121.0318221 | E11: 106.4986635 | F11: 132.9228212 | G11: 103.3128024 | H11: 83.60898082 | I11: 106.5588667 | S11: 65.63890654 | T11: 113.4969417 | U11: 85.86169823 | V11: 69.69651658 | W11: 67.04196227 | X11: 91.57832774 | Y11: 117.4841354 | AA11: 60.41944574 | AB11: 93.77446336 | AC11: 80.62232466 | AD11: 52.43382285 | AE11: 64.89221156 | AF11: 109.5316877 | AG11: 110.2528011
B12: Julio | C12: 108.4722531 | D12: 118.172954 | E12: 106.8183721 | F12: 133.1379367 | G12: 103.1517955 | H12: 83.21765294 | I12: 106.3980018 | S12: 66.56934995 | T12: 113.5587772 | U12: 86.13559484 | V12: 70.69577032 | W12: 67.69331163 | X12: 91.61051659 | Y12: 117.3178018 | AA12: 61.36993386 | AB12: 96.09540369 | AC12: 80.6374345 | AD12: 53.09964393 | AE12: 65.62494752 | AF12: 110.0854366 | AG12: 110.2631627
B13: Agosto | C13: 107.7374444 | D13: 116.467236 | E13: 106.1809348 | F13: 132.2798614 | G13: 104.5170697 | H13: 81.5782269 | I13: 104.9882532 | S13: 66.63930541 | T13: 112.3173216 | U13: 85.80216425 | V13: 70.9253694 | W13: 67.27355215 | X13: 90.43966666 | Y13: 115.5836649 | AA13: 61.85343063 | AB13: 96.43683969 | AC13: 80.80750507 | AD13: 53.6176623 | AE13: 64.36609096 | AF13: 110.862506 | AG13: 110.0919973
B14: Septiembre | C14: 105.7635778 | D14: 112.4742521 | E14: 103.9782935 | F14: 129.485913 | G14: 101.7426381 | H14: 78.31534625 | I14: 103.3260179 | S14: 67.13799122 | T14: 111.5544432 | U14: 86.32789528 | V14: 71.35082395 | W14: 67.23560813 | X14: 89.69563188 | Y14: 114.5080624 | AA14: 63.47931169 | AB14: 99.18220498 | AC14: 83.02492031 | AD14: 55.10315546 | AE14: 66.08400308 | AF14: 114.5313609 | AG14: 110.8220996
B15: Octubre | C15: 104.7206916 | D15: 112.3161048 | E15: 103.879222 | F15: 129.6872328 | G15: 99.25950682 | H15: 77.89787891 | I15: 103.8882788 | S15: 68.25021806 | T15: 111.5129892 | U15: 87.10525099 | V15: 72.58099194 | W15: 67.91637096 | X15: 89.56408509 | Y15: 114.5958359 | AA15: 65.17357458 | AB15: 99.28495064 | AC15: 83.85242913 | AD15: 55.96618138 | AE15: 68.4230389 | AF15: 114.9762822 | AG15: 110.3068
B16: Noviembre | C16: 103.3632558 | D16: 111.0012519 | E16: 102.2021304 | F16: 130.4290989 | G16: 96.59441873 | H16: 76.45782915 | I16: 103.3144416 | S16: 68.88394616 | T16: 110.5407243 | U16: 86.64158204 | V16: 73.96660918 | W16: 67.88891803 | X16: 88.55729417 | Y16: 113.8612754 | AA16: 66.64258553 | AB16: 99.58511499 | AC16: 84.7747319 | AD16: 56.71020484 | AE16: 70.28244376 | AF16: 115.8250177 | AG16: 110.2084797
B17: Diciembre | C17: 103.5122661 | D17: 110.8545839 | E17: 100.7227599 | F17: 130.9085577 | G17: 98.34713545 | H17: 103.7641851 | I17: 102.9072201 | S17: 69.64915187 | T17: 110.2775493 | U17: 85.53471689 | V17: 75.29353376 | W17: 68.31177146 | X17: 88.36237277 | Y17: 113.6087513 | AA17: 67.28589228 | AB17: 99.47946705 | AC17: 84.92094238 | AD17: 57.51612811 | AE17: 69.45984868 | AF17: 85.15690913 | AG17: 110.3992034
A18: 1996 | B18: Enero | C18: 104.4337176 | D18: 111.2257254 | E18: 102.8849446 | F18: 133.3030385 | G18: 100.7412578 | H18: 100.8948535 | I18: 106.6523248 | K18: =(C18/C6-1)*100 -> 9.630160085 | L18: =(D18/D6-1)*100 -> -8.106488863 | M18: -1.984626115 | N18: -6.111573516 | O18: 3.930350523 | P18: 24.23362747 | Q18: 4.137274321 | S18: 71.01203137 | T18: 111.1862881 | U18: 87.97668847 | V18: 76.70351144 | W18: 69.37078376 | X18: 85.2403772 | Y18: 117.9474231 | AA18: 67.99722639 | AB18: 99.96454299 | AC18: 85.50977873 | AD18: 57.54070748 | AE18: 68.86035103 | AF18: 84.48436586 | AG18: 110.5905786
B19: Febrero | C19: 105.0155342 | D19: 111.3837661 | E19: 103.8550026 | F19: 132.7913042 | G19: 101.0145237 | H19: 101.1842809 | I19: 107.1540915 | K19: =(C19/C7-1)*100 -> 9.407444254 | L19: -7.808199414 | M19: -2.045043079 | N19: -1.296766544 | O19: 2.978978521 | P19: 23.83684971 | Q19: 3.652452346 | S19: 71.74475787 | T19: 111.0726464 | U19: 88.85213018 | V19: 78.23980202 | W19: 69.93053019 | X19: 85.16140825 | Y19: 117.8113778 | AA19: 68.31823352 | AB19: 99.72067768 | AC19: 85.55402048 | AD19: 58.91937163 | AE19: 69.22819379 | AF19: 84.16466222 | AG19: 109.9457577
B20: Marzo | C20: 105.9429796 | D20: 111.3001631 | E20: 103.509896 | F20: 134.0917705 | G20: 101.5117241 | H20: 101.5366737 | I20: 107.258168 | K20: 1.238787207 | L20: -7.497350041 | M20: -1.837724819 | N20: -0.7280017793 | O20: 1.856061613 | P20: 24.48061807 | Q20: 2.689959301 | S20: 72.36327988 | T20: 110.8892731 | U20: 88.91352284 | V20: 79.79831958 | W20: 70.44500544 | X20: 85.05030471 | Y20: 117.5460465 | AA20: 68.30398784 | AB20: 99.63082718 | AC20: 85.8985723 | AD20: 59.51022892 | AE20: 69.39593045 | AF20: 83.76313856 | AG20: 109.591697
B21: Abril | C21: 106.3521049 | D21: 111.2030212 | E21: 102.0564346 | F21: 133.4046275 | G21: 101.8109604 | H21: 101.9050692 | I21: 107.3203139 | K21: -1.043962721 | L21: -8.930386244 | M21: -5.447452372 | N21: -0.1811413332 | O21: -1.494577994 | P21: 21.61760384 | Q21: 0.8195776255 | S21: 72.7954691 | T21: 110.607682 | U21: 88.11460665 | V21: 80.64678338 | W21: 70.8567886 | X21: 84.97575849 | Y21: 117.1501202 | AA21: 68.44760542 | AB21: 99.46463764 | AC21: 86.33909952 | AD21: 60.45276305 | AE21: 69.5964249 | AF21: 83.38717507 | AG21: 109.1593157
B22: Mayo | C22: 105.6503549 | D22: 110.5023961 | E22: 100.8570637 | F22: 132.2571884 | G22: 101.0671846 | H22: 101.9185913 | I22: 107.599176 | K22: -2.437413848 | L22: -9.26235848 | M22: -5.994828517 | N22: 0.3263438708 | O22: -2.788170207 | P22: 21.33586772 | Q22: 1.086534559 | S22: 73.27847394 | T22: 110.3761496 | U22: 87.28606661 | V22: 81.39111146 | W22: 71.32632405 | X22: 84.88302483 | Y22: 116.8134152 | AA22: 69.35942051 | AB22: 99.88575228 | AC22: 86.54432664 | AD22: 61.5400285 | AE22: 70.57317796 | AF22: 83.28512372 | AG22: 108.563485
B23: Junio | C23: 105.396116 | D23: 108.6704038 | E23: 100.8442533 | F23: 132.2433581 | G23: 101.5706691 | H23: 101.5488689 | I23: 107.4723177 | K23: -2.984750257 | L23: -10.2133621 | M23: -5.309371972 | N23: -0.5111711191 | O23: -1.686270408 | P23: 21.45689124 | Q23: 0.8572266176 | S23: 74.0059556 | T23: 110.1831662 | U23: 87.68111493 | V23: 83.34258671 | W23: 71.88278422 | X23: 84.71802132 | Y23: 116.4366803 | AA23: 70.21696665 | AB23: 101.3920647 | AC23: 86.94706149 | AD23: 63.02213427 | AE23: 70.77120278 | AF23: 83.42586406 | AG23: 108.3410899
B24: Julio | C24: 105.7468535 | D24: 109.1103819 | E24: 99.31123618 | F24: 135.980314 | G24: 102.7355133 | H24: 101.6387625 | I24: 107.5661971 | K24: -2.512531535 | L24: -7.668905442 | M24: -7.027944523 | N24: 2.134911668 | O24: -0.4035627174 | P24: 22.13606002 | Q24: 1.097948541 | S24: 74.96659047 | T24: 110.3921249 | U24: 87.30437351 | V24: 87.48282742 | W24: 72.78426862 | X24: 84.78323273 | Y24: 116.5875572 | AA24: 70.89250224 | AB24: 101.1747214 | AC24: 87.90986485 | AD24: 64.33492086 | AE24: 70.84625979 | AF24: 83.41623866 | AG24: 108.3867985
B25: Agosto | C25: 106.3793548 | D25: 106.536042 | E25: 98.64771305 | F25: 135.926815 | G25: 105.2320309 | H25: 101.9984713 | I25: 108.0339965 | K25: -1.260554808 | L25: -8.527028147 | M25: -7.094702775 | N25: 2.756998348 | O25: 0.6840616911 | P25: 25.03148835 | Q25: 2.901032456 | S25: 75.95930823 | T25: 110.765847 | U25: 87.31398039 | V25: 89.74019833 | W25: 73.81572224 | X25: 85.0075615 | Y25: 117.0118025 | AA25: 71.4041821 | AB25: 103.9703042 | AC25: 88.51090177 | AD25: 66.02096746 | AE25: 70.14567864 | AF25: 83.34199567 | AG25: 108.3101675
B26: Septiembre | C26: 106.5506844 | D26: 107.2262555 | E26: 98.07264357 | F26: 135.287596 | G26: 105.1154943 | H26: 101.6086766 | I26: 107.7504976 | K26: 0.7442132225 | L26: -4.665953758 | M26: -5.679694953 | N26: 4.480551469 | O26: 3.315086156 | P26: 29.7429961 | Q26: 4.282057678 | S26: 76.46487258 | T26: 110.3830259 | U26: 86.67400065 | V26: 90.52279659 | W26: 74.18549212 | X26: 84.80616618 | Y26: 116.5505726 | AA26: 71.76384933 | AB26: 102.9440275 | AC26: 88.37734714 | AD26: 66.91137937 | AE26: 70.57522075 | AF26: 83.46350823 | AG26: 108.1670853
B27: Octubre | C27: 106.2359768 | D27: 107.0874312 | E27: 97.72710948 | F27: 134.7614155 | G27: 103.263785 | H27: 101.4080712 | I27: 107.2312747 | K27: 1.446977825 | L27: -4.655319562 | M27: -5.922370591 | N27: 3.912630857 | O27: 4.034150744 | P27: 30.18078617 | Q27: 3.217875902 | S27: 76.99775908 | T27: 109.9320649 | U27: 86.38947972 | V27: 91.22183313 | W27: 74.53588307 | X27: 84.53510654 | Y27: 116.1773487 | AA27: 72.478045 | AB27: 102.6563656 | AC27: 88.39868505 | AD27: 67.69135868 | AE27: 72.18008046 | AF27: 83.36131983 | AG27: 108.3427844
B28: Noviembre | C28: 106.7449303 | D28: 108.103444 | E28: 96.21804687 | F28: 133.2385951 | G28: 103.2704084 | H28: 101.0327353 | I28: 107.6314706 | K28: 3.27164085 | L28: -2.610608274 | M28: -5.855145585 | N28: 2.154040943 | O28: 6.911361695 | P28: 32.14177857 | Q28: 4.178533959 | S28: 78.0046088 | T28: 110.109978 | U28: 85.79533221 | V28: 91.81033972 | W28: 75.46316885 | X28: 84.55936519 | Y28: 116.5177888 | AA28: 73.07570352 | AB28: 101.8561241 | AC28: 89.16760941 | AD28: 68.90671553 | AE28: 73.07337119 | AF28: 83.69501721 | AG28: 108.2562452
B29: Diciembre | C29: 106.2865731 | D29: 107.5443425 | E29: 95.16546255 | F29: 133.0865185 | G29: 102.0035516 | H29: 102.3139384 | I29: 106.3119039 | K29: 2.680172232 | L29: -2.986111488 | M29: -5.517419649 | N29: 1.66372685 | O29: 3.717867422 | P29: -1.397637057 | Q29: 3.308498489 | S29: 78.31712241 | T29: 109.5677994 | U29: 85.26422073 | V29: 92.55759033 | W29: 75.67149201 | X29: 86.37804146 | Y29: 115.7641038 | AA29: 73.68486923 | AB29: 101.8815094 | AC29: 89.59576137 | AD29: 69.54693183 | AE29: 74.1851542 | AF29: 84.42451034 | AG29: 108.891008
A30: 1997 | B30: Enero | C30: 103.9798496 | D30: 107.5897839 | E30: 94.58045484 | F30: 130.4475785 | G30: 102.1728338 | H30: 105.1173031 | I30: 109.4790977 | K30: -0.434599072 | L30: -3.2689753 | M30: -8.071627767 | N30: -2.142081678 | O30: 1.421042453 | P30: 4.184999939 | Q30: 2.650455956 | S30: 78.2353407 | T30: 110.6546407 | U30: 85.56200631 | V30: 92.58453695 | W30: 75.28623308 | X30: 91.56634335 | Y30: 119.0280192 | AA30: 75.24086734 | AB30: 102.8486504 | AC30: 90.46478625 | AD30: 70.97451559 | AE30: 73.68517663 | AF30: 87.10872582 | AG30: 108.7221412
B31: Febrero | C31: 103.4846674 | D31: 105.2604968 | E31: 92.62802789 | F31: 124.4872505 | G31: 102.1068067 | H31: 105.2443151 | I31: 108.1843849 | K31: -1.457752657 | L31: -5.497452168 | M31: -10.81023967 | N31: -6.253462005 | O31: 1.081312877 | P31: 4.012514695 | Q31: 0.961506324 | S31: 78.00356437 | T31: 109.2959992 | U31: 85.33940902 | V31: 90.17172132 | W31: 74.94366684 | X31: 91.15329761 | Y31: 117.0261941 | AA31: 75.37692906 | AB31: 103.8338242 | AC31: 92.13130298 | AD31: 72.43450312 | AE31: 73.39732703 | AF31: 86.61113673 | AG31: 108.1729071
B32: Marzo | C32: 103.1842353 | D32: 104.8445536 | E32: 91.01527066 | F32: 124.0338226 | G32: 102.9068801 | H32: 105.4253859 | I32: 108.007002 | K32: -2.603989707 | L32: -5.80017974 | M32: -12.07094762 | N32: -7.500794343 | O32: 1.374379209 | P32: 3.829859667 | Q32: 0.698160363 | S32: 78.415087 | T32: 108.774529 | U32: 83.6211824 | V32: 90.28140754 | W32: 75.29885912 | X32: 91.13795194 | Y32: 116.3812082 | AA32: 75.99522038 | AB32: 103.748383 | AC32: 91.87599157 | AD32: 72.78773296 | AE32: 73.17184141 | AF32: 86.44782393 | AG32: 107.7533919
B33: Abril | C33: 102.82784 | D33: 104.8763278 | E33: 91.25050599 | F33: 123.0944736 | G33: 103.557554 | H33: 104.6454154 | I33: 108.2534554 | K33: -3.313770681 | L33: -5.689317828 | M33: -10.58818943 | N33: -7.728482947 | O33: 1.715526102 | P33: 2.68911664 | Q33: 0.8694920075 | S33: 78.96704939 | T33: 108.5299803 | U33: 83.5119758 | V33: 89.89537956 | W33: 75.80067069 | X33: 90.97116053 | Y33: 115.8730217 | AA33: 76.79539839 | AB33: 103.4837723 | AC33: 91.519466 | AD33: 73.029582 | AE33: 73.19665998 | AF33: 86.93277214 | AG33: 107.0386356
B34: Mayo | C34: 103.6432666 | D34: 105.6502074 | E34: 91.17355383 | F34: 124.8525684 | G34: 104.4069469 | H34: 104.8605751 | I34: 108.5446357 | K34: -1.899745938 | L34: -4.391025759 | M34: -9.601221246 | N34: -5.598652244 | O34: 3.304497221 | P34: 2.886601779 | Q34: 0.8786867863 | S34: 79.89541763 | T34: 108.9577656 | U34: 83.46570742 | V34: 92.2518464 | W34: 76.91787154 | X34: 91.22199391 | Y34: 116.2929471 | AA34: 77.08693507 | AB34: 103.130669 | AC34: 91.54596252 | AD34: 73.88862526 | AE34: 73.67121999 | AF34: 86.9936044 | AG34: 107.1383642
B35: Junio | C35: 103.8243059 | D35: 105.354908 | E35: 90.41642806 | F35: 123.5983993 | G35: 103.4309607 | H35: 104.579147 | I35: 108.6258072 | K35: =(C35/C23-1)*100 -> -1.491335823 | L35: -3.050964913 | M35: -10.34052501 | N35: -6.537159127 | O35: 1.831524402 | P35: 2.984058921 | Q35: 1.073289913 | S35: 80.54488725 | T35: 108.9051232 | U35: 82.67484614 | V35: 92.36494017 | W35: 77.66537751 | X35: 91.19219831 | Y35: 116.2916154 | AA35: 77.57806472 | AB35: 103.3697673 | AC35: 91.43785915 | AD35: 74.72988377 | AE35: 75.08909998 | AF35: 87.19921795 | AG35: 107.0570782
B36: Julio | C36: 103.3175793 | D36: 104.0124939 | E36: 90.27233299 | F36: 121.4472581 | G36: 102.0575489 | H36: 102.5089678 | I36: 107.7013921 | K36: -2.297254378 | L36: -4.672229998 | M36: -9.101591657 | N36: -10.68761756 | O36: -0.6599124026 | P36: 0.8561746392 | Q36: 0.1256854018 | S36: 80.7465226 | T36: 108.2308151 | U36: 82.79234608 | V36: 91.9062618 | W36: 77.86282194 | X36: 90.92722733 | Y36: 115.3713447 | AA36: 78.15371128 | AB36: 104.0555909 | AC36: 91.71397629 | AD36: 75.67586394 | AE36: 76.29305505 | AF36: 88.70172946 | AG36: 107.1214981
B37: Agosto | C37: 102.4344807 | D37: 104.1892856 | E37: 90.91451074 | F37: 119.3970839 | G37: 102.9824807 | H37: 101.7046771 | I37: 106.9489314 | K37: -3.708307963 | L37: -2.202781672 | M37: -7.839210938 | N37: -12.16075805 | O37: -2.137704829 | P37: -0.2880378469 | Q37: -1.004373734 | S37: 80.74019197 | T37: 107.4147676 | U37: 84.02093602 | V37: 91.27828497 | W37: 77.93882969 | X37: 90.52776885 | Y37: 114.1867502 | AA37: 78.82130254 | AB37: 103.0957906 | AC37: 92.41751987 | AD37: 76.44934194 | AE37: 75.68163939 | AF37: 89.0104285 | AG37: 106.7675466
B38: Septiembre | C38: 104.30884 | D38: 105.2158442 | E38: 91.38305637 | F38: 119.7796593 | G38: 105.5387893 | H38: 101.5008009 | I38: 107.0292143 | K38: -2.104016843 | L38: -1.874924428 | M38: -6.821053208 | N38: -11.46294051 | O38: 0.4026951461 | P38: -0.1061677869 | Q38: -0.669401335 | S38: 81.60711576 | T38: 107.7408869 | U38: 84.61287364 | V38: 91.59588664 | W38: 78.93698334 | X38: 90.59899419 | Y38: 113.9355658 | AA38: 78.23604956 | AB38: 102.3998692 | AC38: 92.5914245 | AD38: 76.47031821 | AE38: 74.79428549 | AF38: 89.25938844 | AG38: 106.4527722
B39: Octubre | C39: 105.4570359 | D39: 106.0597128 | E39: 91.8547911 | F39: 120.694572 | G39: 106.574422 | H39: 101.4311095 | I39: 107.6586701 | K39: -0.7332176633 | L39: -0.9597003194 | M39: -6.008893957 | N39: -10.43833164 | O39: 3.206000076 | P39: 0.02271840088 | Q39: 0.3985734865 | S39: 82.4690163 | T39: 108.0063851 | U39: 85.27395166 | V39: 91.83351521 | W39: 79.9507632 | X39: 90.58796064 | Y39: 113.8605704 | AA39: 78.20153072 | AB39: 101.8354493 | AC39: 92.83560567 | AD39: 76.08752711 | AE39: 75.01871624 | AF39: 89.30983908 | AG39: 105.7607068
B40: Noviembre | C40: 104.4212181 | D40: 105.7807716 | E40: 91.95208861 | F40: 119.6291993 | G40: 104.3184999 | H40: 100.588289 | I40: 106.0633426 | K40: -2.176883013 | L40: -2.148564706 | M40: -4.433636305 | N40: -10.21430455 | O40: 1.014900171 | P40: -0.4399032101 | Q40: -1.456941919 | S40: 83.00194992 | T40: 107.5694324 | U40: 85.62856265 | V40: 91.72547599 | W40: 80.53400701 | X40: 89.92367348 | Y40: 112.0324501 | AA40: 79.48762853 | AB40: 101.690913 | AC40: 93.12302085 | AD40: 76.67482234 | AE40: 77.20011988 | AF40: 89.39775627 | AG40: 105.6278704
B41: Diciembre | C41: 103.5976682 | D41: 104.710266 | E41: 90.62925024 | F41: 118.7355406 | G41: 103.9233144 | H41: 99.44655161 | I41: 100.4796368 | K41: -2.529863235 | L41: -2.63526316 | M41: -4.766658185 | N41: -10.78319434 | O41: 1.88205485 | P41: -2.802537749 | Q41: -5.485996323 | S41: 83.00797946 | T41: 106.4058213 | U41: 84.6167902 | V41: 91.24469259 | W41: 80.6658866 | X41: 88.94581934 | Y41: 105.8356438 | AA41: 80.12533576 | AB41: 101.6192827 | AC41: 93.36587247 | AD41: 76.84699301 | AE41: 77.62058697 | AF41: 89.44082817 | AG41: 105.3304402
A42: 1998 | B42: Enero | C42: 101.6508087 | D42: 102.8833819 | E42: 89.814057 | F42: 116.9139944 | G42: 103.1006838 | H42: 98.315795 | I42: 97.4274066 | K42: -2.239896386 | L42: -4.374394915 | M42: -5.039516728 | N42: -10.37473003 | O42: 0.9081180781 | P42: -6.470398211 | Q42: -11.00821191 | S42: 82.76374307 | T42: 106.0799406 | U42: 84.70902904 | V42: 90.51979002 | W42: 80.93087365 | X42: 86.57285926 | Y42: 102.4858397 | AA42: 81.41966022 | AB42: 103.1069728 | AC42: 94.31600338 | AD42: 77.42425574 | AE42: 78.49693199 | AF42: 88.05590115 | AG42: 105.1920022
B43: Febrero | C43: 101.7436221 | D43: 102.9101536 | E43: 88.93342425 | F43: 114.8386302 | G43: 102.9531352 | H43: 98.61868242 | I43: 98.65463267 | K43: -1.682418626 | L43: -2.232882499 | M43: -3.988645469 | N43: -7.750689507 | O43: 0.8288658807 | P43: -6.295477944 | Q43: -8.808805685 | S43: 83.33977345 | T43: 105.9631891 | U43: 84.00042476 | V43: 90.85805225 | W43: 81.65376076 | X43: 86.53171141 | Y43: 102.9585916 | AA43: 81.91154562 | AB43: 102.9667 | AC43: 94.45315467 | AD43: 79.1180216 | AE43: 79.3115825 | AF43: 87.74373099 | AG43: 104.3626527
B44: Marzo | C44: 101.6053939 | D44: 102.5772964 | E44: 89.37788113 | F44: 113.3638207 | G44: 102.7872508 | H44: 98.97335814 | I44: 99.26266231 | K44: -1.530118834 | L44: -2.162494006 | M44: -1.79902726 | N44: -8.602493747 | O44: -0.1162500294 | P44: -6.1199944 | Q44: -8.096085945 | S44: 83.85010418 | T44: 105.775718 | U44: 84.71302819 | V44: 90.98384373 | W44: 82.16447352 | X44: 86.49382134 | Y44: 103.4878703 | AA44: 82.5252489 | AB44: 103.1180599 | AC44: 94.78075238 | AD44: 80.25827213 | AE44: 79.93644432 | AF44: 87.39101408 | AG44: 104.2565935
B45: Abril | C45: 102.0317503 | D45: 101.7818588 | E45: 89.31758782 | F45: 111.7317695 | G45: 101.9482309 | H45: 99.39401573 | I45: 100.2648893 | K45: -0.7741966375 | L45: -2.950588622 | M45: -2.11825474 | N45: -9.230880772 | O45: -1.554037343 | P45: -5.018279737 | Q45: -7.379502156 | S45: 84.6192365 | T45: 105.9488916 | U45: 85.03068127 | V45: 91.00389801 | W45: 82.95831162 | X45: 86.55853849 | Y45: 104.0966428 | AA45: 82.9342202 | AB45: 104.094082 | AC45: 95.20037805 | AD45: 81.44854269 | AE45: 81.37297807 | AF45: 87.08626758 | AG45: 103.8216304
B46: Mayo | C46: 102.4332416 | D46: 101.6055209 | E46: 88.98070476 | F46: 111.2814135 | G46: 101.1916005 | H46: 99.13664573 | I46: 100.1703066 | K46: -1.167490174 | L46: -3.828375355 | M46: -2.405137212 | N46: -10.86974426 | O46: -3.079628819 | P46: -5.458609592 | Q46: -7.715101765 | S46: 85.38355106 | T46: 106.0659782 | U46: 84.9398293 | V46: 91.49837769 | W46: 83.79210298 | X46: 86.53964035 | Y46: 103.992201 | AA46: 83.35531483 | AB46: 104.3899754 | AC46: 95.45870594 | AD46: 82.22251569 | AE46: 82.80539352 | AF46: 87.29329071 | AG46: 103.8153965
B47: Junio | C47: 102.0456764 | D47: 100.9360525 | E47: 88.78699293 | F47: 109.3407066 | G47: 99.66616498 | H47: 98.40849052 | I47: 99.32588076 | K47: -1.713114828 | L47: -4.194256817 | M47: -1.802144988 | N47: -11.53549951 | O47: -3.639911806 | P47: -5.900465471 | Q47: -8.561433701 | S47: 85.62280477 | T47: 105.3116689 | U47: 84.73558387 | V47: 91.35433874 | W47: 83.9885987 | X47: 86.24205897 | Y47: 103.3264516 | AA47: 83.90635236 | AB47: 104.3350381 | AC47: 95.43693402 | AD47: 83.55016314 | AE47: 84.26992121 | AF47: 87.63680706 | AG47: 104.0277225
B48: Julio | C48: 101.3263805 | D48: 100.6123734 | E48: 89.18005247 | F48: 107.6569716 | G48: 101.5287913 | H48: 106.3226537 | I48: 99.92901764 | K48: -1.927260356 | L48: -3.268953905 | M48: -1.209983708 | N48: -11.35495915 | O48: -0.5180974967 | P48: 3.720343671 | Q48: -7.216596076 | S48: 86.38499057 | T48: 105.3127266 | U48: 85.24889818 | V48: 91.62494336 | W48: 84.70645062 | X48: 93.66209064 | Y48: 103.9961258 | AA48: 85.25419552 | AB48: 104.6717447 | AC48: 95.59189058 | AD48: 85.10823036 | AE48: 83.43096531 | AF48: 88.09231837 | AG48: 104.0699971
B49: Agosto | C49: 99.87421031 | D49: 101.4222986 | E49: 89.32078485 | F49: 107.6300915 | G49: 102.613028 | H49: 106.6114268 | I49: 99.42345369 | K49: -2.499422468 | L49: -2.655730856 | M49: -1.752993968 | N49: -9.855343225 | O49: -0.3587529859 | P49: 4.824507461 | Q49: -7.036515093 | S49: 86.73880661 | T49: 104.6783821 | U49: 85.33642444 | V49: 91.62093875 | W49: 85.04590339 | X49: 93.98492293 | Y49: 103.3152313 | AA49: 86.84805251 | AB49: 103.2104218 | AC49: 95.53926848 | AD49: 85.12576499 | AE49: 82.88022004 | AF49: 88.1565192 | AG49: 103.9143456
B50: Septiembre | C50: 101.956479 | D50: 103.2122752 | E50: 90.81014913 | F50: 109.0218619 | G50: 104.3400504 | H50: 106.3479286 | I50: 99.36489398 | K50: -2.255188582 | L50: -1.904246508 | M50: -0.6269293885 | N50: -8.981322449 | O50: -1.135827753 | P50: 4.775457547 | Q50: -7.16096105 | S50: 87.98574958 | T50: 105.1428918 | U50: 86.3292849 | V50: 92.90900562 | W50: 86.50403973 | X50: 94.15450332 | Y50: 103.5198897 | AA50: 86.2973599 | AB50: 101.8705301 | AC50: 95.06567903 | AD50: 85.22052733 | AE50: 82.90588265 | AF50: 88.53440265 | AG50: 104.181553
B51: Octubre | C51: 104.0318004 | D51: 104.772451 | E51: 93.11105309 | F51: 110.441245 | G51: 104.623731 | H51: 105.4391228 | I51: 100.9551933 | K51: =(C51/C39-1)*100 -> -1.351484455 | L51: -1.213714156 | M51: 1.36766082 | N51: -8.495267697 | O51: -1.830355657 | P51: 3.951463526 | Q51: -6.226601972 | S51: 89.80775786 | T51: 106.4761994 | U51: 88.21628277 | V51: 94.38141922 | W51: 88.5305498 | X51: 95.12687179 | Y51: 105.0584229 | AA51: 86.32721677 | AB51: 101.6261415 | AC51: 94.74308349 | AD51: 85.45848898 | AE51: 84.61803928 | AF51: 90.21971096 | AG51: 104.0644067
B52: Noviembre | C52: 103.4391887 | D52: 102.345503 | E52: 90.78568277 | F52: 109.6171955 | G52: 99.52557584 | H52: 103.9466462 | I52: 101.1164396 | K52: -0.9404500523 | L52: -3.247535901 | M52: -1.268493035 | N52: -8.369197314 | O52: -4.594510181 | P52: 3.338715876 | Q52: -4.664102548 | S52: 90.38385735 | T52: 106.1670347 | U52: 88.14275409 | V52: 94.78298356 | W52: 89.09830525 | X52: 95.42113501 | Y52: 105.1916702 | AA52: 87.37873771 | AB52: 103.7339517 | AC52: 97.08882657 | AD52: 86.46725827 | AE52: 89.52302411 | AF52: 91.79818539 | AG52: 104.0302355
B53: Diciembre | C53: 104.2162687 | D53: 103.0350682 | E53: 93.13407414 | F53: 109.8694481 | G53: 99.9933524 | H53: 102.7982228 | I53: 102.3506908 | K53: 0.5971181903 | L53: -1.599841018 | M53: 2.763813992 | N53: -7.467092359 | O53: -3.781597977 | P53: 3.370324157 | Q53: 1.862122542 | S53: 91.61363897 | T53: 106.6225262 | U53: 90.65914243 | V53: 95.62752884 | W53: 90.30706312 | X53: 95.56697241 | Y53: 106.2926399 | AA53: 87.90723379 | AB53: 103.4817834 | AC53: 97.34261415 | AD53: 87.03741619 | AE53: 90.31306677 | AF53: 92.96558816 | AG53: 103.8514143
A54: 1999 | B54: Enero | C54: 102.4125417 | D54: 101.7228484 | E54: 95.94653805 | F54: 108.3050235 | G54: 101.2788823 | H54: 103.4634831 | I54: 100.0282319 | K54: 0.7493624238 | L54: -1.128008649 | M54: 6.827974651 | N54: -7.363507603 | O54: -1.767012105 | P54: 5.235870946 | Q54: 2.669500702 | S54: 91.25043592 | T54: 105.1600559 | U54: 92.94384292 | V54: 95.59751587 | W54: 91.09206556 | X54: 95.21005926 | Y54: 103.7563649 | AA54: 89.100841 | AB54: 103.3789925 | AC54: 96.87044975 | AD54: 88.26692682 | AE54: 89.94181564 | AF54: 92.02286291 | AG54: 103.7270807
B55: Febrero | C55: 101.9654047 | D55: 101.4853728 | E55: 94.8577305 | F55: 107.2501769 | G55: 102.0531497 | H55: 105.4039806 | I55: 99.57807019 | K55: 0.217981826 | L55: -1.384490058 | M55: 6.661506963 | N55: -6.607927349 | O55: -0.8741700465 | P55: 6.88033745 | Q55: 0.9360305719 | S55: 91.27052191 | T55: 104.3688392 | U55: 91.17297197 | V55: 95.29353155 | W55: 91.23527669 | X55: 96.56206483 | Y55: 103.0458714 | AA55: 89.51126331 | AB55: 102.8412631 | AC55: 96.11548946 | AD55: 88.85163107 | AE55: 89.39976565 | AF55: 91.61140245 | AG55: 103.4824949
B56: Marzo | C56: 103.293633 | D56: 101.7544874 | E56: 96.8787678 | F56: 107.3564077 | G56: 104.8041244 | H56: 105.980392 | I56: 99.42135523 | K56: 1.661564445 | L56: -0.8021355738 | M56: 8.392329935 | N56: -5.299233054 | O56: 1.962182654 | P56: 7.079717211 | Q56: 0.1598717161 | S56: 91.79739442 | T56: 104.0652023 | U56: 92.35693609 | V56: 95.35557282 | W56: 91.58904117 | X56: 97.29528889 | Y56: 102.7363562 | AA56: 88.87033188 | AB56: 102.2708727 | AC56: 95.33248429 | AD56: 88.8215011 | AE56: 87.39068397 | AF56: 91.80499057 | AG56: 103.3342947
B57: Abril | C57: 104.6068506 | D57: 102.9849565 | E57: 98.86423394 | F57: 108.1012324 | G57: 105.9701907 | H57: 106.4657199 | I57: 99.99049553 | K57: 2.523822501 | L57: 1.182035491 | M57: 10.68842806 | N57: -3.249332921 | O57: 3.945100091 | P57: 7.114818806 | Q57: -0.2736688876 | S57: 92.51918454 | T57: 104.0915671 | U57: 93.88210878 | V57: 95.72288285 | W57: 92.36075527 | X57: 97.34037691 | Y57: 102.7840176 | AA57: 88.44467069 | AB57: 101.0745361 | AC57: 94.96063949 | AD57: 88.54929842 | AE57: 87.15729835 | AF57: 91.42884399 | AG57: 102.7937876
B58: Mayo | C58: 104.3937015 | D58: 103.457757 | E58: 100.760624 | F58: 107.474646 | G58: 105.3142382 | H58: 106.4304658 | I58: 99.66199957 | K58: 1.913890323 | L58: 1.822967948 | M58: 13.2387345 | N58: -3.420847537 | O58: 4.074090792 | P58: 7.357339949 | Q58: -0.5074428387 | S58: 93.0258824 | T58: 103.8164691 | U58: 96.36638658 | V58: 95.86660772 | W58: 92.96385665 | X58: 97.25175092 | Y58: 102.4131214 | AA58: 89.11062739 | AB58: 100.3467233 | AC58: 95.63893387 | AD58: 89.19927748 | AE58: 88.27282832 | AF58: 91.37585767 | AG58: 102.7604522
B59: Junio | C59: 103.2062378 | D59: 102.9298636 | E59: 100.9955338 | F59: 106.326813 | G59: 104.9072597 | H59: 106.6171512 | I59: 99.13162455 | K59: 1.137296039 | L59: 1.975321019 | M59: 13.75037092 | N59: -2.7564241 | O59: 5.258649973 | P59: 8.341415114 | Q59: -0.1955746222 | S59: 93.23381158 | T59: 103.1980942 | U59: 97.19528385 | V59: 95.95633324 | W59: 93.30035029 | X59: 96.90129592 | Y59: 102.0825498 | AA59: 90.33738035 | AB59: 100.2605955 | AC59: 96.23720991 | AD59: 90.24659963 | AE59: 88.93602838 | AF59: 90.8871554 | AG59: 102.9767748
B60: Julio | C60: 103.9494491 | D60: 102.6102864 | E60: 100.3889127 | F60: 106.1791732 | G60: 105.1938419 | H60: 107.1514675 | I60: 99.02591625 | K60: 2.588732185 | L60: 1.985752829 | M60: 12.5687975 | N60: -1.372691778 | O60: 3.609863407 | P60: 0.7795269983 | Q60: -0.9037428861 | S60: 93.91366797 | T60: 103.2069058 | U60: 97.58258509 | V60: 96.31033031 | W60: 94.08123341 | X60: 96.88355379 | Y60: 101.9530194 | AA60: 90.3455177 | AB60: 100.581442 | AC60: 97.20454429 | AD60: 90.70548153 | AE60: 89.43606552 | AF60: 90.41738393 | AG60: 102.955896
B61: Agosto | C61: 105.0097731 | D61: 103.5282665 | E61: 103.9372488 | F61: 106.6118669 | G61: 105.3008383 | H61: 107.3273676 | I61: 99.827081 | K61: 5.142030898 | L61: 2.076434799 | M61: 16.36401196 | N61: -0.9460408406 | O61: 2.619365595 | P61: 0.6715422982 | Q61: 0.4059678979 | S61: 95.181497 | T61: 103.8140519 | U61: 101.6415781 | V61: 97.26149496 | W61: 95.45503546 | X61: 97.05773478 | Y61: 102.5583905 | AA61: 90.64060823 | AB61: 100.2760458 | AC61: 97.79129165 | AD61: 91.2295205 | AE61: 90.64983429 | AF61: 90.43148727 | AG61: 102.7360407
B62: Septiembre | C62: 105.5510621 | D62: 103.8399094 | E62: 105.6120151 | F62: 107.0538993 | G62: 105.2480144 | H62: 107.4984158 | I62: 100.6576964 | K62: 3.525605407 | L62: 0.6081004188 | M62: 16.29979263 | N62: -1.805108278 | O62: 0.8701970593 | P62: 1.081814354 | Q62: 1.301065574 | S62: 95.88148072 | T62: 103.9088923 | U62: 103.3047287 | V62: 97.97051074 | W62: 96.26186811 | X62: 97.12166297 | Y62: 102.9181183 | AA62: 90.83895398 | AB62: 100.066432 | AC62: 97.81531829 | AD62: 91.51512595 | AE62: 91.46193268 | AF62: 90.34706445 | AG62: 102.2456523
B63: Octubre | C63: 105.1958555 | D63: 103.6459564 | E63: 105.372861 | F63: 106.8495652 | G63: 104.5795265 | H63: 104.3558677 | I63: 100.9191943 | K63: 1.118941581 | L63: -1.075182141 | M63: 13.16901435 | N63: -3.252118181 | O63: -0.04225098425 | P63: -1.027374915 | Q63: -0.03565833631 | S63: 96.7724128 | T63: 104.0760167 | U63: 103.5843997 | V63: 98.49082697 | W63: 97.2006059 | X63: 97.40182515 | Y63: 103.0508379 | AA63: 91.99260973 | AB63: 100.4149321 | AC63: 98.30273061 | AD63: 92.17709661 | AE63: 92.9442016 | AF63: 93.33622281 | AG63: 102.1122281
B64: Noviembre | C64: 104.4885088 | D64: 103.8134978 | E64: 104.5177386 | F64: 105.8557693 | G64: 103.7729449 | H64: 103.1136874 | I64: 100.7446491 | K64: 1.014431881 | L64: 1.43435199 | M64: 15.12579449 | N64: -3.431419849 | O64: 4.267615612 | P64: -0.8013330202 | Q64: -0.3676854525 | S64: 96.93616925 | T64: 103.6743401 | U64: 102.9916293 | V64: 98.42431522 | W64: 97.36701897 | X64: 97.56645696 | Y64: 103.0192693 | AA64: 92.77208604 | AB64: 99.86595415 | AC64: 98.53985618 | AD64: 92.97964188 | AE64: 93.82697881 | AF64: 94.62027729 | AG64: 102.2578075
B65: Diciembre | C65: 103.7862347 | D65: 104.1684046 | E65: 103.1715586 | F65: 105.0321387 | G65: 103.6086491 | H65: 102.7904555 | I65: 100.5896292 | K65: -0.4126361987 | L65: 1.099952107 | M65: 10.77745662 | N65: -4.402779416 | O65: 3.615537001 | P65: -0.007555839248 | Q65: -1.720615224 | S65: 97.39722636 | T65: 103.4638217 | U65: 101.7913073 | V65: 98.58116404 | W65: 97.59154811 | X65: 97.49962989 | Y65: 103.2249978 | AA65: 93.84406968 | AB65: 99.32361167 | AC65: 98.66217854 | AD65: 93.85809456 | AE65: 94.19247235 | AF65: 94.85280459 | AG65: 102.6199208
A66: 2000 | B66: Enero | C66: 102.6370677 | D66: 103.2537814 | E66: 105.8495597 | F66: 104.3146171 | G66: 103.1942986 | H66: 103.2815511 | I66: 100.8522034 | K66: 0.219236849 | L66: 1.505004002 | M66: 10.32139545 | N66: -3.684414884 | O66: 1.891229776 | P66: -0.1758417662 | Q66: 0.8237389146 | S66: 97.72548325 | T66: 102.9056614 | U66: 104.4409192 | V66: 98.06437862 | W66: 97.67171999 | X66: 97.92776914 | Y66: 103.1099386 | AA66: 95.21460953 | AB66: 99.66285012 | AC66: 98.66920514 | AD66: 94.0082812 | AE66: 94.64836845 | AF66: 94.81632302 | AG66: 102.2386573
B67: Febrero | C67: 101.4105236 | D67: 102.6768566 | E67: 103.9522129 | F67: 103.281345 | G67: 101.2474385 | H67: 104.0107186 | I67: 100.7220935 | K67: =(C67/C55-1)*100 -> -0.5441856435 | L67: 1.174044884 | M67: 9.587497332 | N67: -3.700536496 | O67: -0.7895015984 | P67: -1.321830502 | Q67: 1.148870751 | S67: 97.42896628 | T67: 102.2602404 | U67: 102.7842522 | V67: 98.02708474 | W67: 97.34274733 | X67: 98.10088948 | Y67: 102.3309828 | AA67: 96.07382231 | AB67: 99.59424531 | AC67: 98.87644466 | AD67: 94.91267249 | AE67: 96.14341735 | AF67: 94.31805761 | AG67: 101.5973549
B68: Marzo | C68: 101.7944177 | D68: 103.2648295 | E68: 102.7281769 | F68: 103.2950961 | G68: 101.3808936 | H68: 104.788948 | I68: 100.8874263 | K68: -1.451411071 | L68: 1.484300265 | M68: 6.037864874 | N68: -3.783017418 | O68: -3.266313087 | P68: -1.124211745 | Q68: 1.474603795 | S68: 97.86068908 | T68: 102.3000162 | U68: 102.0488802 | V68: 98.28982223 | W68: 97.77670553 | X68: 98.0798538 | Y68: 102.5071071 | AA68: 96.13561456 | AB68: 99.06569034 | AC68: 99.33874357 | AD68: 95.15439355 | AE68: 96.44490402 | AF68: 93.59751737 | AG68: 101.6054337
B69: Abril | C69: 102.2495297 | D69: 102.8485247 | E69: 101.3391692 | F69: 102.162389 | G69: 100.9920044 | H69: 104.6274006 | I69: 100.7560824 | K69: -2.253505257 | L69: -0.1324774229 | M69: 2.503367647 | N69: -5.493779494 | O69: -4.697723271 | P69: -1.726677119 | Q69: 0.7656596607 | S69: 97.83669184 | T69: 101.8532669 | U69: 101.559777 | V69: 98.37980881 | W69: 97.87018505 | X69: 97.93088669 | Y69: 102.1822448 | AA69: 95.68424628 | AB69: 99.03230718 | AC69: 100.2176925 | AD69: 96.29748261 | AE69: 96.90884505 | AF69: 93.59965564 | AG69: 101.4154603
B70: Mayo | C70: 101.5751465 | D70: 101.2592343 | E70: 101.2257917 | F70: 100.9638717 | G70: 99.66682835 | H70: 104.2073501 | I70: 99.68032044 | K70: -2.69992825 | L70: -2.125043868 | M70: 0.4616561755 | N70: -6.057963018 | O70: -5.362437125 | P70: -2.088796347 | Q70: 0.01838300371 | S70: 96.98263987 | T70: 100.7554288 | U70: 100.5341439 | V70: 98.04789589 | W70: 97.20790339 | X70: 97.50935115 | Y70: 101.078111 | AA70: 95.47871031 | AB70: 99.50245977 | AC70: 99.31672775 | AD70: 97.11186212 | AE70: 97.53285521 | AF70: 93.57243138 | AG70: 101.4022733
B71: Junio | C71: 102.0996985 | D71: 101.0473535 | E71: 101.8358284 | F71: 101.2464552 | G71: 100.6336998 | H71: 103.9434003 | I71: 100.3239597 | K71: -1.07216322 | L71: -1.828925087 | M71: 0.83201169 | N71: -4.778058959 | O71: -4.07365509 | P71: -2.507805616 | Q71: 1.202779749 | S71: 98.4032862 | T71: 101.2415556 | U71: 101.2210774 | V71: 98.81555849 | W71: 98.37343704 | X71: 97.7582525 | Y71: 101.6244276 | AA71: 96.37960511 | AB71: 100.1921892 | AC71: 99.39633133 | AD71: 97.59903031 | AE71: 97.75397031 | AF71: 94.04950406 | AG71: 101.2962685
B72: Julio | C72: 101.4868427 | D72: 101.443253 | E72: 102.3146237 | F72: 101.0619549 | G72: 101.5413417 | H72: 103.6927963 | I72: 100.2234188 | K72: -2.369042295 | L72: -1.137345462 | M72: 1.918250752 | N72: -4.819418042 | O72: -3.472161663 | P72: -3.227833736 | Q72: 1.20928194 | S72: 98.91280001 | T72: 101.3135911 | U72: 101.7117122 | V72: 99.09039935 | W72: 98.78931691 | X72: 97.75884423 | Y72: 101.5360436 | AA72: 97.46366854 | AB72: 99.87218281 | AC72: 99.41072785 | AD72: 98.04916144 | AE72: 97.28974944 | AF72: 94.27737287 | AG72: 101.3096987
B73: Agosto | C73: 100.6561696 | D73: 100.6608408 | E73: 102.5500489 | F73: 100.6639847 | G73: 101.4030905 | H73: 102.31551 | I73: 100.1647609 | K73: -4.145903097 | L73: -2.769703186 | M73: -1.334651301 | N73: -5.579005769 | O73: -3.701535432 | P73: -4.669692151 | Q73: 0.3382648006 | S73: 98.63102497 | T73: 100.8203907 | U73: 101.3506005 | V73: 99.09133751 | W73: 98.69713666 | X73: 97.50799082 | Y73: 101.0710986 | AA73: 97.9880571 | AB73: 100.1585025 | AC73: 98.83037753 | AD73: 98.43772609 | AE73: 97.3314878 | AF73: 95.3012802 | AG73: 100.9048468
B74: Septiembre | C74: 100.4473965 | D74: 100.3393621 | E74: 103.1864878 | F74: 101.0354293 | G74: 101.3080618 | H74: 100.7869998 | I74: 99.77492657 | K74: -4.835257459 | L74: -3.371100158 | M74: -2.296639613 | N74: -5.621906362 | O74: -3.743493598 | P74: -6.243269626 | Q74: -0.8770018246 | S74: 98.32138923 | T74: 100.1733799 | U74: 101.5168908 | V74: 99.13614969 | W74: 98.54932312 | X74: 99.21427131 | Y74: 100.5915623 | AA74: 97.88346206 | AB74: 99.83457921 | AC74: 98.38196164 | AD74: 98.12018457 | AE74: 97.27688143 | AF74: 98.43955221 | AG74: 100.8184779
B75: Octubre | C75: 99.77863942 | D75: 99.88295378 | E75: 102.6585018 | F75: 100.5809026 | G75: 100.2689343 | H75: 100.8555967 | I75: 99.60476718 | K75: -5.149647811 | L75: -3.630631354 | M75: -2.57595665 | N75: -5.866811519 | O75: -4.121831733 | P75: -3.354167815 | Q75: -1.302455054 | S75: 98.12184563 | T75: 99.51139096 | U75: 101.122874 | V75: 99.08155155 | W75: 98.43733229 | X75: 99.3809715 | Y75: 100.0042702 | AA75: 98.33953058 | AB75: 99.62800177 | AC75: 98.50413971 | AD75: 98.50930838 | AE75: 98.17331054 | AF75: 98.53788459 | AG75: 100.4010883
B76: Noviembre | C76: 99.60333539 | D76: 99.77378651 | E76: 101.3016792 | F76: 99.89690047 | G76: 99.86422188 | H76: 100.6584438 | I76: 99.85670455 | K76: -4.675321174 | L76: -3.891316027 | M76: -3.077046474 | N76: -5.629233899 | O76: -3.76661082 | P76: -2.381103481 | Q76: -0.8813813674 | S76: 98.61320638 | T76: 99.47180627 | U76: 100.3211256 | V76: 99.41240177 | W76: 98.91498031 | X76: 99.57962154 | Y76: 99.90427154 | AA76: 99.00592786 | AB76: 99.69733509 | AC76: 99.03204605 | AD76: 99.51500127 | AE76: 99.04946781 | AF76: 98.92823469 | AG76: 100.0476353
B77: Diciembre | C77: 100 | D77: 100 | E77: 100 | F77: 100 | G77: 100 | H77: 100 | I77: 100 | K77: -3.648108695 | L77: -4.001601697 | M77: -3.074062874 | N77: -4.791046571 | O77: -3.482961206 | P77: -2.714702913 | Q77: -0.5861729555 | S77: 100 | T77: 100 | U77: 100 | V77: 100 | W77: 100 | X77: 100 | Y77: 100 | AA77: 100 | AB77: 100 | AC77: 100 | AD77: 100 | AE77: 100 | AF77: 100 | AG77: 100
A78: 2001 | B78: Enero | C78: 99.91859727 | D78: 99.15563537 | E78: 99.81604582 | F78: 99.63909624 | G78: 100.2167323 | H78: 101.6842226 | I78: 100.1934708 | K78: -2.648624424 | L78: -3.969003323 | M78: -5.70008403 | N78: -4.48213398 | O78: -2.885398062 | P78: -1.546576799 | Q78: -0.6531662949 | S78: 100.9123302 | T78: 100.4555768 | U78: 100.6964461 | V78: 100.0083501 | W78: 100.5640473 | X78: 100.5627829 | Y78: 99.72595696 | AA78: 100.9945425 | AB78: 101.3110111 | AC78: 100.8820228 | AD78: 100.3705914 | AE78: 100.3465639 | AF78: 98.89713502 | AG78: 99.53338894
B79: Febrero | C79: 99.26779299 | D79: 99.51712014 | E79: 98.45064384 | F79: 98.99656389 | G79: 99.5485625 | H79: 102.0622666 | I79: 100.3937545 | K79: -2.112927299 | L79: -3.077359937 | M79: -5.292402043 | N79: -4.148649608 | O79: -1.677944653 | P79: -1.873318473 | Q79: -0.3259851003 | S79: 101.0626387 | T79: 100.2937225 | U79: 99.72657997 | V79: 100.2636325 | W79: 100.8068204 | X79: 100.6977658 | Y79: 99.55394985 | AA79: 101.8080846 | AB79: 100.7803706 | AC79: 101.296016 | AD79: 101.2799117 | AE79: 101.2639639 | AF79: 98.66307024 | AG79: 99.16348915
B80: Marzo | C80: 97.88643517 | D80: 99.24702679 | E80: 97.29737229 | F80: 98.30194551 | G80: 99.67496763 | H80: 102.4758643 | I80: 99.73615625 | K80: -3.839093196 | L80: -3.890775544 | M80: -5.286577415 | N80: -4.833869898 | O80: -1.682689813 | P80: -2.207373693 | Q80: -1.141143257 | S80: 101.0406472 | T80: 99.93482576 | U80: 98.77239367 | V80: 100.1934287 | W80: 100.674165 | X80: 100.4180675 | Y80: 98.75539537 | AA80: 103.2223178 | AB80: 100.6930172 | AC80: 101.515993 | AD80: 101.9241565 | AE80: 101.0024557 | AF80: 97.99192052 | AG80: 99.0166446
B81: Abril | C81: 97.27025172 | D81: 99.43052738 | E81: 97.75727803 | F81: 98.32185069 | G81: 99.68425903 | H81: 102.1209719 | I81: 99.56433995 | K81: -4.869731944 | L81: -3.323331427 | M81: -3.534557449 | N81: -3.759248759 | O81: -1.294899893 | P81: -2.395575879 | Q81: -1.182799525 | S81: 101.2034908 | T81: 99.82430766 | U81: 99.23794249 | V81: 100.4175821 | W81: 100.9422571 | X81: 100.2747435 | Y81: 98.31041004 | AA81: 104.0436197 | AB81: 100.3960356 | AC81: 101.5146335 | AD81: 102.1315012 | AE81: 101.2619827 | AF81: 98.19211637 | AG81: 98.74058331
B82: Mayo | C82: 97.17166096 | D82: 99.62955209 | E82: 98.18034783 | F82: 97.89527609 | G82: 99.87128599 | H82: 102.2176507 | I82: 99.79009493 | K82: -4.335199796 | L82: -1.609415852 | M82: -3.008565101 | N82: -3.039300658 | O82: 0.2051411114 | P82: -1.909365649 | Q82: 0.1101265433 | S82: 101.3763558 | T82: 99.7772842 | U82: 99.59766113 | V82: 100.8029604 | W82: 101.4797916 | X82: 100.2121258 | Y82: 98.26492614 | AA82: 104.3270793 | AB82: 100.1482814 | AC82: 101.4435815 | AD82: 102.9701988 | AE82: 101.6105786 | AF82: 98.03798571 | AG82: 98.47162306
B83: Junio | C83: 97.19778326 | D83: 99.45790419 | E83: 97.81620902 | F83: 97.69253257 | G83: 99.51192204 | H83: 102.8029527 | I83: 100.4220928 | K83: =(C83/C71-1)*100 -> -4.801106455 | L83: -1.572974706 | M83: -3.9471564 | N83: -3.51016993 | O83: -1.114713836 | P83: -1.097181359 | Q83: 0.09781622433 | S83: 101.5568309 | T83: 99.61361235 | U83: 99.84384904 | V83: 101.0802196 | W83: 101.6526255 | X83: 100.082497 | Y83: 98.11672487 | AA83: 104.4847192 | AB83: 100.1565568 | AC83: 102.072908 | AD83: 103.4677031 | AE83: 102.151203 | AF83: 97.35371836 | AG83: 97.704322
B84: Julio | C84: 96.88286702 | D84: 99.13295024 | E84: 96.58575302 | F84: 97.20389888 | G84: 100.0026517 | H84: 102.7101026 | I84: 99.90735317 | K84: -4.53652472 | L84: -2.277433634 | M84: -5.599268725 | N84: -3.817515769 | O84: -1.515333569 | P84: -0.9476972164 | Q84: -0.3153610301 | S84: 102.0841555 | T84: 99.49872698 | U84: 99.67519333 | V84: 101.3547275 | W84: 102.0271923 | X84: 100.0128561 | Y84: 97.91735747 | AA84: 105.368636 | AB84: 100.368976 | AC84: 103.1986501 | AD84: 104.2702286 | AE84: 102.0244869 | AF84: 97.37392289 | AG84: 98.00815892
B85: Agosto | C85: 97.68183562 | D85: 99.43814853 | E85: 96.72919529 | F85: 97.20464467 | G85: 101.3370974 | H85: 102.3554189 | I85: 100.7781495 | K85: -2.954944562 | L85: -1.214665231 | M85: -5.676110043 | N85: -3.436522037 | O85: -0.06507996071 | P85: 0.03900575231 | Q85: 0.6123796456 | S85: 103.6765393 | T85: 100.0713378 | U85: 100.9668341 | V85: 101.9940752 | W85: 103.5308156 | X85: 100.3599738 | Y85: 98.75275069 | AA85: 106.1369687 | AB85: 100.6367669 | AC85: 104.3809304 | AD85: 104.9271622 | AE85: 102.164773 | AF85: 98.05047443 | AG85: 97.99024015
B86: Septiembre | C86: 98.07751909 | D86: 99.72944898 | E86: 97.84184301 | F86: 97.29715415 | G86: 102.2291613 | H86: 101.836428 | I86: 100.2246387 | K86: -2.359321873 | L86: -0.6078503037 | M86: -5.179597506 | N86: -3.699964609 | O86: 0.9092065085 | P86: 1.041233671 | Q86: 0.4507265838 | S86: 104.2928262 | T86: 99.93819409 | U86: 102.0027617 | V86: 102.4402226 | W86: 104.0684434 | X86: 100.3163344 | Y86: 98.69291426 | AA86: 106.3371373 | AB86: 100.2093114 | AC86: 104.2526986 | AD86: 105.2859392 | AE86: 101.7991756 | AF86: 98.50731844 | AG86: 98.4717087
B87: Octubre | C87: 98.43724981 | D87: 100.7828267 | E87: 98.78184634 | F87: 97.33585982 | G87: 102.1476771 | H87: 101.2274655 | I87: 99.84438465 | K87: -1.344365506 | L87: 0.9009274526 | M87: -3.776263443 | N87: -3.226301147 | O87: 1.873703748 | P87: 0.368714042 | Q87: 0.240568277 | S87: 104.8167277 | T87: 99.83767219 | U87: 103.8911001 | V87: 102.8901504 | W87: 104.3365477 | X87: 100.2100976 | Y87: 98.44372934 | AA87: 106.4807559 | AB87: 99.06218691 | AC87: 105.1722598 | AD87: 105.7063148 | AE87: 102.142849 | AF87: 98.99496853 | AG87: 98.59716166
B88: Noviembre | C88: 97.9958412 | D88: 99.30802358 | E88: 97.66016439 | F88: 97.38388617 | G88: 101.6957737 | H88: 101.7148066 | I88: 100.0387701 | K88: -1.613895946 | L88: -0.4668189378 | M88: -3.594723033 | N88: -2.515607875 | O88: 1.834042081 | P88: 1.049452743 | Q88: 0.1823268266 | S88: 105.3976513 | T88: 99.77943103 | U88: 103.5684905 | V88: 103.627921 | W88: 104.5274485 | X88: 100.7439221 | Y88: 98.35591377 | AA88: 107.553188 | AB88: 100.4746922 | AC88: 106.0498835 | AD88: 106.4117741 | AE88: 102.7844567 | AF88: 99.04548359 | AG88: 98.31779585
B89: Diciembre | C89: 97.68772599 | D89: 100.2267779 | E89: 95.49581305 | F89: 97.22568312 | G89: 101.7701955 | H89: 102.4932043 | I89: 100.1104022 | K89: -2.312274007 | L89: 0.2267779019 | M89: -4.504186952 | N89: -2.774316875 | O89: 1.770195514 | P89: 2.493204334 | Q89: 0.1104022446 | S89: 106.348262 | T89: 99.81815884 | U89: 102.0126109 | V89: 104.0781275 | W89: 104.8113771 | X89: 102.0351827 | Y89: 98.20338632 | AA89: 108.8655313 | AB89: 99.5923055 | AC89: 106.8241713 | AD89: 107.0479776 | AE89: 102.9882831 | AF89: 99.55312 | AG89: 98.09508714
A90: 2002 | B90: Enero | C90: 97.20193245 | D90: 99.16977655 | E90: 94.71343397 | F90: 97.26119691 | G90: 101.7566018 | H90: 101.990169 | I90: 99.43111269 | K90: -2.718878058 | L90: 0.01426159891 | M90: -5.112015618 | N90: -2.386512337 | O90: 1.536539243 | P90: 0.3008789019 | Q90: -0.7608859978 | S90: 106.7335022 | T90: 99.80559907 | U90: 102.1579694 | V90: 104.148146 | W90: 104.716144 | X90: 102.2082749 | Y90: 97.89713307 | AA90: 109.8059467 | AB90: 100.6411455 | AC90: 107.8600629 | AD90: 107.0808805 | AE90: 102.9084523 | AF90: 100.2138499 | AG90: 98.45724384
B91: Febrero | C91: 97.68424101 | D91: 99.13602953 | E91: 93.19310322 | F91: 97.0190383 | G91: 101.3638563 | H91: 102.8170322 | I91: 99.69064005 | K91: -1.595232389 | L91: -0.3829397541 | M91: -5.34028059 | N91: -1.997569933 | O91: 1.823525895 | P91: 0.7395148597 | Q91: -0.7003567618 | S91: 107.3925629 | T91: 99.74226633 | U91: 101.0973758 | V91: 104.6745806 | W91: 104.8895924 | X91: 102.7070534 | Y91: 97.70417601 | AA91: 109.938473 | AB91: 100.6115202 | AC91: 108.4816068 | AD91: 107.8907629 | AE91: 103.4782972 | AF91: 99.89303439 | AG91: 98.00737157
B92: Marzo | C92: 98.51573505 | D92: 99.21694033 | E92: 92.98746777 | F92: 97.65421828 | G92: 102.4385521 | H92: 102.3127702 | I92: 100.103525 | K92: 0.6428877294 | L92: -0.03031471824 | M92: -4.429620678 | N92: -0.6589159848 | O92: 2.772596255 | P92: -0.1591536897 | Q92: 0.3683405731 | S92: 108.5959062 | T92: 99.87401285 | U92: 101.0330397 | V92: 105.4251903 | W92: 105.7831011 | X92: 102.8363894 | Y92: 97.97969628 | AA92: 110.2320418 | AB92: 100.6622584 | AC92: 108.6523185 | AD92: 107.9576409 | AE92: 103.264932 | AF92: 100.5117828 | AG92: 97.87836772
B93: Abril | C93: 99.79024493 | D93: 99.40373959 | E93: 91.93788845 | F93: 97.99206799 | G93: 102.9739597 | H93: 104.6664225 | I93: 100.7764005 | K93: 2.590713161 | L93: -0.02694121545 | M93: -5.9528965 | N93: -0.3354114037 | O93: 3.30012052 | P93: 2.492583656 | Q93: 1.217364125 | S93: 109.6202486 | T93: 99.8922453 | U93: 99.93339486 | V93: 106.010282 | W93: 106.3981043 | X93: 105.3596773 | Y93: 98.12151399 | AA93: 109.850666 | AB93: 100.4914359 | AC93: 108.6966392 | AD93: 108.1825134 | AE93: 103.3252529 | AF93: 100.6623469 | AG93: 97.36556723
B94: Mayo | C94: 100.4964249 | D94: 99.56068142 | E94: 92.32264965 | F94: 98.32382786 | G94: 103.7562025 | H94: 105.3238527 | I94: 101.4064721 | K94: 3.421536577 | L94: -0.06912675189 | M94: -5.966263415 | N94: 0.4377655194 | O94: 3.889923373 | P94: 3.038811703 | Q94: 1.619777205 | S94: 111.0069122 | T94: 99.98574536 | U94: 100.6192944 | V94: 106.8269438 | W94: 107.6033533 | X94: 105.6019405 | Y94: 98.45659079 | AA94: 110.4585684 | AB94: 100.4269396 | AC94: 108.9865756 | AD94: 108.6480725 | AE94: 103.7078755 | AF94: 100.2640312 | AG94: 97.09103246
B95: Junio | C95: 101.2626035 | D95: 99.08168161 | E95: 92.3586302 | F95: 98.00340874 | G95: 104.9512345 | H95: 105.4842531 | I95: 101.6519062 | K95: 4.182009246 | L95: -0.3782731878 | M95: -5.579421731 | N95: 0.3182189748 | O95: 5.465990762 | P95: 2.608193989 | Q95: 1.22464428 | S95: 112.5040098 | T95: 100.093487 | U95: 101.1637511 | V95: 107.6253754 | W95: 108.9545606 | X95: 105.8332785 | Y95: 98.72683003 | AA95: 111.1012416 | AB95: 101.0211831 | AC95: 109.5336201 | AD95: 109.8179919 | AE95: 103.8144631 | AF95: 100.3308791 | AG95: 97.12245815
B96: Julio | C96: 101.1543691 | D96: 99.18138354 | E96: 91.44567287 | F96: 98.08977047 | G96: 105.9462207 | H96: 105.3863845 | I96: 101.6364009 | K96: 4.408934447 | L96: 0.04885691244 | M96: -5.321778817 | N96: 0.911353973 | O96: 5.943411415 | P96: 2.605665717 | Q96: 1.730651105 | S96: 113.9518561 | T96: 100.2698586 | U96: 100.9147214 | V96: 108.501723 | W96: 110.0969936 | X96: 106.0697696 | Y96: 98.84881709 | AA96: 112.6514427 | AB96: 101.097459 | AC96: 110.354835 | AD96: 110.614718 | AE96: 103.9178112 | AF96: 100.6484567 | AG96: 97.25729781
B97: Agosto | C97: 100.8309542 | D97: 99.78597515 | E97: 90.49097617 | F97: 98.07263327 | G97: 106.0984389 | H97: 104.6566246 | I97: 100.9900691 | K97: 3.223852827 | L97: 0.3497919384 | M97: -6.449158505 | N97: 0.892949724 | O97: 4.698517714 | P97: 2.248250035 | Q97: 0.2102832516 | S97: 114.6025848 | T97: 100.1726146 | U97: 99.52696337 | V97: 108.83129 | W97: 110.0559237 | X97: 105.9291862 | Y97: 98.26919708 | AA97: 113.6581377 | AB97: 100.3874688 | AC97: 109.9855119 | AD97: 110.9700906 | AE97: 103.7300123 | AF97: 101.2159398 | AG97: 97.30580245
B98: Septiembre | C98: 100.8366491 | D98: 99.91574305 | E98: 90.31732262 | F98: 98.11777233 | G98: 106.0795068 | H98: 103.0421045 | I98: 100.3970429 | K98: 2.813213543 | L98: 0.1867994605 | M98: -7.690493301 | N98: 0.8434143685 | O98: 3.766386762 | P98: 1.183934381 | Q98: 0.1720177528 | S98: 114.79366 | T98: 99.75136662 | U98: 98.80444732 | V98: 108.8229447 | W98: 110.3026124 | X98: 105.5309802 | Y98: 97.36348491 | AA98: 113.8412085 | AB98: 99.83548495 | AC98: 109.3970065 | AD98: 110.9105334 | AE98: 103.9810758 | AF98: 102.4153968 | AG98: 96.97843894
B99: Octubre | C99: 101.2221166 | D99: 99.93901233 | E99: 89.47170485 | F99: 98.17292169 | G99: 106.3983129 | H99: 100.2170314 | I99: 99.97564653 | K99: =(C99/C87-1)*100 -> 2.829078242 | L99: -0.8372601027 | M99: -9.424951886 | N99: 0.8599727525 | O99: 4.161265208 | P99: -0.9981817608 | Q99: 0.1314664583 | S99: 115.7447685 | T99: 99.71089983 | U99: 97.94674984 | V99: 109.2828662 | W99: 110.5070064 | X99: 105.4188627 | Y99: 97.01074947 | AA99: 114.347311 | AB99: 99.77174829 | AC99: 109.4723187 | AD99: 111.3167097 | AE99: 103.8616153 | AF99: 105.1905661 | AG99: 97.03438071
B100: Noviembre | C100: 101.6780815 | D100: 100.3850216 | E100: 88.18190212 | F100: 98.36745389 | G100: 107.6166211 | H100: 99.94171125 | I100: 100.7084152 | K100: 3.757547499 | L100: 1.084502544 | M100: -9.705351544 | N100: 1.009990215 | O100: 5.822117469 | P100: -1.743202809 | Q100: 0.6693855866 | S100: 117.3358966 | T100: 99.89154807 | U100: 96.80935893 | V100: 110.092107 | W100: 111.4345811 | X100: 105.5632582 | Y100: 97.67757783 | AA100: 115.3994006 | AB100: 99.50841914 | AC100: 109.7837046 | AD100: 111.9192402 | AE100: 103.5477419 | AF100: 105.6248256 | AG100: 96.99048249
B101: Diciembre | C101: 102.1217618 | D101: 100.1321198 | E101: 88.27436004 | F101: 98.22365596 | G101: 107.5438127 | H101: 98.19252238 | I101: 100.9184555 | K101: 4.538989659 | L101: -0.09444395002 | M101: -7.562062439 | N101: 1.026449807 | O101: 5.673190651 | P101: -4.196065468 | Q101: 0.8071621141 | S101: 118.7164258 | T101: 100.005539 | U101: 97.42869931 | V101: 110.7696466 | W101: 112.0919103 | X101: 105.6787549 | Y101: 97.66302095 | AA101: 116.2498803 | AB101: 99.87358628 | AC101: 110.3703264 | AD101: 112.772881 | AE101: 104.2290648 | AF101: 107.6240352 | AG101: 96.77419306
A102: 2003 | B102: Enero | C102: 102.8676097 | D102: 99.18761911 | E102: 89.65558938 | F102: 99.02915185 | G102: 107.8079654 | H102: 95.95171777 | I102: 101.2585488 | K102: 5.82877014 | L102: 0.01799193464 | M102: -5.340155427 | N102: 1.817739237 | O102: 5.946900297 | P102: -5.92062087 | Q102: 1.837891691 | S102: 119.8371256 | T102: 99.74043525 | U102: 99.80550598 | V102: 111.9940035 | W102: 112.9777826 | X102: 105.543394 | Y102: 97.67912438 | AA102: 116.4964618 | AB102: 100.5573439 | AC102: 111.3210082 | AD102: 113.0919546 | AE102: 104.7953944 | AF102: 109.9963569 | AG102: 96.46506442
B103: Febrero | C103: 103.5378934 | D103: 99.48280596 | E103: 89.67794346 | F103: 98.79433904 | G103: 107.223345 | H103: 96.01376245 | I103: 101.7173169 | K103: 5.992422483 | L103: 0.3497985909 | M103: -3.771909761 | N103: 1.829847804 | O103: 5.780648904 | P103: -6.61687039 | Q103: 2.032966051 | S103: 120.8061271 | T103: 99.58022081 | U103: 99.88542194 | V103: 112.4422277 | W103: 113.3613974 | X103: 109.0224039 | Y103: 97.46935286 | AA103: 116.6781775 | AB103: 100.0979213 | AC103: 111.3823735 | AD103: 113.814444 | AE103: 105.7245486 | AF103: 113.5487259 | AG103: 95.8237553
B104: Marzo | C104: 104.5077394 | D104: 99.84600556 | E104: 90.68386956 | F104: 99.53109383 | G104: 108.3778708 | H104: 118.770125 | I104: 102.2651214 | K104: 6.082281523 | L104: 0.6340300619 | M104: -2.477321161 | N104: 1.921960551 | O104: 5.797933166 | P104: 16.0853379 | Q104: 2.159360921 | S104: 122.0299122 | T104: 99.65306179 | U104: 100.850416 | V104: 113.0586901 | W104: 114.1928876 | X104: 136.4321652 | Y104: 97.51631175 | AA104: 116.7663877 | AB104: 99.80675865 | AC104: 111.2109756 | AD104: 113.5913268 | AE104: 105.3655019 | AF104: 114.8707768 | AG104: 95.35637413
B105: Abril | C105: 104.892113 | D105: 100.0891911 | E105: 90.71905625 | F105: 99.73837813 | G105: 109.5387654 | H105: 124.1670047 | I105: 102.7473996 | K105: 5.112591991 | L105: 0.6895631094 | M105: -1.325712631 | N105: 1.782093357 | O105: 6.375209476 | P105: 18.63117298 | Q105: 1.955814167 | S105: 123.7199319 | T105: 99.99470674 | U105: 101.4356488 | V105: 113.9959634 | W105: 115.272487 | X105: 143.2050959 | Y105: 97.96892221 | AA105: 117.9496993 | AB105: 99.90559983 | AC105: 111.8129454 | AD105: 114.2949841 | AE105: 105.2344223 | AF105: 115.3326491 | AG105: 95.34929601
B106: Mayo | C106: 106.7960863 | D106: 100.8216159 | E106: 91.5973811 | F106: 101.0720752 | G106: 110.8893843 | H106: 133.0303174 | I106: 104.326928 | K106: 6.26854286 | L106: 1.266498461 | M106: -0.7855803045 | N106: 2.795098048 | O106: 6.874944973 | P106: 26.3059735 | Q106: 2.879950138 | S106: 126.7855637 | T106: 100.749502 | U106: 102.829313 | V106: 115.8436766 | W106: 117.7369882 | X106: 155.4626289 | Y106: 99.36574845 | AA106: 118.717425 | AB106: 99.9284737 | AC106: 112.262285 | AD106: 114.6149184 | AE106: 106.1751663 | AF106: 116.8625558 | AG106: 95.2445839
B107: Junio | C107: 107.1558416 | D107: 100.509288 | E107: 91.50097215 | F107: 101.271725 | G107: 110.1777697 | H107: 142.94327 | I107: 104.3266637 | K107: 5.819757591 | L107: 1.440837913 | M107: -0.9286171144 | N107: 3.334900626 | O107: 4.979965417 | P107: 35.51147749 | Q107: 2.631291031 | S107: 128.0256879 | T107: 100.7035429 | U107: 102.9938527 | V107: 116.3582347 | W107: 118.2216939 | X107: 175.5067583 | Y107: 99.46317165 | AA107: 119.4761629 | AB107: 100.1932706 | AC107: 112.5603917 | AD107: 114.8970601 | AE107: 107.3008595 | AF107: 122.7807076 | AG107: 95.33820804
B108: Julio | C108: 106.7408212 | D108: 100.8061213 | E108: 91.07506489 | F108: 101.0300968 | G108: 110.6618377 | H108: 164.1419031 | I108: 103.8383699 | K108: 5.52269972 | L108: 1.638147901 | M108: -0.4052766734 | N108: 2.997587142 | O108: 4.450953508 | P108: 55.75247584 | Q108: 2.166516152 | S108: 128.5204642 | T108: 100.5497292 | U108: 102.7440685 | V108: 116.4575645 | W108: 118.5974387 | X108: 208.7630143 | Y108: 99.0830927 | AA108: 120.4042304 | AB108: 99.74565818 | AC108: 112.812512 | AD108: 115.2701701 | AE108: 107.1710367 | AF108: 127.184473 | AG108: 95.42050089
B109: Agosto | C109: 106.8183652 | D109: 100.4987601 | E109: 90.64298646 | F109: 100.3643638 | G109: 110.2014505 | H109: 156.0643208 | I109: 103.5932854 | K109: 5.93806837 | L109: 0.71431372 | M109: 0.1679839209 | N109: 2.336768662 | O109: 3.867174352 | P109: 49.12034609 | Q109: 2.577695353 | S109: 128.7156108 | T109: 100.1946168 | U109: 102.1839942 | V109: 116.3248511 | W109: 117.640692 | X109: 203.7864108 | Y109: 98.6077199 | AA109: 120.4995138 | AB109: 99.69736619 | AC109: 112.732378 | AD109: 115.9025441 | AE109: 106.750584 | AF109: 130.5784754 | AG109: 95.1873662
B110: Septiembre | C110: 108.3297347 | D110: 100.9181989 | E110: 91.59770195 | F110: 101.0545382 | G110: 111.7819676 | H110: 145.4173803 | I110: 104.6526514 | K110: 7.430914892 | L110: 1.003301205 | M110: 1.417645355 | N110: 2.993102854 | O110: 5.375647864 | P110: 41.12423369 | Q110: 4.23877874 | S110: 130.2094864 | T110: 100.3271376 | U110: 103.2551023 | V110: 117.2207947 | W110: 119.1646531 | X110: 192.0048912 | Y110: 99.04623439 | AA110: 120.1973648 | AB110: 99.41431642 | AC110: 112.7267389 | AD110: 115.9975562 | AE110: 106.6045407 | AF110: 132.0370996 | AG110: 94.64283331
B111: Octubre | C111: 108.8302911 | D111: 100.8080482 | E111: 92.88073632 | F111: 101.6476527 | G111: 113.1651911 | H111: 156.697514 | I111: 105.598699 | K111: 7.516316347 | L111: 0.8695661489 | M111: 3.810178286 | N111: 3.539398627 | O111: 6.359948785 | P111: 56.35816767 | Q111: 5.624422204 | S111: 132.3111494 | T111: 100.5711168 | U111: 105.1197451 | V111: 118.4448886 | W111: 121.1046579 | X111: 212.32345 | Y111: 99.62602502 | AA111: 121.5756643 | AB111: 99.76496778 | AC111: 113.1771229 | AD111: 116.5249619 | AE111: 107.0158206 | AF111: 135.4989269 | AG111: 94.34398906
B112: Noviembre | C112: 108.1421871 | D112: 100.5766675 | E112: 92.20625806 | F112: 101.2748166 | G112: 112.4574199 | H112: 167.94734 | I112: 105.472518 | K112: 6.357422909 | L112: 0.1909108784 | M112: 4.563698271 | N112: 2.955614483 | O112: 4.498188789 | P112: 68.04529153 | Q112: 4.730590543 | S112: 133.4359071 | T112: 100.5656489 | U112: 104.875688 | V112: 118.9266687 | W112: 121.4115813 | X112: 241.6360562 | Y112: 99.67852088 | AA112: 123.389318 | AB112: 99.98904453 | AC112: 113.7403146 | AD112: 117.4296559 | AE112: 107.9622682 | AF112: 143.8760841 | AG112: 94.50662863
B113: Diciembre | C113: 108.7357649 | D113: 100.6342513 | E113: 91.58181757 | F113: 102.0169719 | G113: 112.8583815 | H113: 153.1835296 | I113: 106.5113922 | K113: 6.476585384 | L113: 0.5014689901 | M113: 3.746792988 | N113: 3.861916915 | O113: 4.941770826 | P113: 56.00325353 | Q113: 5.542035541 | S113: 135.7510703 | T113: 100.8422915 | U113: 104.6875835 | V113: 120.1109567 | W113: 122.7010151 | X113: 228.5697172 | Y113: 100.3642972 | AA113: 124.8449123 | AB113: 100.206729 | AC113: 114.3104453 | AD113: 117.7362496 | AE113: 108.7212252 | AF113: 149.2129851 | AG113: 94.2286972
A114: 2004 | B114: Enero | C114: 108.5728816 | D114: 100.1970684 | E114: 91.90522057 | F114: 102.6396108 | G114: 112.4524325 | H114: 176.7712451 | I114: 107.0255655 | K114: 5.546227774 | L114: 1.017717019 | M114: 2.509192351 | N114: 3.645854677 | O114: 4.308092704 | P114: 84.22936992 | Q114: 5.695338043 | S114: 137.4592615 | T114: 100.9573902 | U114: 106.2950897 | V114: 121.1887978 | W114: 123.1915027 | X114: 280.0761453 | Y114: 100.8922038 | AA114: 126.6055202 | AB114: 100.7588264 | AC114: 115.6572925 | AD114: 118.0721525 | AE114: 109.549878 | AF114: 158.4398782 | AG114: 94.26925551
B115: Febrero | C115: 108.349079 | D115: 100.14931 | E115: 91.54703296 | F115: 102.2423363 | G115: 111.5946791 | H115: 170.4208809 | I115: 107.4485592 | K115: =(C115/C103-1)*100 -> 4.64678715 | L115: 0.6699691256 | M115: 2.084224305 | N115: 3.49007575 | O115: 4.07684923 | P115: 77.4963053 | Q115: 5.634480447 | S115: 138.3280085 | T115: 100.8456645 | U115: 106.1686071 | V115: 121.5365931 | W115: 123.2570569 | X115: 298.8741906 | Y115: 100.8094242 | AA115: 127.6688365 | AB115: 100.6953162 | AC115: 115.9716527 | AD115: 118.8711032 | AE115: 110.4506576 | AF115: 175.3741613 | AG115: 93.82110375
B116: Marzo | C116: 108.7855441 | D116: 99.95605622 | E116: 91.17773056 | F116: 102.4968558 | G116: 111.6496565 | H116: 158.188446 | I116: 107.9925432 | K116: 4.093289895 | L116: 0.1102203868 | M116: 0.5445963127 | N116: 2.979734107 | O116: 3.018868702 | P116: 33.18875094 | Q116: 5.60056232 | S116: 138.6956874 | T116: 100.6788299 | U116: 105.8429095 | V116: 121.5487143 | W116: 123.2289862 | X116: 282.0989619 | Y116: 100.5118382 | AA116: 127.4945936 | AB116: 100.7230914 | AC116: 116.0841676 | AD116: 118.5877492 | AE116: 110.3711289 | AF116: 178.3309522 | AG116: 93.07294296
B117: Abril | C117: 108.4700429 | D117: 99.21201643 | E117: 90.11834818 | F117: 101.792317 | G117: 110.9156336 | H117: 150.1604511 | I117: 108.1181561 | K117: 3.411057099 | L117: -0.8763930138 | M117: -0.6621630537 | N117: 2.059326543 | O117: 1.256968929 | P117: 20.93426221 | Q117: 5.227145905 | S117: 139.0901937 | T117: 100.4593086 | U117: 104.8663399 | V117: 121.5988875 | W117: 123.0663855 | X117: 268.6392908 | Y117: 100.3132505 | AA117: 128.2291313 | AB117: 101.2571986 | AC117: 116.3651377 | AD117: 119.4578246 | AE117: 110.9549497 | AF117: 178.9014943 | AG117: 92.78113323
B118: Mayo | C118: 108.4166615 | D118: 98.61381223 | E118: 88.51826204 | F118: 101.3017238 | G118: 109.9672354 | H118: 154.9952141 | I118: 107.2880152 | K118: 1.517448034 | L118: -2.189811843 | M118: -3.361579805 | N118: 0.2272126419 | O118: -0.831593511 | P118: 16.51119612 | Q118: 2.838277046 | S118: 139.3547473 | T118: 100.0642748 | U118: 103.4402202 | V118: 121.4029356 | W118: 122.641629 | X118: 283.1382995 | Y118: 99.42718471 | AA118: 128.5362834 | AB118: 101.4708513 | AC118: 116.8574911 | AD118: 119.8429119 | AE118: 111.525609 | AF118: 182.6755111 | AG118: 92.67315132
B119: Junio | C119: 108.724582 | D119: 98.92995146 | E119: 88.18477841 | F119: 101.6995286 | G119: 110.8658668 | H119: 156.6812736 | I119: 107.5745345 | K119: 1.463980304 | L119: -1.571333966 | M119: -3.624216953 | N119: 0.4224313663 | O119: 0.6245335087 | P119: 9.610808291 | Q119: 3.113174227 | S119: 140.9290236 | T119: 100.2672974 | U119: 103.2362046 | V119: 122.3374205 | W119: 123.7799037 | X119: 291.1149076 | Y119: 99.841303 | AA119: 129.6202027 | AB119: 101.351811 | AC119: 117.0680546 | AD119: 120.2930065 | AE119: 111.6483434 | AF119: 185.8007029 | AG119: 92.81128057
B120: Julio | C120: 108.3114979 | D120: 98.60606299 | E120: 87.32691111 | F120: 100.9023524 | G120: 110.5231478 | H120: 145.2012637 | I120: 107.7196423 | K120: 1.471486466 | L120: -2.182464983 | M120: -4.11545552 | N120: -0.1264419262 | O120: -0.1253276831 | P120: -11.53918593 | Q120: 3.737801724 | S120: 142.37416 | T120: 100.3725525 | U120: 102.7809825 | V120: 123.1046344 | W120: 124.2747728 | X120: 271.7686602 | Y120: 100.1709284 | AA120: 131.4487961 | AB120: 101.7914613 | AC120: 117.6968029 | AD120: 122.0037308 | AE120: 112.4423031 | AF120: 187.1668698 | AG120: 92.99225868
B121: Agosto | C121: 108.263016 | D121: 98.54939881 | E121: 87.44027923 | F121: 101.203213 | G121: 110.8398575 | H121: 133.0418049 | I121: 107.6814154 | K121: 1.35243667 | L121: -1.939686874 | M121: -3.533320501 | N121: 0.8358037571 | O121: 0.5793090898 | P121: -14.75194059 | Q121: 3.946327249 | S121: 143.4498747 | T121: 100.4045407 | U121: 103.0159201 | V121: 123.7099109 | W121: 124.6723992 | X121: 250.0621927 | Y121: 100.2686751 | AA121: 132.5012733 | AB121: 101.8824487 | AC121: 117.8128901 | AD121: 122.2391141 | AE121: 112.4797541 | AF121: 187.9576068 | AG121: 93.11604487
B122: Septiembre | C122: 108.7617647 | D122: 98.66116189 | E122: 86.99537007 | F122: 101.9181354 | G122: 110.746125 | H122: 121.0088693 | I122: 108.4795369 | K122: 0.3988101106 | L122: -2.236501486 | M122: -5.024505844 | N122: 0.8545852501 | O122: -0.9266633715 | P122: -16.78514013 | Q122: 3.656749758 | S122: 144.8327444 | T122: 100.477483 | U122: 102.9960538 | V122: 124.4199885 | W122: 124.9037356 | X122: 224.2471035 | Y122: 100.5304912 | AA122: 133.1651291 | AB122: 101.8409687 | AC122: 118.3925693 | AD122: 122.0783603 | AE122: 112.7838429 | AF122: 185.3146012 | AG122: 92.6723086
B123: Octubre | C123: 109.9017038 | D123: 98.98175632 | E123: 86.10444005 | F123: 102.4416878 | G123: 110.6725692 | H123: 105.0591986 | I123: 109.2748616 | K123: 0.9844801945 | L123: -1.811652802 | M123: -7.295696106 | N123: 0.7811641761 | O123: -2.202640093 | P123: -32.95413821 | Q123: 3.481257505 | S123: 146.7694775 | T123: 100.7167808 | U123: 102.4696569 | V123: 125.547023 | W123: 125.9106658 | X123: 196.3534501 | Y123: 100.9194375 | AA123: 133.5461348 | AB123: 101.752873 | AC123: 119.0062403 | AD123: 122.5546218 | AE123: 113.76863 | AF123: 186.8979134 | AG123: 92.3537546
B124: Noviembre | C124: 110.4324369 | D124: 99.48512085 | E124: 85.42599065 | F124: 102.8722318 | G124: 111.1708321 | H124: 98.47037217 | I124: 110.5267524 | K124: 2.11781341 | L124: -1.085288188 | M124: -7.353370104 | N124: 1.577307445 | O124: -1.144066606 | P124: -41.368305 | Q124: 4.791991827 | S124: 149.4468372 | T124: 101.1704826 | U124: 102.6175736 | V124: 127.0587491 | W124: 127.406237 | X124: 180.8672782 | Y124: 102.0075673 | AA124: 135.3287507 | AB124: 101.6940842 | AC124: 120.1245345 | AD124: 123.5112205 | AE124: 114.6040149 | AF124: 183.6768505 | AG124: 92.29219625
B125: Diciembre | C125: 110.8517495 | D125: 99.45457342 | E125: 85.45439227 | F125: 103.2918889 | G125: 112.1190254 | H125: 97.81535775 | I125: 110.9463097 | K125: 1.945987725 | L125: -1.172242921 | M125: -6.690657016 | N125: 1.249710624 | O125: -0.6551184703 | P125: -36.14499027 | Q125: 4.163796454 | S125: 151.8955826 | T125: 101.5556683 | U125: 103.4429293 | V125: 128.3091117 | W125: 128.5428769 | X125: 177.3903639 | Y125: 102.9609328 | AA125: 137.0258776 | AB125: 102.1126176 | AC125: 121.0504534 | AD125: 124.2199296 | AE125: 114.6485857 | AF125: 181.3522621 | AG125: 92.80248532
A126: 2005 | B126: Enero | C126: 107.5459949 | D126: 97.91350969 | E126: 83.61937412 | F126: 103.1523028 | G126: 111.705033 | H126: 99.1738769 | I126: 108.6343039 | K126: -0.9458040652 | L126: -2.279067381 | M126: -9.015642853 | N126: 0.4995069918 | O126: -0.6646361178 | P126: -43.89705358 | Q126: 1.503134661 | S126: 151.4134614 | T126: 101.410399 | U126: 102.8521783 | V126: 129.6508437 | W126: 128.1604173 | X126: 182.8271029 | Y126: 102.8569569 | AA126: 140.7894934 | AB126: 103.5714064 | AC126: 123.0004164 | AD126: 125.6887535 | AE126: 114.7311037 | AF126: 184.3500613 | AG126: 94.68183922
B127: Febrero | C127: 107.7518086 | D127: 98.43603124 | E127: 83.09249449 | F127: 102.8427412 | G127: 112.2086554 | H127: 96.45649135 | I127: 108.7828175 | K127: -0.5512463605 | L127: -1.710724527 | M127: -9.23518567 | N127: 0.5872370272 | O127: 0.5501841899 | P127: -43.40101353 | Q127: 1.241764635 | S127: 152.4860359 | T127: 101.4845228 | U127: 102.3823068 | V127: 130.1043282 | W127: 129.603183 | X127: 176.8603248 | Y127: 102.9398486 | AA127: 141.5159874 | AB127: 103.0969265 | AC127: 123.2148673 | AD127: 126.5080323 | AE127: 115.5019482 | AF127: 183.3576179 | AG127: 94.62877595
B128: Marzo | C128: 108.352409 | D128: 99.0598805 | E128: 82.23374277 | F128: 103.0980822 | G128: 112.2344932 | H128: 95.37148591 | I128: 108.7021142 | K128: -0.3981550246 | L128: -0.8965696983 | M128: -9.809399447 | N128: 0.5865803884 | O128: 0.5238142042 | P128: -39.71020746 | Q128: 0.6570555496 | S128: 153.6409784 | T128: 101.481682 | U128: 101.1508522 | V128: 130.5554431 | W128: 130.1871677 | X128: 173.510776 | Y128: 102.9213613 | AA128: 141.7974734 | AB128: 102.4447854 | AC128: 123.0040721 | AD128: 126.6322712 | AE128: 115.9956836 | AF128: 181.9315012 | AG128: 94.68202345
B129: Abril | C129: 108.3363525 | D129: 99.12717025 | E129: 81.92977138 | F129: 102.6950501 | G129: 111.0197969 | H129: 95.38634748 | I129: 108.7956676 | K129: -0.1232509705 | L129: -0.08552006113 | M129: -9.086470139 | N129: 0.886838119 | O129: 0.09391221905 | P129: -36.47705052 | Q129: 0.6266398751 | S129: 154.2764616 | T129: 101.4494328 | U129: 100.9049006 | V129: 130.5012448 | W129: 130.3434283 | X129: 173.0488034 | Y129: 102.7852063 | AA129: 142.4050728 | AB129: 102.3427104 | AC129: 123.160237 | AD129: 127.0764703 | AE129: 117.4055726 | AF129: 181.4188382 | AG129: 94.47545894
B130: Mayo | C130: 107.4855715 | D130: 98.42105342 | E130: 81.39962218 | F130: 102.3699034 | G130: 110.765584 | H130: 97.18850566 | I130: 109.2349499 | K130: -0.8588071148 | L130: -0.1954683684 | M130: -8.042001384 | N130: 1.054453577 | O130: 0.7259876668 | P130: -37.29580216 | Q130: 1.81468044 | S130: 155.2115681 | T130: 101.5250441 | U130: 100.822217 | V130: 130.6262165 | W130: 131.1909231 | X130: 175.8414048 | Y130: 102.9135348 | AA130: 144.4022356 | AB130: 103.1537873 | AC130: 123.8607923 | AD130: 127.6021683 | AE130: 118.4401493 | AF130: 180.9281906 | AG130: 94.21301049
B131: Junio | C131: 107.0990016 | D131: 98.23733129 | E131: 80.84169521 | F131: 101.0805165 | G131: 109.6483587 | H131: 97.57949014 | I131: 108.5825822 | K131: =(C131/C119-1)*100 -> -1.495136015 | L131: -0.7001117101 | M131: -8.326928215 | N131: -0.6086675861 | O131: -1.098181149 | P131: -37.72102568 | Q131: 0.93706915 | S131: 155.3793586 | T131: 101.3530977 | U131: 100.8214546 | V131: 129.8673819 | W131: 130.8926398 | X131: 176.5773274 | Y131: 102.4201913 | AA131: 145.0801186 | AB131: 103.1716725 | AC131: 124.7146714 | AD131: 128.4791435 | AE131: 119.3749193 | AF131: 180.9574195 | AG131: 94.32469667
B132: Julio | C132: 106.6663231 | D132: 98.46629391 | E132: 80.02249973 | F132: 100.4565826 | G132: 109.9020587 | H132: 97.37254765 | I132: 108.2785173 | K132: -1.518929105 | L132: -0.1417449181 | M132: -8.364444922 | N132: -0.4417833408 | O132: -0.5619538864 | P132: -32.93960039 | Q132: 0.5188236768 | S132: 156.2587901 | T132: 101.3593651 | U132: 100.3775894 | V132: 129.8018329 | W132: 131.9102934 | X132: 176.5846721 | Y132: 102.2269677 | AA132: 146.4930876 | AB132: 102.9381335 | AC132: 125.4367081 | AD132: 129.2118739 | AE132: 120.0253162 | AF132: 181.349545 | AG132: 94.41112625
B133: Agosto | C133: 106.9543938 | D133: 98.85804487 | E133: 80.35947663 | F133: 100.5290898 | G133: 110.6736584 | H133: 97.00175736 | I133: 109.2243011 | K133: -1.208743487 | L133: 0.3131891897 | M133: -8.09787282 | N133: -0.6661084733 | O133: -0.149945272 | P133: -27.08926536 | Q133: 1.43282444 | S133: 158.0215756 | T133: 101.5806471 | U133: 100.7702338 | V133: 130.4391619 | W133: 133.2463354 | X133: 177.4815902 | Y133: 102.7446824 | AA133: 147.746689 | AB133: 102.7540523 | AC133: 125.3993157 | AD133: 129.7526539 | AE133: 120.3957087 | AF133: 182.9673967 | AG133: 94.06760348
B134: Septiembre | C134: 108.4647775 | D134: 99.48297472 | E134: 80.7335189 | F134: 101.1182999 | G134: 111.2666592 | H134: 99.61481145 | I134: 109.2641395 | K134: -0.2730620727 | L134: 0.8329648854 | M134: -7.197913134 | N134: -0.7847822387 | O134: 0.4700247526 | P134: -17.6797436 | Q134: 0.7232723758 | S134: 159.0133106 | T134: 101.5725348 | U134: 101.118217 | V134: 130.4508666 | W134: 133.7196958 | X134: 186.239999 | Y134: 102.7507282 | AA134: 146.6036388 | AB134: 102.1004197 | AC134: 125.2493616 | AD134: 129.0081684 | AE134: 120.1794829 | AF134: 186.9601481 | AG134: 94.03883897
B135: Octubre | C135: 107.6526336 | D135: 97.6572201 | E135: 79.76531739 | F135: 100.8982922 | G135: 110.3620526 | H135: 104.9578524 | I135: 108.3933436 | K135: -2.046437992 | L135: -1.338161968 | M135: -7.362132157 | N135: -1.506608892 | O135: -0.2805723342 | P135: -0.0964658376 | Q135: -0.8066978708 | S135: 159.4327302 | T135: 101.3921411 | U135: 101.4705817 | V135: 129.971933 | W135: 133.5790523 | X135: 197.9808302 | Y135: 102.3040807 | AA135: 148.0992382 | AB135: 103.8245211 | AC135: 127.2114059 | AD135: 128.8147997 | AE135: 121.037122 | AF135: 188.6288884 | AG135: 94.38225384
B136: Noviembre | C136: 105.7774565 | D136: 98.26716865 | E136: 78.60033221 | F136: 99.96385934 | G136: 110.5596858 | H136: 107.8612923 | I136: 108.2261764 | K136: -4.215229205 | L136: -1.22425564 | M136: -7.990142563 | N136: -2.82716962 | O136: -0.5497361951 | P136: 9.536797671 | Q136: -2.081465367 | S136: 160.0406995 | T136: 101.3472606 | U136: 100.5542001 | V136: 129.6693238 | W136: 133.9298022 | X136: 202.9547575 | Y136: 102.053082 | AA136: 151.2994401 | AB136: 103.1344059 | AC136: 127.9310116 | AD136: 129.7162041 | AE136: 121.138009 | AF136: 188.1627348 | AG136: 94.29611709
B137: Diciembre | C137: 105.3472497 | D137: 98.17210337 | E137: 78.68119503 | F137: 99.50609214 | G137: 110.4221598 | H137: 106.2181398 | I137: 107.7415816 | K137: -4.965640855 | L137: -1.289503337 | M137: -7.926096078 | N137: -3.665144262 | O137: -1.513450141 | P137: 8.590452718 | Q137: -2.888539673 | S137: 161.2123454 | T137: 101.3756567 | U137: 100.7555424 | V137: 129.8036091 | W137: 134.2649991 | X137: 202.2473221 | Y137: 102.0976155 | AA137: 153.0294771 | AB137: 103.2632013 | AC137: 128.0554297 | AD137: 130.4479015 | AE137: 121.5924406 | AF137: 190.4075165 | AG137: 94.7615712
A138: 2006 | B138: Enero | C138: 105.9740693 | D138: 99.18736885 | E138: 78.965313 | F138: 100.3285175 | G138: 111.1746006 | H138: 110.0781718 | I138: 109.5630754 | K138: -1.461630971 | L138: 1.301004489 | M138: -5.565768907 | N138: -2.737491307 | O138: -0.4748509766 | P138: 10.99512823 | Q138: 0.8549523389 | S138: 163.2946477 | T138: 101.9591356 | U138: 101.3440305 | V138: 130.4583491 | W138: 135.97955 | X138: 211.5009618 | Y138: 103.1926542 | AA138: 154.0892492 | AB138: 102.7944755 | AC138: 128.3399339 | AD138: 130.0311739 | AE138: 122.3117055 | AF138: 192.1370589 | AG138: 94.18561301
B139: Febrero | C139: 105.8523289 | D139: 99.00700423 | E139: 79.07888122 | F139: 99.76182754 | G139: 110.4617249 | H139: 109.2714366 | I139: 110.0617068 | K139: -1.762828591 | L139: 0.5800447151 | M139: -4.830295791 | N139: -2.995752151 | O139: -1.556858888 | P139: 13.2857261 | Q139: 1.175635423 | S139: 164.1781717 | T139: 102.0597657 | U139: 101.253286 | V139: 130.3492802 | W139: 136.7725321 | X139: 209.19782 | Y139: 103.2362986 | AA139: 155.1011427 | AB139: 103.0833793 | AC139: 128.0408681 | AD139: 130.6604774 | AE139: 123.8189356 | AF139: 191.4478536 | AG139: 93.79856227
B140: Marzo | C140: 106.681793 | D140: 98.97707193 | E140: 78.99842895 | F140: 99.9769305 | G140: 110.1930296 | H140: 104.5034426 | I140: 110.0697154 | K140: -1.541835588 | L140: -0.08359445852 | M140: -3.934289883 | N140: -3.027361586 | O140: -1.818927106 | P140: 9.57514355 | Q140: 1.258118244 | S140: 165.095902 | T140: 101.93519 | U140: 101.2066461 | V140: 130.3078261 | W140: 136.8809499 | X140: 199.273665 | Y140: 103.1974871 | AA140: 154.7554623 | AB140: 102.9886902 | AC140: 128.1122264 | AD140: 130.3378944 | AE140: 124.2192455 | AF140: 190.6862206 | AG140: 93.7564768
B141: Abril | C141: 107.6708649 | D141: 99.01025689 | E141: 78.63577523 | F141: 100.3114259 | G141: 109.6481202 | H141: 103.2093654 | I141: 109.600364 | K141: -0.6142791088 | L141: -0.1179428041 | M141: -4.020511835 | N141: -2.321070217 | O141: -1.235524471 | P141: 8.20140215 | Q141: 0.7396401033 | S141: 166.2573745 | T141: 101.941187 | U141: 100.9251591 | V141: 130.5490556 | W141: 137.3460723 | X141: 196.5385786 | Y141: 103.2878428 | AA141: 154.4125931 | AB141: 102.9602288 | AC141: 128.3450933 | AD141: 130.1437543 | AE141: 125.2607633 | AF141: 190.4270778 | AG141: 94.24041949
B142: Mayo | C142: 107.5155071 | D142: 99.55220565 | E142: 78.65968555 | F142: 100.7210048 | G142: 110.2347446 | H142: 104.6477424 | I142: 110.700341 | K142: 0.02785081787 | L142: 1.149299049 | M142: -3.366031136 | N142: -1.610725949 | O142: -0.4792457842 | P142: 7.675019499 | Q142: 1.341503958 | S142: 168.0962439 | T142: 102.2617526 | U142: 101.2600803 | V142: 131.4920276 | W142: 138.9837722 | X142: 199.6059966 | Y142: 103.8865399 | AA142: 156.3460457 | AB142: 102.7217348 | AC142: 128.7318651 | AD142: 130.5507504 | AE142: 126.0798243 | AF142: 190.740853 | AG142: 93.8448237
B143: Junio | C143: 106.4718126 | D143: 98.35666674 | E143: 78.05650433 | F143: 99.96466 | G143: 109.573486 | H143: 104.3336036 | I143: 109.5864108 | K143: -0.585616171 | L143: 0.1214766852 | M143: -3.445240564 | N143: -1.103928373 | O143: -0.06828443219 | P143: 6.921652781 | Q143: 0.924483973 | S143: 167.9157022 | T143: 101.7442305 | U143: 100.9867491 | V143: 130.7364952 | W143: 138.5557094 | X143: 200.2286568 | Y143: 102.9397616 | AA143: 157.709067 | AB143: 103.4441628 | AC143: 129.376469 | AD143: 130.7827138 | AE143: 126.4500332 | AF143: 191.9119534 | AG143: 93.93478699
B144: Julio | C144: 106.5640388 | D144: 97.72036735 | E144: 77.89815868 | F144: 99.94127277 | G144: 110.0063395 | H144: 103.845553 | I144: 110.1756544 | K144: -0.09589177263 | L144: -0.7575450717 | M144: -2.654679694 | N144: -0.5129677461 | O144: 0.09488520822 | P144: 6.647669717 | Q144: 1.752090022 | S144: 169.3678455 | T144: 102.1226765 | U144: 101.0263294 | V144: 131.1720271 | W144: 139.6550498 | X144: 200.6080932 | Y144: 103.3175337 | AA144: 158.9352725 | AB144: 104.5050067 | AC144: 129.6902663 | AD144: 131.2491061 | AE144: 126.9518197 | AF144: 193.1792815 | AG144: 93.77528476
B145: Agosto | C145: 106.8463103 | D145: 98.72801566 | E145: 78.03418086 | F145: 100.1630075 | G145: 111.1111308 | H145: 103.8876944 | I145: 110.9055225 | K145: -0.1010557107 | L145: -0.1315312345 | M145: -2.893617355 | N145: -0.3641555615 | O145: 0.395281415 | P145: 7.098775608 | Q145: 1.539237535 | S145: 170.902067 | T145: 102.3820509 | U145: 101.2760179 | V145: 131.6412879 | W145: 140.9209259 | X145: 200.6053863 | Y145: 103.8269958 | AA145: 159.9513043 | AB145: 103.7011128 | AC145: 129.784175 | AD145: 131.4270519 | AE145: 126.8288109 | AF145: 193.0983139 | AG145: 93.6175165
